Workbook

Sheet RESUME
L1: INITIAL DATA (only chage yellow cells)
L2: ='Plant configuration'!I36 -> PRICE OF NATURAL GAS | N2: 20 | O2: €/MWh pci
L3: EQUIVALENT HOUR ENGINE 1 | N3: ='EPC COST'!K4 -> 7008 | O3: EQ HOURS
L4: EQUIVALENT HOUR ENGINE 2 | N4: ='EPC COST'!K5 -> 0 | O4: EQ HOURS
E5: COGENERATION ECONOMIC ANALYSIS | L5: EQUIVALENT HOUR ENGINE 3 | N5: ='EPC COST'!K6 -> 0 | O5: EQ HOURS
L6: TOTAL ELECTRIC POWER | N6: ='EPC COST'!H4+'EPC COST'!H5+'EPC COST'!H6 -> 18 | O6: MW
L7: AUTOCONSUMPTION, RUNNING | N7: =0.07*N6 -> 1.26 | O7: MW | P7: Ese autoconsumo de descuenta de la potencia bruta.
L8: AUTOCONSUMPTION STOPED | N8: =N7/4 -> 0.315 | O8: MW
L9: COST PER MW INSTALLED | N9: ='EPC COST'!E27/RESUME!N6 -> 602081.5835 | O9: Euros
L10: POWER PRODUCTION | N10: =('Plant configuration'!B12*[2]Margin!N3+'Plant configuration'!B13*[2]Margin!N4+'Plant configuration'!B14*[2]Margin!N5) -> 94608
L11: HEAT PRODUCTION | N11: =N10/N16 -> 63072
L12: OPEX COST | N12: ='OPEX COST'!F24 -> 1718644.894 | O12: Euros
L13: FUEL COST | N13: =N3*N6/0.4*N2 -> 6307200 | O13: Euros
F14: RESULTADOS | L14: OTHER COSTS | N14: 0 | O14: Euros
F15: IRR INVESTMENT | G15: ='Balance,dividendos,VAN,IRR y PR'!E73 -> 0.07381837748 | L15: ELECTRIC INCOME (TARIF) | N15: 75 | O15: Euros/MWh
L16: Ratio ELEC/THERM cog | N16: 1.5
L17: HEAT FROM CONV. BOILER | N17: 0 | O17: MWh térmicos
F18: IRR PROYECT | H18: To calculate Project IRR, N19=100% | L18: INCOME FOR THERMAL ENERGY | N18: 15 | O18: Euros/MWh
F19: NPV | G19: ='Balance,dividendos,VAN,IRR y PR'!E69 -> -3286841.179 | L19: DEPRECIATION PERIOD | N19: ='Plant configuration'!L40 -> 20 | O19: Years | P19: DON'T TOUCH THIS VALUE
F20: PAYBACK INVEST | G20: ='Balance,dividendos,VAN,IRR y PR'!E84 -> 11.1110511 | H20: If pay back =0,00, the Payback>20 years | L20: YEAR TO PAY THE LOAN | N20: ='Plant configuration'!L41 -> 20 | O20: Years | P20: DON'T TOUCH THIS VALUE
F21: Margin 1ª year | G21: =F59 -> 1710935.868 | L21: EQUITY | N21: 1
F22: Net profit 1 year | G22: ='P&L y Cash Flow'!F19 -> 859260.8953 | L22: ='Plant configuration'!I43 -> INTEREST POR NPV | N22: 0.12
L23: ='Plant configuration'!I44 -> EURIBOR (REFERENCE INTEREST RATE) | N23: 0.02
L24: ='Plant configuration'!I45 -> MARGEN OVER EURIBOR | N24: 0.05
L25: ='Plant configuration'!I46 -> INFLACTION OF INCOME | N25: 0.02
L26: ='Plant configuration'!I47 -> INFLACTION OF COSTS | N26: 0.02
L27: ='Plant configuration'!I48 -> TAX OVER PROFIT | N27: 0.265
A28: MODELO PARA FINANCIACIÓN DE PROYECTO | E28: Nombre | F28: ANÁLISIS ECONÓMICO DE PLANTA DE COGENERACIÓN SOLDEU
A30: INSTRUCCIONES
A31: Money, EURO
A32: El año 0 refleja los supuestos de partida, que empiezan a aplicarse a partir del año 1.-
A33: Las casillas de color azul deben ser rellenadas por el usuario.
A35: CÁLCULO DEL MARGEN OPERATIVO BRUTO
A37: A) Ingresos: | E37: Año 0 | F37: Año 1 | G37: Año 2 | H37: Año 3 | I37: Año 4 | J37: Año 5 | K37: Año 6 | L37: Año 7 | M37: Año 8 | N37: Año 9 | O37: Año 10 | P37: Año 11 | Q37: Año 12 | R37: Año 13 | S37: Año 14 | T37: Año 15 | U37: Año 16 | V37: Año 17 | W37: Año 18 | X37: Año 19 | Y37: Año 20
A38: Tarifa eléctrica para la venta a la red (Euros/MWh) | E38: =N15 -> 75 | F38: =E38*(1+F39) -> 76.5 | G38: =F38*(1+G39) -> 78.03 | H38: 79.5906 | I38: 81.182412 | J38: 82.80606024 | K38: 84.46218144 | L38: 86.15142507 | M38: 87.87445358 | N38: 89.63194265 | O38: 91.4245815 | P38: 93.25307313 | Q38: 95.11813459 | R38: 97.02049728 | S38: 98.96090723 | T38: 100.9401254 | U38: 102.9589279 | V38: 105.0181064 | W38: 107.1184686 | X38: 109.2608379 | Y38: 111.4460547
A39: Tasa estimada de incremento de esa tarifa | F39: =N25 -> 0.02 | G39: =F39 -> 0.02 | H39: =G39 -> 0.02 | I39: 0.02 | J39: 0.02 | K39: 0.02 | L39: 0.02 | M39: 0.02 | N39: 0.02 | O39: 0.02 | P39: 0.02 | Q39: 0.02 | R39: 0.02 | S39: 0.02 | T39: 0.02 | U39: 0.02 | V39: 0.02 | W39: 0.02 | X39: 0.02 | Y39: 0.02
A40: Volumen de electricidad que se vende a la red (MWh) | E40: =('Plant configuration'!B12*RESUME!N3+'Plant configuration'!B13*RESUME!N4+'Plant configuration'!B14*RESUME!N5)-N3*N7-(8760-N3)*N8 -> 116762.04 | F40: =E40*(1+F41) -> 116762.04 | G40: =F40*(1+G41) -> 116762.04 | H40: 116762.04 | I40: 116762.04 | J40: 116762.04 | K40: 116762.04 | L40: 116762.04 | M40: 116762.04 | N40: 116762.04 | O40: 116762.04 | P40: 116762.04 | Q40: 116762.04 | R40: 116762.04 | S40: 116762.04 | T40: 116762.04 | U40: 116762.04 | V40: 116762.04 | W40: 116762.04 | X40: 116762.04 | Y40: 116762.04
A41: Tasa estimada de incremento de ese volumen | F41: 0 | G41: =F41 -> 0 | H41: =G41 -> 0 | I41: 0 | J41: 0 | K41: 0 | L41: 0 | M41: 0 | N41: 0 | O41: 0 | P41: 0 | Q41: 0 | R41: 0 | S41: 0 | T41: 0 | U41: 0 | V41: 0 | W41: 0 | X41: 0 | Y41: 0
A42: Ingresos derivados de la venta a la red | F42: =F38*F40 -> 8932296.06 | G42: =G38*G40 -> 9110941.981 | H42: 9293160.821 | I42: 9479024.037 | J42: 9668604.518 | K42: 9861976.608 | L42: 10059216.14 | M42: 10260400.46 | N42: 10465608.47 | O42: 10674920.64 | P42: 10888419.05 | Q42: 11106187.44 | R42: 11328311.18 | S42: 11554877.41 | T42: 11785974.96 | U42: 12021694.46 | V42: 12262128.34 | W42: 12507370.91 | X42: 12757518.33 | Y42: 13012668.7
A43: Ingresos por energía térmica | E43: =('Plant configuration'!B12*[2]Margin!N3+'Plant configuration'!B13*[2]Margin!N4+'Plant configuration'!B14*[2]Margin!N5)/N16*N18 -> 946080 | F43: =E43*(1+F44) -> 965001.6 | G43: =F43*(1+G44) -> 984301.632 | H43: 1003987.665 | I43: 1024067.418 | J43: 1044548.766 | K43: 1065439.742 | L43: 1086748.536 | M43: 1108483.507 | N43: 1130653.177 | O43: 1153266.241 | P43: 1176331.566 | Q43: 1199858.197 | R43: 1223855.361 | S43: 1248332.468 | T43: 1273299.118 | U43: 1298765.1 | V43: 1324740.402 | W43: 1351235.21 | X43: 1378259.914 | Y43: 1405825.112
A44: Tasa estimada de incremento de la energía térmica | F44: =N25 -> 0.02 | G44: =F44 -> 0.02 | H44: =G44 -> 0.02 | I44: 0.02 | J44: 0.02 | K44: 0.02 | L44: 0.02 | M44: 0.02 | N44: 0.02 | O44: 0.02 | P44: 0.02 | Q44: 0.02 | R44: 0.02 | S44: 0.02 | T44: 0.02 | U44: 0.02 | V44: 0.02 | W44: 0.02 | X44: 0.02 | Y44: 0.02
A45: Total de otros ingresos | F45: =+F43 -> 965001.6 | G45: =+G43 -> 984301.632 | H45: 1003987.665 | I45: 1024067.418 | J45: 1044548.766 | K45: 1065439.742 | L45: 1086748.536 | M45: 1108483.507 | N45: 1130653.177 | O45: 1153266.241 | P45: 1176331.566 | Q45: 1199858.197 | R45: 1223855.361 | S45: 1248332.468 | T45: 1273299.118 | U45: 1298765.1 | V45: 1324740.402 | W45: 1351235.21 | X45: 1378259.914 | Y45: 1405825.112
A47: TOTAL DE INGRESOS OPERATIVOS | F47: =F42+F45 -> 9897297.66 | G47: =G42+G45 -> 10095243.61 | H47: 10297148.49 | I47: 10503091.46 | J47: 10713153.28 | K47: 10927416.35 | L47: 11145964.68 | M47: 11368883.97 | N47: 11596261.65 | O47: 11828186.88 | P47: 12064750.62 | Q47: 12306045.63 | R47: 12552166.55 | S47: 12803209.88 | T47: 13059274.07 | U47: 13320459.56 | V47: 13586868.75 | W47: 13858606.12 | X47: 14135778.24 | Y47: 14418493.81
A49: B) Gastos: | E49: Año 0 | F49: Año 1 | G49: Año 2 | H49: Año 3 | I49: Año 4 | J49: Año 5 | K49: Año 6 | L49: Año 7 | M49: Año 8 | N49: Año 9 | O49: Año 10 | P49: Año 11 | Q49: Año 12 | R49: Año 13 | S49: Año 14 | T49: Año 15 | U49: Año 16 | V49: Año 17 | W49: Año 18 | X49: Año 19 | Y49: Año 20
A50: Mantenimiento de la instalación | E50: =N12 -> 1718644.894 | F50: =E50*(1+$F$54) -> 1753017.792 | G50: 1788078.148 | H50: 1823839.711 | I50: 1860316.505 | J50: 1897522.835 | K50: 1935473.292 | L50: 1974182.758 | M50: 2013666.413 | N50: 2053939.741 | O50: 2095018.536 | P50: 2136918.907 | Q50: 2179657.285 | R50: 2223250.431 | S50: 2267715.439 | T50: 2313069.748 | U50: 2359331.143 | V50: =U50*(1+$F$54) -> 2406517.766 | W50: 2454648.121 | X50: 2503741.084 | Y50: 2553815.905
A51: Servicios, alquileres, derechos y otros | E51: =N14 -> 0 | F51: =E51*(1+$F$54) -> 0 | G51: 0 | H51: 0 | I51: 0 | J51: 0 | K51: 0 | L51: 0 | M51: 0 | N51: 0 | O51: 0 | P51: 0 | Q51: 0 | R51: 0 | S51: 0 | T51: 0 | U51: 0 | V51: 0 | W51: 0 | X51: 0 | Y51: 0
A52: Combustible | E52: =N13 -> 6307200 | F52: 6433344 | G52: 6562010.88 | H52: 6693251.098 | I52: 6827116.12 | J52: 6963658.442 | K52: 7102931.611 | L52: 7244990.243 | M52: 7389890.048 | N52: 7537687.849 | O52: 7688441.606 | P52: 7842210.438 | Q52: 7999054.647 | R52: 8159035.74 | S52: 8322216.454 | T52: 8488660.783 | U52: 8658433.999 | V52: 8831602.679 | W52: 9008234.733 | X52: 9188399.427 | Y52: 9372167.416
A54: Tasa estimada de incremento de esos gastos | F54: =N26 -> 0.02 | G54: =F54 -> 0.02 | H54: =G54 -> 0.02 | I54: 0.02 | J54: 0.02 | K54: 0.02 | L54: 0.02 | M54: 0.02 | N54: 0.02 | O54: 0.02 | P54: 0.02 | Q54: 0.02 | R54: 0.02 | S54: 0.02 | T54: 0.02 | U54: 0.02 | V54: 0.02 | W54: 0.02 | X54: 0.02 | Y54: 0.02
A55: Gastos de operación y mantenimiento | E55: =SUM(E50:E52) -> 8025844.894 | F55: =SUM(F50:F52) -> 8186361.792 | G55: 8350089.028 | H55: 8517090.809 | I55: 8687432.625 | J55: 8861181.277 | K55: 9038404.903 | L55: 9219173.001 | M55: 9403556.461 | N55: 9591627.59 | O55: 9783460.142 | P55: 9979129.345 | Q55: 10178711.93 | R55: 10382286.17 | S55: 10589931.89 | T55: 10801730.53 | U55: 11017765.14 | V55: 11238120.45 | W55: 11462882.85 | X55: 11692140.51 | Y55: 11925983.32
A57: TOTAL DE GASTOS OPERATIVOS | F57: =F55 -> 8186361.792 | G57: 8350089.028 | H57: 8517090.809 | I57: 8687432.625 | J57: 8861181.277 | K57: 9038404.903 | L57: 9219173.001 | M57: 9403556.461 | N57: 9591627.59 | O57: 9783460.142 | P57: 9979129.345 | Q57: 10178711.93 | R57: 10382286.17 | S57: 10589931.89 | T57: 10801730.53 | U57: 11017765.14 | V57: 11238120.45 | W57: 11462882.85 | X57: 11692140.51 | Y57: 11925983.32
A59: MARGEN OPERATIVO BRUTO | F59: =F47-F57 -> 1710935.868 | G59: 1745154.585 | H59: 1780057.677 | I59: 1815658.83 | J59: 1851972.007 | K59: 1889011.447 | L59: 1926791.676 | M59: 1965327.51 | N59: 2004634.06 | O59: 2044726.741 | P59: 2085621.276 | Q59: 2127333.701 | R59: 2169880.375 | S59: 2213277.983 | T59: 2257543.542 | U59: 2302694.413 | V59: 2348748.302 | W59: 2395723.268 | X59: 2443637.733 | Y59: 2492510.488
A60: Porcentaje de incremento | G60: =G59/F59-1 -> 0.02 | H60: =H59/G59-1 -> 0.02 | I60: 0.02 | J60: 0.02 | K60: 0.02 | L60: 0.02 | M60: 0.02 | N60: 0.02 | O60: 0.02 | P60: 0.02 | Q60: 0.02 | R60: 0.02 | S60: 0.02 | T60: 0.02 | U60: 0.02 | V60: 0.02 | W60: 0.02 | X60: 0.02 | Y60: 0.02

Sheet Plant configuration
A1: DATA INTRODUCTION
A4: ENGINE TECHNICAL DATA
D6: %E. FLUE GAS | E6: % E- HT | F6: % E-LT | G6: % Losses | I6: Verification
C7: ENGINE 1 | D7: 22 | E7: 0 | F7: 0 | G7: =(G12/H12)*100 -> 23 | I7: =D7+E7+F7+G7+(I12*100) -> 100
C8: ENGINE 2 | D8: 22 | E8: 16 | F8: 0 | G8: =100-(I13*100+D8+E8+F8) -> 22 | I8: =D8+E8+F8+G8+(I13*100) -> 100
C9: ENGINE 3 | D9: 22 | E9: 16 | F9: 0 | G9: =100-(I14*100+D9+E9+F9) -> 22 | I9: =D9+E9+F9+G9+(I14*100) -> 100
B11: POWER | C11: GLOBAL HEAT | D11: FLUE GAS | E11: HIG TEMP CIRC. | F11: LOW T. C. | G11: LOSSES | H11: ENERGY FUEL | I11: ELEC EFIC. | J11: THERMAL EF | K11: HEAT RATE | O11: =B12/I12 -> 32.72727273
A12: ENGINE 1 | B12: 18 | C12: =H12*J12 -> 7.2 | D12: =H12*$D$7/100 -> 7.2 | E12: =H12*$E$7/100 -> 0 | F12: =$H$12*F7/100 -> 0 | G12: =H12-B12-C12 -> 7.527272727 | H12: =B12/I12 -> 32.72727273 | I12: 0.55 | J12: =(D7+E7+F7)/100 -> 0.22 | K12: =3600/I12 -> 6545.454545
A13: ENGINE 2 | B13: 0 | C13: =H13*J13 -> 0 | D13: =H13*$D$7/100 -> 0 | E13: =H13*$E$7/100 -> 0 | F13: =H13*$F$7/100 -> 0 | G13: =H13-B13-C13 -> 0 | H13: =B13/I13 -> 0 | I13: 0.4 | J13: =(D8+E8+F8)/100 -> 0.38 | K13: =3600/I13 -> 9000 | O13: =Calculos!AQ8763+RESUME!N17 -> 63.072
A14: ENGINE 3 | B14: 0 | C14: =H14*J14 -> 0 | D14: =H14*$D$7/100 -> 0 | E14: =H14*$E$7/100 -> 0 | F14: =H14*$F$7/100 -> 0 | G14: 0 | H14: 0 | I14: 0.4 | J14: =(D9+E9+F9)/100 -> 0.38 | K14: =3600/I14 -> 9000
B15: THERM POWER | C15: Eficiency | D15: Coef. Seg | E15: Pot. Termic Neta
A16: CONV BOILER | B16: 0 | C16: 0.92 | D16: 1.1 | E16: =B16*C16 -> 0
B17: THERM POWER | C17: Initial situation | D17: Capacity | E17: Storage fluid | F17: Temp Storage ºC | G17: Kg ALM | H17: Pumps flow
A18: STORAGE | B18: 15000 | C18: 37292.64 | D18: 75000 | E18: Water | F18: 120 | G18: 700000 | H18: =B18/(4.18*(F18-E27)) -> 71.77033493
A20: CONFIGURATION TO START MOTOR AND BOILER
A22: T_alm Arr M1 | C22: T_alm Arr M2 | E22: T_alm Arr M3 | G22: T_alm Entra Apoyo
A23: 115 | C23: 110 | E23: 105 | G23: 75
A25: CONFIGURATION OF EXCHANGERS
A26: Aproach ALM-Secundario | C26: Temp Retorno Secund | E26: Consigna Secundario (ºC)
A27: 5 | C27: 30 | E27: 70
A29: OTHERS
A30: Limite Min Caudal 1 ario
A31: 1
A33: ECONOMIC DATA
D35: POWER | E35: ESTIMATE PRICE | F35: HOURS | G35: EQUIV. HOURS | I35: INITAL DATA
A36: ENGINE 1 | D36: =B12 -> 18 | E36: =IF(D36>2,300000*D36,IF(D36>0.8,400000*D36,500000*D36)) -> 5400000 | F36: =Calculos!AL8763 -> 8760 | G36: =Calculos!AL8763 -> 8760 | I36: PRICE OF NATURAL GAS | L36: =RESUME!N2 -> 20 | M36: €/MWh pci
A37: ENGINE 2 | D37: =B13 -> 0 | E37: =IF(D37>2,300000*D37,IF(D37>0.8,400000*D37,500000*D37)) -> 0 | F37: =Calculos!AM8763 -> 8760 | G37: =Calculos!AM8763 -> 8760 | I37: OTHER COSTS | L37: =RESUME!N14 -> 0 | M37: Euros
A38: ENGINE 3 | D38: 0 | E38: =IF(D38>2,300000*D38,IF(D38>0.8,400000*D38,500000*D38)) -> 0 | F38: =Calculos!AN8763 -> 0 | G38: =Calculos!AN8763 -> 0 | I38: TARIF | L38: =RESUME!N15 -> 75 | M38: Euros/MWh
A39: SUM | D39: =E36+E37+E38 -> 5400000 | I39: THERMAL ENERGY INCOME | L39: 20 | M39: Euros/MWh
A40: ELECTRIC EFICIENCY | D40: =(B12+B13+B14)/(H12+H13+H14) -> 0.55 | I40: DEPRECIATION (YEARS) ACCORDING WITH LOCAL REGUALTION | L40: 20 | M40: Años
A41: THERMAL EFICIENCY | D41: =((C12+C13+C14)-(G12+G13+G14))/(H12+H13+H14) -> -0.01 | I41: YEAR TO PAY DE LOAN | L41: 20 | M41: Años
A42: COGENERATION THERMAL POWER | D42: =(D36+D37+D38)*D41/D40 -> -0.3272727273 | E42: MW th | I42: EQUITY | L42: =RESUME!N21 -> 1
A43: AVAILABLE MAXIMUN THERMAL POWER | D43: =D44+D42 -> -0.3272727273 | E43: MW th | I43: INTEREST POR NPV | L43: =RESUME!N22 -> 0.12
A44: POWER OF CONVENTIONAL BOILER | D44: =B16/1000 -> 0 | E44: MW th | I44: EURIBOR (REFERENCE INTEREST RATE) | L44: =RESUME!N23 -> 0.02
A45: COST OF CIVIL WORK | D45: 0 | E45: € | I45: MARGEN OVER EURIBOR | L45: =RESUME!N24 -> 0.05
A46: COST OF HEAT NET | D46: 0 | I46: INFLACTION OF INCOME | L46: =RESUME!N25 -> 0.02
A47: ENERGY SUPLLY BY CONV. BOILER | D47: =RESUME!N17 -> 0 | E47: MW th | I47: INFLACTION OF COSTS | L47: =RESUME!N26 -> 0.02
I48: TAX OVER PROFIT | L48: =RESUME!N27 -> 0.265
I50: CALCULATIONS
I51: =RESUME!F15 -> IRR INVESTMENT | K51: =RESUME!G15 -> 0.07381837748
I52: NET PRESENT VALUE | K52: =RESUME!G19 -> -3286841.179
I53: PAYBACK | K53: ='Balance,dividendos,VAN,IRR y PR'!E84 -> 11.1110511

Sheet OPEX COST
B3: OPEX BUDGET
C6: Units | D6: Salary | E6: Compay cost | F6: Total | G6: % D.C | H6: % s/ final cost
B7: PLANT MANAGER | C7: 1 | D7: 35000 | E7: =B50 -> 42000 | F7: =E7*C7 -> 42000 | G7: =+F7/$F$24 -> 0.02443785807 | H7: =+F7/$E$32 -> 0.01955028646
B8: Vacaciones JP | C8: 1 | D8: =D7/11 -> 3181.818182 | E8: =E7/11 -> 3818.181818 | F8: =E8*C8 -> 3818.181818 | G8: 0.002221623461 | H8: 0.001777298769
B9: Operators (shifts) | C9: 5 | D9: 24000 | E9: =D9*1.37 -> 32880 | F9: =E9*C9 -> 164400 | G9: 0.09565675873 | H9: 0.07652540698
B10: Maintenance technician | C10: 2 | D10: 30000 | E10: =D10*1.37 -> 41100 | F10: =E10*C10 -> 82200 | G10: =+F10/$F$24 -> 0.04782837936 | H10: =+F10/$E$32 -> 0.03826270349
B11: Extra time (hours) | C11: 0 | D11: =D9/1736*1.2 -> 16.58986175 | E11: =D11*1.37 -> 22.7281106 | F11: =E11*C11 -> 0 | G11: 0 | H11: 0
B12: Retenes | C12: 52 | D12: 100 | E12: =D12*1.37 -> 137 | F12: =E12*C12 -> 7124 | G12: 0.004145126211 | H12: 0.003316100969
B13: Administrative costs | C13: 0 | D13: 2000 | E13: =D13*C13 -> 0 | F13: =+C13*E13 -> 0 | G13: 0 | H13: 0
B14: Tools | C14: 1 | D14: 10000 | E14: 10000 | F14: =+C14*E14 -> 10000 | G14: 0.005818537635 | H14: 0.004654830108
B15: Spare parts | F15: =0.0075*('EPC COST'!C27-'EPC COST'!C12-'EPC COST'!C3-'EPC COST'!C7-'EPC COST'!C8) -> 57714 | G15: 0.03358110811 | H15: 0.02686488649
B16: Engine maintenance | F16: =('Plant configuration'!B12*RESUME!N3+'Plant configuration'!B13*RESUME!N4+'Plant configuration'!B14*RESUME!N5)*6 -> 756864 | G16: 0.4403841669 | H16: 0.3523073335
B17: Engine Overhaul | F17: =('Plant configuration'!B12*RESUME!N3+'Plant configuration'!B13*RESUME!N4+'Plant configuration'!B14*RESUME!N5)*2 -> 252288 | G17: 0.1467947223 | H17: 0.1174357778
B18: Other subcontracts | F18: 40000 | G18: 0.02327415054 | H18: 0.01861932043
B19: Consumibles | F19: 25000 | G19: 0.01454634409 | H19: 0.01163707527
B20: PPE | C20: 1 | D20: 300 | E20: 300 | F20: =+C20*E20 -> 300 | G20: 0.0001745561291 | H20: 0.0001396449033
B21: Provision for personnel | C21: =C7+C9 -> 6 | D21: 1000 | F21: =D21*C21 -> 6000 | G21: 0.003491122581 | H21: 0.002792898065
B22: Insurance | F22: ='EPC COST'!E27*0.025 -> 270936.7126
G23: =SUM(G7:G21) -> 0.8423544541 | H23: =SUM(H7:H21) -> 0.6738835633
B24: Direct costs | F24: =SUM(F7:F23) -> 1718644.894 | H24: =F24/('Plant configuration'!B12*RESUME!N3+'Plant configuration'!B13*RESUME!N4+'Plant configuration'!B14*RESUME!N5) -> 13.62446802 | I24: €/MWh
F26: =+F24/(1-E26)-F24 -> 0
B28: MARGIN | E28: 0.2 | F28: =F24/(1-E28)-F24 -> 429661.2236 | G28: %MARGIN OVER THE FINAL PRICE
B31: OFERT TO CLIENT
B32: FINAL PRICE | E32: =F24+F26+F28 -> 2148306.118 | H32: =E32/('Plant configuration'!B12*RESUME!N3+'Plant configuration'!B13*RESUME!N4+'Plant configuration'!B14*RESUME!N5) -> 17.03058503 | I32: €/MWh
A38: NOTAS :
A41: DURACIÓN DEL CONTRATO: 2 AÑO
A42: ALCANCE DE SUMINISTRO: Operación y mantenimiento incl repuestos y subcontratos
A47: COSTES DE PERSONAL
B49: SALARIO+SS | C49: GASTOS | E49: PRIMAS | F49: RETENES | G49: Indemniz | I49: SUELDOS BRUTOS
A50: JEFE PLANTA | B50: =(I50+E50)*1.2 -> 42000 | I50: 35000
A51: OFICINA TÉCNICA | B51: =(I51+E51)*1.37 -> 54800 | I51: 40000
A52: ENCARGADOS | B52: =(I52+E52)*1.37 -> 41100 | I52: 30000
A53: TÉCNICOS | B53: =(I53+E53)*1.37 -> 32880 | I53: 24000
A54: OPERADORES TURNO | B54: =(I54+E54)*1.37 -> 32880 | C54: 0 | I54: 24000

Sheet EPC COST
C2: TOTAL | D2: %over total | E2: TOTAL EPC | G2: RESUMEN DE DATOS
B3: ENGINEERING | C3: =SUM(C4:C25)*0.07 -> 581014 | D3: =C3/$C$27 -> 0.06542056075 | E3: =IF(C3=0,"",C3*(1+$C$36)) -> 708993.2666 | H3: POTENCIA | I3: PRECIO | J3: AVAILABITY | K3: EQ hours
B4: LAND | C4: 0 | D4: 0 | E4: =IF(C4=0,"",C4*(1+[1]FACTORES!$C$8)) ->  | G4: MOTOR 1 | H4: ='Plant configuration'!B12 -> 18 | I4: ='Plant configuration'!E36 -> 5400000 | J4: 0.8 | K4: =J4*8760 -> 7008
B5: CIVIL WORKS FOR WATER | C5: 0 | D5: 0 | E5: =IF(C5=0,"",C5*(1+[1]FACTORES!$C$8)) ->  | G5: MOTOR 2 | H5: ='Plant configuration'!B13 -> 0 | I5: ='Plant configuration'!E37 -> 0 | J5: 0 | K5: 0
B6: CIVIL WORKS FOR WASTE WATER | C6: 0 | D6: 0 | E6: =IF(C6=0,"",C6*(1+[1]FACTORES!$C$8)) ->  | G6: MOTOR 3 | H6: ='Plant configuration'!B14 -> 0 | I6: ='Plant configuration'!E38 -> 0 | J6: 0 | K6: ='Plant configuration'!F38 -> 0
B7: PERMIT COST | C7: 40000 | D7: 0.00450388877 | E7: =IF(C7=0,"",C7*(1+[1]FACTORES!$C$8)) -> 48810.75269 | G7: SUMA | H7: =I4+I5+I6 -> 5400000
B8: LOCAL LICENCES | C8: 65000 | D8: 0.007318819252 | E8: =IF(C8=0,"",C8*(1+[1]FACTORES!$C$8)) -> 79317.47312 | G8: RENDIMIENTO ELECT | H8: ='Plant configuration'!D40 -> 0.55
B9: ELECTRICAL LINE | C9: 0 | D9: 0 | E9: =IF(C9=0,"",C9*(1+[1]FACTORES!$C$8)) ->  | G9: RENDIMIENTO TÉRMICO | H9: ='Plant configuration'!D41 -> -0.01
B10: LAND explanation | C10: 0 | D10: 0 | E10: =IF(C10=0,"",C10*(1+[1]FACTORES!$C$8)) ->  | G10: POT TERMICA COGENERACION | H10: 5 | I10: MW térmicos
B11: ENGINES | C11: =H7 -> 5400000 | D11: 0.608024984 | E11: =IF(C11=0,"",C11*(1+[1]FACTORES!$C$8)) -> 6589451.613 | G11: POT TÉRMICA MÁXIMA | H11: 5 | I11: MW térmicos
B12: CIVIL WORKS | C12: 500000 | D12: 0.05629860963 | E12: =IF(C12=0,"",C12*(1+[1]FACTORES!$C$8)) -> 610134.4086 | G12: POTENCIA TÉRMICA CALDERA | H12: 5 | I12: MW térmicos
B13: HRSG | C13: =150000*H10 -> 750000 | D13: 0.08444791444 | E13: =IF(C13=0,"",C13*(1+[1]FACTORES!$C$8)) -> 915201.6129 | G13: COSTE RED + CIVIL | H13: =K13+M13 -> 0 | I13: € | J13: Coste Red | K13: ='Plant configuration'!D46 -> 0 | L13: Coste Obra Civil | M13: ='Plant configuration'!D45 -> 0
B14: CONVENTIONAL BOILERS | C14: =H12*50000 -> 250000 | D14: 0.02814930481 | E14: =IF(C14=0,"",C14*(1+[1]FACTORES!$C$8)) -> 305067.2043 | G14: ENERGÍA CALDERA APOYO | H14: 10000 | I14: MWh térmicos
B15: WATER CIRCUIT | C15: 25000 | D15: 0.002814930481 | E15: =IF(C15=0,"",C15*(1+[1]FACTORES!$C$8)) -> 30506.72043
B16: THERMAL STORAGE SYSTEM | C16: 0 | D16: 0
B17: COOLING SYSTEM FOR ENGINES | C17: 100000 | D17: 0.01125972193 | E17: =IF(C17=0,"",C17*(1+[1]FACTORES!$C$8)) -> 122026.8817 | G17: DATOS FINANCIEROS
B18: FIRE FIGHTING SYSTEM | C18: 50000 | D18: 0.005629860963 | E18: =IF(C18=0,"",C18*(1+[1]FACTORES!$C$8)) -> 61013.44086 | G18: PRECIO DEL GAS NATURAL PCI | I18: ='Plant configuration'!L36 -> 20 | J18: €/MWh pci
B19: AIR COMPRESED PLANT | C19: 40000 | D19: 0.00450388877 | E19: =IF(C19=0,"",C19*(1+[1]FACTORES!$C$8)) -> 48810.75269 | G19: HORAS EQUIV MOTOR 1 | I19: =L4 -> 0
B20: WATER TREATMENT PLANT | C20: 50000 | D20: 0.005629860963 | E20: =IF(C20=0,"",C20*(1+[1]FACTORES!$C$8)) -> 61013.44086 | G20: HORAS EQUIV MOTOR 2 | I20: =L5 -> 0
B21: WASTE WATER PLANT | C21: 25000 | D21: 0.002814930481 | E21: =IF(C21=0,"",C21*(1+[1]FACTORES!$C$8)) -> 30506.72043 | G21: HORAS EQUIV MOTOR 3 | I21: =L6 -> 0 | J21: HORAS
B22: ELECTRICAL SYSTEMS | C22: 200000 | D22: 0.02251944385 | E22: =IF(C22=0,"",C22*(1+[1]FACTORES!$C$8)) -> 244053.7634 | G22: POTENCIA ELECTRICA TOTAL | I22: =H4+H5+H6 -> 18 | J22: MW
B23: SISTEMA DE CONTROL | C23: 50000 | D23: 0.005629860963 | E23: =IF(C23=0,"",C23*(1+[1]FACTORES!$C$8)) -> 61013.44086 | G23: AUTOCONSUMO | I23: =0.07*I22 -> 1.26 | J23: MW
B24: MECHANICAL ERECTION | C24: =12*12*160*30 -> 691200 | D24: 0.07782719795 | E24: =IF(C24=0,"",C24*(1+[1]FACTORES!$C$8)) -> 843449.8065 | G24: AUTOCONSUMO PARADA | I24: =I23/3 -> 0.42 | J24: MW
B25: COMMISSIONING | C25: =2*160*4*50 -> 64000 | D25: 0.007206222032 | E25: =IF(C25=0,"",C25*(1+[1]FACTORES!$C$8)) -> 78097.2043 | G25: COSTE POR MW INSTALADO | I25: ='EPC COST'!C27/(H4+H5+H6)*1000 -> 493400777.8 | J25: Euros
G26: COSTE OM total | I26: ='OPEX COST'!F24 -> 1718644.894 | J26: Euros
B27: TOTALES | C27: =SUM(C3:C25) -> 8881214 | D27: =SUM(D3:D25) -> 1 | E27: =SUM(E3:E25) -> 10837468.5 | G27: COSTE COMBUSTIBLES | I27: =('EPC COST'!C20*'EPC COST'!F20+'EPC COST'!C21*'EPC COST'!F21+'EPC COST'!C22*'EPC COST'!F22)*'EPC COST'!C24/100*I18+I31/0.92*I18 -> 0 | J27: Euros
B28: COSTE DE LA PLANTA SIN OBRA CIVIL | C28: =C27-C12-C3+((SUM(C4:C25)-C12)*0.07) -> 8346214 | G28: OTROS COSTES | I28: 0 | J28: Euros
G29: TARIFA | I29: 80 | J29: Euros/MWh
B30: MARGENES EPC | G30: Ratio ELEC/TERM cog | I30: ='EPC COST'!C25/'EPC COST'!C24 -> 0.09259259259
B31: GASTOS GENERALES HOLDING | C31: 0.05 | D31: Sobre coste | G31: Calor calderas convencionales | I31: ='EPC COST'!C30 -> 0 | J31: MWh térmicos
B32: GASTOS GENERALES LOCAL | C32: 0.05 | D32: Sobre coste | G32: Ingreso por energía térmica | I32: 85 | J32: Euros/MWh
B33: COSTES FINANCIEROS | C33: 0.015 | D33: Sobre coste | G33: Plazo de amortización fiscal | I33: 20 | J33: Años
B34: CONTINGENCIAS | C34: 0.03 | D34: Sobre coste | G34: Amortización del crédito | I34: 20 | J34: Años
B35: BENEFICIO | C35: 0.07 | D35: Sobre precio venta | G35: Inversión realizada con recursos prop. | I35: 1
B36: Margen total a aplicar a costes | C36: =(C31+C32+C33+C34)+1/(1-C35)-1 -> 0.2202688172 | G36: Tasa de descuento para calculo del VAN | I36: 0.06
G37: Euribor | I37: 0.01
G38: Margen sobre euribor | I38: 0.05
G39: Tasa de incremento IPC ingresos | I39: 0.02
G40: Tasa de incremento IPC costes | I40: 0.02

Sheet HEAT DEMAND
G1: POT ELÉCTR. | H1: POT TERM. | I1: POT ESCAPE | J1: PT AT | K1: PT BT | L1: PÉRDIDAS | M1: COMBUSTIBLE | N1: REND | O1: HEAT RATE
F2: MOTOR 1 | G2: ='Plant configuration'!B12 -> 18 | H2: ='Plant configuration'!C12 -> 7.2 | I2: ='Plant configuration'!D12 -> 7.2 | J2: ='Plant configuration'!E12 -> 0 | K2: ='Plant configuration'!F12 -> 0 | L2: ='Plant configuration'!G12 -> 7.527272727 | M2: ='Plant configuration'!H12 -> 32.72727273 | N2: ='Plant configuration'!I12 -> 0.55 | O2: ='Plant configuration'!K12 -> 6545.454545
F3: MOTOR 2 | G3: ='Plant configuration'!B13 -> 0 | H3: ='Plant configuration'!C13 -> 0 | I3: ='Plant configuration'!D13 -> 0 | J3: ='Plant configuration'!E13 -> 0 | K3: ='Plant configuration'!F13 -> 0 | L3: ='Plant configuration'!G13 -> 0 | M3: ='Plant configuration'!H13 -> 0 | N3: ='Plant configuration'!I13 -> 0.4 | O3: ='Plant configuration'!K13 -> 9000
F4: MOTOR 3 | G4: ='Plant configuration'!B14 -> 0 | H4: ='Plant configuration'!C14 -> 0 | I4: ='Plant configuration'!D14 -> 0 | J4: ='Plant configuration'!E14 -> 0 | K4: ='Plant configuration'!F14 -> 0 | L4: ='Plant configuration'!G14 -> 0 | M4: ='Plant configuration'!H14 -> 0 | N4: ='Plant configuration'!I14 -> 0.4 | O4: ='Plant configuration'!K14 -> 9000
G5: Pot. Termica | H5: Rendimiento | I5: Coef. Seg | J5: Pot. Termica Neta
F6: QUEMADOR | G6: ='Plant configuration'!B16 -> 0 | H6: 0.9 | I6: 1.1 | J6: ='Plant configuration'!E16 -> 0
G7: Pot. Termica | H7: Estado Inicial | I7: Capacidad
F8: ALMACEN | G8: 0 | H8: 49712.245 | I8: 75000
C10: ENE | D10: FEB | E10: MARZ | F10: ABR | G10: MAY | H10: JUN | I10: JUL | J10: AGO | K10: SEPT | L10: OCT | M10: NOV | N10: DIC
B11: ACS | C11: 1.4 | D11: 1.95 | E11: 1.8 | F11: 0.85 | G11: 0.35 | H11: 0.35 | I11: 0.75 | J11: 0.75 | K11: 0.3 | L11: 0.17 | M11: 0.2 | N11: 1.05
B12: FRIA | C12: 0.2 | D12: 0.2 | E12: 0.12 | F12: 0.1 | G12: 0.03 | H12: 0 | I12: 0 | J12: 0 | K12: 0 | L12: 0 | M12: 0 | N12: 0.12
B13: PROCESO | C13: 0.55 | D13: 0.7 | E13: 0.5 | F13: 0.3 | G13: 0.12 | H13: 0.1 | I13: 0.23 | J13: 0.23 | K13: 0.1 | L13: 0.05 | M13: 0.05 | N13: 0.4
B14: CALEFACC | C14: 3.6 | D14: 3.4 | E14: 2.1 | F14: 2 | G14: 0.8 | H14: 0.1 | I14: 0.1 | J14: 0.1 | K14: 0.5 | L14: 0.85 | M14: 1.15 | N14: 2.4
B15: PERDIDAS | C15: =(C11+C12+C13+C14)*(1/0.98-1) -> 0.1173469388 | D15: =(D11+D12+D13+D14)*(1/0.98-1) -> 0.1275510204 | E15: =(E11+E12+E13+E14)*(1/0.98-1) -> 0.09224489796 | F15: 0.06632653061 | G15: 0.02653061224 | H15: 0.0112244898 | I15: 0.02204081633 | J15: 0.02204081633 | K15: 0.01836734694 | L15: 0.02183673469 | M15: 0.02857142857 | N15: 0.08102040816
B16: FACTOR | C16: =200000/7 -> 28571.42857 | D16: =200000/7 -> 28571.42857 | E16: 28571.42857 | F16: 28571.42857 | G16: 28571.42857 | H16: 28571.42857 | I16: 28571.42857 | J16: 28571.42857 | K16: 28571.42857 | L16: 28571.42857 | M16: 28571.42857 | N16: 28571.42857
C18: ENE | D18: FEB | E18: MARZ | F18: ABR | G18: MAY | H18: JUN | I18: JUL | J18: AGO | K18: SEPT | L18: OCT | M18: NOV | N18: DIC
B19: ACS | C19: =$C$16*C11 -> 40000 | D19: =$C$16*D11 -> 55714.28571 | E19: 51428.57143 | F19: 24285.71429 | G19: 10000 | H19: 10000 | I19: 21428.57143 | J19: 21428.57143 | K19: 8571.428571 | L19: 4857.142857 | M19: 5714.285714 | N19: 30000
B20: FRIA | C20: =$C$16*C12 -> 5714.285714 | D20: 5714.285714 | E20: 3428.571429 | F20: 2857.142857 | G20: 857.1428571 | H20: 0 | I20: 0 | J20: 0 | K20: 0 | L20: 0 | M20: 0 | N20: 3428.571429
B21: PROCESO | C21: =$C$16*C13 -> 15714.28571 | D21: 20000 | E21: 14285.71429 | F21: 8571.428571 | G21: 3428.571429 | H21: 2857.142857 | I21: 6571.428571 | J21: 6571.428571 | K21: 2857.142857 | L21: 1428.571429 | M21: 1428.571429 | N21: 11428.57143
B22: CALEFACC | C22: =$C$16*C14 -> 102857.1429 | D22: 97142.85714 | E22: 60000 | F22: 57142.85714 | G22: 22857.14286 | H22: 2857.142857 | I22: 2857.142857 | J22: 2857.142857 | K22: 14285.71429 | L22: 24285.71429 | M22: 32857.14286 | N22: 68571.42857
B23: PERDIDAS | C23: =$C$16*C15 -> 3352.769679 | D23: 3644.314869 | E23: 2635.568513 | F23: 1895.043732 | G23: 758.0174927 | H23: 320.6997085 | I23: 629.7376093 | J23: 629.7376093 | K23: 524.7813411 | L23: 623.9067055 | M23: 816.3265306 | N23: 2314.868805
B24: TOTAL | C24: =C19+C20+C21+C22+C23 -> 167638.484 | D24: =D19+D20+D21+D22+D23 -> 182215.7434 | E24: 131778.4257 | F24: 94752.18659 | G24: 37900.87464 | H24: 16034.98542 | I24: 31486.88047 | J24: 31486.88047 | K24: 26239.06706 | L24: 31195.33528 | M24: 40816.32653 | N24: 115743.4402
A28: mes | B28: dia | C28: hora | D28: hora | E28: Calefacción | F28: ACS | G28: Agua fría | H28: Proceso | I28: Pérdidas red | J28: Calor total | K28: Calor Cog | L28: Apoyo | M28: E.Eléctrica M1 | N28: E. Eléc. M2 | O28: E. Eléctrica M3 | P28: Consumo gas caldera | Q28: Consumo gas motores | R28: Consumo gas total
A29: 1 | B29: 1 | C29: 1 | D29: 1 | E29: =$C$22/24 -> 4285.714286 | F29: 0 | G29: =$C$20/24 -> 238.0952381 | H29: 0 | I29: =(E29+F29+G29+H29)/0.98-(E29+F29+G29+H29) -> 92.32264334 | J29: =E29+F29+G29+H29+I29 -> 4616.132167 | K29: =($H$2/$G$2)*M29+($H$3/$G$3)*N29 ->  | L29: =J29-K29 ->  | M29: =IF(J29>$H$2,$G$2,$H$2/$G$2*J29) -> 18 | N29: =IF((J29-M29)>$H$3,$G$3,$H$3/$G$3*(J29-M29)) -> 0 | O29: =IF((J29-M29-N29)>$H$4,$G$4,$H$4/$G$4*(J29-M29-N29)) -> 0
A30: 1 | B30: 1 | C30: 2 | D30: 2 | E30: =$C$22/24 -> 4285.714286 | F30: 0 | G30: =$C$20/24 -> 238.0952381 | H30: 0 | I30: =(E30+F30+G30+H30)/0.98-(E30+F30+G30+H30) -> 92.32264334 | J30: =E30+F30+G30+H30+I30 -> 4616.132167 | K30: =($H$2/$G$2)*M30+($H$3/$G$3)*N30 ->  | L30: =J30-K30 ->  | M30: =IF(J30>$H$2,$G$2,$H$2/$G$2*J30) -> 18 | N30: =IF((J30-M30)>$H$3,$G$3,$H$3/$G$3*(J30-M30)) -> 0 | O30: =IF((J30-M30-N30)>$H$4,$G$4,$H$4/$G$4*(J30-M30-N30)) -> 0
A31: 1 | B31: 1 | C31: 3 | D31: 3 | E31: 4285.714286 | F31: 0 | G31: 238.0952381 | H31: 0 | I31: 92.32264334 | J31: 4616.132167 | M31: 18 | N31: 0 | O31: 0
A32: 1 | B32: 1 | C32: 4 | D32: 4 | E32: 4285.714286 | F32: 0 | G32: 238.0952381 | H32: 0 | I32: 92.32264334 | J32: 4616.132167 | M32: 18 | N32: 0 | O32: 0
A33: 1 | B33: 1 | C33: 5 | D33: 5 | E33: 4285.714286 | F33: 0 | G33: 238.0952381 | H33: 0 | I33: 92.32264334 | J33: 4616.132167 | M33: 18 | N33: 0 | O33: 0
A34: 1 | B34: 1 | C34: 6 | D34: 6 | E34: 4285.714286 | F34: =0.075*$C$19 -> 3000 | G34: 238.0952381 | H34: 0 | I34: 153.5471331 | J34: 7677.356657 | M34: 18 | N34: 0 | O34: 0
A35: 1 | B35: 1 | C35: 7 | D35: 7 | E35: 4285.714286 | F35: =0.125*$C$19 -> 5000 | G35: 238.0952381 | H35: 0 | I35: 194.3634597 | J35: 9718.172983 | M35: 18 | N35: 0 | O35: 0
A36: 1 | B36: 1 | C36: 8 | D36: 8 | E36: 4285.714286 | F36: =0.125*$C$19 -> 5000 | G36: 238.0952381 | H36: =$C$21/10 -> 1571.428571 | I36: 226.4334305 | J36: 11321.67153 | M36: 18 | N36: 0 | O36: 0
A37: 1 | B37: 1 | C37: 9 | D37: 9 | E37: 4285.714286 | F37: =0.125*$C$19 -> 5000 | G37: 238.0952381 | H37: =$C$21/10 -> 1571.428571 | I37: 226.4334305 | J37: 11321.67153 | M37: 18 | N37: 0 | O37: 0
A38: 1 | B38: 1 | C38: 10 | D38: 10 | E38: 4285.714286 | F38: =0.05*$C$19 -> 2000 | G38: 238.0952381 | H38: 1571.428571 | I38: 165.2089407 | J38: 8260.447036 | M38: 18 | N38: 0 | O38: 0
A39: 1 | B39: 1 | C39: 11 | D39: 11 | E39: 4285.714286 | F39: 0 | G39: 238.0952381 | H39: 1571.428571 | I39: 124.3926142 | J39: 6219.630709 | M39: 18 | N39: 0 | O39: 0
A40: 1 | B40: 1 | C40: 12 | D40: 12 | E40: 4285.714286 | F40: 0 | G40: 238.0952381 | H40: 1571.428571 | I40: 124.3926142 | J40: 6219.630709 | M40: 18 | N40: 0 | O40: 0
A41: 1 | B41: 1 | C41: 13 | D41: 13 | E41: 4285.714286 | F41: 0 | G41: 238.0952381 | H41: 1571.428571 | I41: 124.3926142 | J41: 6219.630709 | M41: 18 | N41: 0 | O41: 0
A42: 1 | B42: 1 | C42: 14 | D42: 14 | E42: 4285.714286 | F42: 0 | G42: 238.0952381 | H42: 1571.428571 | I42: 124.3926142 | J42: 6219.630709 | M42: 18 | N42: 0 | O42: 0
A43: 1 | B43: 1 | C43: 15 | D43: 15 | E43: 4285.714286 | F43: 0 | G43: 238.0952381 | H43: 1571.428571 | I43: 124.3926142 | J43: 6219.630709 | M43: 18 | N43: 0 | O43: 0
A44: 1 | B44: 1 | C44: 16 | D44: 16 | E44: 4285.714286 | F44: 0 | G44: 238.0952381 | H44: 1571.428571 | I44: 124.3926142 | J44: 6219.630709 | M44: 18 | N44: 0 | O44: 0
A45: 1 | B45: 1 | C45: 17 | D45: 17 | E45: 4285.714286 | F45: 0 | G45: 238.0952381 | H45: 1571.428571 | I45: 124.3926142 | J45: 6219.630709 | M45: 18 | N45: 0 | O45: 0
A46: 1 | B46: 1 | C46: 18 | D46: 18 | E46: 4285.714286 | F46: 0 | G46: 238.0952381 | H46: 0 | I46: 92.32264334 | J46: 4616.132167 | M46: 18 | N46: 0 | O46: 0
A47: 1 | B47: 1 | C47: 19 | D47: 19 | E47: 4285.714286 | F47: =0.0625*$C$19 -> 2500 | G47: 238.0952381 | H47: 0 | I47: 143.3430515 | J47: 7167.152575 | M47: 18 | N47: 0 | O47: 0
A48: 1 | B48: 1 | C48: 20 | D48: 20 | E48: 4285.714286 | F48: =0.125*$C$19 -> 5000 | G48: 238.0952381 | H48: 0 | I48: 194.3634597 | J48: 9718.172983 | M48: 18 | N48: 0 | O48: 0
A49: 1 | B49: 1 | C49: 21 | D49: 21 | E49: 4285.714286 | F49: =0.125*$C$19 -> 5000 | G49: 238.0952381 | H49: 0 | I49: 194.3634597 | J49: 9718.172983 | M49: 18 | N49: 0 | O49: 0
A50: 1 | B50: 1 | C50: 22 | D50: 22 | E50: 4285.714286 | F50: =0.125*$C$19 -> 5000 | G50: 238.0952381 | H50: 0 | I50: 194.3634597 | J50: 9718.172983 | M50: 18 | N50: 0 | O50: 0
A51: 1 | B51: 1 | C51: 23 | D51: 23 | E51: 4285.714286 | F51: =0.0625*$C$19 -> 2500 | G51: 238.0952381 | H51: 0 | I51: 143.3430515 | J51: 7167.152575 | M51: 18 | N51: 0 | O51: 0
A52: 1 | B52: 1 | C52: 24 | D52: 24 | E52: 4285.714286 | F52: 0 | G52: 238.0952381 | H52: 0 | I52: 92.32264334 | J52: 4616.132167 | M52: 18 | N52: 0 | O52: 0
E53: =SUM(E29:E52) -> 102857.1429 | F53: 40000 | G53: 5714.285714 | H53: 15714.28571 | I53: 3352.769679 | J53: 167638.484 | M53: 432 | N53: 0 | O53: 0
A54: 2 | B54: 1 | C54: 1 | D54: 1 | E54: =$D$22/24 -> 4047.619048 | F54: 0 | G54: =$D$20/24 -> 238.0952381 | H54: 0 | I54: =(E54+F54+G54+H54)/0.98-(E54+F54+G54+H54) -> 87.46355685 | J54: =E54+F54+G54+H54+I54 -> 4373.177843 | K54: =($H$2/$G$2)*M54+($H$3/$G$3)*N54 ->  | L54: =J54-K54 ->  | M54: =IF(J54>$H$2,$G$2,$H$2/$G$2*J54) -> 18 | N54: =IF((J54-M54)>$H$3,$G$3,$H$3/$G$3*(J54-M54)) -> 0 | O54: =IF((J54-M54-N54)>$H$4,$G$4,$H$4/$G$4*(J54-M54-N54)) -> 0
A55: 2 | B55: 1 | C55: 2 | D55: 2 | E55: 4047.619048 | F55: 0 | G55: 238.0952381 | H55: 0 | I55: =(E55+F55+G55+H55)/0.98-(E55+F55+G55+H55) -> 87.46355685 | J55: =E55+F55+G55+H55+I55 -> 4373.177843 | K55: =($H$2/$G$2)*M55+($H$3/$G$3)*N55 ->  | L55: =J55-K55 ->  | M55: =IF(J55>$H$2,$G$2,$H$2/$G$2*J55) -> 18 | N55: =IF((J55-M55)>$H$3,$G$3,$H$3/$G$3*(J55-M55)) -> 0 | O55: =IF((J55-M55-N55)>$H$4,$G$4,$H$4/$G$4*(J55-M55-N55)) -> 0
A56: 2 | B56: 1 | C56: 3 | D56: 3 | E56: 4047.619048 | F56: 0 | G56: 238.0952381 | H56: 0 | I56: 87.46355685 | J56: 4373.177843 | M56: 18 | N56: 0 | O56: 0
A57: 2 | B57: 1 | C57: 4 | D57: 4 | E57: 4047.619048 | F57: 0 | G57: 238.0952381 | H57: 0 | I57: 87.46355685 | J57: 4373.177843 | M57: 18 | N57: 0 | O57: 0
A58: 2 | B58: 1 | C58: 5 | D58: 5 | E58: 4047.619048 | F58: 0 | G58: 238.0952381 | H58: 0 | I58: 87.46355685 | J58: 4373.177843 | M58: 18 | N58: 0 | O58: 0
A59: 2 | B59: 1 | C59: 6 | D59: 6 | E59: 4047.619048 | F59: =0.075*$D$19 -> 4178.571429 | G59: 238.0952381 | H59: 0 | I59: 172.7405248 | J59: 8637.026239 | M59: 18 | N59: 0 | O59: 0
A60: 2 | B60: 1 | C60: 7 | D60: 7 | E60: 4047.619048 | F60: =0.125*$D$19 -> 6964.285714 | G60: 238.0952381 | H60: 0 | I60: 229.5918367 | J60: 11479.59184 | M60: 18 | N60: 0 | O60: 0
A61: 2 | B61: 1 | C61: 8 | D61: 8 | E61: 4047.619048 | F61: =0.125*$D$19 -> 6964.285714 | G61: 238.0952381 | H61: =$D$21/10 -> 2000 | I61: 270.4081633 | J61: 13520.40816 | M61: 18 | N61: 0 | O61: 0
A62: 2 | B62: 1 | C62: 9 | D62: 9 | E62: 4047.619048 | F62: =0.125*$D$19 -> 6964.285714 | G62: 238.0952381 | H62: 2000 | I62: 270.4081633 | J62: 13520.40816 | M62: 18 | N62: 0 | O62: 0
A63: 2 | B63: 1 | C63: 10 | D63: 10 | E63: 4047.619048 | F63: =0.05*$D$19 -> 2785.714286 | G63: 238.0952381 | H63: 2000 | I63: 185.1311953 | J63: 9256.559767 | M63: 18 | N63: 0 | O63: 0
A64: 2 | B64: 1 | C64: 11 | D64: 11 | E64: 4047.619048 | F64: 0 | G64: 238.0952381 | H64: 2000 | I64: 128.2798834 | J64: 6413.994169 | M64: 18 | N64: 0 | O64: 0
A65: 2 | B65: 1 | C65: 12 | D65: 12 | E65: 4047.619048 | F65: 0 | G65: 238.0952381 | H65: 2000 | I65: 128.2798834 | J65: 6413.994169 | M65: 18 | N65: 0 | O65: 0
A66: 2 | B66: 1 | C66: 13 | D66: 13 | E66: 4047.619048 | F66: 0 | G66: 238.0952381 | H66: 2000 | I66: 128.2798834 | J66: 6413.994169 | M66: 18 | N66: 0 | O66: 0
A67: 2 | B67: 1 | C67: 14 | D67: 14 | E67: 4047.619048 | F67: 0 | G67: 238.0952381 | H67: 2000 | I67: 128.2798834 | J67: 6413.994169 | M67: 18 | N67: 0 | O67: 0
A68: 2 | B68: 1 | C68: 15 | D68: 15 | E68: 4047.619048 | F68: 0 | G68: 238.0952381 | H68: 2000 | I68: 128.2798834 | J68: 6413.994169 | M68: 18 | N68: 0 | O68: 0
A69: 2 | B69: 1 | C69: 16 | D69: 16 | E69: 4047.619048 | F69: 0 | G69: 238.0952381 | H69: 2000 | I69: 128.2798834 | J69: 6413.994169 | M69: 18 | N69: 0 | O69: 0
A70: 2 | B70: 1 | C70: 17 | D70: 17 | E70: 4047.619048 | F70: 0 | G70: 238.0952381 | H70: 2000 | I70: 128.2798834 | J70: 6413.994169 | M70: 18 | N70: 0 | O70: 0
A71: 2 | B71: 1 | C71: 18 | D71: 18 | E71: 4047.619048 | F71: 0 | G71: 238.0952381 | H71: 0 | I71: 87.46355685 | J71: 4373.177843 | M71: 18 | N71: 0 | O71: 0
A72: 2 | B72: 1 | C72: 19 | D72: 19 | E72: 4047.619048 | F72: =0.0625*$D$19 -> 3482.142857 | G72: 238.0952381 | H72: 0 | I72: 158.5276968 | J72: 7926.38484 | M72: 18 | N72: 0 | O72: 0
A73: 2 | B73: 1 | C73: 20 | D73: 20 | E73: 4047.619048 | F73: =0.125*$D$19 -> 6964.285714 | G73: 238.0952381 | H73: 0 | I73: 229.5918367 | J73: 11479.59184 | M73: 18 | N73: 0 | O73: 0
A74: 2 | B74: 1 | C74: 21 | D74: 21 | E74: 4047.619048 | F74: =0.125*$D$19 -> 6964.285714 | G74: 238.0952381 | H74: 0 | I74: 229.5918367 | J74: 11479.59184 | M74: 18 | N74: 0 | O74: 0
A75: 2 | B75: 1 | C75: 22 | D75: 22 | E75: 4047.619048 | F75: =0.125*$D$19 -> 6964.285714 | G75: 238.0952381 | H75: 0 | I75: 229.5918367 | J75: 11479.59184 | M75: 18 | N75: 0 | O75: 0
A76: 2 | B76: 1 | C76: 23 | D76: 23 | E76: 4047.619048 | F76: =0.0625*$D$19 -> 3482.142857 | G76: 238.0952381 | H76: 0 | I76: 158.5276968 | J76: 7926.38484 | M76: 18 | N76: 0 | O76: 0
A77: 2 | B77: 1 | C77: 24 | D77: 24 | E77: 4047.619048 | F77: 0 | G77: 238.0952381 | H77: 0 | I77: 87.46355685 | J77: 4373.177843 | M77: 18 | N77: 0 | O77: 0
E78: =SUM(E54:E77) -> 97142.85714 | F78: 55714.28571 | G78: 5714.285714 | H78: 20000 | I78: 3644.314869 | J78: 182215.7434 | M78: 432 | N78: 0 | O78: 0
A79: 3 | B79: 3 | C79: 1 | D79: 1 | E79: =$E$22/24 -> 2500 | F79: 0 | G79: =$E$20/24 -> 142.8571429 | H79: 0 | I79: =(E79+F79+G79+H79)/0.98-(E79+F79+G79+H79) -> 53.93586006 | J79: =E79+F79+G79+H79+I79 -> 2696.793003 | K79: =($H$2/$G$2)*M79+($H$3/$G$3)*N79 ->  | L79: =J79-K79 ->  | M79: =IF(J79>$H$2,$G$2,$H$2/$G$2*J79) -> 18 | N79: =IF((J79-M79)>$H$3,$G$3,$H$3/$G$3*(J79-M79)) -> 0 | O79: =IF((J79-M79-N79)>$H$4,$G$4,$H$4/$G$4*(J79-M79-N79)) -> 0
A80: 3 | B80: 3 | C80: 2 | D80: 2 | E80: 2500 | F80: 0 | G80: 142.8571429 | H80: 0 | I80: =(E80+F80+G80+H80)/0.98-(E80+F80+G80+H80) -> 53.93586006 | J80: =E80+F80+G80+H80+I80 -> 2696.793003 | K80: =($H$2/$G$2)*M80+($H$3/$G$3)*N80 ->  | L80: =J80-K80 ->  | M80: =IF(J80>$H$2,$G$2,$H$2/$G$2*J80) -> 18 | N80: =IF((J80-M80)>$H$3,$G$3,$H$3/$G$3*(J80-M80)) -> 0 | O80: =IF((J80-M80-N80)>$H$4,$G$4,$H$4/$G$4*(J80-M80-N80)) -> 0
A81: 3 | B81: 3 | C81: 3 | D81: 3 | E81: 2500 | F81: 0 | G81: 142.8571429 | H81: 0 | I81: 53.93586006 | J81: 2696.793003 | M81: 18 | N81: 0 | O81: 0
A82: 3 | B82: 3 | C82: 4 | D82: 4 | E82: 2500 | F82: 0 | G82: 142.8571429 | H82: 0 | I82: 53.93586006 | J82: 2696.793003 | M82: 18 | N82: 0 | O82: 0
A83: 3 | B83: 3 | C83: 5 | D83: 5 | E83: 2500 | F83: 0 | G83: 142.8571429 | H83: 0 | I83: 53.93586006 | J83: 2696.793003 | M83: 18 | N83: 0 | O83: 0
A84: 3 | B84: 3 | C84: 6 | D84: 6 | E84: 2500 | F84: =0.075*$E$19 -> 3857.142857 | G84: 142.8571429 | H84: 0 | I84: 132.6530612 | J84: 6632.653061 | M84: 18 | N84: 0 | O84: 0
A85: 3 | B85: 3 | C85: 7 | D85: 7 | E85: 2500 | F85: =0.125*$E$19 -> 6428.571429 | G85: 142.8571429 | H85: 0 | I85: 185.1311953 | J85: 9256.559767 | M85: 18 | N85: 0 | O85: 0
A86: 3 | B86: 3 | C86: 8 | D86: 8 | E86: 2500 | F86: =0.125*$E$19 -> 6428.571429 | G86: 142.8571429 | H86: =$E$21/10 -> 1428.571429 | I86: 214.2857143 | J86: 10714.28571 | M86: 18 | N86: 0 | O86: 0
A87: 3 | B87: 3 | C87: 9 | D87: 9 | E87: 2500 | F87: =0.125*$E$19 -> 6428.571429 | G87: 142.8571429 | H87: 1428.571429 | I87: 214.2857143 | J87: 10714.28571 | M87: 18 | N87: 0 | O87: 0
A88: 3 | B88: 3 | C88: 10 | D88: 10 | E88: 2500 | F88: =0.05*$E$19 -> 2571.428571 | G88: 142.8571429 | H88: 1428.571429 | I88: 135.5685131 | J88: 6778.425656 | M88: 18 | N88: 0 | O88: 0
A89: 3 | B89: 3 | C89: 11 | D89: 11 | E89: 2500 | F89: 0 | G89: 142.8571429 | H89: 1428.571429 | I89: 83.09037901 | J89: 4154.51895 | M89: 18 | N89: 0 | O89: 0
A90: 3 | B90: 3 | C90: 12 | D90: 12 | E90: 2500 | F90: 0 | G90: 142.8571429 | H90: 1428.571429 | I90: 83.09037901 | J90: 4154.51895 | M90: 18 | N90: 0 | O90: 0
A91: 3 | B91: 3 | C91: 13 | D91: 13 | E91: 2500 | F91: 0 | G91: 142.8571429 | H91: 1428.571429 | I91: 83.09037901 | J91: 4154.51895 | M91: 18 | N91: =$E$22/24 -> 2500 | O91: 0 | P91: =$D$20/24 -> 238.0952381 | Q91: 0 | R91: =(N91+O91+P91+Q91)/0.98-(N91+O91+P91+Q91) -> 55.87949466 | S91: =N91+O91+P91+Q91+R91 -> 2793.974733 | T91: =($H$2/$G$2)*V91+($H$3/$G$3)*W91 ->  | U91: =S91-T91 ->  | V91: =IF(S91>$H$2,$G$2,$H$2/$G$2*S91) -> 18 | W91: =IF((S91-V91)>$H$3,$G$3,$H$3/$G$3*(S91-V91)) -> 0 | X91: =IF((S91-V91-W91)>$H$4,$G$4,$H$4/$G$4*(S91-V91-W91)) -> 0
A92: 3 | B92: 3 | C92: 14 | D92: 14 | E92: 2500 | F92: 0 | G92: 142.8571429 | H92: 1428.571429 | I92: 83.09037901 | J92: 4154.51895 | M92: 18 | N92: 2500 | O92: 0 | P92: 238.0952381 | Q92: 0 | R92: =(N92+O92+P92+Q92)/0.98-(N92+O92+P92+Q92) -> 55.87949466 | S92: =N92+O92+P92+Q92+R92 -> 2793.974733 | T92: =($H$2/$G$2)*V92+($H$3/$G$3)*W92 ->  | U92: =S92-T92 ->  | V92: =IF(S92>$H$2,$G$2,$H$2/$G$2*S92) -> 18 | W92: =IF((S92-V92)>$H$3,$G$3,$H$3/$G$3*(S92-V92)) -> 0 | X92: =IF((S92-V92-W92)>$H$4,$G$4,$H$4/$G$4*(S92-V92-W92)) -> 0
A93: 3 | B93: 3 | C93: 15 | D93: 15 | E93: 2500 | F93: 0 | G93: 142.8571429 | H93: 1428.571429 | I93: 83.09037901 | J93: 4154.51895 | M93: 18 | N93: 2500 | O93: 0 | P93: 238.0952381 | Q93: 0 | R93: 55.87949466 | S93: 2793.974733 | V93: 18 | W93: 0 | X93: 0
A94: 3 | B94: 3 | C94: 16 | D94: 16 | E94: 2500 | F94: 0 | G94: 142.8571429 | H94: 1428.571429 | I94: 83.09037901 | J94: 4154.51895 | M94: 18 | N94: 2500 | O94: 0 | P94: 238.0952381 | Q94: 0 | R94: 55.87949466 | S94: 2793.974733 | V94: 18 | W94: 0 | X94: 0
A95: 3 | B95: 3 | C95: 17 | D95: 17 | E95: 2500 | F95: 0 | G95: 142.8571429 | H95: 1428.571429 | I95: 83.09037901 | J95: 4154.51895 | M95: 18 | N95: 2500 | O95: 0 | P95: 238.0952381 | Q95: 0 | R95: 55.87949466 | S95: 2793.974733 | V95: 18 | W95: 0 | X95: 0
A96: 3 | B96: 3 | C96: 18 | D96: 18 | E96: 2500 | F96: 0 | G96: 142.8571429 | H96: 0 | I96: 53.93586006 | J96: 2696.793003 | M96: 18 | N96: 2500 | O96: =0.075*$E$19 -> 3857.142857 | P96: 238.0952381 | Q96: 0 | R96: 134.5966958 | S96: 6729.834791 | V96: 18 | W96: 0 | X96: 0
A97: 3 | B97: 3 | C97: 19 | D97: 19 | E97: 2500 | F97: =0.0625*$E$19 -> 3214.285714 | G97: 142.8571429 | H97: 0 | I97: 119.5335277 | J97: 5976.676385 | M97: 18 | N97: 2500 | O97: =0.125*$E$19 -> 6428.571429 | P97: 238.0952381 | Q97: 0 | R97: 187.0748299 | S97: 9353.741497 | V97: 18 | W97: 0 | X97: 0
A98: 3 | B98: 3 | C98: 20 | D98: 20 | E98: 2500 | F98: =0.125*$E$19 -> 6428.571429 | G98: 142.8571429 | H98: 0 | I98: 185.1311953 | J98: 9256.559767 | M98: 18 | N98: 2500 | O98: =0.125*$E$19 -> 6428.571429 | P98: 238.0952381 | Q98: =$D$21/10 -> 2000 | R98: 227.8911565 | S98: 11394.55782 | V98: 18 | W98: 0 | X98: 0
A99: 3 | B99: 3 | C99: 21 | D99: 21 | E99: 2500 | F99: =0.125*$E$19 -> 6428.571429 | G99: 142.8571429 | H99: 0 | I99: 185.1311953 | J99: 9256.559767 | M99: 18 | N99: 2500 | O99: =0.125*$E$19 -> 6428.571429 | P99: 238.0952381 | Q99: 2000 | R99: 227.8911565 | S99: 11394.55782 | V99: 18 | W99: 0 | X99: 0
A100: 3 | B100: 3 | C100: 22 | D100: 22 | E100: 2500 | F100: =0.125*$E$19 -> 6428.571429 | G100: 142.8571429 | H100: 0 | I100: 185.1311953 | J100: 9256.559767 | M100: 18 | N100: 2500 | O100: =0.05*$E$19 -> 2571.428571 | P100: 238.0952381 | Q100: 2000 | R100: 149.1739553 | S100: 7458.697765 | V100: 18 | W100: 0 | X100: 0
A101: 3 | B101: 3 | C101: 23 | D101: 23 | E101: 2500 | F101: =0.0625*$E$19 -> 3214.285714 | G101: 142.8571429 | H101: 0 | I101: 119.5335277 | J101: 5976.676385 | M101: 18 | N101: 2500 | O101: 0 | P101: 238.0952381 | Q101: 2000 | R101: 96.69582119 | S101: 4834.791059 | V101: 18 | W101: 0 | X101: 0
A102: 3 | B102: 3 | C102: 24 | D102: 24 | E102: 2500 | F102: 0 | G102: 142.8571429 | H102: 0 | I102: 53.93586006 | J102: 2696.793003 | M102: 18 | N102: 2500 | O102: 0 | P102: 238.0952381 | Q102: 2000 | R102: 96.69582119 | S102: 4834.791059 | V102: 18 | W102: 0 | X102: 0
E103: =SUM(E79:E102) -> 60000 | F103: 51428.57143 | G103: 3428.571429 | H103: 14285.71429 | I103: 2635.568513 | J103: 131778.4257 | M103: 432 | N103: =$D$22/24 -> 4047.619048 | O103: 0 | P103: 238.0952381 | Q103: 2000 | R103: 128.2798834 | S103: 6413.994169 | V103: 18 | W103: 0 | X103: 0
B104: 4 | C104: 1 | D104: 73 | E104: =$F$22/24 -> 2380.952381 | F104: 0 | G104: =$F$20/24 -> 119.047619 | H104: 0 | I104: =(E104+F104+G104+H104)/0.98-(E104+F104+G104+H104) -> 51.02040816 | J104: =E104+F104+G104+H104+I104 -> 2551.020408 | K104: =($H$2/$G$2)*M104+($H$3/$G$3)*N104 ->  | L104: =J104-K104 ->  | M104: =IF(J104>$H$2,$G$2,$H$2/$G$2*J104) -> 18 | N104: =IF((J104-M104)>$H$3,$G$3,$H$3/$G$3*(J104-M104)) -> 0 | O104: =IF((J104-M104-N104)>$H$4,$G$4,$H$4/$G$4*(J104-M104-N104)) -> 0 | P104: 238.0952381 | Q104: 2000 | R104: 45.67541302 | S104: 2283.770651 | V104: 18 | W104: 0 | X104: 0
B105: 4 | C105: 2 | D105: 74 | E105: 2380.952381 | F105: 0 | G105: 119.047619 | H105: 0 | I105: =(E105+F105+G105+H105)/0.98-(E105+F105+G105+H105) -> 51.02040816 | J105: =E105+F105+G105+H105+I105 -> 2551.020408 | K105: =($H$2/$G$2)*M105+($H$3/$G$3)*N105 ->  | L105: =J105-K105 ->  | M105: =IF(J105>$H$2,$G$2,$H$2/$G$2*J105) -> 18 | N105: =IF((J105-M105)>$H$3,$G$3,$H$3/$G$3*(J105-M105)) -> 0 | O105: =IF((J105-M105-N105)>$H$4,$G$4,$H$4/$G$4*(J105-M105-N105)) -> 0 | P105: 238.0952381 | Q105: 2000 | R105: 45.67541302 | S105: 2283.770651 | V105: 18 | W105: 0 | X105: 0
B106: 4 | C106: 3 | D106: 75 | E106: 2380.952381 | F106: 0 | G106: 119.047619 | H106: 0 | I106: 51.02040816 | J106: 2551.020408 | M106: 18 | N106: 0 | O106: 0 | P106: 238.0952381 | Q106: 2000 | R106: 45.67541302 | S106: 2283.770651 | V106: 18 | W106: 0 | X106: 0
B107: 4 | C107: 4 | D107: 76 | E107: 2380.952381 | F107: 0 | G107: 119.047619 | H107: 0 | I107: 51.02040816 | J107: 2551.020408 | M107: 18 | N107: 0 | O107: 0 | P107: 238.0952381 | Q107: 2000 | R107: 45.67541302 | S107: 2283.770651 | V107: 18 | W107: 0 | X107: 0
B108: 4 | C108: 5 | D108: 77 | E108: 2380.952381 | F108: 0 | G108: 119.047619 | H108: 0 | I108: 51.02040816 | J108: 2551.020408 | M108: 18 | N108: 0 | O108: 0 | P108: 238.0952381 | Q108: 0 | R108: 4.859086492 | S108: 242.9543246 | V108: 18 | W108: 0 | X108: 0
B109: 4 | C109: 6 | D109: 78 | E109: 2380.952381 | F109: =0.075*$F$19 -> 1821.428571 | G109: 119.047619 | H109: 0 | I109: 88.19241983 | J109: 4409.620991 | M109: 18 | N109: 0 | O109: 0 | P109: 238.0952381 | Q109: 0 | R109: 4.859086492 | S109: 242.9543246 | V109: 18 | W109: 0 | X109: 0
B110: 4 | C110: 7 | D110: 79 | E110: 2380.952381 | F110: =0.125*$F$19 -> 3035.714286 | G110: 119.047619 | H110: 0 | I110: 112.9737609 | J110: 5648.688047 | M110: 18 | N110: 0 | O110: 0 | P110: 238.0952381 | Q110: 0 | R110: 4.859086492 | S110: 242.9543246 | V110: 18 | W110: 0 | X110: 0
B111: 4 | C111: 8 | D111: 80 | E111: 2380.952381 | F111: =0.125*$F$19 -> 3035.714286 | G111: 119.047619 | H111: =$F$21/10 -> 857.1428571 | I111: 130.4664723 | J111: 6523.323615 | M111: 18 | N111: 0 | O111: 0 | P111: 238.0952381 | Q111: 0 | R111: 4.859086492 | S111: 242.9543246 | V111: 18 | W111: 0 | X111: 0
B112: 4 | C112: 9 | D112: 81 | E112: 2380.952381 | F112: =0.125*$F$19 -> 3035.714286 | G112: 119.047619 | H112: 857.1428571 | I112: 130.4664723 | J112: 6523.323615 | M112: 18 | N112: 0 | O112: 0 | P112: 238.0952381 | Q112: 0 | R112: 4.859086492 | S112: 242.9543246 | V112: 18 | W112: 0 | X112: 0
B113: 4 | C113: 10 | D113: 82 | E113: 2380.952381 | F113: =0.05*$F$19 -> 1214.285714 | G113: 119.047619 | H113: 857.1428571 | I113: 93.29446064 | J113: 4664.723032 | M113: 18 | N113: 0 | O113: 0 | P113: 238.0952381 | Q113: 0 | R113: 4.859086492 | S113: 242.9543246 | V113: 18 | W113: 0 | X113: 0
B114: 4 | C114: 11 | D114: 83 | E114: 2380.952381 | F114: 0 | G114: 119.047619 | H114: 857.1428571 | I114: 68.51311953 | J114: 3425.655977 | M114: 18 | N114: 0 | O114: 0 | P114: 238.0952381 | Q114: 0 | R114: 4.859086492 | S114: 242.9543246 | V114: 18 | W114: 0 | X114: 0
B115: 4 | C115: 12 | D115: 84 | E115: 2380.952381 | F115: 0 | G115: 119.047619 | H115: 857.1428571 | I115: 68.51311953 | J115: 3425.655977 | M115: 18 | N115: 0 | O115: 0
B116: 4 | C116: 13 | D116: 85 | E116: 2380.952381 | F116: 0 | G116: 119.047619 | H116: 857.1428571 | I116: 68.51311953 | J116: 3425.655977 | M116: 18 | N116: 0 | O116: 0
B117: 4 | C117: 14 | D117: 86 | E117: 2380.952381 | F117: 0 | G117: 119.047619 | H117: 857.1428571 | I117: 68.51311953 | J117: 3425.655977 | M117: 18 | N117: 0 | O117: 0
B118: 4 | C118: 15 | D118: 87 | E118: 2380.952381 | F118: 0 | G118: 119.047619 | H118: 857.1428571 | I118: 68.51311953 | J118: 3425.655977 | M118: 18 | N118: 0 | O118: 0
B119: 4 | C119: 16 | D119: 88 | E119: 2380.952381 | F119: 0 | G119: 119.047619 | H119: 857.1428571 | I119: 68.51311953 | J119: 3425.655977 | M119: 18 | N119: 0 | O119: 0
B120: 4 | C120: 17 | D120: 89 | E120: 2380.952381 | F120: 0 | G120: 119.047619 | H120: 857.1428571 | I120: 68.51311953 | J120: 3425.655977 | M120: 18 | N120: 0 | O120: 0
B121: 4 | C121: 18 | D121: 90 | E121: 2380.952381 | F121: 0 | G121: 119.047619 | H121: 0 | I121: 51.02040816 | J121: 2551.020408 | M121: 18 | N121: 0 | O121: 0
B122: 4 | C122: 19 | D122: 91 | E122: 2380.952381 | F122: =0.0625*$F$19 -> 1517.857143 | G122: 119.047619 | H122: 0 | I122: 81.99708455 | J122: 4099.854227 | M122: 18 | N122: 0 | O122: 0
B123: 4 | C123: 20 | D123: 92 | E123: 2380.952381 | F123: =0.125*$F$19 -> 3035.714286 | G123: 119.047619 | H123: 0 | I123: 112.9737609 | J123: 5648.688047 | M123: 18 | N123: 0 | O123: 0
B124: 4 | C124: 21 | D124: 93 | E124: 2380.952381 | F124: =0.125*$F$19 -> 3035.714286 | G124: 119.047619 | H124: 0 | I124: 112.9737609 | J124: 5648.688047 | M124: 18 | N124: 0 | O124: 0
B125: 4 | C125: 22 | D125: 94 | E125: 2380.952381 | F125: =0.125*$F$19 -> 3035.714286 | G125: 119.047619 | H125: 0 | I125: 112.9737609 | J125: 5648.688047 | M125: 18 | N125: 0 | O125: 0
B126: 4 | C126: 23 | D126: 95 | E126: 2380.952381 | F126: =0.0625*$F$19 -> 1517.857143 | G126: 119.047619 | H126: 0 | I126: 81.99708455 | J126: 4099.854227 | M126: 18 | N126: 0 | O126: 0
B127: 4 | C127: 24 | D127: 96 | E127: 2380.952381 | F127: 0 | G127: 119.047619 | H127: 0 | I127: 51.02040816 | J127: 2551.020408 | M127: 18 | N127: 0 | O127: 0
E128: =SUM(E104:E127) -> 57142.85714 | F128: 24285.71429 | G128: 2857.142857 | H128: 8571.428571 | I128: 1895.043732 | J128: 94752.18659 | M128: 432 | N128: 0 | O128: 0
B129: 5 | C129: 1 | D129: 97 | E129: =$G$22/24 -> 952.3809524 | F129: 0 | G129: =$G$20/24 -> 35.71428571 | H129: 0 | I129: =(E129+F129+G129+H129)/0.98-(E129+F129+G129+H129) -> 20.16520894 | J129: =E129+F129+G129+H129+I129 -> 1008.260447 | K129: =($H$2/$G$2)*M129+($H$3/$G$3)*N129 ->  | L129: =J129-K129 ->  | M129: =IF(J129>$H$2,$G$2,$H$2/$G$2*J129) -> 18 | N129: =IF((J129-M129)>$H$3,$G$3,$H$3/$G$3*(J129-M129)) -> 0 | O129: =IF((J129-M129-N129)>$H$4,$G$4,$H$4/$G$4*(J129-M129-N129)) -> 0
B130: 5 | C130: 2 | D130: 98 | E130: 952.3809524 | F130: 0 | G130: 35.71428571 | H130: 0 | I130: =(E130+F130+G130+H130)/0.98-(E130+F130+G130+H130) -> 20.16520894 | J130: =E130+F130+G130+H130+I130 -> 1008.260447 | K130: =($H$2/$G$2)*M130+($H$3/$G$3)*N130 ->  | L130: =J130-K130 ->  | M130: =IF(J130>$H$2,$G$2,$H$2/$G$2*J130) -> 18 | N130: =IF((J130-M130)>$H$3,$G$3,$H$3/$G$3*(J130-M130)) -> 0 | O130: =IF((J130-M130-N130)>$H$4,$G$4,$H$4/$G$4*(J130-M130-N130)) -> 0
B131: 5 | C131: 3 | D131: 99 | E131: 952.3809524 | F131: 0 | G131: 35.71428571 | H131: 0 | I131: 20.16520894 | J131: 1008.260447 | M131: 18 | N131: 0 | O131: 0
B132: 5 | C132: 4 | D132: 100 | E132: 952.3809524 | F132: 0 | G132: 35.71428571 | H132: 0 | I132: 20.16520894 | J132: 1008.260447 | M132: 18 | N132: 0 | O132: 0
B133: 5 | C133: 5 | D133: 101 | E133: 952.3809524 | F133: 0 | G133: 35.71428571 | H133: 0 | I133: 20.16520894 | J133: 1008.260447 | M133: 18 | N133: 0 | O133: 0
B134: 5 | C134: 6 | D134: 102 | E134: 952.3809524 | F134: =0.075*$G$19 -> 750 | G134: 35.71428571 | H134: 0 | I134: 35.47133139 | J134: 1773.566569 | M134: 18 | N134: 0 | O134: 0
B135: 5 | C135: 7 | D135: 103 | E135: 952.3809524 | F135: =0.125*$G$19 -> 1250 | G135: 35.71428571 | H135: 0 | I135: 45.67541302 | J135: 2283.770651 | M135: 18 | N135: 0 | O135: 0
B136: 5 | C136: 8 | D136: 104 | E136: 952.3809524 | F136: =0.125*$G$19 -> 1250 | G136: 35.71428571 | H136: =$G$21/10 -> 342.8571429 | I136: 52.67249757 | J136: 2633.624879 | M136: 18 | N136: 0 | O136: 0
B137: 5 | C137: 9 | D137: 105 | E137: 952.3809524 | F137: =0.125*$G$19 -> 1250 | G137: 35.71428571 | H137: 342.8571429 | I137: 52.67249757 | J137: 2633.624879 | M137: 18 | N137: 0 | O137: 0
B138: 5 | C138: 10 | D138: 106 | E138: 952.3809524 | F138: =0.05*$G$19 -> 500 | G138: 35.71428571 | H138: 342.8571429 | I138: 37.36637512 | J138: 1868.318756 | M138: 18 | N138: 0 | O138: 0
B139: 5 | C139: 11 | D139: 107 | E139: 952.3809524 | F139: 0 | G139: 35.71428571 | H139: 342.8571429 | I139: 27.16229349 | J139: 1358.114674 | M139: 18 | N139: 0 | O139: 0
B140: 5 | C140: 12 | D140: 108 | E140: 952.3809524 | F140: 0 | G140: 35.71428571 | H140: 342.8571429 | I140: 27.16229349 | J140: 1358.114674 | M140: 18 | N140: 0 | O140: 0
B141: 5 | C141: 13 | D141: 109 | E141: 952.3809524 | F141: 0 | G141: 35.71428571 | H141: 342.8571429 | I141: 27.16229349 | J141: 1358.114674 | M141: 18 | N141: 0 | O141: 0
B142: 5 | C142: 14 | D142: 110 | E142: 952.3809524 | F142: 0 | G142: 35.71428571 | H142: 342.8571429 | I142: 27.16229349 | J142: 1358.114674 | M142: 18 | N142: 0 | O142: 0
B143: 5 | C143: 15 | D143: 111 | E143: 952.3809524 | F143: 0 | G143: 35.71428571 | H143: 342.8571429 | I143: 27.16229349 | J143: 1358.114674 | M143: 18 | N143: 0 | O143: 0
B144: 5 | C144: 16 | D144: 112 | E144: 952.3809524 | F144: 0 | G144: 35.71428571 | H144: 342.8571429 | I144: 27.16229349 | J144: 1358.114674 | M144: 18 | N144: 0 | O144: 0
B145: 5 | C145: 17 | D145: 113 | E145: 952.3809524 | F145: 0 | G145: 35.71428571 | H145: 342.8571429 | I145: 27.16229349 | J145: 1358.114674 | M145: 18 | N145: 0 | O145: 0
B146: 5 | C146: 18 | D146: 114 | E146: 952.3809524 | F146: 0 | G146: 35.71428571 | H146: 0 | I146: 20.16520894 | J146: 1008.260447 | M146: 18 | N146: 0 | O146: 0
B147: 5 | C147: 19 | D147: 115 | E147: 952.3809524 | F147: =0.0625*$G$19 -> 625 | G147: 35.71428571 | H147: 0 | I147: 32.92031098 | J147: 1646.015549 | M147: 18 | N147: 0 | O147: 0
B148: 5 | C148: 20 | D148: 116 | E148: 952.3809524 | F148: =0.125*$G$19 -> 1250 | G148: 35.71428571 | H148: 0 | I148: 45.67541302 | J148: 2283.770651 | M148: 18 | N148: 0 | O148: 0
B149: 5 | C149: 21 | D149: 117 | E149: 952.3809524 | F149: =0.125*$G$19 -> 1250 | G149: 35.71428571 | H149: 0 | I149: 45.67541302 | J149: 2283.770651 | M149: 18 | N149: 0 | O149: 0
B150: 5 | C150: 22 | D150: 118 | E150: 952.3809524 | F150: =0.125*$G$19 -> 1250 | G150: 35.71428571 | H150: 0 | I150: 45.67541302 | J150: 2283.770651 | M150: 18 | N150: 0 | O150: 0
B151: 5 | C151: 23 | D151: 119 | E151: 952.3809524 | F151: =0.0625*$G$19 -> 625 | G151: 35.71428571 | H151: 0 | I151: 32.92031098 | J151: 1646.015549 | M151: 18 | N151: 0 | O151: 0
B152: 5 | C152: 24 | D152: 120 | E152: 952.3809524 | F152: 0 | G152: 35.71428571 | H152: 0 | I152: 20.16520894 | J152: 1008.260447 | M152: 18 | N152: 0 | O152: 0
E153: =SUM(E129:E152) -> 22857.14286 | F153: 10000 | G153: 857.1428571 | H153: 3428.571429 | I153: 758.0174927 | J153: 37900.87464 | M153: 432 | N153: 0 | O153: 0
B154: 6 | C154: 1 | D154: 121 | E154: =$H$22/24 -> 119.047619 | F154: 0 | G154: =$H$20/24 -> 0 | H154: 0 | I154: =(E154+F154+G154+H154)/0.98-(E154+F154+G154+H154) -> 2.429543246 | J154: =E154+F154+G154+H154+I154 -> 121.4771623 | K154: =($H$2/$G$2)*M154+($H$3/$G$3)*N154 ->  | L154: =J154-K154 ->  | M154: =IF(J154>$H$2,$G$2,$H$2/$G$2*J154) -> 18 | N154: =IF((J154-M154)>$H$3,$G$3,$H$3/$G$3*(J154-M154)) -> 0 | O154: =IF((J154-M154-N154)>$H$4,$G$4,$H$4/$G$4*(J154-M154-N154)) -> 0
B155: 6 | C155: 2 | D155: 122 | E155: 119.047619 | F155: 0 | G155: 0 | H155: 0 | I155: =(E155+F155+G155+H155)/0.98-(E155+F155+G155+H155) -> 2.429543246 | J155: =E155+F155+G155+H155+I155 -> 121.4771623 | K155: =($H$2/$G$2)*M155+($H$3/$G$3)*N155 ->  | L155: =J155-K155 ->  | M155: =IF(J155>$H$2,$G$2,$H$2/$G$2*J155) -> 18 | N155: =IF((J155-M155)>$H$3,$G$3,$H$3/$G$3*(J155-M155)) -> 0 | O155: =IF((J155-M155-N155)>$H$4,$G$4,$H$4/$G$4*(J155-M155-N155)) -> 0
B156: 6 | C156: 3 | D156: 123 | E156: 119.047619 | F156: 0 | G156: 0 | H156: 0 | I156: 2.429543246 | J156: 121.4771623 | M156: 18 | N156: 0 | O156: 0
B157: 6 | C157: 4 | D157: 124 | E157: 119.047619 | F157: 0 | G157: 0 | H157: 0 | I157: 2.429543246 | J157: 121.4771623 | M157: 18 | N157: 0 | O157: 0
B158: 6 | C158: 5 | D158: 125 | E158: 119.047619 | F158: 0 | G158: 0 | H158: 0 | I158: 2.429543246 | J158: 121.4771623 | M158: 18 | N158: 0 | O158: 0
B159: 6 | C159: 6 | D159: 126 | E159: 119.047619 | F159: =0.075*$H$19 -> 750 | G159: 0 | H159: 0 | I159: 17.73566569 | J159: 886.7832847 | M159: 18 | N159: 0 | O159: 0
B160: 6 | C160: 7 | D160: 127 | E160: 119.047619 | F160: =0.125*$H$19 -> 1250 | G160: 0 | H160: 0 | I160: 27.93974733 | J160: 1396.987366 | M160: 18 | N160: 0 | O160: 0
B161: 6 | C161: 8 | D161: 128 | E161: 119.047619 | F161: =0.125*$H$19 -> 1250 | G161: 0 | H161: =$H$21/10 -> 285.7142857 | I161: 33.77065112 | J161: 1688.532556 | M161: 18 | N161: 0 | O161: 0
B162: 6 | C162: 9 | D162: 129 | E162: 119.047619 | F162: =0.125*$H$19 -> 1250 | G162: 0 | H162: 285.7142857 | I162: 33.77065112 | J162: 1688.532556 | M162: 18 | N162: 0 | O162: 0
B163: 6 | C163: 10 | D163: 130 | E163: 119.047619 | F163: =0.05*$H$19 -> 500 | G163: 0 | H163: 285.7142857 | I163: 18.46452867 | J163: 923.2264334 | M163: 18 | N163: 0 | O163: 0
B164: 6 | C164: 11 | D164: 131 | E164: 119.047619 | F164: 0 | G164: 0 | H164: 285.7142857 | I164: 8.260447036 | J164: 413.0223518 | M164: 18 | N164: 0 | O164: 0
B165: 6 | C165: 12 | D165: 132 | E165: 119.047619 | F165: 0 | G165: 0 | H165: 285.7142857 | I165: 8.260447036 | J165: 413.0223518 | M165: 18 | N165: 0 | O165: 0
B166: 6 | C166: 13 | D166: 133 | E166: 119.047619 | F166: 0 | G166: 0 | H166: 285.7142857 | I166: 8.260447036 | J166: 413.0223518 | M166: 18 | N166: 0 | O166: 0
B167: 6 | C167: 14 | D167: 134 | E167: 119.047619 | F167: 0 | G167: 0 | H167: 285.7142857 | I167: 8.260447036 | J167: 413.0223518 | M167: 18 | N167: 0 | O167: 0
B168: 6 | C168: 15 | D168: 135 | E168: 119.047619 | F168: 0 | G168: 0 | H168: 285.7142857 | I168: 8.260447036 | J168: 413.0223518 | M168: 18 | N168: 0 | O168: 0
B169: 6 | C169: 16 | D169: 136 | E169: 119.047619 | F169: 0 | G169: 0 | H169: 285.7142857 | I169: 8.260447036 | J169: 413.0223518 | M169: 18 | N169: 0 | O169: 0
B170: 6 | C170: 17 | D170: 137 | E170: 119.047619 | F170: 0 | G170: 0 | H170: 285.7142857 | I170: 8.260447036 | J170: 413.0223518 | M170: 18 | N170: 0 | O170: 0
B171: 6 | C171: 18 | D171: 138 | E171: 119.047619 | F171: 0 | G171: 0 | H171: 0 | I171: 2.429543246 | J171: 121.4771623 | M171: 18 | N171: 0 | O171: 0
B172: 6 | C172: 19 | D172: 139 | E172: 119.047619 | F172: =0.0625*$H$19 -> 625 | G172: 0 | H172: 0 | I172: 15.18464529 | J172: 759.2322643 | M172: 18 | N172: 0 | O172: 0
B173: 6 | C173: 20 | D173: 140 | E173: 119.047619 | F173: =0.125*$H$19 -> 1250 | G173: 0 | H173: 0 | I173: 27.93974733 | J173: 1396.987366 | M173: 18 | N173: 0 | O173: 0
B174: 6 | C174: 21 | D174: 141 | E174: 119.047619 | F174: =0.125*$H$19 -> 1250 | G174: 0 | H174: 0 | I174: 27.93974733 | J174: 1396.987366 | M174: 18 | N174: 0 | O174: 0
B175: 6 | C175: 22 | D175: 142 | E175: 119.047619 | F175: =0.125*$H$19 -> 1250 | G175: 0 | H175: 0 | I175: 27.93974733 | J175: 1396.987366 | M175: 18 | N175: 0 | O175: 0
B176: 6 | C176: 23 | D176: 143 | E176: 119.047619 | F176: =0.0625*$H$19 -> 625 | G176: 0 | H176: 0 | I176: 15.18464529 | J176: 759.2322643 | M176: 18 | N176: 0 | O176: 0
B177: 6 | C177: 24 | D177: 144 | E177: 119.047619 | F177: 0 | G177: 0 | H177: 0 | I177: 2.429543246 | J177: 121.4771623 | M177: 18 | N177: 0 | O177: 0
E178: =SUM(E154:E177) -> 2857.142857 | F178: 10000 | G178: 0 | H178: 2857.142857 | I178: 320.6997085 | J178: 16034.98542 | M178: 432 | N178: 0 | O178: 0
B179: 7 | C179: 1 | D179: 145 | E179: =$I$22/24 -> 119.047619 | F179: 0 | G179: =$I$20/24 -> 0 | H179: 0 | I179: =(E179+F179+G179+H179)/0.98-(E179+F179+G179+H179) -> 2.429543246 | J179: =E179+F179+G179+H179+I179 -> 121.4771623 | K179: =($H$2/$G$2)*M179+($H$3/$G$3)*N179 ->  | L179: =J179-K179 ->  | M179: =IF(J179>$H$2,$G$2,$H$2/$G$2*J179) -> 18 | N179: =IF((J179-M179)>$H$3,$G$3,$H$3/$G$3*(J179-M179)) -> 0 | O179: =IF((J179-M179-N179)>$H$4,$G$4,$H$4/$G$4*(J179-M179-N179)) -> 0
B180: 7 | C180: 2 | D180: 146 | E180: 119.047619 | F180: 0 | G180: 0 | H180: 0 | I180: =(E180+F180+G180+H180)/0.98-(E180+F180+G180+H180) -> 2.429543246 | J180: =E180+F180+G180+H180+I180 -> 121.4771623 | K180: =($H$2/$G$2)*M180+($H$3/$G$3)*N180 ->  | L180: =J180-K180 ->  | M180: =IF(J180>$H$2,$G$2,$H$2/$G$2*J180) -> 18 | N180: =IF((J180-M180)>$H$3,$G$3,$H$3/$G$3*(J180-M180)) -> 0 | O180: =IF((J180-M180-N180)>$H$4,$G$4,$H$4/$G$4*(J180-M180-N180)) -> 0
B181: 7 | C181: 3 | D181: 147 | E181: 119.047619 | F181: 0 | G181: 0 | H181: 0 | I181: 2.429543246 | J181: 121.4771623 | M181: 18 | N181: 0 | O181: 0
B182: 7 | C182: 4 | D182: 148 | E182: 119.047619 | F182: 0 | G182: 0 | H182: 0 | I182: 2.429543246 | J182: 121.4771623 | M182: 18 | N182: 0 | O182: 0
B183: 7 | C183: 5 | D183: 149 | E183: 119.047619 | F183: 0 | G183: 0 | H183: 0 | I183: 2.429543246 | J183: 121.4771623 | M183: 18 | N183: 0 | O183: 0
B184: 7 | C184: 6 | D184: 150 | E184: 119.047619 | F184: =0.075*$I$19 -> 1607.142857 | G184: 0 | H184: 0 | I184: 35.22837707 | J184: 1761.418853 | M184: 18 | N184: 0 | O184: 0
B185: 7 | C185: 7 | D185: 151 | E185: 119.047619 | F185: =0.125*$I$19 -> 2678.571429 | G185: 0 | H185: 0 | I185: 57.09426628 | J185: 2854.713314 | M185: 18 | N185: 0 | O185: 0
B186: 7 | C186: 8 | D186: 152 | E186: 119.047619 | F186: =0.125*$I$19 -> 2678.571429 | G186: 0 | H186: =$I$21/10 -> 657.1428571 | I186: 70.505345 | J186: 3525.26725 | M186: 18 | N186: 0 | O186: 0
B187: 7 | C187: 9 | D187: 153 | E187: 119.047619 | F187: =0.125*$I$19 -> 2678.571429 | G187: 0 | H187: 657.1428571 | I187: 70.505345 | J187: 3525.26725 | M187: 18 | N187: 0 | O187: 0
B188: 7 | C188: 10 | D188: 154 | E188: 119.047619 | F188: =0.05*$I$19 -> 1071.428571 | G188: 0 | H188: 657.1428571 | I188: 37.70651118 | J188: 1885.325559 | M188: 18 | N188: 0 | O188: 0
B189: 7 | C189: 11 | D189: 155 | E189: 119.047619 | F189: 0 | G189: 0 | H189: 657.1428571 | I189: 15.84062196 | J189: 792.0310982 | M189: 18 | N189: 0 | O189: 0
B190: 7 | C190: 12 | D190: 156 | E190: 119.047619 | F190: 0 | G190: 0 | H190: 657.1428571 | I190: 15.84062196 | J190: 792.0310982 | M190: 18 | N190: 0 | O190: 0
B191: 7 | C191: 13 | D191: 157 | E191: 119.047619 | F191: 0 | G191: 0 | H191: 657.1428571 | I191: 15.84062196 | J191: 792.0310982 | M191: 18 | N191: 0 | O191: 0
B192: 7 | C192: 14 | D192: 158 | E192: 119.047619 | F192: 0 | G192: 0 | H192: 657.1428571 | I192: 15.84062196 | J192: 792.0310982 | M192: 18 | N192: 0 | O192: 0
B193: 7 | C193: 15 | D193: 159 | E193: 119.047619 | F193: 0 | G193: 0 | H193: 657.1428571 | I193: 15.84062196 | J193: 792.0310982 | M193: 18 | N193: 0 | O193: 0
B194: 7 | C194: 16 | D194: 160 | E194: 119.047619 | F194: 0 | G194: 0 | H194: 657.1428571 | I194: 15.84062196 | J194: 792.0310982 | M194: 18 | N194: 0 | O194: 0
B195: 7 | C195: 17 | D195: 161 | E195: 119.047619 | F195: 0 | G195: 0 | H195: 657.1428571 | I195: 15.84062196 | J195: 792.0310982 | M195: 18 | N195: 0 | O195: 0
B196: 7 | C196: 18 | D196: 162 | E196: 119.047619 | F196: 0 | G196: 0 | H196: 0 | I196: 2.429543246 | J196: 121.4771623 | M196: 18 | N196: 0 | O196: 0
B197: 7 | C197: 19 | D197: 163 | E197: 119.047619 | F197: =0.0625*$I$19 -> 1339.285714 | G197: 0 | H197: 0 | I197: 29.76190476 | J197: 1488.095238 | M197: 18 | N197: 0 | O197: 0
B198: 7 | C198: 20 | D198: 164 | E198: 119.047619 | F198: =0.125*$I$19 -> 2678.571429 | G198: 0 | H198: 0 | I198: 57.09426628 | J198: 2854.713314 | M198: 18 | N198: 0 | O198: 0
B199: 7 | C199: 21 | D199: 165 | E199: 119.047619 | F199: =0.125*$I$19 -> 2678.571429 | G199: 0 | H199: 0 | I199: 57.09426628 | J199: 2854.713314 | M199: 18 | N199: 0 | O199: 0
B200: 7 | C200: 22 | D200: 166 | E200: 119.047619 | F200: =0.125*$I$19 -> 2678.571429 | G200: 0 | H200: 0 | I200: 57.09426628 | J200: 2854.713314 | M200: 18 | N200: 0 | O200: 0
B201: 7 | C201: 23 | D201: 167 | E201: 119.047619 | F201: =0.0625*$I$19 -> 1339.285714 | G201: 0 | H201: 0 | I201: 29.76190476 | J201: 1488.095238 | M201: 18 | N201: 0 | O201: 0
B202: 7 | C202: 24 | D202: 168 | E202: 119.047619 | F202: 0 | G202: 0 | H202: 0 | I202: 2.429543246 | J202: 121.4771623 | M202: 18 | N202: 0 | O202: 0
E203: =SUM(E179:E202) -> 2857.142857 | F203: 21428.57143 | G203: 0 | H203: 6571.428571 | I203: 629.7376093 | J203: 31486.88047 | M203: 432 | N203: 0 | O203: 0
B204: 8 | C204: 1 | D204: 169 | E204: =$J$22/24 -> 119.047619 | F204: 0 | G204: =$J$20/24 -> 0 | H204: 0 | I204: =(E204+F204+G204+H204)/0.98-(E204+F204+G204+H204) -> 2.429543246 | J204: =E204+F204+G204+H204+I204 -> 121.4771623 | K204: =($H$2/$G$2)*M204+($H$3/$G$3)*N204 ->  | L204: =J204-K204 ->  | M204: =IF(J204>$H$2,$G$2,$H$2/$G$2*J204) -> 18 | N204: =IF((J204-M204)>$H$3,$G$3,$H$3/$G$3*(J204-M204)) -> 0 | O204: =IF((J204-M204-N204)>$H$4,$G$4,$H$4/$G$4*(J204-M204-N204)) -> 0
B205: 8 | C205: 2 | D205: 170 | E205: 119.047619 | F205: 0 | G205: 0 | H205: 0 | I205: =(E205+F205+G205+H205)/0.98-(E205+F205+G205+H205) -> 2.429543246 | J205: =E205+F205+G205+H205+I205 -> 121.4771623 | K205: =($H$2/$G$2)*M205+($H$3/$G$3)*N205 ->  | L205: =J205-K205 ->  | M205: =IF(J205>$H$2,$G$2,$H$2/$G$2*J205) -> 18 | N205: =IF((J205-M205)>$H$3,$G$3,$H$3/$G$3*(J205-M205)) -> 0 | O205: =IF((J205-M205-N205)>$H$4,$G$4,$H$4/$G$4*(J205-M205-N205)) -> 0
... 123 more rows

Sheet P&L y Cash Flow
A6: CÁLCULO DE LA CUENTA DE RESULTADOS
E9: Año 0 | F9: Año 1 | G9: Año 2 | H9: Año 3 | I9: Año 4 | J9: Año 5 | K9: Año 6 | L9: Año 7 | M9: Año 8 | N9: Año 9 | O9: Año 10 | P9: Año 11 | Q9: Año 12 | R9: Año 13 | S9: Año 14 | T9: Año 15 | U9: Año 16 | V9: Año 17 | W9: Año 18 | X9: Año 19 | Y9: Año 20
A10: Ingresos operativos | F10: =RESUME!F47 -> 9897297.66 | G10: =RESUME!G47 -> 10095243.61 | H10: =RESUME!H47 -> 10297148.49 | I10: =RESUME!I47 -> 10503091.46 | J10: =RESUME!J47 -> 10713153.28 | K10: =RESUME!K47 -> 10927416.35 | L10: =RESUME!L47 -> 11145964.68 | M10: =RESUME!M47 -> 11368883.97 | N10: =RESUME!N47 -> 11596261.65 | O10: =RESUME!O47 -> 11828186.88 | P10: =RESUME!P47 -> 12064750.62 | Q10: =RESUME!Q47 -> 12306045.63 | R10: =RESUME!R47 -> 12552166.55 | S10: =RESUME!S47 -> 12803209.88 | T10: =RESUME!T47 -> 13059274.07 | U10: =RESUME!U47 -> 13320459.56 | V10: =RESUME!V47 -> 13586868.75 | W10: =RESUME!W47 -> 13858606.12 | X10: =RESUME!X47 -> 14135778.24 | Y10: =RESUME!Y47 -> 14418493.81
A11: Gastos operativos | F11: =RESUME!F57 -> 8186361.792 | G11: =RESUME!G57 -> 8350089.028 | H11: =RESUME!H57 -> 8517090.809 | I11: =RESUME!I57 -> 8687432.625 | J11: =RESUME!J57 -> 8861181.277 | K11: =RESUME!K57 -> 9038404.903 | L11: =RESUME!L57 -> 9219173.001 | M11: =RESUME!M57 -> 9403556.461 | N11: =RESUME!N57 -> 9591627.59 | O11: =RESUME!O57 -> 9783460.142 | P11: =RESUME!P57 -> 9979129.345 | Q11: =RESUME!Q57 -> 10178711.93 | R11: =RESUME!R57 -> 10382286.17 | S11: =RESUME!S57 -> 10589931.89 | T11: =RESUME!T57 -> 10801730.53 | U11: =RESUME!U57 -> 11017765.14 | V11: =RESUME!V57 -> 11238120.45 | W11: =RESUME!W57 -> 11462882.85 | X11: =RESUME!X57 -> 11692140.51 | Y11: =RESUME!Y57 -> 11925983.32
A12: Margen operativo bruto | F12: =RESUME!F59 -> 1710935.868 | G12: =RESUME!G59 -> 1745154.585 | H12: =RESUME!H59 -> 1780057.677 | I12: =RESUME!I59 -> 1815658.83 | J12: =RESUME!J59 -> 1851972.007 | K12: =RESUME!K59 -> 1889011.447 | L12: =RESUME!L59 -> 1926791.676 | M12: =RESUME!M59 -> 1965327.51 | N12: =RESUME!N59 -> 2004634.06 | O12: =RESUME!O59 -> 2044726.741 | P12: =RESUME!P59 -> 2085621.276 | Q12: =RESUME!Q59 -> 2127333.701 | R12: =RESUME!R59 -> 2169880.375 | S12: =RESUME!S59 -> 2213277.983 | T12: =RESUME!T59 -> 2257543.542 | U12: =RESUME!U59 -> 2302694.413 | V12: =RESUME!V59 -> 2348748.302 | W12: =RESUME!W59 -> 2395723.268 | X12: =RESUME!X59 -> 2443637.733 | Y12: =RESUME!Y59 -> 2492510.488
A14: - Amortización | F14: =Amortización!F17 -> 541873.4252 | G14: =Amortización!G17 -> 541873.4252 | H14: =Amortización!H17 -> 541873.4252 | I14: =Amortización!I17 -> 541873.4252 | J14: =Amortización!J17 -> 541873.4252 | K14: =Amortización!K17 -> 541873.4252 | L14: =Amortización!L17 -> 541873.4252 | M14: =Amortización!M17 -> 541873.4252 | N14: =Amortización!N17 -> 541873.4252 | O14: =Amortización!O17 -> 541873.4252 | P14: =Amortización!P17 -> 541873.4252 | Q14: =Amortización!Q17 -> 541873.4252 | R14: =Amortización!R17 -> 541873.4252 | S14: =Amortización!S17 -> 541873.4252 | T14: =Amortización!T17 -> 541873.4252 | U14: =Amortización!U17 -> 541873.4252 | V14: =Amortización!V17 -> 541873.4252 | W14: =Amortización!W17 -> 541873.4252 | X14: =Amortización!X17 -> 541873.4252 | Y14: =Amortización!Y17 -> 541873.4252
A15: - Intereses | F15: ='Capital, subvención y deuda'!F27 -> 0 | G15: ='Capital, subvención y deuda'!G27 -> 0 | H15: ='Capital, subvención y deuda'!H27 -> 0 | I15: ='Capital, subvención y deuda'!I27 -> 0 | J15: ='Capital, subvención y deuda'!J27 -> 0 | K15: ='Capital, subvención y deuda'!K27 -> 0 | L15: ='Capital, subvención y deuda'!L27 -> 0 | M15: ='Capital, subvención y deuda'!M27 -> 0 | N15: ='Capital, subvención y deuda'!N27 -> 0 | O15: ='Capital, subvención y deuda'!O27 -> 0 | P15: ='Capital, subvención y deuda'!P27 -> 0 | Q15: ='Capital, subvención y deuda'!Q27 -> 0 | R15: ='Capital, subvención y deuda'!R27 -> 0 | S15: ='Capital, subvención y deuda'!S27 -> 0 | T15: ='Capital, subvención y deuda'!T27 -> 0 | U15: ='Capital, subvención y deuda'!U27 -> 0 | V15: ='Capital, subvención y deuda'!V27 -> 0 | W15: ='Capital, subvención y deuda'!W27 -> 0 | X15: ='Capital, subvención y deuda'!X27 -> 0 | Y15: ='Capital, subvención y deuda'!Y27 -> 0
A16: Beneficio antes de impuestos | F16: =F12-F14-F15 -> 1169062.443 | G16: =G12-G14-G15 -> 1203281.16 | H16: 1238184.252 | I16: 1273785.405 | J16: 1310098.582 | K16: 1347138.022 | L16: 1384918.251 | M16: 1423454.084 | N16: 1462760.635 | O16: 1502853.316 | P16: 1543747.851 | Q16: 1585460.276 | R16: 1628006.95 | S16: 1671404.558 | T16: 1715670.117 | U16: 1760820.988 | V16: 1806874.876 | W16: 1853849.842 | X16: 1901764.308 | Y16: 1950637.062
A17: (Tipo impositivo) | E17: =RESUME!N27 -> 0.265 | F17: =E17 -> 0.265 | G17: =F17 -> 0.265 | H17: 0.265 | I17: 0.265 | J17: 0.265 | K17: 0.265 | L17: 0.265 | M17: 0.265 | N17: 0.265 | O17: 0.265 | P17: 0.265 | Q17: 0.265 | R17: 0.265 | S17: 0.265 | T17: 0.265 | U17: 0.265 | V17: 0.265 | W17: 0.265 | X17: 0.265 | Y17: 0.265
A18: - Impuestos | F18: =IF(F16*F17>0,F16*F17,0) -> 309801.5473 | G18: =IF(G16*G17>0,G16*G17,0) -> 318869.5074 | H18: 328118.8267 | I18: 337553.1324 | J18: 347176.1242 | K18: 356991.5758 | L18: 367003.3365 | M18: 377215.3324 | N18: 387631.5682 | O18: 398256.1287 | P18: 409093.1804 | Q18: 420146.9732 | R18: 431421.8418 | S18: 442922.2078 | T18: 454652.5811 | U18: 466617.5618 | V18: 478821.8422 | W18: 491270.2082 | X18: 503967.5416 | Y18: 516918.8215
A19: BENEFICIO NETO | F19: =F16-F18 -> 859260.8953 | G19: =G16-G18 -> 884411.6525 | H19: 910065.4249 | I19: 936232.2728 | J19: 962922.4576 | K19: 990146.4461 | L19: 1017914.914 | M19: 1046238.752 | N19: 1075129.066 | O19: 1104597.187 | P19: 1134654.67 | Q19: 1165313.303 | R19: 1196585.108 | S19: 1228482.35 | T19: 1261017.536 | U19: 1294203.426 | V19: 1328053.034 | W19: 1362579.634 | X19: 1397796.766 | Y19: 1433718.241
A20: Porcentaje de incremento | G20: =G19/F19-1 -> 0.02927022211 | H20: =H19/G19-1 -> 0.02900659702 | I20: 0.02875271066 | J20: 0.02850808029 | K20: 0.02827225421 | L20: 0.02804480931 | M20: 0.02782534889 | N20: 0.02761350058 | O20: 0.02740891452 | P20: 0.02721126166 | Q20: 0.02702023229 | R20: 0.02683553456 | S20: 0.02665689327 | T20: 0.02648404867 | U20: 0.02631675541 | V20: 0.02615478153 | W20: 0.02599790757 | X20: 0.02584592574 | Y20: 0.02569863913
A22: CÁLCULO DEL FLUJO DE FONDOS PARA EL SERVICIO DE LA DEUDA
E24: Año 0 | F24: Año 1 | G24: Año 2 | H24: Año 3 | I24: Año 4 | J24: Año 5 | K24: Año 6 | L24: Año 7 | M24: Año 8 | N24: Año 9 | O24: Año 10 | P24: Año 11 | Q24: Año 12 | R24: Año 13 | S24: Año 14 | T24: Año 15 | U24: Año 16 | V24: Año 17 | W24: Año 18 | X24: Año 19 | Y24: Año 20
A25: Margen operativo bruto | F25: =F12 -> 1710935.868 | G25: =G12 -> 1745154.585 | H25: 1780057.677 | I25: 1815658.83 | J25: 1851972.007 | K25: 1889011.447 | L25: 1926791.676 | M25: 1965327.51 | N25: 2004634.06 | O25: 2044726.741 | P25: 2085621.276 | Q25: 2127333.701 | R25: 2169880.375 | S25: 2213277.983 | T25: 2257543.542 | U25: 2302694.413 | V25: 2348748.302 | W25: 2395723.268 | X25: 2443637.733 | Y25: 2492510.488
A26: - Impuestos | F26: =F18 -> 309801.5473 | G26: =G18 -> 318869.5074 | H26: 328118.8267 | I26: 337553.1324 | J26: 347176.1242 | K26: 356991.5758 | L26: 367003.3365 | M26: 377215.3324 | N26: 387631.5682 | O26: 398256.1287 | P26: 409093.1804 | Q26: 420146.9732 | R26: 431421.8418 | S26: 442922.2078 | T26: 454652.5811 | U26: 466617.5618 | V26: 478821.8422 | W26: 491270.2082 | X26: 503967.5416 | Y26: 516918.8215
A27: - Incremento de necesidades operativas de fondos (NOF) | F27: =F37-E37 -> 1979459.532 | G27: 39589.19064 | H27: 40380.97445 | I27: 41188.59394 | J27: 42012.36582 | K27: 42852.61314 | L27: 43709.6654 | M27: 44583.85871 | N27: 45475.53588 | O27: 46385.0466 | P27: 47312.74753 | Q27: 48259.00248 | R27: 49224.18253 | S27: 50208.66618 | T27: 51212.83951 | U27: 52237.0963 | V27: 53281.83822 | W27: 54347.47499 | X27: 55434.42449 | Y27: 56543.11298
A29: Cálculo del NOF:
A30: Caja necesaria como % de los ingresos operativos | F30: 0.05 | G30: =F30 -> 0.05 | H30: =G30 -> 0.05 | I30: 0.05 | J30: 0.05 | K30: 0.05 | L30: 0.05 | M30: 0.05 | N30: 0.05 | O30: 0.05 | P30: 0.05 | Q30: 0.05 | R30: 0.05 | S30: 0.05 | T30: 0.05 | U30: 0.05 | V30: 0.05 | W30: 0.05 | X30: 0.05 | Y30: 0.05
A31: Caja necesaria | F31: =F$10*F30 -> 494864.883 | G31: =G$10*G30 -> 504762.1807 | H31: 514857.4243 | I31: 525154.5728 | J31: 535657.6642 | K31: 546370.8175 | L31: 557298.2338 | M31: 568444.1985 | N31: 579813.0825 | O31: 591409.3441 | P31: 603237.531 | Q31: 615302.2816 | R31: 627608.3273 | S31: 640160.4938 | T31: 652963.7037 | U31: 666022.9778 | V31: 679343.4373 | W31: 692930.3061 | X31: 706788.9122 | Y31: 720924.6904
A32: Clientes como % de los ingresos operativos | F32: 0.2 | G32: =F32 -> 0.2 | H32: =G32 -> 0.2 | I32: 0.2 | J32: 0.2 | K32: 0.2 | L32: 0.2 | M32: 0.2 | N32: 0.2 | O32: 0.2 | P32: 0.2 | Q32: 0.2 | R32: 0.2 | S32: 0.2 | T32: 0.2 | U32: 0.2 | V32: 0.2 | W32: 0.2 | X32: 0.2 | Y32: 0.2
A33: Clientes | F33: =F$10*F32 -> 1979459.532 | G33: =G$10*G32 -> 2019048.723 | H33: 2059429.697 | I33: 2100618.291 | J33: 2142630.657 | K33: 2185483.27 | L33: 2229192.935 | M33: 2273776.794 | N33: 2319252.33 | O33: 2365637.377 | P33: 2412950.124 | Q33: 2461209.127 | R33: 2510433.309 | S33: 2560641.975 | T33: 2611854.815 | U33: 2664091.911 | V33: 2717373.749 | W33: 2771721.224 | X33: 2827155.649 | Y33: 2883698.762
A34: Proveedores como % de los ingresos operativos | F34: 0.05 | G34: =F34 -> 0.05 | H34: =G34 -> 0.05 | I34: 0.05 | J34: 0.05 | K34: 0.05 | L34: 0.05 | M34: 0.05 | N34: 0.05 | O34: 0.05 | P34: 0.05 | Q34: 0.05 | R34: 0.05 | S34: 0.05 | T34: 0.05 | U34: 0.05 | V34: 0.05 | W34: 0.05 | X34: 0.05 | Y34: 0.05
A35: Proveedores | F35: =F$10*F34 -> 494864.883 | G35: =G$10*G34 -> 504762.1807 | H35: 514857.4243 | I35: 525154.5728 | J35: 535657.6642 | K35: 546370.8175 | L35: 557298.2338 | M35: 568444.1985 | N35: 579813.0825 | O35: 591409.3441 | P35: 603237.531 | Q35: 615302.2816 | R35: 627608.3273 | S35: 640160.4938 | T35: 652963.7037 | U35: 666022.9778 | V35: 679343.4373 | W35: 692930.3061 | X35: 706788.9122 | Y35: 720924.6904
A36: (NOF como % de los ingresos operativos) | F36: =F30+F32-F34 -> 0.2 | G36: 0.2 | H36: 0.2 | I36: 0.2 | J36: 0.2 | K36: 0.2 | L36: 0.2 | M36: 0.2 | N36: 0.2 | O36: 0.2 | P36: 0.2 | Q36: 0.2 | R36: 0.2 | S36: 0.2 | T36: 0.2 | U36: 0.2 | V36: 0.2 | W36: 0.2 | X36: 0.2 | Y36: 0.2
A37: NOF | F37: =F$10*F36 -> 1979459.532 | G37: 2019048.723 | H37: 2059429.697 | I37: 2100618.291 | J37: 2142630.657 | K37: 2185483.27 | L37: 2229192.935 | M37: 2273776.794 | N37: 2319252.33 | O37: 2365637.377 | P37: 2412950.124 | Q37: 2461209.127 | R37: 2510433.309 | S37: 2560641.975 | T37: 2611854.815 | U37: 2664091.911 | V37: 2717373.749 | W37: 2771721.224 | X37: 2827155.649 | Y37: 2883698.762
A39: Flujo de caja disponible para el servicio de la deuda (FCD) | F39: =F25-F26-F27 -> -578325.2116 | G39: =G25-G26-G27 -> 1386695.887 | H39: 1411557.876 | I39: 1436917.104 | J39: 1462783.517 | K39: 1489167.258 | L39: 1516078.674 | M39: 1543528.318 | N39: 1571526.956 | O39: 1600085.566 | P39: 1629215.348 | Q39: 1658927.726 | R39: 1689234.351 | S39: 1720147.109 | T39: 1751678.122 | U39: 1783839.755 | V39: 1816644.621 | W39: 1850105.584 | X39: 1884235.767 | Y39: 1919048.553
A41: CÁLCULO DEL RATIO DE COBERTURA DEL SERVICIO ANUAL DE LA DEUDA (RCSD)
E43: Año 0 | F43: Año 1 | G43: Año 2 | H43: Año 3 | I43: Año 4 | J43: Año 5 | K43: Año 6 | L43: Año 7 | M43: Año 8 | N43: Año 9 | O43: Año 10 | P43: Año 11 | Q43: Año 12 | R43: Año 13 | S43: Año 14 | T43: Año 15 | U43: Año 16 | V43: Año 17 | W43: Año 18 | X43: Año 19 | Y43: Año 20
A44: Flujo de caja disponible para el servicio de la deuda | F44: =F39 -> -578325.2116 | G44: 1386695.887 | H44: 1411557.876 | I44: 1436917.104 | J44: 1462783.517 | K44: 1489167.258 | L44: 1516078.674 | M44: 1543528.318 | N44: 1571526.956 | O44: 1600085.566 | P44: 1629215.348 | Q44: 1658927.726 | R44: 1689234.351 | S44: 1720147.109 | T44: 1751678.122 | U44: 1783839.755 | V44: 1816644.621 | W44: 1850105.584 | X44: 1884235.767 | Y44: 1919048.553
A46: Servicio a la deuda anual (SD) | F46: ='Capital, subvención y deuda'!F29 -> 0 | G46: ='Capital, subvención y deuda'!G29 -> 0 | H46: ='Capital, subvención y deuda'!H29 -> 0 | I46: ='Capital, subvención y deuda'!I29 -> 0 | J46: ='Capital, subvención y deuda'!J29 -> 0 | K46: ='Capital, subvención y deuda'!K29 -> 0 | L46: ='Capital, subvención y deuda'!L29 -> 0 | M46: ='Capital, subvención y deuda'!M29 -> 0 | N46: ='Capital, subvención y deuda'!N29 -> 0 | O46: ='Capital, subvención y deuda'!O29 -> 0 | P46: ='Capital, subvención y deuda'!P29 -> 0 | Q46: ='Capital, subvención y deuda'!Q29 -> 0 | R46: ='Capital, subvención y deuda'!R29 -> 0 | S46: ='Capital, subvención y deuda'!S29 -> 0 | T46: ='Capital, subvención y deuda'!T29 -> 0 | U46: ='Capital, subvención y deuda'!U29 -> 0 | V46: ='Capital, subvención y deuda'!V29 -> 0 | W46: ='Capital, subvención y deuda'!W29 -> 0 | X46: ='Capital, subvención y deuda'!X29 -> 0 | Y46: ='Capital, subvención y deuda'!Y29 -> 0
A48: Ratio de cobertura del servicio anual de la deuda (RCSD) | F48: =F44/F46 ->  | G48: =G44/G46 -> 

Sheet Balance,dividendos,VAN,IRR y PR
A6: CÁLCULO DEL BALANCE
A9: BALANCE ANTES DEL REPARTO DE DIVIDENDOS
E11: Año 0 | F11: Año 1 | G11: Año 2 | H11: Año 3 | I11: Año 4 | J11: Año 5 | K11: Año 6 | L11: Año 7 | M11: Año 8 | N11: Año 9 | O11: Año 10 | P11: Año 11 | Q11: Año 12 | R11: Año 13 | S11: Año 14 | T11: Año 15 | U11: Año 16 | V11: Año 17 | W11: Año 18 | X11: Año 19 | Y11: Año 20
A12: Caja necesaria | E12: ='P&L y Cash Flow'!E31 -> 0 | F12: ='P&L y Cash Flow'!F31 -> 494864.883 | G12: ='P&L y Cash Flow'!G31 -> 504762.1807 | H12: ='P&L y Cash Flow'!H31 -> 514857.4243 | I12: ='P&L y Cash Flow'!I31 -> 525154.5728 | J12: ='P&L y Cash Flow'!J31 -> 535657.6642 | K12: ='P&L y Cash Flow'!K31 -> 546370.8175 | L12: ='P&L y Cash Flow'!L31 -> 557298.2338 | M12: ='P&L y Cash Flow'!M31 -> 568444.1985 | N12: ='P&L y Cash Flow'!N31 -> 579813.0825 | O12: ='P&L y Cash Flow'!O31 -> 591409.3441 | P12: ='P&L y Cash Flow'!P31 -> 603237.531 | Q12: ='P&L y Cash Flow'!Q31 -> 615302.2816 | R12: ='P&L y Cash Flow'!R31 -> 627608.3273 | S12: ='P&L y Cash Flow'!S31 -> 640160.4938 | T12: ='P&L y Cash Flow'!T31 -> 652963.7037 | U12: ='P&L y Cash Flow'!U31 -> 666022.9778 | V12: ='P&L y Cash Flow'!V31 -> 679343.4373 | W12: ='P&L y Cash Flow'!W31 -> 692930.3061 | X12: ='P&L y Cash Flow'!X31 -> 706788.9122 | Y12: ='P&L y Cash Flow'!Y31 -> 720924.6904
A13: Caja suplementaria (si es negativa, sería deuda suplementaria) | E13: =E17-E16-E15-E14-E12 -> 0 | F13: =F17-F16-F15-F14-F12 -> -578325.2116 | G13: 808370.6755 | H13: 2219928.551 | I13: 3656845.655 | J13: 5119629.172 | K13: 6608796.43 | L13: 8124875.104 | M13: 9668403.423 | N13: 11239930.38 | O13: =O17-O16-O15-O14-O12 -> 12840015.94 | P13: =P17-P16-P15-P14-P12 -> 14469231.29 | Q13: =Q17-Q16-Q15-Q14-Q12 -> 16128159.02 | R13: 17817393.37 | S13: 19537540.48 | T13: 21289218.6 | U13: 23073058.35 | V13: 24889702.98 | W13: 26739808.56 | X13: 28624044.33 | Y13: 30543092.88
A14: Clientes | E14: ='P&L y Cash Flow'!E33 -> 0 | F14: ='P&L y Cash Flow'!F33 -> 1979459.532 | G14: ='P&L y Cash Flow'!G33 -> 2019048.723 | H14: ='P&L y Cash Flow'!H33 -> 2059429.697 | I14: ='P&L y Cash Flow'!I33 -> 2100618.291 | J14: ='P&L y Cash Flow'!J33 -> 2142630.657 | K14: ='P&L y Cash Flow'!K33 -> 2185483.27 | L14: ='P&L y Cash Flow'!L33 -> 2229192.935 | M14: ='P&L y Cash Flow'!M33 -> 2273776.794 | N14: ='P&L y Cash Flow'!N33 -> 2319252.33 | O14: ='P&L y Cash Flow'!O33 -> 2365637.377 | P14: ='P&L y Cash Flow'!P33 -> 2412950.124 | Q14: ='P&L y Cash Flow'!Q33 -> 2461209.127 | R14: ='P&L y Cash Flow'!R33 -> 2510433.309 | S14: ='P&L y Cash Flow'!S33 -> 2560641.975 | T14: ='P&L y Cash Flow'!T33 -> 2611854.815 | U14: ='P&L y Cash Flow'!U33 -> 2664091.911 | V14: ='P&L y Cash Flow'!V33 -> 2717373.749 | W14: ='P&L y Cash Flow'!W33 -> 2771721.224 | X14: ='P&L y Cash Flow'!X33 -> 2827155.649 | Y14: ='P&L y Cash Flow'!Y33 -> 2883698.762
A15: Inmovilizado neto | E15: =Amortización!E23 -> 10837468.5 | F15: =Amortización!F23 -> 10295595.08 | G15: =Amortización!G23 -> 9753721.653 | H15: =Amortización!H23 -> 9211848.228 | I15: =Amortización!I23 -> 8669974.802 | J15: =Amortización!J23 -> 8128101.377 | K15: =Amortización!K23 -> 7586227.952 | L15: =Amortización!L23 -> 7044354.527 | M15: =Amortización!M23 -> 6502481.102 | N15: =Amortización!N23 -> 5960607.677 | O15: =Amortización!O23 -> 5418734.252 | P15: =Amortización!P23 -> 4876860.826 | Q15: =Amortización!Q23 -> 4334987.401 | R15: =Amortización!R23 -> 3793113.976 | S15: =Amortización!S23 -> 3251240.551 | T15: =Amortización!T23 -> 2709367.126 | U15: =Amortización!U23 -> 2167493.701 | V15: =Amortización!V23 -> 1625620.275 | W15: =Amortización!W23 -> 1083746.85 | X15: =Amortización!X23 -> 541873.4252 | Y15: =Amortización!Y23 -> 0
A16: Gastos amortizables netos | E16: =Amortización!E27 -> 0 | F16: =Amortización!F27 -> 0 | G16: =Amortización!G27 -> 0 | H16: =Amortización!H27 -> 0 | I16: =Amortización!I27 -> 0 | J16: =Amortización!J27 -> 0 | K16: =Amortización!K27 -> 0 | L16: =Amortización!L27 -> 0 | M16: =Amortización!M27 -> 0 | N16: =Amortización!N27 -> 0 | O16: =Amortización!O27 -> 0 | P16: =Amortización!P27 -> 0 | Q16: =Amortización!Q27 -> 0 | R16: =Amortización!R27 -> 0 | S16: =Amortización!S27 -> 0 | T16: =Amortización!T27 -> 0 | U16: =Amortización!U27 -> 0 | V16: =Amortización!V27 -> 0 | W16: =Amortización!W27 -> 0 | X16: =Amortización!X27 -> 0 | Y16: =Amortización!Y27 -> 0
A17: Total Activo | E17: =E25 -> 10837468.5 | F17: =F25 -> 12191594.28 | G17: 13085903.23 | H17: 14006063.9 | I17: 14952593.32 | J17: 15926018.87 | K17: 16926878.47 | L17: 17955720.8 | M17: 19013105.52 | N17: 20099603.47 | O17: 21215796.92 | P17: 22362279.77 | Q17: 23539657.83 | R17: 24748548.98 | S17: 25989583.5 | T17: 27263404.24 | U17: 28570666.94 | V17: 29912040.44 | W17: 31288206.94 | X17: 32699862.31 | Y17: 34147716.33
A19: Proveedores | E19: ='P&L y Cash Flow'!E35 -> 0 | F19: ='P&L y Cash Flow'!F35 -> 494864.883 | G19: ='P&L y Cash Flow'!G35 -> 504762.1807 | H19: ='P&L y Cash Flow'!H35 -> 514857.4243 | I19: ='P&L y Cash Flow'!I35 -> 525154.5728 | J19: ='P&L y Cash Flow'!J35 -> 535657.6642 | K19: ='P&L y Cash Flow'!K35 -> 546370.8175 | L19: ='P&L y Cash Flow'!L35 -> 557298.2338 | M19: ='P&L y Cash Flow'!M35 -> 568444.1985 | N19: ='P&L y Cash Flow'!N35 -> 579813.0825 | O19: ='P&L y Cash Flow'!O35 -> 591409.3441 | P19: ='P&L y Cash Flow'!P35 -> 603237.531 | Q19: ='P&L y Cash Flow'!Q35 -> 615302.2816 | R19: ='P&L y Cash Flow'!R35 -> 627608.3273 | S19: ='P&L y Cash Flow'!S35 -> 640160.4938 | T19: ='P&L y Cash Flow'!T35 -> 652963.7037 | U19: ='P&L y Cash Flow'!U35 -> 666022.9778 | V19: ='P&L y Cash Flow'!V35 -> 679343.4373 | W19: ='P&L y Cash Flow'!W35 -> 692930.3061 | X19: ='P&L y Cash Flow'!X35 -> 706788.9122 | Y19: ='P&L y Cash Flow'!Y35 -> 720924.6904
A20: Deuda principal | E20: ='Capital, subvención y deuda'!E20 -> 0 | F20: ='Capital, subvención y deuda'!F20 -> 0 | G20: ='Capital, subvención y deuda'!G20 -> 0 | H20: ='Capital, subvención y deuda'!H20 -> 0 | I20: ='Capital, subvención y deuda'!I20 -> 0 | J20: ='Capital, subvención y deuda'!J20 -> 0 | K20: ='Capital, subvención y deuda'!K20 -> 0 | L20: ='Capital, subvención y deuda'!L20 -> 0 | M20: ='Capital, subvención y deuda'!M20 -> 0 | N20: ='Capital, subvención y deuda'!N20 -> 0 | O20: ='Capital, subvención y deuda'!O20 -> 0 | P20: ='Capital, subvención y deuda'!P20 -> 0 | Q20: ='Capital, subvención y deuda'!Q20 -> 0 | R20: ='Capital, subvención y deuda'!R20 -> 0 | S20: ='Capital, subvención y deuda'!S20 -> 0 | T20: ='Capital, subvención y deuda'!T20 -> 0 | U20: ='Capital, subvención y deuda'!U20 -> 0 | V20: ='Capital, subvención y deuda'!V20 -> 0 | W20: ='Capital, subvención y deuda'!W20 -> 0 | X20: ='Capital, subvención y deuda'!X20 -> 0 | Y20: ='Capital, subvención y deuda'!Y20 -> 0
A21: Beneficios del año | E21: ='P&L y Cash Flow'!E19 -> 0 | F21: ='P&L y Cash Flow'!F19 -> 859260.8953 | G21: ='P&L y Cash Flow'!G19 -> 884411.6525 | H21: ='P&L y Cash Flow'!H19 -> 910065.4249 | I21: ='P&L y Cash Flow'!I19 -> 936232.2728 | J21: ='P&L y Cash Flow'!J19 -> 962922.4576 | K21: ='P&L y Cash Flow'!K19 -> 990146.4461 | L21: ='P&L y Cash Flow'!L19 -> 1017914.914 | M21: ='P&L y Cash Flow'!M19 -> 1046238.752 | N21: ='P&L y Cash Flow'!N19 -> 1075129.066 | O21: ='P&L y Cash Flow'!O19 -> 1104597.187 | P21: ='P&L y Cash Flow'!P19 -> 1134654.67 | Q21: ='P&L y Cash Flow'!Q19 -> 1165313.303 | R21: ='P&L y Cash Flow'!R19 -> 1196585.108 | S21: ='P&L y Cash Flow'!S19 -> 1228482.35 | T21: ='P&L y Cash Flow'!T19 -> 1261017.536 | U21: ='P&L y Cash Flow'!U19 -> 1294203.426 | V21: ='P&L y Cash Flow'!V19 -> 1328053.034 | W21: ='P&L y Cash Flow'!W19 -> 1362579.634 | X21: ='P&L y Cash Flow'!X19 -> 1397796.766 | Y21: ='P&L y Cash Flow'!Y19 -> 1433718.241
A22: Reservas acumuladas | E22: =D22+D21 -> 0 | F22: =E22+E21 -> 0 | G22: =F22+F21 -> 859260.8953 | H22: =G22+G21 -> 1743672.548 | I22: 2653737.973 | J22: 3589970.246 | K22: 4552892.703 | L22: 5543039.149 | M22: 6560954.064 | N22: 7607192.816 | O22: 8682321.882 | P22: 9786919.069 | Q22: 10921573.74 | R22: 12086887.04 | S22: 13283472.15 | T22: 14511954.5 | U22: 15772972.04 | V22: 17067175.46 | W22: 18395228.5 | X22: 19757808.13 | Y22: 21155604.9
A23: Subvención | E23: ='Capital, subvención y deuda'!E10*'Capital, subvención y deuda'!E12 -> 0 | F23: =E23 -> 0 | G23: =F23 -> 0 | H23: 0 | I23: 0 | J23: 0 | K23: 0 | L23: 0 | M23: 0 | N23: 0 | O23: 0 | P23: 0 | Q23: 0 | R23: 0 | S23: 0 | T23: 0 | U23: 0 | V23: 0 | W23: 0 | X23: 0 | Y23: 0
A24: Capital | E24: ='Capital, subvención y deuda'!E10*'Capital, subvención y deuda'!E11 -> 10837468.5 | F24: =E24 -> 10837468.5 | G24: 10837468.5 | H24: 10837468.5 | I24: 10837468.5 | J24: 10837468.5 | K24: 10837468.5 | L24: 10837468.5 | M24: 10837468.5 | N24: 10837468.5 | O24: 10837468.5 | P24: 10837468.5 | Q24: 10837468.5 | R24: 10837468.5 | S24: 10837468.5 | T24: 10837468.5 | U24: 10837468.5 | V24: 10837468.5 | W24: 10837468.5 | X24: 10837468.5 | Y24: 10837468.5
A25: Total Pasivo | E25: =SUM(E19:E24) -> 10837468.5 | F25: =SUM(F19:F24) -> 12191594.28 | G25: 13085903.23 | H25: 14006063.9 | I25: 14952593.32 | J25: 15926018.87 | K25: 16926878.47 | L25: 17955720.8 | M25: 19013105.52 | N25: 20099603.47 | O25: 21215796.92 | P25: 22362279.77 | Q25: 23539657.83 | R25: 24748548.98 | S25: 25989583.5 | T25: 27263404.24 | U25: 28570666.94 | V25: 29912040.44 | W25: 31288206.94 | X25: 32699862.31 | Y25: 34147716.33
A27: CÁLCULO DE LOS DIVIDENDOS DISTRIBUIBLES
E29: Año 0 | F29: Año 1 | G29: Año 2 | H29: Año 3 | I29: Año 4 | J29: Año 5 | K29: Año 6 | L29: Año 7 | M29: Año 8 | N29: Año 9 | O29: Año 10 | P29: Año 11 | Q29: Año 12 | R29: Año 13 | S29: Año 14 | T29: Año 15 | U29: Año 16 | V29: Año 17 | W29: Año 18 | X29: Año 19 | Y29: Año 20
A30: Flujo de caja para el servicio de la deuda (FCD) | E30: ='P&L y Cash Flow'!E39 -> 0 | F30: ='P&L y Cash Flow'!F39 -> -578325.2116 | G30: ='P&L y Cash Flow'!G39 -> 1386695.887 | H30: ='P&L y Cash Flow'!H39 -> 1411557.876 | I30: ='P&L y Cash Flow'!I39 -> 1436917.104 | J30: ='P&L y Cash Flow'!J39 -> 1462783.517 | K30: ='P&L y Cash Flow'!K39 -> 1489167.258 | L30: ='P&L y Cash Flow'!L39 -> 1516078.674 | M30: ='P&L y Cash Flow'!M39 -> 1543528.318 | N30: ='P&L y Cash Flow'!N39 -> 1571526.956 | O30: ='P&L y Cash Flow'!O39 -> 1600085.566 | P30: ='P&L y Cash Flow'!P39 -> 1629215.348 | Q30: ='P&L y Cash Flow'!Q39 -> 1658927.726 | R30: ='P&L y Cash Flow'!R39 -> 1689234.351 | S30: ='P&L y Cash Flow'!S39 -> 1720147.109 | T30: ='P&L y Cash Flow'!T39 -> 1751678.122 | U30: ='P&L y Cash Flow'!U39 -> 1783839.755 | V30: ='P&L y Cash Flow'!V39 -> 1816644.621 | W30: ='P&L y Cash Flow'!W39 -> 1850105.584 | X30: ='P&L y Cash Flow'!X39 -> 1884235.767 | Y30: ='P&L y Cash Flow'!Y39 -> 1919048.553
A31: Servicio de la deuda anual (SD) | E31: ='P&L y Cash Flow'!E46 -> 0 | F31: ='P&L y Cash Flow'!F46 -> 0 | G31: ='P&L y Cash Flow'!G46 -> 0 | H31: ='P&L y Cash Flow'!H46 -> 0 | I31: ='P&L y Cash Flow'!I46 -> 0 | J31: ='P&L y Cash Flow'!J46 -> 0 | K31: ='P&L y Cash Flow'!K46 -> 0 | L31: ='P&L y Cash Flow'!L46 -> 0 | M31: ='P&L y Cash Flow'!M46 -> 0 | N31: ='P&L y Cash Flow'!N46 -> 0 | O31: ='P&L y Cash Flow'!O46 -> 0 | P31: ='P&L y Cash Flow'!P46 -> 0 | Q31: ='P&L y Cash Flow'!Q46 -> 0 | R31: ='P&L y Cash Flow'!R46 -> 0 | S31: ='P&L y Cash Flow'!S46 -> 0 | T31: ='P&L y Cash Flow'!T46 -> 0 | U31: ='P&L y Cash Flow'!U46 -> 0 | V31: ='P&L y Cash Flow'!V46 -> 0 | W31: ='P&L y Cash Flow'!W46 -> 0 | X31: ='P&L y Cash Flow'!X46 -> 0 | Y31: ='P&L y Cash Flow'!Y46 -> 0
A32: Flujo de caja disponible para dividendos (FCDiv = FCD-SD) | E32: =IF((E30-E31)>0,E30-E31,0) -> 0 | F32: =IF((F30-F31)>0,F30-F31,0) -> 0 | G32: 1386695.887 | H32: 1411557.876 | I32: 1436917.104 | J32: 1462783.517 | K32: 1489167.258 | L32: 1516078.674 | M32: 1543528.318 | N32: 1571526.956 | O32: 1600085.566 | P32: 1629215.348 | Q32: 1658927.726 | R32: 1689234.351 | S32: 1720147.109 | T32: 1751678.122 | U32: 1783839.755 | V32: 1816644.621 | W32: 1850105.584 | X32: 1884235.767 | Y32: 1919048.553
A33: FCDiv acumulado | E33: =D33+E32 -> 0 | F33: =E33+F32 -> 0 | G33: 1386695.887 | H33: 2798253.763 | I33: 4235170.867 | J33: 5697954.384 | K33: 7187121.642 | L33: 8703200.316 | M33: 10246728.63 | N33: 11818255.59 | O33: 13418341.16 | P33: 15047556.5 | Q33: 16706484.23 | R33: 18395718.58 | S33: 20115865.69 | T33: 21867543.81 | U33: 23651383.57 | V33: 25468028.19 | W33: 27318133.77 | X33: 29202369.54 | Y33: 31121418.09
A34: Beneficios del año | E34: =E21 -> 0 | F34: =F21 -> 859260.8953 | G34: 884411.6525 | H34: 910065.4249 | I34: 936232.2728 | J34: 962922.4576 | K34: 990146.4461 | L34: 1017914.914 | M34: 1046238.752 | N34: 1075129.066 | O34: 1104597.187 | P34: 1134654.67 | Q34: 1165313.303 | R34: 1196585.108 | S34: 1228482.35 | T34: 1261017.536 | U34: 1294203.426 | V34: 1328053.034 | W34: 1362579.634 | X34: 1397796.766 | Y34: 1433718.241
A35: Beneficios acumulados como límite al reparto de dividendos | E35: =D34+E34 -> 0 | F35: =E35+F34 -> 859260.8953 | G35: =F35+G34 -> 1743672.548 | H35: 2653737.973 | I35: 3589970.246 | J35: 4552892.703 | K35: 5543039.149 | L35: 6560954.064 | M35: 7607192.816 | N35: 8682321.882 | O35: 9786919.069 | P35: 10921573.74 | Q35: 12086887.04 | R35: 13283472.15 | S35: 14511954.5 | T35: 15772972.04 | U35: 17067175.46 | V35: 18395228.5 | W35: 19757808.13 | X35: 21155604.9 | Y35: 22589323.14
E36: =IF(E33<=E35,E32,E35) -> 0 | F36: =IF(F33<=F35,F33,F35) -> 0 | G36: 1386695.887 | H36: 2653737.973 | I36: 3589970.246 | J36: 4552892.703 | K36: 5543039.149 | L36: 6560954.064 | M36: 7607192.816 | N36: 8682321.882 | O36: 9786919.069 | P36: 10921573.74 | Q36: 12086887.04 | R36: 13283472.15 | S36: 14511954.5 | T36: 15772972.04 | U36: 17067175.46 | V36: 18395228.5 | W36: 19757808.13 | X36: 21155604.9 | Y36: 22589323.14
A37: Dividendos repartibles acumulados | E37: =IF(E36>0,E36,0) -> 0 | F37: 0 | G37: 1386695.887 | H37: 2653737.973 | I37: 3589970.246 | J37: 4552892.703 | K37: 5543039.149 | L37: 6560954.064 | M37: 7607192.816 | N37: 8682321.882 | O37: 9786919.069 | P37: 10921573.74 | Q37: 12086887.04 | R37: 13283472.15 | S37: 14511954.5 | T37: 15772972.04 | U37: 17067175.46 | V37: 18395228.5 | W37: 19757808.13 | X37: 21155604.9 | Y37: 22589323.14
A38: Dividendos repartibles anualmente | E38: =E37-D37 -> 0 | F38: =F37-E37 -> 0 | G38: 1386695.887 | H38: 1267042.086 | I38: 936232.2728 | J38: 962922.4576 | K38: 990146.4461 | L38: 1017914.914 | M38: 1046238.752 | N38: 1075129.066 | O38: 1104597.187 | P38: 1134654.67 | Q38: 1165313.303 | R38: 1196585.108 | S38: 1228482.35 | T38: 1261017.536 | U38: 1294203.426 | V38: 1328053.034 | W38: 1362579.634 | X38: 1397796.766 | Y38: 1433718.241
A40: CÁLCULO DEL BALANCE TRAS EL REPARTO DEL TOTAL DE LOS DIVIDENDOS REPARTIBLES
E42: Año 0 | F42: Año 1 | G42: Año 2 | H42: Año 3 | I42: Año 4 | J42: Año 5 | K42: Año 6 | L42: Año 7 | M42: Año 8 | N42: Año 9 | O42: Año 10 | P42: Año 11 | Q42: Año 12 | R42: Año 13 | S42: Año 14 | T42: Año 15 | U42: Año 16 | V42: Año 17 | W42: Año 18 | X42: Año 19 | Y42: Año 20
A43: =A12 -> Caja necesaria | E43: =E12 -> 0 | F43: 494864.883 | G43: 504762.1807 | H43: 514857.4243 | I43: 525154.5728 | J43: 535657.6642 | K43: 546370.8175 | L43: 557298.2338 | M43: 568444.1985 | N43: 579813.0825 | O43: 591409.3441 | P43: 603237.531 | Q43: 615302.2816 | R43: 627608.3273 | S43: 640160.4938 | T43: 652963.7037 | U43: 666022.9778 | V43: 679343.4373 | W43: 692930.3061 | X43: 706788.9122 | Y43: 720924.6904
A44: Caja suplementaria | E44: =E48-E47-E46-E45-E43 -> 0 | F44: =F48-F47-F46-F45-F43 -> -578325.2116 | G44: -578325.2116 | H44: -433809.4216 | I44: 66875.40959 | J44: 566736.4689 | K44: 1065757.281 | L44: 1563921.041 | M44: 2061210.607 | N44: 2557608.496 | O44: 3053096.875 | P44: 3547657.553 | Q44: 4041271.975 | R44: 4533921.218 | S44: 5025585.977 | T44: 5516246.563 | U44: 6005882.891 | V44: 6494474.478 | W44: 6982000.428 | X44: 7468439.429 | Y44: 7953769.741
A45: =A14 -> Clientes | E45: =E14 -> 0 | F45: 1979459.532 | G45: 2019048.723 | H45: 2059429.697 | I45: 2100618.291 | J45: 2142630.657 | K45: 2185483.27 | L45: 2229192.935 | M45: 2273776.794 | N45: 2319252.33 | O45: =O14 -> 2365637.377 | P45: =P14 -> 2412950.124 | Q45: 2461209.127 | R45: 2510433.309 | S45: 2560641.975 | T45: 2611854.815 | U45: 2664091.911 | V45: 2717373.749 | W45: 2771721.224 | X45: 2827155.649 | Y45: 2883698.762
A46: =A15 -> Inmovilizado neto | E46: 10837468.5 | F46: 10295595.08 | G46: 9753721.653 | H46: 9211848.228 | I46: 8669974.802 | J46: 8128101.377 | K46: 7586227.952 | L46: 7044354.527 | M46: 6502481.102 | N46: 5960607.677 | O46: 5418734.252 | P46: 4876860.826 | Q46: 4334987.401 | R46: 3793113.976 | S46: 3251240.551 | T46: 2709367.126 | U46: 2167493.701 | V46: 1625620.275 | W46: 1083746.85 | X46: 541873.4252 | Y46: 0
A47: =A16 -> Gastos amortizables netos | E47: 0 | F47: 0 | G47: 0 | H47: 0 | I47: 0 | J47: 0 | K47: 0 | L47: 0 | M47: 0 | N47: 0 | O47: 0 | P47: 0 | Q47: 0 | R47: 0 | S47: 0 | T47: 0 | U47: 0 | V47: 0 | W47: 0 | X47: 0 | Y47: 0
A48: =A17 -> Total Activo | E48: =E55 -> 10837468.5 | F48: =F55 -> 12191594.28 | G48: 11699207.34 | H48: 11352325.93 | I48: 11362623.08 | J48: 11373126.17 | K48: 11383839.32 | L48: 11394766.74 | M48: 11405912.7 | N48: 11417281.59 | O48: 11428877.85 | P48: 11440706.03 | Q48: 11452770.78 | R48: 11465076.83 | S48: 11477629 | T48: 11490432.21 | U48: 11503491.48 | V48: 11516811.94 | W48: 11530398.81 | X48: 11544257.42 | Y48: 11558393.19
A50: =A19 -> Proveedores | E50: =E19 -> 0 | F50: 494864.883 | G50: 504762.1807 | H50: 514857.4243 | I50: 525154.5728 | J50: 535657.6642 | K50: 546370.8175 | L50: 557298.2338 | M50: 568444.1985 | N50: 579813.0825 | O50: 591409.3441 | P50: 603237.531 | Q50: 615302.2816 | R50: 627608.3273 | S50: 640160.4938 | T50: 652963.7037 | U50: 666022.9778 | V50: 679343.4373 | W50: 692930.3061 | X50: 706788.9122 | Y50: 720924.6904
A51: =A20 -> Deuda principal | E51: 0 | F51: 0 | G51: 0 | H51: 0 | I51: 0 | J51: 0 | K51: 0 | L51: 0 | M51: 0 | N51: 0 | O51: 0 | P51: 0 | Q51: 0 | R51: 0 | S51: 0 | T51: 0 | U51: 0 | V51: 0 | W51: 0 | X51: 0 | Y51: 0
A52: Reservas | E52: =E35-E37 -> 0 | F52: =F35-F37 -> 859260.8953 | G52: 356976.6608 | H52: 0 | I52: 0 | J52: 0 | K52: 0 | L52: 0 | M52: 0 | N52: 0 | O52: 0 | P52: 0 | Q52: 0 | R52: 0 | S52: 0 | T52: 0 | U52: 0 | V52: 0 | W52: 0 | X52: 0 | Y52: 0
A53: Subvención | E53: =E23 -> 0 | F53: 0 | G53: 0 | H53: 0 | I53: 0 | J53: 0 | K53: 0 | L53: 0 | M53: 0 | N53: 0 | O53: 0 | P53: 0 | Q53: 0 | R53: 0 | S53: 0 | T53: 0 | U53: 0 | V53: 0 | W53: 0 | X53: 0 | Y53: 0
A54: =A24 -> Capital | E54: 10837468.5 | F54: 10837468.5 | G54: 10837468.5 | H54: 10837468.5 | I54: 10837468.5 | J54: 10837468.5 | K54: 10837468.5 | L54: 10837468.5 | M54: 10837468.5 | N54: 10837468.5 | O54: 10837468.5 | P54: 10837468.5 | Q54: 10837468.5 | R54: 10837468.5 | S54: 10837468.5 | T54: 10837468.5 | U54: 10837468.5 | V54: 10837468.5 | W54: 10837468.5 | X54: 10837468.5 | Y54: 10837468.5
A55: =A25 -> Total Pasivo | E55: =SUM(E50:E54) -> 10837468.5 | F55: =SUM(F50:F54) -> 12191594.28 | G55: 11699207.34 | H55: 11352325.93 | I55: 11362623.08 | J55: 11373126.17 | K55: 11383839.32 | L55: 11394766.74 | M55: 11405912.7 | N55: 11417281.59 | O55: 11428877.85 | P55: 11440706.03 | Q55: 11452770.78 | R55: 11465076.83 | S55: 11477629 | T55: 11490432.21 | U55: 11503491.48 | V55: 11516811.94 | W55: 11530398.81 | X55: 11544257.42 | Y55: 11558393.19
A57: CÁLCULO DEL VAN, TIR Y PERÍODO DE RETORNO DE LA INVERSIÓN EN BASE A CAPITAL INVERTIDO Y DIVIDENDOS REPARTIBLES (sin considerar un valor residual del proyecto,
A58: que incluiría el remanente de la subvención).
E59: 0 | F59: 1 | G59: 2 | H59: 3 | I59: 4 | J59: 5 | K59: 6 | L59: 7 | M59: 8 | N59: 9 | O59: 10 | P59: 11 | Q59: 12 | R59: 13 | S59: 14 | T59: 15 | U59: 16 | V59: 17 | W59: 18 | X59: 19 | Y59: 20
E62: Año 0 | F62: Año 1 | G62: Año 2 | H62: Año 3 | I62: Año 4 | J62: Año 5 | K62: Año 6 | L62: Año 7 | M62: Año 8 | N62: Año 9 | O62: Año 10 | P62: Año 11 | Q62: Año 12 | R62: Año 13 | S62: Año 14 | T62: Año 15 | U62: Año 16 | V62: Año 17 | W62: Año 18 | X62: Año 19 | Y62: Año 20
A63: Capital invertido | E63: =E54 -> 10837468.5
A64: Dividendos repartibles anualmente | E64: =E38 -> 0 | F64: =F38 -> 0 | G64: 1386695.887 | H64: 1267042.086 | I64: 936232.2728 | J64: 962922.4576 | K64: 990146.4461 | L64: 1017914.914 | M64: 1046238.752 | N64: 1075129.066 | O64: 1104597.187 | P64: 1134654.67 | Q64: 1165313.303 | R64: 1196585.108 | S64: 1228482.35 | T64: 1261017.536 | U64: 1294203.426 | V64: 1328053.034 | W64: 1362579.634 | X64: 1397796.766 | Y64: 1433718.241
A65: Tasa de descuento aplicable para calcular el VAN | E65: =RESUME!N22 -> 0.12 | F65: =E65 -> 0.12 | G65: =F65 -> 0.12 | H65: 0.12 | I65: 0.12 | J65: 0.12 | K65: 0.12 | L65: 0.12 | M65: 0.12 | N65: 0.12 | O65: 0.12 | P65: 0.12 | Q65: 0.12 | R65: 0.12 | S65: 0.12 | T65: 0.12 | U65: 0.12 | V65: 0.12 | W65: 0.12 | X65: 0.12 | Y65: 0.12
A66: Factor de descuento a esa tasa | E66: =(1+E65)^E59 -> 1 | F66: =(1+F65)^F59 -> 1.12 | G66: 1.2544 | H66: 1.404928 | I66: 1.57351936 | J66: 1.762341683 | K66: 1.973822685 | L66: 2.210681407 | M66: 2.475963176 | N66: 2.773078757 | O66: 3.105848208 | P66: 3.478549993 | Q66: 3.895975993 | R66: 4.363493112 | S66: 4.887112285 | T66: 5.473565759 | U66: 6.13039365 | V66: 6.866040888 | W66: 7.689965795 | X66: 8.61276169 | Y66: 9.646293093
A67: Dividendos descontados | E67: =E64/E66 -> 0 | F67: =F64/F66 -> 0 | G67: 1105465.471 | H67: 901855.5298 | I67: 594992.5349 | J67: 546388.0624 | K67: 501639.0041 | L67: 460453.0128 | M67: 422558.2844 | N67: 387702.3195 | O67: 355650.7314 | P67: 326186.1041 | Q67: 299106.9003 | R67: 274226.4231 | S67: 251371.8282 | T67: 230383.1892 | U67: 211112.6137 | V67: 193423.4089 | W67: 177189.2971 | X67: 162293.6773 | Y67: 148628.9321
A68: VAN de los dividendos | E68: =SUM(E67:Y67) -> 7550627.325
A69: VAN de la inversión | E69: =E68-E63 -> -3286841.179
E71: Año 0 | F71: Año 1 | G71: Año 2 | H71: Año 3 | I71: Año 4 | J71: Año 5 | K71: Año 6 | L71: Año 7 | M71: Año 8 | N71: Año 9 | O71: Año 10 | P71: Año 11 | Q71: Año 12 | R71: Año 13 | S71: Año 14 | T71: Año 15 | U71: Año 16 | V71: Año 17 | W71: Año 18 | X71: Año 19 | Y71: Año 20
A72: Esquema de la inversión | E72: =-E63 -> -10837468.5 | F72: =F64 -> 0 | G72: =G64 -> 1386695.887 | H72: 1267042.086 | I72: 936232.2728 | J72: 962922.4576 | K72: 990146.4461 | L72: 1017914.914 | M72: 1046238.752 | N72: 1075129.066 | O72: 1104597.187 | P72: 1134654.67 | Q72: 1165313.303 | R72: 1196585.108 | S72: 1228482.35 | T72: 1261017.536 | U72: 1294203.426 | V72: 1328053.034 | W72: 1362579.634 | X72: 1397796.766 | Y72: 1433718.241
A73: TIR de la inversión | E73: =IRR(E72:Y72) -> 0.07381837748
F74: 1 | G74: 2 | H74: 3 | I74: 4 | J74: 5 | K74: 6 | L74: 7 | M74: 8 | N74: 9 | O74: 10 | P74: 11 | Q74: 12 | R74: 13 | S74: 14 | T74: 15 | U74: 16 | V74: 17 | W74: 18 | X74: 19 | Y74: 20
E76: Año 0 | F76: Año 1 | G76: Año 2 | H76: Año 3 | I76: Año 4 | J76: Año 5 | K76: Año 6 | L76: Año 7 | M76: Año 8 | N76: Año 9 | O76: Año 10 | P76: Año 11 | Q76: Año 12 | R76: Año 13 | S76: Año 14 | T76: Año 15 | U76: Año 16 | V76: Año 17 | W76: Año 18 | X76: Año 19 | Y76: Año 20
A77: Dividendos repartibles | E77: =E64 -> 0 | F77: =F64 -> 0 | G77: 1386695.887 | H77: 1267042.086 | I77: 936232.2728 | J77: 962922.4576 | K77: 990146.4461 | L77: 1017914.914 | M77: 1046238.752 | N77: 1075129.066 | O77: 1104597.187 | P77: 1134654.67 | Q77: 1165313.303 | R77: 1196585.108 | S77: 1228482.35 | T77: 1261017.536 | U77: 1294203.426 | V77: 1328053.034 | W77: 1362579.634 | X77: 1397796.766 | Y77: 1433718.241
A78: Dividendos repartibles acumulados (A) | E78: =E64+D78 -> 0 | F78: 0 | G78: 1386695.887 | H78: 2653737.973 | I78: 3589970.246 | J78: 4552892.703 | K78: 5543039.149 | L78: 6560954.064 | M78: 7607192.816 | N78: 8682321.882 | O78: 9786919.069 | P78: 10921573.74 | Q78: 12086887.04 | R78: 13283472.15 | S78: 14511954.5 | T78: 15772972.04 | U78: 17067175.46 | V78: 18395228.5 | W78: 19757808.13 | X78: 21155604.9 | Y78: 22589323.14
A79: Capital invertido (B) | E79: =E63 -> 10837468.5 | F79: =E79 -> 10837468.5 | G79: =F79 -> 10837468.5 | H79: 10837468.5 | I79: 10837468.5 | J79: 10837468.5 | K79: 10837468.5 | L79: 10837468.5 | M79: 10837468.5 | N79: 10837468.5 | O79: 10837468.5 | P79: 10837468.5 | Q79: 10837468.5 | R79: 10837468.5 | S79: 10837468.5 | T79: 10837468.5 | U79: 10837468.5 | V79: 10837468.5 | W79: 10837468.5 | X79: 10837468.5 | Y79: 10837468.5
A80: A - B | E80: =E78-E79 -> -10837468.5 | F80: =F78-F79 -> -10837468.5 | G80: -9450772.616 | H80: -8183730.53 | I80: -7247498.258 | J80: -6284575.8 | K80: -5294429.354 | L80: -4276514.44 | M80: -3230275.688 | N80: -2155146.621 | O80: -1050549.434 | P80: 84105.2361 | Q80: 1249418.539 | R80: 2446003.647 | S80: 3674485.997 | T80: 4935503.533 | U80: 6229706.96 | V80: 7557759.994 | W80: 8920339.628 | X80: 10318136.39 | Y80: 11751854.63
A81: Años (el primero que aparece en la fila distinto de 0) | F81: =IF(G80>=0,F74,0) -> 0 | G81: =IF(H80>=0,G74,0) -> 0 | H81: 0 | I81: 0 | J81: 0 | K81: 0 | L81: 0 | M81: 0 | N81: 0 | O81: 10 | P81: =IF(Q80>=0,P74,0) -> 11 | Q81: =IF(R80>=0,Q74,0) -> 12 | R81: =IF(S80>=0,R74,0) -> 13 | S81: =IF(T80>=0,S74,0) -> 14 | T81: =IF(U80>=0,T74,0) -> 15 | U81: =IF(V80>=0,U74,0) -> 16 | V81: =IF(W80>=0,V74,0) -> 17 | W81: =IF(X80>=0,W74,0) -> 18 | X81: =IF(Y80>=0,X74,0) -> 19 | Y81: =IF(Z80>=0,Y74,0) -> 20
A82: Meses (los primeros que aparecen en la fila distintos de 0) | F82: =IF(F81>0,F80*12/G77,0) -> 0 | G82: =IF(G81>0,G80*12/H77,0) -> 0 | H82: 0 | I82: 0 | J82: 0 | K82: 0 | L82: 0 | M82: 0 | N82: 0 | O82: =IF(O81>0,-O80*12/P77,0) -> 11.11051101 | P82: 0.8660871121 | Q82: 12.5298421 | R82: 23.8929308 | S82: 34.9668666 | T82: 45.7625449 | U82: 56.2902848 | V82: 66.55986751 | W82: 76.58057174 | X82: 86.36120627
F83: =F81+F82 -> 0 | G83: =G81+G82 -> 0 | H83: 0 | I83: 0 | J83: 0 | K83: 0 | L83: 0 | M83: 0 | N83: 0 | O83: 21.11051101 | P83: 11.86608711 | Q83: 24.5298421 | R83: 36.8929308 | S83: 48.9668666 | T83: 60.7625449 | U83: 72.2902848 | V83: 83.55986751 | W83: 94.58057174 | X83: 105.3612063
A84: Período de retorno de la inversión | E84: =SUM(F84:Y84)+SUM(F85:Y85)/10 -> 11.1110511 | F84: =IF(F82>0,F81,F73) ->  | G84: =IF(G82>0,G81,G73) ->  | O84: 10
F85: =IF(F82>0,F82,F73) ->  | G85: =IF(G82>0,G82,G73) ->  | O85: 11.11051101
E87: =SUM(E84:Y84) -> 21.1110511 | F87: =SUM(E85:Y85) -> 11.11051101 | G87: =E87+F87/10 -> 22.2221022 | H87: =F87+G87/10 -> 13.33272123 | I87: 23.55537433 | J87: 15.68825867 | K87: 25.12420019 | L87: 18.20067869 | M87: 26.94426806 | N87: 20.89510549 | O87: 29.03377861 | P87: 23.79848335 | Q87: 31.41362695 | R87: 26.93984605 | S87: 34.10761155 | T87: 30.3506072 | U87: 37.14267227 | V87: 34.06487443 | W87: 40.54915971 | X87: 38.1197904 | Y87: 44.36113875

Sheet Hoja4
A1: HORA | B1: dia | C1: MES | D1: DIA DEL MES | E1: Calefacción | F1: ACS | G1: Agua fría | H1: Proceso | I1: Pérdidas red | J1: Calor total | K1: Calor Cog | L1: Apoyo | M1: E.Eléctrica M1 | N1: E. Eléc. M2 | O1: E. Eléctrica M3 | P1: Consumo gas caldera | Q1: Consumo gas motores | R1: Consumo gas total | T1: Consumo gas total
A2: 0 | B2: 1 | C2: 1 | D2: 1 | E2: 4285.714286 | F2: 0 | G2: 238.0952381 | H2: 0 | I2: 92.32264334 | J2: 4616.132167 | K2: 3446 | L2: 1170.132167 | M2: 1732 | N2: 1732 | O2: 1146.145337 | P2: 0 | Q2: 0 | R2: 0 | S2: 0 | T2: 0 | U2: 0
A3: 1 | B3: 1 | C3: 1 | D3: 1 | E3: 4285.714286 | F3: 0 | G3: 238.0952381 | H3: 0 | I3: 92.32264334 | J3: 4616.132167 | K3: 3446 | L3: 1170.132167 | M3: 1732 | N3: 1732 | O3: 1146.145337 | P3: 0 | Q3: 0 | R3: 0 | S3: 0 | T3: 0 | U3: 0
A4: 2 | B4: 1 | C4: 1 | D4: 1 | E4: 4285.714286 | F4: 0 | G4: 238.0952381 | H4: 0 | I4: 92.32264334 | J4: 4616.132167 | K4: 3446 | L4: 1170.132167 | M4: 1732 | N4: 1732 | O4: 1146.145337 | P4: 0 | Q4: 0 | R4: 0 | S4: 0 | T4: 0 | U4: 0
A5: 3 | B5: 1 | C5: 1 | D5: 1 | E5: 4285.714286 | F5: 0 | G5: 238.0952381 | H5: 0 | I5: 92.32264334 | J5: 4616.132167 | K5: 3446 | L5: 1170.132167 | M5: 1732 | N5: 1732 | O5: 1146.145337 | P5: 0 | Q5: 0 | R5: 0 | S5: 0 | T5: 0 | U5: 0
A6: 4 | B6: 1 | C6: 1 | D6: 1 | E6: 4285.714286 | F6: 0 | G6: 238.0952381 | H6: 0 | I6: 92.32264334 | J6: 4616.132167 | K6: 3446 | L6: 1170.132167 | M6: 1732 | N6: 1732 | O6: 1146.145337 | P6: 0 | Q6: 0 | R6: 0 | S6: 0 | T6: 0 | U6: 0
A7: 5 | B7: 1 | C7: 1 | D7: 1 | E7: 4285.714286 | F7: 3000 | G7: 238.0952381 | H7: 0 | I7: 153.5471331 | J7: 7677.356657 | K7: 3446 | L7: 4231.356657 | M7: 1732 | N7: 1732 | O7: 1732 | P7: 0 | Q7: 0 | R7: 0 | S7: 0 | T7: 0 | U7: 0
A8: 6 | B8: 1 | C8: 1 | D8: 1 | E8: 4285.714286 | F8: 5000 | G8: 238.0952381 | H8: 0 | I8: 194.3634597 | J8: 9718.172983 | K8: 3446 | L8: 6272.172983 | M8: 1732 | N8: 1732 | O8: 1732 | P8: 0 | Q8: 0 | R8: 0 | S8: 0 | T8: 0 | U8: 0
A9: 7 | B9: 1 | C9: 1 | D9: 1 | E9: 4285.714286 | F9: 5000 | G9: 238.0952381 | H9: 1571.428571 | I9: 226.4334305 | J9: 11321.67153 | K9: 3446 | L9: 7875.671526 | M9: 1732 | N9: 1732 | O9: 1732 | P9: 0 | Q9: 0 | R9: 0 | S9: 0 | T9: 0 | U9: 0
A10: 8 | B10: 1 | C10: 1 | D10: 1 | E10: 4285.714286 | F10: 5000 | G10: 238.0952381 | H10: 1571.428571 | I10: 226.4334305 | J10: 11321.67153 | K10: 3446 | L10: 7875.671526 | M10: 1732 | N10: 1732 | O10: 1732 | P10: 0 | Q10: 0 | R10: 0 | S10: 0 | T10: 0 | U10: 0
A11: 9 | B11: 1 | C11: 1 | D11: 1 | E11: 4285.714286 | F11: 2000 | G11: 238.0952381 | H11: 1571.428571 | I11: 165.2089407 | J11: 8260.447036 | K11: 3446 | L11: 4814.447036 | M11: 1732 | N11: 1732 | O11: 1732 | P11: 0 | Q11: 0 | R11: 0 | S11: 0 | T11: 0 | U11: 0
A12: 10 | B12: 1 | C12: 1 | D12: 1 | E12: 4285.714286 | F12: 0 | G12: 238.0952381 | H12: 1571.428571 | I12: 124.3926142 | J12: 6219.630709 | K12: 3446 | L12: 2773.630709 | M12: 1732 | N12: 1732 | O12: 1732 | P12: 0 | Q12: 0 | R12: 0 | S12: 0 | T12: 0 | U12: 0
A13: 11 | B13: 1 | C13: 1 | D13: 1 | E13: 4285.714286 | F13: 0 | G13: 238.0952381 | H13: 1571.428571 | I13: 124.3926142 | J13: 6219.630709 | K13: 3446 | L13: 2773.630709 | M13: 1732 | N13: 1732 | O13: 1732 | P13: 0 | Q13: 0 | R13: 0 | S13: 0 | T13: 0 | U13: 0
A14: 12 | B14: 1 | C14: 1 | D14: 1 | E14: 4285.714286 | F14: 0 | G14: 238.0952381 | H14: 1571.428571 | I14: 124.3926142 | J14: 6219.630709 | K14: 3446 | L14: 2773.630709 | M14: 1732 | N14: 1732 | O14: 1732 | P14: 0 | Q14: 0 | R14: 0 | S14: 0 | T14: 0 | U14: 0
A15: 13 | B15: 1 | C15: 1 | D15: 1 | E15: 4285.714286 | F15: 0 | G15: 238.0952381 | H15: 1571.428571 | I15: 124.3926142 | J15: 6219.630709 | K15: 3446 | L15: 2773.630709 | M15: 1732 | N15: 1732 | O15: 1732 | P15: 0 | Q15: 0 | R15: 0 | S15: 0 | T15: 0 | U15: 0
A16: 14 | B16: 1 | C16: 1 | D16: 1 | E16: 4285.714286 | F16: 0 | G16: 238.0952381 | H16: 1571.428571 | I16: 124.3926142 | J16: 6219.630709 | K16: 3446 | L16: 2773.630709 | M16: 1732 | N16: 1732 | O16: 1732 | P16: 0 | Q16: 0 | R16: 0 | S16: 0 | T16: 0 | U16: 0
A17: 15 | B17: 1 | C17: 1 | D17: 1 | E17: 4285.714286 | F17: 0 | G17: 238.0952381 | H17: 1571.428571 | I17: 124.3926142 | J17: 6219.630709 | K17: 3446 | L17: 2773.630709 | M17: 1732 | N17: 1732 | O17: 1732 | P17: 0 | Q17: 0 | R17: 0 | S17: 0 | T17: 0 | U17: 0
A18: 16 | B18: 1 | C18: 1 | D18: 1 | E18: 4285.714286 | F18: 0 | G18: 238.0952381 | H18: 1571.428571 | I18: 124.3926142 | J18: 6219.630709 | K18: 3446 | L18: 2773.630709 | M18: 1732 | N18: 1732 | O18: 1732 | P18: 0 | Q18: 0 | R18: 0 | S18: 0 | T18: 0 | U18: 0
A19: 17 | B19: 1 | C19: 1 | D19: 1 | E19: 4285.714286 | F19: 0 | G19: 238.0952381 | H19: 0 | I19: 92.32264334 | J19: 4616.132167 | K19: 3446 | L19: 1170.132167 | M19: 1732 | N19: 1732 | O19: 1146.145337 | P19: 0 | Q19: 0 | R19: 0 | S19: 0 | T19: 0 | U19: 0
A20: 18 | B20: 1 | C20: 1 | D20: 1 | E20: 4285.714286 | F20: 2500 | G20: 238.0952381 | H20: 0 | I20: 143.3430515 | J20: 7167.152575 | K20: 3446 | L20: 3721.152575 | M20: 1732 | N20: 1732 | O20: 1732 | P20: 0 | Q20: 0 | R20: 0 | S20: 0 | T20: 0 | U20: 0
A21: 19 | B21: 1 | C21: 1 | D21: 1 | E21: 4285.714286 | F21: 5000 | G21: 238.0952381 | H21: 0 | I21: 194.3634597 | J21: 9718.172983 | K21: 3446 | L21: 6272.172983 | M21: 1732 | N21: 1732 | O21: 1732 | P21: 0 | Q21: 0 | R21: 0 | S21: 0 | T21: 0 | U21: 0
A22: 20 | B22: 1 | C22: 1 | D22: 1 | E22: 4285.714286 | F22: 5000 | G22: 238.0952381 | H22: 0 | I22: 194.3634597 | J22: 9718.172983 | K22: 3446 | L22: 6272.172983 | M22: 1732 | N22: 1732 | O22: 1732 | P22: 0 | Q22: 0 | R22: 0 | S22: 0 | T22: 0 | U22: 0
A23: 21 | B23: 1 | C23: 1 | D23: 1 | E23: 4285.714286 | F23: 5000 | G23: 238.0952381 | H23: 0 | I23: 194.3634597 | J23: 9718.172983 | K23: 3446 | L23: 6272.172983 | M23: 1732 | N23: 1732 | O23: 1732 | P23: 0 | Q23: 0 | R23: 0 | S23: 0 | T23: 0 | U23: 0
A24: 22 | B24: 1 | C24: 1 | D24: 1 | E24: 4285.714286 | F24: 2500 | G24: 238.0952381 | H24: 0 | I24: 143.3430515 | J24: 7167.152575 | K24: 3446 | L24: 3721.152575 | M24: 1732 | N24: 1732 | O24: 1732 | P24: 0 | Q24: 0 | R24: 0 | S24: 0 | T24: 0 | U24: 0
A25: 23 | B25: 1 | C25: 1 | D25: 1 | E25: 4285.714286 | F25: 0 | G25: 238.0952381 | H25: 0 | I25: 92.32264334 | J25: 4616.132167 | K25: 3446 | L25: 1170.132167 | M25: 1732 | N25: 1732 | O25: 1146.145337 | P25: 0 | Q25: 0 | R25: 0 | S25: 0 | T25: 0 | U25: 0
A26: 24 | B26: 2 | C26: 1 | D26: 2 | E26: 4285.714286 | F26: 0 | G26: 238.0952381 | H26: 0 | I26: 92.32264334 | J26: 4616.132167 | K26: 3446 | L26: 1170.132167 | M26: 1732 | N26: 1732 | O26: 1146.145337 | P26: 0 | Q26: 0 | R26: 0 | S26: 0 | T26: 0 | U26: 0
A27: 25 | B27: 2 | C27: 1 | D27: 2 | E27: 4285.714286 | F27: 0 | G27: 238.0952381 | H27: 0 | I27: 92.32264334 | J27: 4616.132167 | K27: 3446 | L27: 1170.132167 | M27: 1732 | N27: 1732 | O27: 1146.145337 | P27: 0 | Q27: 0 | R27: 0 | S27: 0 | T27: 0 | U27: 0
A28: 26 | B28: 2 | C28: 1 | D28: 2 | E28: 4285.714286 | F28: 0 | G28: 238.0952381 | H28: 0 | I28: 92.32264334 | J28: 4616.132167 | K28: 3446 | L28: 1170.132167 | M28: 1732 | N28: 1732 | O28: 1146.145337 | P28: 0 | Q28: 0 | R28: 0 | S28: 0 | T28: 0 | U28: 0
A29: 27 | B29: 2 | C29: 1 | D29: 2 | E29: 4285.714286 | F29: 0 | G29: 238.0952381 | H29: 0 | I29: 92.32264334 | J29: 4616.132167 | K29: 3446 | L29: 1170.132167 | M29: 1732 | N29: 1732 | O29: 1146.145337 | P29: 0 | Q29: 0 | R29: 0 | S29: 0 | T29: 0 | U29: 0
A30: 28 | B30: 2 | C30: 1 | D30: 2 | E30: 4285.714286 | F30: 0 | G30: 238.0952381 | H30: 0 | I30: 92.32264334 | J30: 4616.132167 | K30: 3446 | L30: 1170.132167 | M30: 1732 | N30: 1732 | O30: 1146.145337 | P30: 0 | Q30: 0 | R30: 0 | S30: 0 | T30: 0 | U30: 0
A31: 29 | B31: 2 | C31: 1 | D31: 2 | E31: 4285.714286 | F31: 3000 | G31: 238.0952381 | H31: 0 | I31: 153.5471331 | J31: 7677.356657 | K31: 3446 | L31: 4231.356657 | M31: 1732 | N31: 1732 | O31: 1732 | P31: 0 | Q31: 0 | R31: 0 | S31: 0 | T31: 0 | U31: 0
A32: 30 | B32: 2 | C32: 1 | D32: 2 | E32: 4285.714286 | F32: 5000 | G32: 238.0952381 | H32: 0 | I32: 194.3634597 | J32: 9718.172983 | K32: 3446 | L32: 6272.172983 | M32: 1732 | N32: 1732 | O32: 1732 | P32: 0 | Q32: 0 | R32: 0 | S32: 0 | T32: 0 | U32: 0
A33: 31 | B33: 2 | C33: 1 | D33: 2 | E33: 4285.714286 | F33: 5000 | G33: 238.0952381 | H33: 1571.428571 | I33: 226.4334305 | J33: 11321.67153 | K33: 3446 | L33: 7875.671526 | M33: 1732 | N33: 1732 | O33: 1732 | P33: 0 | Q33: 0 | R33: 0 | S33: 0 | T33: 0 | U33: 0
A34: 32 | B34: 2 | C34: 1 | D34: 2 | E34: 4285.714286 | F34: 5000 | G34: 238.0952381 | H34: 1571.428571 | I34: 226.4334305 | J34: 11321.67153 | K34: 3446 | L34: 7875.671526 | M34: 1732 | N34: 1732 | O34: 1732 | P34: 0 | Q34: 0 | R34: 0 | S34: 0 | T34: 0 | U34: 0
A35: 33 | B35: 2 | C35: 1 | D35: 2 | E35: 4285.714286 | F35: 2000 | G35: 238.0952381 | H35: 1571.428571 | I35: 165.2089407 | J35: 8260.447036 | K35: 3446 | L35: 4814.447036 | M35: 1732 | N35: 1732 | O35: 1732 | P35: 0 | Q35: 0 | R35: 0 | S35: 0 | T35: 0 | U35: 0
A36: 34 | B36: 2 | C36: 1 | D36: 2 | E36: 4285.714286 | F36: 0 | G36: 238.0952381 | H36: 1571.428571 | I36: 124.3926142 | J36: 6219.630709 | K36: 3446 | L36: 2773.630709 | M36: 1732 | N36: 1732 | O36: 1732 | P36: 0 | Q36: 0 | R36: 0 | S36: 0 | T36: 0 | U36: 0
A37: 35 | B37: 2 | C37: 1 | D37: 2 | E37: 4285.714286 | F37: 0 | G37: 238.0952381 | H37: 1571.428571 | I37: 124.3926142 | J37: 6219.630709 | K37: 3446 | L37: 2773.630709 | M37: 1732 | N37: 1732 | O37: 1732 | P37: 0 | Q37: 0 | R37: 0 | S37: 0 | T37: 0 | U37: 0
A38: 36 | B38: 2 | C38: 1 | D38: 2 | E38: 4285.714286 | F38: 0 | G38: 238.0952381 | H38: 1571.428571 | I38: 124.3926142 | J38: 6219.630709 | K38: 3446 | L38: 2773.630709 | M38: 1732 | N38: 1732 | O38: 1732 | P38: 0 | Q38: 0 | R38: 0 | S38: 0 | T38: 0 | U38: 0
A39: 37 | B39: 2 | C39: 1 | D39: 2 | E39: 4285.714286 | F39: 0 | G39: 238.0952381 | H39: 1571.428571 | I39: 124.3926142 | J39: 6219.630709 | K39: 3446 | L39: 2773.630709 | M39: 1732 | N39: 1732 | O39: 1732 | P39: 0 | Q39: 0 | R39: 0 | S39: 0 | T39: 0 | U39: 0
A40: 38 | B40: 2 | C40: 1 | D40: 2 | E40: 4285.714286 | F40: 0 | G40: 238.0952381 | H40: 1571.428571 | I40: 124.3926142 | J40: 6219.630709 | K40: 3446 | L40: 2773.630709 | M40: 1732 | N40: 1732 | O40: 1732 | P40: 0 | Q40: 0 | R40: 0 | S40: 0 | T40: 0 | U40: 0
A41: 39 | B41: 2 | C41: 1 | D41: 2 | E41: 4285.714286 | F41: 0 | G41: 238.0952381 | H41: 1571.428571 | I41: 124.3926142 | J41: 6219.630709 | K41: 3446 | L41: 2773.630709 | M41: 1732 | N41: 1732 | O41: 1732 | P41: 0 | Q41: 0 | R41: 0 | S41: 0 | T41: 0 | U41: 0
A42: 40 | B42: 2 | C42: 1 | D42: 2 | E42: 4285.714286 | F42: 0 | G42: 238.0952381 | H42: 1571.428571 | I42: 124.3926142 | J42: 6219.630709 | K42: 3446 | L42: 2773.630709 | M42: 1732 | N42: 1732 | O42: 1732 | P42: 0 | Q42: 0 | R42: 0 | S42: 0 | T42: 0 | U42: 0
A43: 41 | B43: 2 | C43: 1 | D43: 2 | E43: 4285.714286 | F43: 0 | G43: 238.0952381 | H43: 0 | I43: 92.32264334 | J43: 4616.132167 | K43: 3446 | L43: 1170.132167 | M43: 1732 | N43: 1732 | O43: 1146.145337 | P43: 0 | Q43: 0 | R43: 0 | S43: 0 | T43: 0 | U43: 0
A44: 42 | B44: 2 | C44: 1 | D44: 2 | E44: 4285.714286 | F44: 2500 | G44: 238.0952381 | H44: 0 | I44: 143.3430515 | J44: 7167.152575 | K44: 3446 | L44: 3721.152575 | M44: 1732 | N44: 1732 | O44: 1732 | P44: 0 | Q44: 0 | R44: 0 | S44: 0 | T44: 0 | U44: 0
A45: 43 | B45: 2 | C45: 1 | D45: 2 | E45: 4285.714286 | F45: 5000 | G45: 238.0952381 | H45: 0 | I45: 194.3634597 | J45: 9718.172983 | K45: 3446 | L45: 6272.172983 | M45: 1732 | N45: 1732 | O45: 1732 | P45: 0 | Q45: 0 | R45: 0 | S45: 0 | T45: 0 | U45: 0
A46: 44 | B46: 2 | C46: 1 | D46: 2 | E46: 4285.714286 | F46: 5000 | G46: 238.0952381 | H46: 0 | I46: 194.3634597 | J46: 9718.172983 | K46: 3446 | L46: 6272.172983 | M46: 1732 | N46: 1732 | O46: 1732 | P46: 0 | Q46: 0 | R46: 0 | S46: 0 | T46: 0 | U46: 0
A47: 45 | B47: 2 | C47: 1 | D47: 2 | E47: 4285.714286 | F47: 5000 | G47: 238.0952381 | H47: 0 | I47: 194.3634597 | J47: 9718.172983 | K47: 3446 | L47: 6272.172983 | M47: 1732 | N47: 1732 | O47: 1732 | P47: 0 | Q47: 0 | R47: 0 | S47: 0 | T47: 0 | U47: 0
A48: 46 | B48: 2 | C48: 1 | D48: 2 | E48: 4285.714286 | F48: 2500 | G48: 238.0952381 | H48: 0 | I48: 143.3430515 | J48: 7167.152575 | K48: 3446 | L48: 3721.152575 | M48: 1732 | N48: 1732 | O48: 1732 | P48: 0 | Q48: 0 | R48: 0 | S48: 0 | T48: 0 | U48: 0
A49: 47 | B49: 2 | C49: 1 | D49: 2 | E49: 4285.714286 | F49: 0 | G49: 238.0952381 | H49: 0 | I49: 92.32264334 | J49: 4616.132167 | K49: 3446 | L49: 1170.132167 | M49: 1732 | N49: 1732 | O49: 1146.145337 | P49: 0 | Q49: 0 | R49: 0 | S49: 0 | T49: 0 | U49: 0
A50: 48 | B50: 3 | C50: 1 | D50: 3 | E50: 4285.714286 | F50: 0 | G50: 238.0952381 | H50: 0 | I50: 92.32264334 | J50: 4616.132167 | K50: 3446 | L50: 1170.132167 | M50: 1732 | N50: 1732 | O50: 1146.145337 | P50: 0 | Q50: 0 | R50: 0 | S50: 0 | T50: 0 | U50: 0
A51: 49 | B51: 3 | C51: 1 | D51: 3 | E51: 4285.714286 | F51: 0 | G51: 238.0952381 | H51: 0 | I51: 92.32264334 | J51: 4616.132167 | K51: 3446 | L51: 1170.132167 | M51: 1732 | N51: 1732 | O51: 1146.145337 | P51: 0 | Q51: 0 | R51: 0 | S51: 0 | T51: 0 | U51: 0
A52: 50 | B52: 3 | C52: 1 | D52: 3 | E52: 4285.714286 | F52: 0 | G52: 238.0952381 | H52: 0 | I52: 92.32264334 | J52: 4616.132167 | K52: 3446 | L52: 1170.132167 | M52: 1732 | N52: 1732 | O52: 1146.145337 | P52: 0 | Q52: 0 | R52: 0 | S52: 0 | T52: 0 | U52: 0
A53: 51 | B53: 3 | C53: 1 | D53: 3 | E53: 4285.714286 | F53: 0 | G53: 238.0952381 | H53: 0 | I53: 92.32264334 | J53: 4616.132167 | K53: 3446 | L53: 1170.132167 | M53: 1732 | N53: 1732 | O53: 1146.145337 | P53: 0 | Q53: 0 | R53: 0 | S53: 0 | T53: 0 | U53: 0
A54: 52 | B54: 3 | C54: 1 | D54: 3 | E54: 4285.714286 | F54: 0 | G54: 238.0952381 | H54: 0 | I54: 92.32264334 | J54: 4616.132167 | K54: 3446 | L54: 1170.132167 | M54: 1732 | N54: 1732 | O54: 1146.145337 | P54: 0 | Q54: 0 | R54: 0 | S54: 0 | T54: 0 | U54: 0
A55: 53 | B55: 3 | C55: 1 | D55: 3 | E55: 4285.714286 | F55: 3000 | G55: 238.0952381 | H55: 0 | I55: 153.5471331 | J55: 7677.356657 | K55: 3446 | L55: 4231.356657 | M55: 1732 | N55: 1732 | O55: 1732 | P55: 0 | Q55: 0 | R55: 0 | S55: 0 | T55: 0 | U55: 0
A56: 54 | B56: 3 | C56: 1 | D56: 3 | E56: 4285.714286 | F56: 5000 | G56: 238.0952381 | H56: 0 | I56: 194.3634597 | J56: 9718.172983 | K56: 3446 | L56: 6272.172983 | M56: 1732 | N56: 1732 | O56: 1732 | P56: 0 | Q56: 0 | R56: 0 | S56: 0 | T56: 0 | U56: 0
A57: 55 | B57: 3 | C57: 1 | D57: 3 | E57: 4285.714286 | F57: 5000 | G57: 238.0952381 | H57: 1571.428571 | I57: 226.4334305 | J57: 11321.67153 | K57: 3446 | L57: 7875.671526 | M57: 1732 | N57: 1732 | O57: 1732 | P57: 0 | Q57: 0 | R57: 0 | S57: 0 | T57: 0 | U57: 0
A58: 56 | B58: 3 | C58: 1 | D58: 3 | E58: 4285.714286 | F58: 5000 | G58: 238.0952381 | H58: 1571.428571 | I58: 226.4334305 | J58: 11321.67153 | K58: 3446 | L58: 7875.671526 | M58: 1732 | N58: 1732 | O58: 1732 | P58: 0 | Q58: 0 | R58: 0 | S58: 0 | T58: 0 | U58: 0
A59: 57 | B59: 3 | C59: 1 | D59: 3 | E59: 4285.714286 | F59: 2000 | G59: 238.0952381 | H59: 1571.428571 | I59: 165.2089407 | J59: 8260.447036 | K59: 3446 | L59: 4814.447036 | M59: 1732 | N59: 1732 | O59: 1732 | P59: 0 | Q59: 0 | R59: 0 | S59: 0 | T59: 0 | U59: 0
A60: 58 | B60: 3 | C60: 1 | D60: 3 | E60: 4285.714286 | F60: 0 | G60: 238.0952381 | H60: 1571.428571 | I60: 124.3926142 | J60: 6219.630709 | K60: 3446 | L60: 2773.630709 | M60: 1732 | N60: 1732 | O60: 1732 | P60: 0 | Q60: 0 | R60: 0 | S60: 0 | T60: 0 | U60: 0
A61: 59 | B61: 3 | C61: 1 | D61: 3 | E61: 4285.714286 | F61: 0 | G61: 238.0952381 | H61: 1571.428571 | I61: 124.3926142 | J61: 6219.630709 | K61: 3446 | L61: 2773.630709 | M61: 1732 | N61: 1732 | O61: 1732 | P61: 0 | Q61: 0 | R61: 0 | S61: 0 | T61: 0 | U61: 0
A62: 60 | B62: 3 | C62: 1 | D62: 3 | E62: 4285.714286 | F62: 0 | G62: 238.0952381 | H62: 1571.428571 | I62: 124.3926142 | J62: 6219.630709 | K62: 3446 | L62: 2773.630709 | M62: 1732 | N62: 1732 | O62: 1732 | P62: 0 | Q62: 0 | R62: 0 | S62: 0 | T62: 0 | U62: 0
A63: 61 | B63: 3 | C63: 1 | D63: 3 | E63: 4285.714286 | F63: 0 | G63: 238.0952381 | H63: 1571.428571 | I63: 124.3926142 | J63: 6219.630709 | K63: 3446 | L63: 2773.630709 | M63: 1732 | N63: 1732 | O63: 1732 | P63: 0 | Q63: 0 | R63: 0 | S63: 0 | T63: 0 | U63: 0
A64: 62 | B64: 3 | C64: 1 | D64: 3 | E64: 4285.714286 | F64: 0 | G64: 238.0952381 | H64: 1571.428571 | I64: 124.3926142 | J64: 6219.630709 | K64: 3446 | L64: 2773.630709 | M64: 1732 | N64: 1732 | O64: 1732 | P64: 0 | Q64: 0 | R64: 0 | S64: 0 | T64: 0 | U64: 0
A65: 63 | B65: 3 | C65: 1 | D65: 3 | E65: 4285.714286 | F65: 0 | G65: 238.0952381 | H65: 1571.428571 | I65: 124.3926142 | J65: 6219.630709 | K65: 3446 | L65: 2773.630709 | M65: 1732 | N65: 1732 | O65: 1732 | P65: 0 | Q65: 0 | R65: 0 | S65: 0 | T65: 0 | U65: 0
A66: 64 | B66: 3 | C66: 1 | D66: 3 | E66: 4285.714286 | F66: 0 | G66: 238.0952381 | H66: 1571.428571 | I66: 124.3926142 | J66: 6219.630709 | K66: 3446 | L66: 2773.630709 | M66: 1732 | N66: 1732 | O66: 1732 | P66: 0 | Q66: 0 | R66: 0 | S66: 0 | T66: 0 | U66: 0
A67: 65 | B67: 3 | C67: 1 | D67: 3 | E67: 4285.714286 | F67: 0 | G67: 238.0952381 | H67: 0 | I67: 92.32264334 | J67: 4616.132167 | K67: 3446 | L67: 1170.132167 | M67: 1732 | N67: 1732 | O67: 1146.145337 | P67: 0 | Q67: 0 | R67: 0 | S67: 0 | T67: 0 | U67: 0
A68: 66 | B68: 3 | C68: 1 | D68: 3 | E68: 4285.714286 | F68: 2500 | G68: 238.0952381 | H68: 0 | I68: 143.3430515 | J68: 7167.152575 | K68: 3446 | L68: 3721.152575 | M68: 1732 | N68: 1732 | O68: 1732 | P68: 0 | Q68: 0 | R68: 0 | S68: 0 | T68: 0 | U68: 0
A69: 67 | B69: 3 | C69: 1 | D69: 3 | E69: 4285.714286 | F69: 5000 | G69: 238.0952381 | H69: 0 | I69: 194.3634597 | J69: 9718.172983 | K69: 3446 | L69: 6272.172983 | M69: 1732 | N69: 1732 | O69: 1732 | P69: 0 | Q69: 0 | R69: 0 | S69: 0 | T69: 0 | U69: 0
A70: 68 | B70: 3 | C70: 1 | D70: 3 | E70: 4285.714286 | F70: 5000 | G70: 238.0952381 | H70: 0 | I70: 194.3634597 | J70: 9718.172983 | K70: 3446 | L70: 6272.172983 | M70: 1732 | N70: 1732 | O70: 1732 | P70: 0 | Q70: 0 | R70: 0 | S70: 0 | T70: 0 | U70: 0
A71: 69 | B71: 3 | C71: 1 | D71: 3 | E71: 4285.714286 | F71: 5000 | G71: 238.0952381 | H71: 0 | I71: 194.3634597 | J71: 9718.172983 | K71: 3446 | L71: 6272.172983 | M71: 1732 | N71: 1732 | O71: 1732 | P71: 0 | Q71: 0 | R71: 0 | S71: 0 | T71: 0 | U71: 0
A72: 70 | B72: 3 | C72: 1 | D72: 3 | E72: 4285.714286 | F72: 2500 | G72: 238.0952381 | H72: 0 | I72: 143.3430515 | J72: 7167.152575 | K72: 3446 | L72: 3721.152575 | M72: 1732 | N72: 1732 | O72: 1732 | P72: 0 | Q72: 0 | R72: 0 | S72: 0 | T72: 0 | U72: 0
A73: 71 | B73: 3 | C73: 1 | D73: 3 | E73: 4285.714286 | F73: 0 | G73: 238.0952381 | H73: 0 | I73: 92.32264334 | J73: 4616.132167 | K73: 3446 | L73: 1170.132167 | M73: 1732 | N73: 1732 | O73: 1146.145337 | P73: 0 | Q73: 0 | R73: 0 | S73: 0 | T73: 0 | U73: 0
A74: 72 | B74: 4 | C74: 1 | D74: 4 | E74: 4285.714286 | F74: 0 | G74: 238.0952381 | H74: 0 | I74: 92.32264334 | J74: 4616.132167 | K74: 3446 | L74: 1170.132167 | M74: 1732 | N74: 1732 | O74: 1146.145337 | P74: 0 | Q74: 0 | R74: 0 | S74: 0 | T74: 0 | U74: 0
A75: 73 | B75: 4 | C75: 1 | D75: 4 | E75: 4285.714286 | F75: 0 | G75: 238.0952381 | H75: 0 | I75: 92.32264334 | J75: 4616.132167 | K75: 3446 | L75: 1170.132167 | M75: 1732 | N75: 1732 | O75: 1146.145337 | P75: 0 | Q75: 0 | R75: 0 | S75: 0 | T75: 0 | U75: 0
A76: 74 | B76: 4 | C76: 1 | D76: 4 | E76: 4285.714286 | F76: 0 | G76: 238.0952381 | H76: 0 | I76: 92.32264334 | J76: 4616.132167 | K76: 3446 | L76: 1170.132167 | M76: 1732 | N76: 1732 | O76: 1146.145337 | P76: 0 | Q76: 0 | R76: 0 | S76: 0 | T76: 0 | U76: 0
A77: 75 | B77: 4 | C77: 1 | D77: 4 | E77: 4285.714286 | F77: 0 | G77: 238.0952381 | H77: 0 | I77: 92.32264334 | J77: 4616.132167 | K77: 3446 | L77: 1170.132167 | M77: 1732 | N77: 1732 | O77: 1146.145337 | P77: 0 | Q77: 0 | R77: 0 | S77: 0 | T77: 0 | U77: 0
A78: 76 | B78: 4 | C78: 1 | D78: 4 | E78: 4285.714286 | F78: 0 | G78: 238.0952381 | H78: 0 | I78: 92.32264334 | J78: 4616.132167 | K78: 3446 | L78: 1170.132167 | M78: 1732 | N78: 1732 | O78: 1146.145337 | P78: 0 | Q78: 0 | R78: 0 | S78: 0 | T78: 0 | U78: 0
A79: 77 | B79: 4 | C79: 1 | D79: 4 | E79: 4285.714286 | F79: 3000 | G79: 238.0952381 | H79: 0 | I79: 153.5471331 | J79: 7677.356657 | K79: 3446 | L79: 4231.356657 | M79: 1732 | N79: 1732 | O79: 1732 | P79: 0 | Q79: 0 | R79: 0 | S79: 0 | T79: 0 | U79: 0
A80: 78 | B80: 4 | C80: 1 | D80: 4 | E80: 4285.714286 | F80: 5000 | G80: 238.0952381 | H80: 0 | I80: 194.3634597 | J80: 9718.172983 | K80: 3446 | L80: 6272.172983 | M80: 1732 | N80: 1732 | O80: 1732 | P80: 0 | Q80: 0 | R80: 0 | S80: 0 | T80: 0 | U80: 0
A81: 79 | B81: 4 | C81: 1 | D81: 4 | E81: 4285.714286 | F81: 5000 | G81: 238.0952381 | H81: 1571.428571 | I81: 226.4334305 | J81: 11321.67153 | K81: 3446 | L81: 7875.671526 | M81: 1732 | N81: 1732 | O81: 1732 | P81: 0 | Q81: 0 | R81: 0 | S81: 0 | T81: 0 | U81: 0
A82: 80 | B82: 4 | C82: 1 | D82: 4 | E82: 4285.714286 | F82: 5000 | G82: 238.0952381 | H82: 1571.428571 | I82: 226.4334305 | J82: 11321.67153 | K82: 3446 | L82: 7875.671526 | M82: 1732 | N82: 1732 | O82: 1732 | P82: 0 | Q82: 0 | R82: 0 | S82: 0 | T82: 0 | U82: 0
A83: 81 | B83: 4 | C83: 1 | D83: 4 | E83: 4285.714286 | F83: 2000 | G83: 238.0952381 | H83: 1571.428571 | I83: 165.2089407 | J83: 8260.447036 | K83: 3446 | L83: 4814.447036 | M83: 1732 | N83: 1732 | O83: 1732 | P83: 0 | Q83: 0 | R83: 0 | S83: 0 | T83: 0 | U83: 0
A84: 82 | B84: 4 | C84: 1 | D84: 4 | E84: 4285.714286 | F84: 0 | G84: 238.0952381 | H84: 1571.428571 | I84: 124.3926142 | J84: 6219.630709 | K84: 3446 | L84: 2773.630709 | M84: 1732 | N84: 1732 | O84: 1732 | P84: 0 | Q84: 0 | R84: 0 | S84: 0 | T84: 0 | U84: 0
A85: 83 | B85: 4 | C85: 1 | D85: 4 | E85: 4285.714286 | F85: 0 | G85: 238.0952381 | H85: 1571.428571 | I85: 124.3926142 | J85: 6219.630709 | K85: 3446 | L85: 2773.630709 | M85: 1732 | N85: 1732 | O85: 1732 | P85: 0 | Q85: 0 | R85: 0 | S85: 0 | T85: 0 | U85: 0
A86: 84 | B86: 4 | C86: 1 | D86: 4 | E86: 4285.714286 | F86: 0 | G86: 238.0952381 | H86: 1571.428571 | I86: 124.3926142 | J86: 6219.630709 | K86: 3446 | L86: 2773.630709 | M86: 1732 | N86: 1732 | O86: 1732 | P86: 0 | Q86: 0 | R86: 0 | S86: 0 | T86: 0 | U86: 0
A87: 85 | B87: 4 | C87: 1 | D87: 4 | E87: 4285.714286 | F87: 0 | G87: 238.0952381 | H87: 1571.428571 | I87: 124.3926142 | J87: 6219.630709 | K87: 3446 | L87: 2773.630709 | M87: 1732 | N87: 1732 | O87: 1732 | P87: 0 | Q87: 0 | R87: 0 | S87: 0 | T87: 0 | U87: 0
A88: 86 | B88: 4 | C88: 1 | D88: 4 | E88: 4285.714286 | F88: 0 | G88: 238.0952381 | H88: 1571.428571 | I88: 124.3926142 | J88: 6219.630709 | K88: 3446 | L88: 2773.630709 | M88: 1732 | N88: 1732 | O88: 1732 | P88: 0 | Q88: 0 | R88: 0 | S88: 0 | T88: 0 | U88: 0
A89: 87 | B89: 4 | C89: 1 | D89: 4 | E89: 4285.714286 | F89: 0 | G89: 238.0952381 | H89: 1571.428571 | I89: 124.3926142 | J89: 6219.630709 | K89: 3446 | L89: 2773.630709 | M89: 1732 | N89: 1732 | O89: 1732 | P89: 0 | Q89: 0 | R89: 0 | S89: 0 | T89: 0 | U89: 0
A90: 88 | B90: 4 | C90: 1 | D90: 4 | E90: 4285.714286 | F90: 0 | G90: 238.0952381 | H90: 1571.428571 | I90: 124.3926142 | J90: 6219.630709 | K90: 3446 | L90: 2773.630709 | M90: 1732 | N90: 1732 | O90: 1732 | P90: 0 | Q90: 0 | R90: 0 | S90: 0 | T90: 0 | U90: 0
A91: 89 | B91: 4 | C91: 1 | D91: 4 | E91: 4285.714286 | F91: 0 | G91: 238.0952381 | H91: 0 | I91: 92.32264334 | J91: 4616.132167 | K91: 3446 | L91: 1170.132167 | M91: 1732 | N91: 1732 | O91: 1146.145337 | P91: 0 | Q91: 0 | R91: 0 | S91: 0 | T91: 0 | U91: 0
A92: 90 | B92: 4 | C92: 1 | D92: 4 | E92: 4285.714286 | F92: 2500 | G92: 238.0952381 | H92: 0 | I92: 143.3430515 | J92: 7167.152575 | K92: 3446 | L92: 3721.152575 | M92: 1732 | N92: 1732 | O92: 1732 | P92: 0 | Q92: 0 | R92: 0 | S92: 0 | T92: 0 | U92: 0
A93: 91 | B93: 4 | C93: 1 | D93: 4 | E93: 4285.714286 | F93: 5000 | G93: 238.0952381 | H93: 0 | I93: 194.3634597 | J93: 9718.172983 | K93: 3446 | L93: 6272.172983 | M93: 1732 | N93: 1732 | O93: 1732 | P93: 0 | Q93: 0 | R93: 0 | S93: 0 | T93: 0 | U93: 0
A94: 92 | B94: 4 | C94: 1 | D94: 4 | E94: 4285.714286 | F94: 5000 | G94: 238.0952381 | H94: 0 | I94: 194.3634597 | J94: 9718.172983 | K94: 3446 | L94: 6272.172983 | M94: 1732 | N94: 1732 | O94: 1732 | P94: 0 | Q94: 0 | R94: 0 | S94: 0 | T94: 0 | U94: 0
A95: 93 | B95: 4 | C95: 1 | D95: 4 | E95: 4285.714286 | F95: 5000 | G95: 238.0952381 | H95: 0 | I95: 194.3634597 | J95: 9718.172983 | K95: 3446 | L95: 6272.172983 | M95: 1732 | N95: 1732 | O95: 1732 | P95: 0 | Q95: 0 | R95: 0 | S95: 0 | T95: 0 | U95: 0
A96: 94 | B96: 4 | C96: 1 | D96: 4 | E96: 4285.714286 | F96: 2500 | G96: 238.0952381 | H96: 0 | I96: 143.3430515 | J96: 7167.152575 | K96: 3446 | L96: 3721.152575 | M96: 1732 | N96: 1732 | O96: 1732 | P96: 0 | Q96: 0 | R96: 0 | S96: 0 | T96: 0 | U96: 0
A97: 95 | B97: 4 | C97: 1 | D97: 5 | E97: 4285.714286 | F97: 0 | G97: 238.0952381 | H97: 0 | I97: 92.32264334 | J97: 4616.132167 | K97: 3446 | L97: 1170.132167 | M97: 1732 | N97: 1732 | O97: 1146.145337 | P97: 0 | Q97: 0 | R97: 0 | S97: 0 | T97: 0 | U97: 0
A98: 96 | B98: 5 | C98: 1 | D98: 5 | E98: 4285.714286 | F98: 0 | G98: 238.0952381 | H98: 0 | I98: 92.32264334 | J98: 4616.132167 | K98: 3446 | L98: 1170.132167 | M98: 1732 | N98: 1732 | O98: 1146.145337 | P98: 0 | Q98: 0 | R98: 0 | S98: 0 | T98: 0 | U98: 0
A99: 97 | B99: 5 | C99: 1 | D99: 5 | E99: 4285.714286 | F99: 0 | G99: 238.0952381 | H99: 0 | I99: 92.32264334 | J99: 4616.132167 | K99: 3446 | L99: 1170.132167 | M99: 1732 | N99: 1732 | O99: 1146.145337 | P99: 0 | Q99: 0 | R99: 0 | S99: 0 | T99: 0 | U99: 0
A100: 98 | B100: 5 | C100: 1 | D100: 5 | E100: 4285.714286 | F100: 0 | G100: 238.0952381 | H100: 0 | I100: 92.32264334 | J100: 4616.132167 | K100: 3446 | L100: 1170.132167 | M100: 1732 | N100: 1732 | O100: 1146.145337 | P100: 0 | Q100: 0 | R100: 0 | S100: 0 | T100: 0 | U100: 0
A101: 99 | B101: 5 | C101: 1 | D101: 5 | E101: 4285.714286 | F101: 0 | G101: 238.0952381 | H101: 0 | I101: 92.32264334 | J101: 4616.132167 | K101: 3446 | L101: 1170.132167 | M101: 1732 | N101: 1732 | O101: 1146.145337 | P101: 0 | Q101: 0 | R101: 0 | S101: 0 | T101: 0 | U101: 0
A102: 100 | B102: 5 | C102: 1 | D102: 5 | E102: 4285.714286 | F102: 0 | G102: 238.0952381 | H102: 0 | I102: 92.32264334 | J102: 4616.132167 | K102: 3446 | L102: 1170.132167 | M102: 1732 | N102: 1732 | O102: 1146.145337 | P102: 0 | Q102: 0 | R102: 0 | S102: 0 | T102: 0 | U102: 0
A103: 101 | B103: 5 | C103: 1 | D103: 5 | E103: 4285.714286 | F103: 3000 | G103: 238.0952381 | H103: 0 | I103: 153.5471331 | J103: 7677.356657 | K103: 3446 | L103: 4231.356657 | M103: 1732 | N103: 1732 | O103: 1732 | P103: 0 | Q103: 0 | R103: 0 | S103: 0 | T103: 0 | U103: 0
A104: 102 | B104: 5 | C104: 1 | D104: 5 | E104: 4285.714286 | F104: 5000 | G104: 238.0952381 | H104: 0 | I104: 194.3634597 | J104: 9718.172983 | K104: 3446 | L104: 6272.172983 | M104: 1732 | N104: 1732 | O104: 1732 | P104: 0 | Q104: 0 | R104: 0 | S104: 0 | T104: 0 | U104: 0
A105: 103 | B105: 5 | C105: 1 | D105: 5 | E105: 4285.714286 | F105: 5000 | G105: 238.0952381 | H105: 1571.428571 | I105: 226.4334305 | J105: 11321.67153 | K105: 3446 | L105: 7875.671526 | M105: 1732 | N105: 1732 | O105: 1732 | P105: 0 | Q105: 0 | R105: 0 | S105: 0 | T105: 0 | U105: 0
A106: 104 | B106: 5 | C106: 1 | D106: 5 | E106: 4285.714286 | F106: 5000 | G106: 238.0952381 | H106: 1571.428571 | I106: 226.4334305 | J106: 11321.67153 | K106: 3446 | L106: 7875.671526 | M106: 1732 | N106: 1732 | O106: 1732 | P106: 0 | Q106: 0 | R106: 0 | S106: 0 | T106: 0 | U106: 0
A107: 105 | B107: 5 | C107: 1 | D107: 5 | E107: 4285.714286 | F107: 2000 | G107: 238.0952381 | H107: 1571.428571 | I107: 165.2089407 | J107: 8260.447036 | K107: 3446 | L107: 4814.447036 | M107: 1732 | N107: 1732 | O107: 1732 | P107: 0 | Q107: 0 | R107: 0 | S107: 0 | T107: 0 | U107: 0
A108: 106 | B108: 5 | C108: 1 | D108: 5 | E108: 4285.714286 | F108: 0 | G108: 238.0952381 | H108: 1571.428571 | I108: 124.3926142 | J108: 6219.630709 | K108: 3446 | L108: 2773.630709 | M108: 1732 | N108: 1732 | O108: 1732 | P108: 0 | Q108: 0 | R108: 0 | S108: 0 | T108: 0 | U108: 0
A109: 107 | B109: 5 | C109: 1 | D109: 5 | E109: 4285.714286 | F109: 0 | G109: 238.0952381 | H109: 1571.428571 | I109: 124.3926142 | J109: 6219.630709 | K109: 3446 | L109: 2773.630709 | M109: 1732 | N109: 1732 | O109: 1732 | P109: 0 | Q109: 0 | R109: 0 | S109: 0 | T109: 0 | U109: 0
A110: 108 | B110: 5 | C110: 1 | D110: 5 | E110: 4285.714286 | F110: 0 | G110: 238.0952381 | H110: 1571.428571 | I110: 124.3926142 | J110: 6219.630709 | K110: 3446 | L110: 2773.630709 | M110: 1732 | N110: 1732 | O110: 1732 | P110: 0 | Q110: 0 | R110: 0 | S110: 0 | T110: 0 | U110: 0
A111: 109 | B111: 5 | C111: 1 | D111: 5 | E111: 4285.714286 | F111: 0 | G111: 238.0952381 | H111: 1571.428571 | I111: 124.3926142 | J111: 6219.630709 | K111: 3446 | L111: 2773.630709 | M111: 1732 | N111: 1732 | O111: 1732 | P111: 0 | Q111: 0 | R111: 0 | S111: 0 | T111: 0 | U111: 0
A112: 110 | B112: 5 | C112: 1 | D112: 5 | E112: 4285.714286 | F112: 0 | G112: 238.0952381 | H112: 1571.428571 | I112: 124.3926142 | J112: 6219.630709 | K112: 3446 | L112: 2773.630709 | M112: 1732 | N112: 1732 | O112: 1732 | P112: 0 | Q112: 0 | R112: 0 | S112: 0 | T112: 0 | U112: 0
A113: 111 | B113: 5 | C113: 1 | D113: 5 | E113: 4285.714286 | F113: 0 | G113: 238.0952381 | H113: 1571.428571 | I113: 124.3926142 | J113: 6219.630709 | K113: 3446 | L113: 2773.630709 | M113: 1732 | N113: 1732 | O113: 1732 | P113: 0 | Q113: 0 | R113: 0 | S113: 0 | T113: 0 | U113: 0
A114: 112 | B114: 5 | C114: 1 | D114: 5 | E114: 4285.714286 | F114: 0 | G114: 238.0952381 | H114: 1571.428571 | I114: 124.3926142 | J114: 6219.630709 | K114: 3446 | L114: 2773.630709 | M114: 1732 | N114: 1732 | O114: 1732 | P114: 0 | Q114: 0 | R114: 0 | S114: 0 | T114: 0 | U114: 0
A115: 113 | B115: 5 | C115: 1 | D115: 5 | E115: 4285.714286 | F115: 0 | G115: 238.0952381 | H115: 0 | I115: 92.32264334 | J115: 4616.132167 | K115: 3446 | L115: 1170.132167 | M115: 1732 | N115: 1732 | O115: 1146.145337 | P115: 0 | Q115: 0 | R115: 0 | S115: 0 | T115: 0 | U115: 0
A116: 114 | B116: 5 | C116: 1 | D116: 5 | E116: 4285.714286 | F116: 2500 | G116: 238.0952381 | H116: 0 | I116: 143.3430515 | J116: 7167.152575 | K116: 3446 | L116: 3721.152575 | M116: 1732 | N116: 1732 | O116: 1732 | P116: 0 | Q116: 0 | R116: 0 | S116: 0 | T116: 0 | U116: 0
A117: 115 | B117: 5 | C117: 1 | D117: 5 | E117: 4285.714286 | F117: 5000 | G117: 238.0952381 | H117: 0 | I117: 194.3634597 | J117: 9718.172983 | K117: 3446 | L117: 6272.172983 | M117: 1732 | N117: 1732 | O117: 1732 | P117: 0 | Q117: 0 | R117: 0 | S117: 0 | T117: 0 | U117: 0
A118: 116 | B118: 5 | C118: 1 | D118: 5 | E118: 4285.714286 | F118: 5000 | G118: 238.0952381 | H118: 0 | I118: 194.3634597 | J118: 9718.172983 | K118: 3446 | L118: 6272.172983 | M118: 1732 | N118: 1732 | O118: 1732 | P118: 0 | Q118: 0 | R118: 0 | S118: 0 | T118: 0 | U118: 0
A119: 117 | B119: 5 | C119: 1 | D119: 5 | E119: 4285.714286 | F119: 5000 | G119: 238.0952381 | H119: 0 | I119: 194.3634597 | J119: 9718.172983 | K119: 3446 | L119: 6272.172983 | M119: 1732 | N119: 1732 | O119: 1732 | P119: 0 | Q119: 0 | R119: 0 | S119: 0 | T119: 0 | U119: 0
A120: 118 | B120: 5 | C120: 1 | D120: 5 | E120: 4285.714286 | F120: 2500 | G120: 238.0952381 | H120: 0 | I120: 143.3430515 | J120: 7167.152575 | K120: 3446 | L120: 3721.152575 | M120: 1732 | N120: 1732 | O120: 1732 | P120: 0 | Q120: 0 | R120: 0 | S120: 0 | T120: 0 | U120: 0
A121: 119 | B121: 5 | C121: 1 | D121: 6 | E121: 4285.714286 | F121: 0 | G121: 238.0952381 | H121: 0 | I121: 92.32264334 | J121: 4616.132167 | K121: 3446 | L121: 1170.132167 | M121: 1732 | N121: 1732 | O121: 1146.145337 | P121: 0 | Q121: 0 | R121: 0 | S121: 0 | T121: 0 | U121: 0
A122: 120 | B122: 6 | C122: 1 | D122: 6 | E122: 4285.714286 | F122: 0 | G122: 238.0952381 | H122: 0 | I122: 92.32264334 | J122: 4616.132167 | K122: 3446 | L122: 1170.132167 | M122: 1732 | N122: 1732 | O122: 1146.145337 | P122: 0 | Q122: 0 | R122: 0 | S122: 0 | T122: 0 | U122: 0
A123: 121 | B123: 6 | C123: 1 | D123: 6 | E123: 4285.714286 | F123: 0 | G123: 238.0952381 | H123: 0 | I123: 92.32264334 | J123: 4616.132167 | K123: 3446 | L123: 1170.132167 | M123: 1732 | N123: 1732 | O123: 1146.145337 | P123: 0 | Q123: 0 | R123: 0 | S123: 0 | T123: 0 | U123: 0
A124: 122 | B124: 6 | C124: 1 | D124: 6 | E124: 4285.714286 | F124: 0 | G124: 238.0952381 | H124: 0 | I124: 92.32264334 | J124: 4616.132167 | K124: 3446 | L124: 1170.132167 | M124: 1732 | N124: 1732 | O124: 1146.145337 | P124: 0 | Q124: 0 | R124: 0 | S124: 0 | T124: 0 | U124: 0
A125: 123 | B125: 6 | C125: 1 | D125: 6 | E125: 4285.714286 | F125: 0 | G125: 238.0952381 | H125: 0 | I125: 92.32264334 | J125: 4616.132167 | K125: 3446 | L125: 1170.132167 | M125: 1732 | N125: 1732 | O125: 1146.145337 | P125: 0 | Q125: 0 | R125: 0 | S125: 0 | T125: 0 | U125: 0
A126: 124 | B126: 6 | C126: 1 | D126: 6 | E126: 4285.714286 | F126: 0 | G126: 238.0952381 | H126: 0 | I126: 92.32264334 | J126: 4616.132167 | K126: 3446 | L126: 1170.132167 | M126: 1732 | N126: 1732 | O126: 1146.145337 | P126: 0 | Q126: 0 | R126: 0 | S126: 0 | T126: 0 | U126: 0
A127: 125 | B127: 6 | C127: 1 | D127: 6 | E127: 4285.714286 | F127: 3000 | G127: 238.0952381 | H127: 0 | I127: 153.5471331 | J127: 7677.356657 | K127: 3446 | L127: 4231.356657 | M127: 1732 | N127: 1732 | O127: 1732 | P127: 0 | Q127: 0 | R127: 0 | S127: 0 | T127: 0 | U127: 0
A128: 126 | B128: 6 | C128: 1 | D128: 6 | E128: 4285.714286 | F128: 5000 | G128: 238.0952381 | H128: 0 | I128: 194.3634597 | J128: 9718.172983 | K128: 3446 | L128: 6272.172983 | M128: 1732 | N128: 1732 | O128: 1732 | P128: 0 | Q128: 0 | R128: 0 | S128: 0 | T128: 0 | U128: 0
A129: 127 | B129: 6 | C129: 1 | D129: 6 | E129: 4285.714286 | F129: 5000 | G129: 238.0952381 | H129: 1571.428571 | I129: 226.4334305 | J129: 11321.67153 | K129: 3446 | L129: 7875.671526 | M129: 1732 | N129: 1732 | O129: 1732 | P129: 0 | Q129: 0 | R129: 0 | S129: 0 | T129: 0 | U129: 0
A130: 128 | B130: 6 | C130: 1 | D130: 6 | E130: 4285.714286 | F130: 5000 | G130: 238.0952381 | H130: 1571.428571 | I130: 226.4334305 | J130: 11321.67153 | K130: 3446 | L130: 7875.671526 | M130: 1732 | N130: 1732 | O130: 1732 | P130: 0 | Q130: 0 | R130: 0 | S130: 0 | T130: 0 | U130: 0
A131: 129 | B131: 6 | C131: 1 | D131: 6 | E131: 4285.714286 | F131: 2000 | G131: 238.0952381 | H131: 1571.428571 | I131: 165.2089407 | J131: 8260.447036 | K131: 3446 | L131: 4814.447036 | M131: 1732 | N131: 1732 | O131: 1732 | P131: 0 | Q131: 0 | R131: 0 | S131: 0 | T131: 0 | U131: 0
A132: 130 | B132: 6 | C132: 1 | D132: 6 | E132: 4285.714286 | F132: 0 | G132: 238.0952381 | H132: 1571.428571 | I132: 124.3926142 | J132: 6219.630709 | K132: 3446 | L132: 2773.630709 | M132: 1732 | N132: 1732 | O132: 1732 | P132: 0 | Q132: 0 | R132: 0 | S132: 0 | T132: 0 | U132: 0
A133: 131 | B133: 6 | C133: 1 | D133: 6 | E133: 4285.714286 | F133: 0 | G133: 238.0952381 | H133: 1571.428571 | I133: 124.3926142 | J133: 6219.630709 | K133: 3446 | L133: 2773.630709 | M133: 1732 | N133: 1732 | O133: 1732 | P133: 0 | Q133: 0 | R133: 0 | S133: 0 | T133: 0 | U133: 0
A134: 132 | B134: 6 | C134: 1 | D134: 6 | E134: 4285.714286 | F134: 0 | G134: 238.0952381 | H134: 1571.428571 | I134: 124.3926142 | J134: 6219.630709 | K134: 3446 | L134: 2773.630709 | M134: 1732 | N134: 1732 | O134: 1732 | P134: 0 | Q134: 0 | R134: 0 | S134: 0 | T134: 0 | U134: 0
A135: 133 | B135: 6 | C135: 1 | D135: 6 | E135: 4285.714286 | F135: 0 | G135: 238.0952381 | H135: 1571.428571 | I135: 124.3926142 | J135: 6219.630709 | K135: 3446 | L135: 2773.630709 | M135: 1732 | N135: 1732 | O135: 1732 | P135: 0 | Q135: 0 | R135: 0 | S135: 0 | T135: 0 | U135: 0
A136: 134 | B136: 6 | C136: 1 | D136: 6 | E136: 4285.714286 | F136: 0 | G136: 238.0952381 | H136: 1571.428571 | I136: 124.3926142 | J136: 6219.630709 | K136: 3446 | L136: 2773.630709 | M136: 1732 | N136: 1732 | O136: 1732 | P136: 0 | Q136: 0 | R136: 0 | S136: 0 | T136: 0 | U136: 0
A137: 135 | B137: 6 | C137: 1 | D137: 6 | E137: 4285.714286 | F137: 0 | G137: 238.0952381 | H137: 1571.428571 | I137: 124.3926142 | J137: 6219.630709 | K137: 3446 | L137: 2773.630709 | M137: 1732 | N137: 1732 | O137: 1732 | P137: 0 | Q137: 0 | R137: 0 | S137: 0 | T137: 0 | U137: 0
A138: 136 | B138: 6 | C138: 1 | D138: 6 | E138: 4285.714286 | F138: 0 | G138: 238.0952381 | H138: 1571.428571 | I138: 124.3926142 | J138: 6219.630709 | K138: 3446 | L138: 2773.630709 | M138: 1732 | N138: 1732 | O138: 1732 | P138: 0 | Q138: 0 | R138: 0 | S138: 0 | T138: 0 | U138: 0
A139: 137 | B139: 6 | C139: 1 | D139: 6 | E139: 4285.714286 | F139: 0 | G139: 238.0952381 | H139: 0 | I139: 92.32264334 | J139: 4616.132167 | K139: 3446 | L139: 1170.132167 | M139: 1732 | N139: 1732 | O139: 1146.145337 | P139: 0 | Q139: 0 | R139: 0 | S139: 0 | T139: 0 | U139: 0
A140: 138 | B140: 6 | C140: 1 | D140: 6 | E140: 4285.714286 | F140: 2500 | G140: 238.0952381 | H140: 0 | I140: 143.3430515 | J140: 7167.152575 | K140: 3446 | L140: 3721.152575 | M140: 1732 | N140: 1732 | O140: 1732 | P140: 0 | Q140: 0 | R140: 0 | S140: 0 | T140: 0 | U140: 0
A141: 139 | B141: 6 | C141: 1 | D141: 6 | E141: 4285.714286 | F141: 5000 | G141: 238.0952381 | H141: 0 | I141: 194.3634597 | J141: 9718.172983 | K141: 3446 | L141: 6272.172983 | M141: 1732 | N141: 1732 | O141: 1732 | P141: 0 | Q141: 0 | R141: 0 | S141: 0 | T141: 0 | U141: 0
A142: 140 | B142: 6 | C142: 1 | D142: 6 | E142: 4285.714286 | F142: 5000 | G142: 238.0952381 | H142: 0 | I142: 194.3634597 | J142: 9718.172983 | K142: 3446 | L142: 6272.172983 | M142: 1732 | N142: 1732 | O142: 1732 | P142: 0 | Q142: 0 | R142: 0 | S142: 0 | T142: 0 | U142: 0
A143: 141 | B143: 6 | C143: 1 | D143: 6 | E143: 4285.714286 | F143: 5000 | G143: 238.0952381 | H143: 0 | I143: 194.3634597 | J143: 9718.172983 | K143: 3446 | L143: 6272.172983 | M143: 1732 | N143: 1732 | O143: 1732 | P143: 0 | Q143: 0 | R143: 0 | S143: 0 | T143: 0 | U143: 0
A144: 142 | B144: 6 | C144: 1 | D144: 6 | E144: 4285.714286 | F144: 2500 | G144: 238.0952381 | H144: 0 | I144: 143.3430515 | J144: 7167.152575 | K144: 3446 | L144: 3721.152575 | M144: 1732 | N144: 1732 | O144: 1732 | P144: 0 | Q144: 0 | R144: 0 | S144: 0 | T144: 0 | U144: 0
A145: 143 | B145: 6 | C145: 1 | D145: 7 | E145: 4285.714286 | F145: 0 | G145: 238.0952381 | H145: 0 | I145: 92.32264334 | J145: 4616.132167 | K145: 3446 | L145: 1170.132167 | M145: 1732 | N145: 1732 | O145: 1146.145337 | P145: 0 | Q145: 0 | R145: 0 | S145: 0 | T145: 0 | U145: 0
A146: 144 | B146: 7 | C146: 1 | D146: 7 | E146: 4285.714286 | F146: 0 | G146: 238.0952381 | H146: 0 | I146: 92.32264334 | J146: 4616.132167 | K146: 3446 | L146: 1170.132167 | M146: 1732 | N146: 1732 | O146: 1146.145337 | P146: 0 | Q146: 0 | R146: 0 | S146: 0 | T146: 0 | U146: 0
A147: 145 | B147: 7 | C147: 1 | D147: 7 | E147: 4285.714286 | F147: 0 | G147: 238.0952381 | H147: 0 | I147: 92.32264334 | J147: 4616.132167 | K147: 3446 | L147: 1170.132167 | M147: 1732 | N147: 1732 | O147: 1146.145337 | P147: 0 | Q147: 0 | R147: 0 | S147: 0 | T147: 0 | U147: 0
A148: 146 | B148: 7 | C148: 1 | D148: 7 | E148: 4285.714286 | F148: 0 | G148: 238.0952381 | H148: 0 | I148: 92.32264334 | J148: 4616.132167 | K148: 3446 | L148: 1170.132167 | M148: 1732 | N148: 1732 | O148: 1146.145337 | P148: 0 | Q148: 0 | R148: 0 | S148: 0 | T148: 0 | U148: 0
A149: 147 | B149: 7 | C149: 1 | D149: 7 | E149: 4285.714286 | F149: 0 | G149: 238.0952381 | H149: 0 | I149: 92.32264334 | J149: 4616.132167 | K149: 3446 | L149: 1170.132167 | M149: 1732 | N149: 1732 | O149: 1146.145337 | P149: 0 | Q149: 0 | R149: 0 | S149: 0 | T149: 0 | U149: 0
A150: 148 | B150: 7 | C150: 1 | D150: 7 | E150: 4285.714286 | F150: 0 | G150: 238.0952381 | H150: 0 | I150: 92.32264334 | J150: 4616.132167 | K150: 3446 | L150: 1170.132167 | M150: 1732 | N150: 1732 | O150: 1146.145337 | P150: 0 | Q150: 0 | R150: 0 | S150: 0 | T150: 0 | U150: 0
A151: 149 | B151: 7 | C151: 1 | D151: 7 | E151: 4285.714286 | F151: 3000 | G151: 238.0952381 | H151: 0 | I151: 153.5471331 | J151: 7677.356657 | K151: 3446 | L151: 4231.356657 | M151: 1732 | N151: 1732 | O151: 1732 | P151: 0 | Q151: 0 | R151: 0 | S151: 0 | T151: 0 | U151: 0
A152: 150 | B152: 7 | C152: 1 | D152: 7 | E152: 4285.714286 | F152: 5000 | G152: 238.0952381 | H152: 0 | I152: 194.3634597 | J152: 9718.172983 | K152: 3446 | L152: 6272.172983 | M152: 1732 | N152: 1732 | O152: 1732 | P152: 0 | Q152: 0 | R152: 0 | S152: 0 | T152: 0 | U152: 0
A153: 151 | B153: 7 | C153: 1 | D153: 7 | E153: 4285.714286 | F153: 5000 | G153: 238.0952381 | H153: 1571.428571 | I153: 226.4334305 | J153: 11321.67153 | K153: 3446 | L153: 7875.671526 | M153: 1732 | N153: 1732 | O153: 1732 | P153: 0 | Q153: 0 | R153: 0 | S153: 0 | T153: 0 | U153: 0
A154: 152 | B154: 7 | C154: 1 | D154: 7 | E154: 4285.714286 | F154: 5000 | G154: 238.0952381 | H154: 1571.428571 | I154: 226.4334305 | J154: 11321.67153 | K154: 3446 | L154: 7875.671526 | M154: 1732 | N154: 1732 | O154: 1732 | P154: 0 | Q154: 0 | R154: 0 | S154: 0 | T154: 0 | U154: 0
A155: 153 | B155: 7 | C155: 1 | D155: 7 | E155: 4285.714286 | F155: 2000 | G155: 238.0952381 | H155: 1571.428571 | I155: 165.2089407 | J155: 8260.447036 | K155: 3446 | L155: 4814.447036 | M155: 1732 | N155: 1732 | O155: 1732 | P155: 0 | Q155: 0 | R155: 0 | S155: 0 | T155: 0 | U155: 0
A156: 154 | B156: 7 | C156: 1 | D156: 7 | E156: 4285.714286 | F156: 0 | G156: 238.0952381 | H156: 1571.428571 | I156: 124.3926142 | J156: 6219.630709 | K156: 3446 | L156: 2773.630709 | M156: 1732 | N156: 1732 | O156: 1732 | P156: 0 | Q156: 0 | R156: 0 | S156: 0 | T156: 0 | U156: 0
A157: 155 | B157: 7 | C157: 1 | D157: 7 | E157: 4285.714286 | F157: 0 | G157: 238.0952381 | H157: 1571.428571 | I157: 124.3926142 | J157: 6219.630709 | K157: 3446 | L157: 2773.630709 | M157: 1732 | N157: 1732 | O157: 1732 | P157: 0 | Q157: 0 | R157: 0 | S157: 0 | T157: 0 | U157: 0
A158: 156 | B158: 7 | C158: 1 | D158: 7 | E158: 4285.714286 | F158: 0 | G158: 238.0952381 | H158: 1571.428571 | I158: 124.3926142 | J158: 6219.630709 | K158: 3446 | L158: 2773.630709 | M158: 1732 | N158: 1732 | O158: 1732 | P158: 0 | Q158: 0 | R158: 0 | S158: 0 | T158: 0 | U158: 0
A159: 157 | B159: 7 | C159: 1 | D159: 7 | E159: 4285.714286 | F159: 0 | G159: 238.0952381 | H159: 1571.428571 | I159: 124.3926142 | J159: 6219.630709 | K159: 3446 | L159: 2773.630709 | M159: 1732 | N159: 1732 | O159: 1732 | P159: 0 | Q159: 0 | R159: 0 | S159: 0 | T159: 0 | U159: 0
A160: 158 | B160: 7 | C160: 1 | D160: 7 | E160: 4285.714286 | F160: 0 | G160: 238.0952381 | H160: 1571.428571 | I160: 124.3926142 | J160: 6219.630709 | K160: 3446 | L160: 2773.630709 | M160: 1732 | N160: 1732 | O160: 1732 | P160: 0 | Q160: 0 | R160: 0 | S160: 0 | T160: 0 | U160: 0
A161: 159 | B161: 7 | C161: 1 | D161: 7 | E161: 4285.714286 | F161: 0 | G161: 238.0952381 | H161: 1571.428571 | I161: 124.3926142 | J161: 6219.630709 | K161: 3446 | L161: 2773.630709 | M161: 1732 | N161: 1732 | O161: 1732 | P161: 0 | Q161: 0 | R161: 0 | S161: 0 | T161: 0 | U161: 0
A162: 160 | B162: 7 | C162: 1 | D162: 7 | E162: 4285.714286 | F162: 0 | G162: 238.0952381 | H162: 1571.428571 | I162: 124.3926142 | J162: 6219.630709 | K162: 3446 | L162: 2773.630709 | M162: 1732 | N162: 1732 | O162: 1732 | P162: 0 | Q162: 0 | R162: 0 | S162: 0 | T162: 0 | U162: 0
A163: 161 | B163: 7 | C163: 1 | D163: 7 | E163: 4285.714286 | F163: 0 | G163: 238.0952381 | H163: 0 | I163: 92.32264334 | J163: 4616.132167 | K163: 3446 | L163: 1170.132167 | M163: 1732 | N163: 1732 | O163: 1146.145337 | P163: 0 | Q163: 0 | R163: 0 | S163: 0 | T163: 0 | U163: 0
A164: 162 | B164: 7 | C164: 1 | D164: 7 | E164: 4285.714286 | F164: 2500 | G164: 238.0952381 | H164: 0 | I164: 143.3430515 | J164: 7167.152575 | K164: 3446 | L164: 3721.152575 | M164: 1732 | N164: 1732 | O164: 1732 | P164: 0 | Q164: 0 | R164: 0 | S164: 0 | T164: 0 | U164: 0
A165: 163 | B165: 7 | C165: 1 | D165: 7 | E165: 4285.714286 | F165: 5000 | G165: 238.0952381 | H165: 0 | I165: 194.3634597 | J165: 9718.172983 | K165: 3446 | L165: 6272.172983 | M165: 1732 | N165: 1732 | O165: 1732 | P165: 0 | Q165: 0 | R165: 0 | S165: 0 | T165: 0 | U165: 0
A166: 164 | B166: 7 | C166: 1 | D166: 7 | E166: 4285.714286 | F166: 5000 | G166: 238.0952381 | H166: 0 | I166: 194.3634597 | J166: 9718.172983 | K166: 3446 | L166: 6272.172983 | M166: 1732 | N166: 1732 | O166: 1732 | P166: 0 | Q166: 0 | R166: 0 | S166: 0 | T166: 0 | U166: 0
A167: 165 | B167: 7 | C167: 1 | D167: 7 | E167: 4285.714286 | F167: 5000 | G167: 238.0952381 | H167: 0 | I167: 194.3634597 | J167: 9718.172983 | K167: 3446 | L167: 6272.172983 | M167: 1732 | N167: 1732 | O167: 1732 | P167: 0 | Q167: 0 | R167: 0 | S167: 0 | T167: 0 | U167: 0
A168: 166 | B168: 7 | C168: 1 | D168: 7 | E168: 4285.714286 | F168: 2500 | G168: 238.0952381 | H168: 0 | I168: 143.3430515 | J168: 7167.152575 | K168: 3446 | L168: 3721.152575 | M168: 1732 | N168: 1732 | O168: 1732 | P168: 0 | Q168: 0 | R168: 0 | S168: 0 | T168: 0 | U168: 0
A169: 167 | B169: 7 | C169: 1 | D169: 8 | E169: 4285.714286 | F169: 0 | G169: 238.0952381 | H169: 0 | I169: 92.32264334 | J169: 4616.132167 | K169: 3446 | L169: 1170.132167 | M169: 1732 | N169: 1732 | O169: 1146.145337 | P169: 0 | Q169: 0 | R169: 0 | S169: 0 | T169: 0 | U169: 0
A170: 168 | B170: 8 | C170: 1 | D170: 8 | E170: 4285.714286 | F170: 0 | G170: 238.0952381 | H170: 0 | I170: 92.32264334 | J170: 4616.132167 | K170: 3446 | L170: 1170.132167 | M170: 1732 | N170: 1732 | O170: 1146.145337 | P170: 0 | Q170: 0 | R170: 0 | S170: 0 | T170: 0 | U170: 0
A171: 169 | B171: 8 | C171: 1 | D171: 8 | E171: 4285.714286 | F171: 0 | G171: 238.0952381 | H171: 0 | I171: 92.32264334 | J171: 4616.132167 | K171: 3446 | L171: 1170.132167 | M171: 1732 | N171: 1732 | O171: 1146.145337 | P171: 0 | Q171: 0 | R171: 0 | S171: 0 | T171: 0 | U171: 0
A172: 170 | B172: 8 | C172: 1 | D172: 8 | E172: 4285.714286 | F172: 0 | G172: 238.0952381 | H172: 0 | I172: 92.32264334 | J172: 4616.132167 | K172: 3446 | L172: 1170.132167 | M172: 1732 | N172: 1732 | O172: 1146.145337 | P172: 0 | Q172: 0 | R172: 0 | S172: 0 | T172: 0 | U172: 0
A173: 171 | B173: 8 | C173: 1 | D173: 8 | E173: 4285.714286 | F173: 0 | G173: 238.0952381 | H173: 0 | I173: 92.32264334 | J173: 4616.132167 | K173: 3446 | L173: 1170.132167 | M173: 1732 | N173: 1732 | O173: 1146.145337 | P173: 0 | Q173: 0 | R173: 0 | S173: 0 | T173: 0 | U173: 0
A174: 172 | B174: 8 | C174: 1 | D174: 8 | E174: 4285.714286 | F174: 0 | G174: 238.0952381 | H174: 0 | I174: 92.32264334 | J174: 4616.132167 | K174: 3446 | L174: 1170.132167 | M174: 1732 | N174: 1732 | O174: 1146.145337 | P174: 0 | Q174: 0 | R174: 0 | S174: 0 | T174: 0 | U174: 0
A175: 173 | B175: 8 | C175: 1 | D175: 8 | E175: 4285.714286 | F175: 3000 | G175: 238.0952381 | H175: 0 | I175: 153.5471331 | J175: 7677.356657 | K175: 3446 | L175: 4231.356657 | M175: 1732 | N175: 1732 | O175: 1732 | P175: 0 | Q175: 0 | R175: 0 | S175: 0 | T175: 0 | U175: 0
A176: 174 | B176: 8 | C176: 1 | D176: 8 | E176: 4285.714286 | F176: 5000 | G176: 238.0952381 | H176: 0 | I176: 194.3634597 | J176: 9718.172983 | K176: 3446 | L176: 6272.172983 | M176: 1732 | N176: 1732 | O176: 1732 | P176: 0 | Q176: 0 | R176: 0 | S176: 0 | T176: 0 | U176: 0
A177: 175 | B177: 8 | C177: 1 | D177: 8 | E177: 4285.714286 | F177: 5000 | G177: 238.0952381 | H177: 1571.428571 | I177: 226.4334305 | J177: 11321.67153 | K177: 3446 | L177: 7875.671526 | M177: 1732 | N177: 1732 | O177: 1732 | P177: 0 | Q177: 0 | R177: 0 | S177: 0 | T177: 0 | U177: 0
A178: 176 | B178: 8 | C178: 1 | D178: 8 | E178: 4285.714286 | F178: 5000 | G178: 238.0952381 | H178: 1571.428571 | I178: 226.4334305 | J178: 11321.67153 | K178: 3446 | L178: 7875.671526 | M178: 1732 | N178: 1732 | O178: 1732 | P178: 0 | Q178: 0 | R178: 0 | S178: 0 | T178: 0 | U178: 0
A179: 177 | B179: 8 | C179: 1 | D179: 8 | E179: 4285.714286 | F179: 2000 | G179: 238.0952381 | H179: 1571.428571 | I179: 165.2089407 | J179: 8260.447036 | K179: 3446 | L179: 4814.447036 | M179: 1732 | N179: 1732 | O179: 1732 | P179: 0 | Q179: 0 | R179: 0 | S179: 0 | T179: 0 | U179: 0
A180: 178 | B180: 8 | C180: 1 | D180: 8 | E180: 4285.714286 | F180: 0 | G180: 238.0952381 | H180: 1571.428571 | I180: 124.3926142 | J180: 6219.630709 | K180: 3446 | L180: 2773.630709 | M180: 1732 | N180: 1732 | O180: 1732 | P180: 0 | Q180: 0 | R180: 0 | S180: 0 | T180: 0 | U180: 0
A181: 179 | B181: 8 | C181: 1 | D181: 8 | E181: 4285.714286 | F181: 0 | G181: 238.0952381 | H181: 1571.428571 | I181: 124.3926142 | J181: 6219.630709 | K181: 3446 | L181: 2773.630709 | M181: 1732 | N181: 1732 | O181: 1732 | P181: 0 | Q181: 0 | R181: 0 | S181: 0 | T181: 0 | U181: 0
A182: 180 | B182: 8 | C182: 1 | D182: 8 | E182: 4285.714286 | F182: 0 | G182: 238.0952381 | H182: 1571.428571 | I182: 124.3926142 | J182: 6219.630709 | K182: 3446 | L182: 2773.630709 | M182: 1732 | N182: 1732 | O182: 1732 | P182: 0 | Q182: 0 | R182: 0 | S182: 0 | T182: 0 | U182: 0
A183: 181 | B183: 8 | C183: 1 | D183: 8 | E183: 4285.714286 | F183: 0 | G183: 238.0952381 | H183: 1571.428571 | I183: 124.3926142 | J183: 6219.630709 | K183: 3446 | L183: 2773.630709 | M183: 1732 | N183: 1732 | O183: 1732 | P183: 0 | Q183: 0 | R183: 0 | S183: 0 | T183: 0 | U183: 0
A184: 182 | B184: 8 | C184: 1 | D184: 8 | E184: 4285.714286 | F184: 0 | G184: 238.0952381 | H184: 1571.428571 | I184: 124.3926142 | J184: 6219.630709 | K184: 3446 | L184: 2773.630709 | M184: 1732 | N184: 1732 | O184: 1732 | P184: 0 | Q184: 0 | R184: 0 | S184: 0 | T184: 0 | U184: 0
A185: 183 | B185: 8 | C185: 1 | D185: 8 | E185: 4285.714286 | F185: 0 | G185: 238.0952381 | H185: 1571.428571 | I185: 124.3926142 | J185: 6219.630709 | K185: 3446 | L185: 2773.630709 | M185: 1732 | N185: 1732 | O185: 1732 | P185: 0 | Q185: 0 | R185: 0 | S185: 0 | T185: 0 | U185: 0
A186: 184 | B186: 8 | C186: 1 | D186: 8 | E186: 4285.714286 | F186: 0 | G186: 238.0952381 | H186: 1571.428571 | I186: 124.3926142 | J186: 6219.630709 | K186: 3446 | L186: 2773.630709 | M186: 1732 | N186: 1732 | O186: 1732 | P186: 0 | Q186: 0 | R186: 0 | S186: 0 | T186: 0 | U186: 0
A187: 185 | B187: 8 | C187: 1 | D187: 8 | E187: 4285.714286 | F187: 0 | G187: 238.0952381 | H187: 0 | I187: 92.32264334 | J187: 4616.132167 | K187: 3446 | L187: 1170.132167 | M187: 1732 | N187: 1732 | O187: 1146.145337 | P187: 0 | Q187: 0 | R187: 0 | S187: 0 | T187: 0 | U187: 0
A188: 186 | B188: 8 | C188: 1 | D188: 8 | E188: 4285.714286 | F188: 2500 | G188: 238.0952381 | H188: 0 | I188: 143.3430515 | J188: 7167.152575 | K188: 3446 | L188: 3721.152575 | M188: 1732 | N188: 1732 | O188: 1732 | P188: 0 | Q188: 0 | R188: 0 | S188: 0 | T188: 0 | U188: 0
A189: 187 | B189: 8 | C189: 1 | D189: 8 | E189: 4285.714286 | F189: 5000 | G189: 238.0952381 | H189: 0 | I189: 194.3634597 | J189: 9718.172983 | K189: 3446 | L189: 6272.172983 | M189: 1732 | N189: 1732 | O189: 1732 | P189: 0 | Q189: 0 | R189: 0 | S189: 0 | T189: 0 | U189: 0
A190: 188 | B190: 8 | C190: 1 | D190: 8 | E190: 4285.714286 | F190: 5000 | G190: 238.0952381 | H190: 0 | I190: 194.3634597 | J190: 9718.172983 | K190: 3446 | L190: 6272.172983 | M190: 1732 | N190: 1732 | O190: 1732 | P190: 0 | Q190: 0 | R190: 0 | S190: 0 | T190: 0 | U190: 0
A191: 189 | B191: 8 | C191: 1 | D191: 8 | E191: 4285.714286 | F191: 5000 | G191: 238.0952381 | H191: 0 | I191: 194.3634597 | J191: 9718.172983 | K191: 3446 | L191: 6272.172983 | M191: 1732 | N191: 1732 | O191: 1732 | P191: 0 | Q191: 0 | R191: 0 | S191: 0 | T191: 0 | U191: 0
A192: 190 | B192: 8 | C192: 1 | D192: 8 | E192: 4285.714286 | F192: 2500 | G192: 238.0952381 | H192: 0 | I192: 143.3430515 | J192: 7167.152575 | K192: 3446 | L192: 3721.152575 | M192: 1732 | N192: 1732 | O192: 1732 | P192: 0 | Q192: 0 | R192: 0 | S192: 0 | T192: 0 | U192: 0
A193: 191 | B193: 8 | C193: 1 | D193: 9 | E193: 4285.714286 | F193: 0 | G193: 238.0952381 | H193: 0 | I193: 92.32264334 | J193: 4616.132167 | K193: 3446 | L193: 1170.132167 | M193: 1732 | N193: 1732 | O193: 1146.145337 | P193: 0 | Q193: 0 | R193: 0 | S193: 0 | T193: 0 | U193: 0
A194: 192 | B194: 9 | C194: 1 | D194: 9 | E194: 4285.714286 | F194: 0 | G194: 238.0952381 | H194: 0 | I194: 92.32264334 | J194: 4616.132167 | K194: 3446 | L194: 1170.132167 | M194: 1732 | N194: 1732 | O194: 1146.145337 | P194: 0 | Q194: 0 | R194: 0 | S194: 0 | T194: 0 | U194: 0
A195: 193 | B195: 9 | C195: 1 | D195: 9 | E195: 4285.714286 | F195: 0 | G195: 238.0952381 | H195: 0 | I195: 92.32264334 | J195: 4616.132167 | K195: 3446 | L195: 1170.132167 | M195: 1732 | N195: 1732 | O195: 1146.145337 | P195: 0 | Q195: 0 | R195: 0 | S195: 0 | T195: 0 | U195: 0
A196: 194 | B196: 9 | C196: 1 | D196: 9 | E196: 4285.714286 | F196: 0 | G196: 238.0952381 | H196: 0 | I196: 92.32264334 | J196: 4616.132167 | K196: 3446 | L196: 1170.132167 | M196: 1732 | N196: 1732 | O196: 1146.145337 | P196: 0 | Q196: 0 | R196: 0 | S196: 0 | T196: 0 | U196: 0
A197: 195 | B197: 9 | C197: 1 | D197: 9 | E197: 4285.714286 | F197: 0 | G197: 238.0952381 | H197: 0 | I197: 92.32264334 | J197: 4616.132167 | K197: 3446 | L197: 1170.132167 | M197: 1732 | N197: 1732 | O197: 1146.145337 | P197: 0 | Q197: 0 | R197: 0 | S197: 0 | T197: 0 | U197: 0
A198: 196 | B198: 9 | C198: 1 | D198: 9 | E198: 4285.714286 | F198: 0 | G198: 238.0952381 | H198: 0 | I198: 92.32264334 | J198: 4616.132167 | K198: 3446 | L198: 1170.132167 | M198: 1732 | N198: 1732 | O198: 1146.145337 | P198: 0 | Q198: 0 | R198: 0 | S198: 0 | T198: 0 | U198: 0
A199: 197 | B199: 9 | C199: 1 | D199: 9 | E199: 4285.714286 | F199: 3000 | G199: 238.0952381 | H199: 0 | I199: 153.5471331 | J199: 7677.356657 | K199: 3446 | L199: 4231.356657 | M199: 1732 | N199: 1732 | O199: 1732 | P199: 0 | Q199: 0 | R199: 0 | S199: 0 | T199: 0 | U199: 0
A200: 198 | B200: 9 | C200: 1 | D200: 9 | E200: 4285.714286 | F200: 5000 | G200: 238.0952381 | H200: 0 | I200: 194.3634597 | J200: 9718.172983 | K200: 3446 | L200: 6272.172983 | M200: 1732 | N200: 1732 | O200: 1732 | P200: 0 | Q200: 0 | R200: 0 | S200: 0 | T200: 0 | U200: 0
... 4300 more rows

Sheet Datos para curva Frec
A1: HORA | B1: POT TERM | C1: HORA | D1: dia | E1: MES | F1: DIA DEL MES | G1: Calefacción | H1: ACS | I1: Agua fría | J1: Proceso | K1: Pérdidas red | L1: Calor total | M1: Calor Cog | N1: Apoyo | O1: E.Eléctrica M1 | P1: E. Eléc. M2 | Q1: E. Eléctrica M3 | R1: Consumo gas caldera | S1: Consumo gas motores | T1: Consumo gas total
A2: 1 | B2: =L2 -> 13520.40816 | C2: 751 | D2: 32 | E2: 2 | F2: 1 | G2: 4047.619048 | H2: 6964.285714 | I2: 238.0952381 | J2: 2000 | K2: 270.4081633 | L2: 13520.40816 | M2: 3446 | N2: 10074.40816 | O2: 1732 | P2: 1732 | Q2: 1732 | R2: 0 | S2: 0 | T2: 0 | U2: 0
A3: 2 | B3: =L3 -> 13520.40816 | C3: 752 | D3: 32 | E3: 2 | F3: 1 | G3: 4047.619048 | H3: 6964.285714 | I3: 238.0952381 | J3: 2000 | K3: 270.4081633 | L3: 13520.40816 | M3: 3446 | N3: 10074.40816 | O3: 1732 | P3: 1732 | Q3: 1732 | R3: 0 | S3: 0 | T3: 0 | U3: 0
A4: 3 | B4: 13520.40816 | C4: 775 | D4: 33 | E4: 2 | F4: 2 | G4: 4047.619048 | H4: 6964.285714 | I4: 238.0952381 | J4: 2000 | K4: 270.4081633 | L4: 13520.40816 | M4: 3446 | N4: 10074.40816 | O4: 1732 | P4: 1732 | Q4: 1732 | R4: 0 | S4: 0 | T4: 0 | U4: 0
A5: 4 | B5: 13520.40816 | C5: 776 | D5: 33 | E5: 2 | F5: 2 | G5: 4047.619048 | H5: 6964.285714 | I5: 238.0952381 | J5: 2000 | K5: 270.4081633 | L5: 13520.40816 | M5: 3446 | N5: 10074.40816 | O5: 1732 | P5: 1732 | Q5: 1732 | R5: 0 | S5: 0 | T5: 0 | U5: 0
A6: 5 | B6: 13520.40816 | C6: 799 | D6: 34 | E6: 2 | F6: 3 | G6: 4047.619048 | H6: 6964.285714 | I6: 238.0952381 | J6: 2000 | K6: 270.4081633 | L6: 13520.40816 | M6: 3446 | N6: 10074.40816 | O6: 1732 | P6: 1732 | Q6: 1732 | R6: 0 | S6: 0 | T6: 0 | U6: 0
A7: 6 | B7: 13520.40816 | C7: 800 | D7: 34 | E7: 2 | F7: 3 | G7: 4047.619048 | H7: 6964.285714 | I7: 238.0952381 | J7: 2000 | K7: 270.4081633 | L7: 13520.40816 | M7: 3446 | N7: 10074.40816 | O7: 1732 | P7: 1732 | Q7: 1732 | R7: 0 | S7: 0 | T7: 0 | U7: 0
A8: 7 | B8: 13520.40816 | C8: 823 | D8: 35 | E8: 2 | F8: 4 | G8: 4047.619048 | H8: 6964.285714 | I8: 238.0952381 | J8: 2000 | K8: 270.4081633 | L8: 13520.40816 | M8: 3446 | N8: 10074.40816 | O8: 1732 | P8: 1732 | Q8: 1732 | R8: 0 | S8: 0 | T8: 0 | U8: 0
A9: 8 | B9: 13520.40816 | C9: 824 | D9: 35 | E9: 2 | F9: 4 | G9: 4047.619048 | H9: 6964.285714 | I9: 238.0952381 | J9: 2000 | K9: 270.4081633 | L9: 13520.40816 | M9: 3446 | N9: 10074.40816 | O9: 1732 | P9: 1732 | Q9: 1732 | R9: 0 | S9: 0 | T9: 0 | U9: 0
A10: 9 | B10: 13520.40816 | C10: 847 | D10: 36 | E10: 2 | F10: 5 | G10: 4047.619048 | H10: 6964.285714 | I10: 238.0952381 | J10: 2000 | K10: 270.4081633 | L10: 13520.40816 | M10: 3446 | N10: 10074.40816 | O10: 1732 | P10: 1732 | Q10: 1732 | R10: 0 | S10: 0 | T10: 0 | U10: 0
A11: 10 | B11: 13520.40816 | C11: 848 | D11: 36 | E11: 2 | F11: 5 | G11: 4047.619048 | H11: 6964.285714 | I11: 238.0952381 | J11: 2000 | K11: 270.4081633 | L11: 13520.40816 | M11: 3446 | N11: 10074.40816 | O11: 1732 | P11: 1732 | Q11: 1732 | R11: 0 | S11: 0 | T11: 0 | U11: 0
A12: 11 | B12: 13520.40816 | C12: 871 | D12: 37 | E12: 2 | F12: 6 | G12: 4047.619048 | H12: 6964.285714 | I12: 238.0952381 | J12: 2000 | K12: 270.4081633 | L12: 13520.40816 | M12: 3446 | N12: 10074.40816 | O12: 1732 | P12: 1732 | Q12: 1732 | R12: 0 | S12: 0 | T12: 0 | U12: 0
A13: 12 | B13: 13520.40816 | C13: 872 | D13: 37 | E13: 2 | F13: 6 | G13: 4047.619048 | H13: 6964.285714 | I13: 238.0952381 | J13: 2000 | K13: 270.4081633 | L13: 13520.40816 | M13: 3446 | N13: 10074.40816 | O13: 1732 | P13: 1732 | Q13: 1732 | R13: 0 | S13: 0 | T13: 0 | U13: 0
A14: 13 | B14: 13520.40816 | C14: 895 | D14: 38 | E14: 2 | F14: 7 | G14: 4047.619048 | H14: 6964.285714 | I14: 238.0952381 | J14: 2000 | K14: 270.4081633 | L14: 13520.40816 | M14: 3446 | N14: 10074.40816 | O14: 1732 | P14: 1732 | Q14: 1732 | R14: 0 | S14: 0 | T14: 0 | U14: 0
A15: 14 | B15: 13520.40816 | C15: 896 | D15: 38 | E15: 2 | F15: 7 | G15: 4047.619048 | H15: 6964.285714 | I15: 238.0952381 | J15: 2000 | K15: 270.4081633 | L15: 13520.40816 | M15: 3446 | N15: 10074.40816 | O15: 1732 | P15: 1732 | Q15: 1732 | R15: 0 | S15: 0 | T15: 0 | U15: 0
A16: 15 | B16: 13520.40816 | C16: 919 | D16: 39 | E16: 2 | F16: 8 | G16: 4047.619048 | H16: 6964.285714 | I16: 238.0952381 | J16: 2000 | K16: 270.4081633 | L16: 13520.40816 | M16: 3446 | N16: 10074.40816 | O16: 1732 | P16: 1732 | Q16: 1732 | R16: 0 | S16: 0 | T16: 0 | U16: 0
A17: 16 | B17: 13520.40816 | C17: 920 | D17: 39 | E17: 2 | F17: 8 | G17: 4047.619048 | H17: 6964.285714 | I17: 238.0952381 | J17: 2000 | K17: 270.4081633 | L17: 13520.40816 | M17: 3446 | N17: 10074.40816 | O17: 1732 | P17: 1732 | Q17: 1732 | R17: 0 | S17: 0 | T17: 0 | U17: 0
A18: 17 | B18: 13520.40816 | C18: 943 | D18: 40 | E18: 2 | F18: 9 | G18: 4047.619048 | H18: 6964.285714 | I18: 238.0952381 | J18: 2000 | K18: 270.4081633 | L18: 13520.40816 | M18: 3446 | N18: 10074.40816 | O18: 1732 | P18: 1732 | Q18: 1732 | R18: 0 | S18: 0 | T18: 0 | U18: 0
A19: 18 | B19: 13520.40816 | C19: 944 | D19: 40 | E19: 2 | F19: 9 | G19: 4047.619048 | H19: 6964.285714 | I19: 238.0952381 | J19: 2000 | K19: 270.4081633 | L19: 13520.40816 | M19: 3446 | N19: 10074.40816 | O19: 1732 | P19: 1732 | Q19: 1732 | R19: 0 | S19: 0 | T19: 0 | U19: 0
A20: 19 | B20: 13520.40816 | C20: 967 | D20: 41 | E20: 2 | F20: 10 | G20: 4047.619048 | H20: 6964.285714 | I20: 238.0952381 | J20: 2000 | K20: 270.4081633 | L20: 13520.40816 | M20: 3446 | N20: 10074.40816 | O20: 1732 | P20: 1732 | Q20: 1732 | R20: 0 | S20: 0 | T20: 0 | U20: 0
A21: 20 | B21: 13520.40816 | C21: 968 | D21: 41 | E21: 2 | F21: 10 | G21: 4047.619048 | H21: 6964.285714 | I21: 238.0952381 | J21: 2000 | K21: 270.4081633 | L21: 13520.40816 | M21: 3446 | N21: 10074.40816 | O21: 1732 | P21: 1732 | Q21: 1732 | R21: 0 | S21: 0 | T21: 0 | U21: 0
A22: 21 | B22: 13520.40816 | C22: 991 | D22: 42 | E22: 2 | F22: 11 | G22: 4047.619048 | H22: 6964.285714 | I22: 238.0952381 | J22: 2000 | K22: 270.4081633 | L22: 13520.40816 | M22: 3446 | N22: 10074.40816 | O22: 1732 | P22: 1732 | Q22: 1732 | R22: 0 | S22: 0 | T22: 0 | U22: 0
A23: 22 | B23: 13520.40816 | C23: 992 | D23: 42 | E23: 2 | F23: 11 | G23: 4047.619048 | H23: 6964.285714 | I23: 238.0952381 | J23: 2000 | K23: 270.4081633 | L23: 13520.40816 | M23: 3446 | N23: 10074.40816 | O23: 1732 | P23: 1732 | Q23: 1732 | R23: 0 | S23: 0 | T23: 0 | U23: 0
A24: 23 | B24: 13520.40816 | C24: 1015 | D24: 43 | E24: 2 | F24: 12 | G24: 4047.619048 | H24: 6964.285714 | I24: 238.0952381 | J24: 2000 | K24: 270.4081633 | L24: 13520.40816 | M24: 3446 | N24: 10074.40816 | O24: 1732 | P24: 1732 | Q24: 1732 | R24: 0 | S24: 0 | T24: 0 | U24: 0
A25: 24 | B25: 13520.40816 | C25: 1016 | D25: 43 | E25: 2 | F25: 12 | G25: 4047.619048 | H25: 6964.285714 | I25: 238.0952381 | J25: 2000 | K25: 270.4081633 | L25: 13520.40816 | M25: 3446 | N25: 10074.40816 | O25: 1732 | P25: 1732 | Q25: 1732 | R25: 0 | S25: 0 | T25: 0 | U25: 0
A26: 25 | B26: 13520.40816 | C26: 1039 | D26: 44 | E26: 2 | F26: 13 | G26: 4047.619048 | H26: 6964.285714 | I26: 238.0952381 | J26: 2000 | K26: 270.4081633 | L26: 13520.40816 | M26: 3446 | N26: 10074.40816 | O26: 1732 | P26: 1732 | Q26: 1732 | R26: 0 | S26: 0 | T26: 0 | U26: 0
A27: 26 | B27: 13520.40816 | C27: 1040 | D27: 44 | E27: 2 | F27: 13 | G27: 4047.619048 | H27: 6964.285714 | I27: 238.0952381 | J27: 2000 | K27: 270.4081633 | L27: 13520.40816 | M27: 3446 | N27: 10074.40816 | O27: 1732 | P27: 1732 | Q27: 1732 | R27: 0 | S27: 0 | T27: 0 | U27: 0
A28: 27 | B28: 13520.40816 | C28: 1063 | D28: 45 | E28: 2 | F28: 14 | G28: 4047.619048 | H28: 6964.285714 | I28: 238.0952381 | J28: 2000 | K28: 270.4081633 | L28: 13520.40816 | M28: 3446 | N28: 10074.40816 | O28: 1732 | P28: 1732 | Q28: 1732 | R28: 0 | S28: 0 | T28: 0 | U28: 0
A29: 28 | B29: 13520.40816 | C29: 1064 | D29: 45 | E29: 2 | F29: 14 | G29: 4047.619048 | H29: 6964.285714 | I29: 238.0952381 | J29: 2000 | K29: 270.4081633 | L29: 13520.40816 | M29: 3446 | N29: 10074.40816 | O29: 1732 | P29: 1732 | Q29: 1732 | R29: 0 | S29: 0 | T29: 0 | U29: 0
A30: 29 | B30: 13520.40816 | C30: 1087 | D30: 46 | E30: 2 | F30: 15 | G30: 4047.619048 | H30: 6964.285714 | I30: 238.0952381 | J30: 2000 | K30: 270.4081633 | L30: 13520.40816 | M30: 3446 | N30: 10074.40816 | O30: 1732 | P30: 1732 | Q30: 1732 | R30: 0 | S30: 0 | T30: 0 | U30: 0
A31: 30 | B31: 13520.40816 | C31: 1088 | D31: 46 | E31: 2 | F31: 15 | G31: 4047.619048 | H31: 6964.285714 | I31: 238.0952381 | J31: 2000 | K31: 270.4081633 | L31: 13520.40816 | M31: 3446 | N31: 10074.40816 | O31: 1732 | P31: 1732 | Q31: 1732 | R31: 0 | S31: 0 | T31: 0 | U31: 0
A32: 31 | B32: 13520.40816 | C32: 1111 | D32: 47 | E32: 2 | F32: 16 | G32: 4047.619048 | H32: 6964.285714 | I32: 238.0952381 | J32: 2000 | K32: 270.4081633 | L32: 13520.40816 | M32: 3446 | N32: 10074.40816 | O32: 1732 | P32: 1732 | Q32: 1732 | R32: 0 | S32: 0 | T32: 0 | U32: 0
A33: 32 | B33: 13520.40816 | C33: 1112 | D33: 47 | E33: 2 | F33: 16 | G33: 4047.619048 | H33: 6964.285714 | I33: 238.0952381 | J33: 2000 | K33: 270.4081633 | L33: 13520.40816 | M33: 3446 | N33: 10074.40816 | O33: 1732 | P33: 1732 | Q33: 1732 | R33: 0 | S33: 0 | T33: 0 | U33: 0
A34: 33 | B34: 13520.40816 | C34: 1135 | D34: 48 | E34: 2 | F34: 17 | G34: 4047.619048 | H34: 6964.285714 | I34: 238.0952381 | J34: 2000 | K34: 270.4081633 | L34: 13520.40816 | M34: 3446 | N34: 10074.40816 | O34: 1732 | P34: 1732 | Q34: 1732 | R34: 0 | S34: 0 | T34: 0 | U34: 0
A35: 34 | B35: 13520.40816 | C35: 1136 | D35: 48 | E35: 2 | F35: 17 | G35: 4047.619048 | H35: 6964.285714 | I35: 238.0952381 | J35: 2000 | K35: 270.4081633 | L35: 13520.40816 | M35: 3446 | N35: 10074.40816 | O35: 1732 | P35: 1732 | Q35: 1732 | R35: 0 | S35: 0 | T35: 0 | U35: 0
A36: 35 | B36: 13520.40816 | C36: 1159 | D36: 49 | E36: 2 | F36: 18 | G36: 4047.619048 | H36: 6964.285714 | I36: 238.0952381 | J36: 2000 | K36: 270.4081633 | L36: 13520.40816 | M36: 3446 | N36: 10074.40816 | O36: 1732 | P36: 1732 | Q36: 1732 | R36: 0 | S36: 0 | T36: 0 | U36: 0
A37: 36 | B37: 13520.40816 | C37: 1160 | D37: 49 | E37: 2 | F37: 18 | G37: 4047.619048 | H37: 6964.285714 | I37: 238.0952381 | J37: 2000 | K37: 270.4081633 | L37: 13520.40816 | M37: 3446 | N37: 10074.40816 | O37: 1732 | P37: 1732 | Q37: 1732 | R37: 0 | S37: 0 | T37: 0 | U37: 0
A38: 37 | B38: 13520.40816 | C38: 1183 | D38: 50 | E38: 2 | F38: 19 | G38: 4047.619048 | H38: 6964.285714 | I38: 238.0952381 | J38: 2000 | K38: 270.4081633 | L38: 13520.40816 | M38: 3446 | N38: 10074.40816 | O38: 1732 | P38: 1732 | Q38: 1732 | R38: 0 | S38: 0 | T38: 0 | U38: 0
A39: 38 | B39: 13520.40816 | C39: 1184 | D39: 50 | E39: 2 | F39: 19 | G39: 4047.619048 | H39: 6964.285714 | I39: 238.0952381 | J39: 2000 | K39: 270.4081633 | L39: 13520.40816 | M39: 3446 | N39: 10074.40816 | O39: 1732 | P39: 1732 | Q39: 1732 | R39: 0 | S39: 0 | T39: 0 | U39: 0
A40: 39 | B40: 13520.40816 | C40: 1207 | D40: 51 | E40: 2 | F40: 20 | G40: 4047.619048 | H40: 6964.285714 | I40: 238.0952381 | J40: 2000 | K40: 270.4081633 | L40: 13520.40816 | M40: 3446 | N40: 10074.40816 | O40: 1732 | P40: 1732 | Q40: 1732 | R40: 0 | S40: 0 | T40: 0 | U40: 0
A41: 40 | B41: 13520.40816 | C41: 1208 | D41: 51 | E41: 2 | F41: 20 | G41: 4047.619048 | H41: 6964.285714 | I41: 238.0952381 | J41: 2000 | K41: 270.4081633 | L41: 13520.40816 | M41: 3446 | N41: 10074.40816 | O41: 1732 | P41: 1732 | Q41: 1732 | R41: 0 | S41: 0 | T41: 0 | U41: 0
A42: 41 | B42: 13520.40816 | C42: 1231 | D42: 52 | E42: 2 | F42: 21 | G42: 4047.619048 | H42: 6964.285714 | I42: 238.0952381 | J42: 2000 | K42: 270.4081633 | L42: 13520.40816 | M42: 3446 | N42: 10074.40816 | O42: 1732 | P42: 1732 | Q42: 1732 | R42: 0 | S42: 0 | T42: 0 | U42: 0
A43: 42 | B43: 13520.40816 | C43: 1232 | D43: 52 | E43: 2 | F43: 21 | G43: 4047.619048 | H43: 6964.285714 | I43: 238.0952381 | J43: 2000 | K43: 270.4081633 | L43: 13520.40816 | M43: 3446 | N43: 10074.40816 | O43: 1732 | P43: 1732 | Q43: 1732 | R43: 0 | S43: 0 | T43: 0 | U43: 0
A44: 43 | B44: 13520.40816 | C44: 1255 | D44: 53 | E44: 2 | F44: 22 | G44: 4047.619048 | H44: 6964.285714 | I44: 238.0952381 | J44: 2000 | K44: 270.4081633 | L44: 13520.40816 | M44: 3446 | N44: 10074.40816 | O44: 1732 | P44: 1732 | Q44: 1732 | R44: 0 | S44: 0 | T44: 0 | U44: 0
A45: 44 | B45: 13520.40816 | C45: 1256 | D45: 53 | E45: 2 | F45: 22 | G45: 4047.619048 | H45: 6964.285714 | I45: 238.0952381 | J45: 2000 | K45: 270.4081633 | L45: 13520.40816 | M45: 3446 | N45: 10074.40816 | O45: 1732 | P45: 1732 | Q45: 1732 | R45: 0 | S45: 0 | T45: 0 | U45: 0
A46: 45 | B46: 13520.40816 | C46: 1279 | D46: 54 | E46: 2 | F46: 23 | G46: 4047.619048 | H46: 6964.285714 | I46: 238.0952381 | J46: 2000 | K46: 270.4081633 | L46: 13520.40816 | M46: 3446 | N46: 10074.40816 | O46: 1732 | P46: 1732 | Q46: 1732 | R46: 0 | S46: 0 | T46: 0 | U46: 0
A47: 46 | B47: 13520.40816 | C47: 1280 | D47: 54 | E47: 2 | F47: 23 | G47: 4047.619048 | H47: 6964.285714 | I47: 238.0952381 | J47: 2000 | K47: 270.4081633 | L47: 13520.40816 | M47: 3446 | N47: 10074.40816 | O47: 1732 | P47: 1732 | Q47: 1732 | R47: 0 | S47: 0 | T47: 0 | U47: 0
A48: 47 | B48: 13520.40816 | C48: 1303 | D48: 55 | E48: 2 | F48: 24 | G48: 4047.619048 | H48: 6964.285714 | I48: 238.0952381 | J48: 2000 | K48: 270.4081633 | L48: 13520.40816 | M48: 3446 | N48: 10074.40816 | O48: 1732 | P48: 1732 | Q48: 1732 | R48: 0 | S48: 0 | T48: 0 | U48: 0
A49: 48 | B49: 13520.40816 | C49: 1304 | D49: 55 | E49: 2 | F49: 24 | G49: 4047.619048 | H49: 6964.285714 | I49: 238.0952381 | J49: 2000 | K49: 270.4081633 | L49: 13520.40816 | M49: 3446 | N49: 10074.40816 | O49: 1732 | P49: 1732 | Q49: 1732 | R49: 0 | S49: 0 | T49: 0 | U49: 0
A50: 49 | B50: 13520.40816 | C50: 1327 | D50: 56 | E50: 2 | F50: 25 | G50: 4047.619048 | H50: 6964.285714 | I50: 238.0952381 | J50: 2000 | K50: 270.4081633 | L50: 13520.40816 | M50: 3446 | N50: 10074.40816 | O50: 1732 | P50: 1732 | Q50: 1732 | R50: 0 | S50: 0 | T50: 0 | U50: 0
A51: 50 | B51: 13520.40816 | C51: 1328 | D51: 56 | E51: 2 | F51: 25 | G51: 4047.619048 | H51: 6964.285714 | I51: 238.0952381 | J51: 2000 | K51: 270.4081633 | L51: 13520.40816 | M51: 3446 | N51: 10074.40816 | O51: 1732 | P51: 1732 | Q51: 1732 | R51: 0 | S51: 0 | T51: 0 | U51: 0
A52: 51 | B52: 13520.40816 | C52: 1351 | D52: 57 | E52: 2 | F52: 26 | G52: 4047.619048 | H52: 6964.285714 | I52: 238.0952381 | J52: 2000 | K52: 270.4081633 | L52: 13520.40816 | M52: 3446 | N52: 10074.40816 | O52: 1732 | P52: 1732 | Q52: 1732 | R52: 0 | S52: 0 | T52: 0 | U52: 0
A53: 52 | B53: 13520.40816 | C53: 1352 | D53: 57 | E53: 2 | F53: 26 | G53: 4047.619048 | H53: 6964.285714 | I53: 238.0952381 | J53: 2000 | K53: 270.4081633 | L53: 13520.40816 | M53: 3446 | N53: 10074.40816 | O53: 1732 | P53: 1732 | Q53: 1732 | R53: 0 | S53: 0 | T53: 0 | U53: 0
A54: 53 | B54: 13520.40816 | C54: 1375 | D54: 58 | E54: 2 | F54: 27 | G54: 4047.619048 | H54: 6964.285714 | I54: 238.0952381 | J54: 2000 | K54: 270.4081633 | L54: 13520.40816 | M54: 3446 | N54: 10074.40816 | O54: 1732 | P54: 1732 | Q54: 1732 | R54: 0 | S54: 0 | T54: 0 | U54: 0
A55: 54 | B55: 13520.40816 | C55: 1376 | D55: 58 | E55: 2 | F55: 27 | G55: 4047.619048 | H55: 6964.285714 | I55: 238.0952381 | J55: 2000 | K55: 270.4081633 | L55: 13520.40816 | M55: 3446 | N55: 10074.40816 | O55: 1732 | P55: 1732 | Q55: 1732 | R55: 0 | S55: 0 | T55: 0 | U55: 0
A56: 55 | B56: 13520.40816 | C56: 1399 | D56: 59 | E56: 2 | F56: 28 | G56: 4047.619048 | H56: 6964.285714 | I56: 238.0952381 | J56: 2000 | K56: 270.4081633 | L56: 13520.40816 | M56: 3446 | N56: 10074.40816 | O56: 1732 | P56: 1732 | Q56: 1732 | R56: 0 | S56: 0 | T56: 0 | U56: 0
A57: 56 | B57: 13520.40816 | C57: 1400 | D57: 59 | E57: 2 | F57: 28 | G57: 4047.619048 | H57: 6964.285714 | I57: 238.0952381 | J57: 2000 | K57: 270.4081633 | L57: 13520.40816 | M57: 3446 | N57: 10074.40816 | O57: 1732 | P57: 1732 | Q57: 1732 | R57: 0 | S57: 0 | T57: 0 | U57: 0
A58: 57 | B58: 11479.59184 | C58: 750 | D58: 32 | E58: 2 | F58: 1 | G58: 4047.619048 | H58: 6964.285714 | I58: 238.0952381 | J58: 0 | K58: 229.5918367 | L58: 11479.59184 | M58: 3446 | N58: 8033.591837 | O58: 1732 | P58: 1732 | Q58: 1732 | R58: 0 | S58: 0 | T58: 0 | U58: 0
A59: 58 | B59: 11479.59184 | C59: 763 | D59: 32 | E59: 2 | F59: 1 | G59: 4047.619048 | H59: 6964.285714 | I59: 238.0952381 | J59: 0 | K59: 229.5918367 | L59: 11479.59184 | M59: 3446 | N59: 8033.591837 | O59: 1732 | P59: 1732 | Q59: 1732 | R59: 0 | S59: 0 | T59: 0 | U59: 0
A60: 59 | B60: 11479.59184 | C60: 764 | D60: 32 | E60: 2 | F60: 1 | G60: 4047.619048 | H60: 6964.285714 | I60: 238.0952381 | J60: 0 | K60: 229.5918367 | L60: 11479.59184 | M60: 3446 | N60: 8033.591837 | O60: 1732 | P60: 1732 | Q60: 1732 | R60: 0 | S60: 0 | T60: 0 | U60: 0
A61: 60 | B61: 11479.59184 | C61: 765 | D61: 32 | E61: 2 | F61: 1 | G61: 4047.619048 | H61: 6964.285714 | I61: 238.0952381 | J61: 0 | K61: 229.5918367 | L61: 11479.59184 | M61: 3446 | N61: 8033.591837 | O61: 1732 | P61: 1732 | Q61: 1732 | R61: 0 | S61: 0 | T61: 0 | U61: 0
A62: 61 | B62: 11479.59184 | C62: 774 | D62: 33 | E62: 2 | F62: 2 | G62: 4047.619048 | H62: 6964.285714 | I62: 238.0952381 | J62: 0 | K62: 229.5918367 | L62: 11479.59184 | M62: 3446 | N62: 8033.591837 | O62: 1732 | P62: 1732 | Q62: 1732 | R62: 0 | S62: 0 | T62: 0 | U62: 0
A63: 62 | B63: 11479.59184 | C63: 787 | D63: 33 | E63: 2 | F63: 2 | G63: 4047.619048 | H63: 6964.285714 | I63: 238.0952381 | J63: 0 | K63: 229.5918367 | L63: 11479.59184 | M63: 3446 | N63: 8033.591837 | O63: 1732 | P63: 1732 | Q63: 1732 | R63: 0 | S63: 0 | T63: 0 | U63: 0
A64: 63 | B64: 11479.59184 | C64: 788 | D64: 33 | E64: 2 | F64: 2 | G64: 4047.619048 | H64: 6964.285714 | I64: 238.0952381 | J64: 0 | K64: 229.5918367 | L64: 11479.59184 | M64: 3446 | N64: 8033.591837 | O64: 1732 | P64: 1732 | Q64: 1732 | R64: 0 | S64: 0 | T64: 0 | U64: 0
A65: 64 | B65: 11479.59184 | C65: 789 | D65: 33 | E65: 2 | F65: 2 | G65: 4047.619048 | H65: 6964.285714 | I65: 238.0952381 | J65: 0 | K65: 229.5918367 | L65: 11479.59184 | M65: 3446 | N65: 8033.591837 | O65: 1732 | P65: 1732 | Q65: 1732 | R65: 0 | S65: 0 | T65: 0 | U65: 0
A66: 65 | B66: 11479.59184 | C66: 798 | D66: 34 | E66: 2 | F66: 3 | G66: 4047.619048 | H66: 6964.285714 | I66: 238.0952381 | J66: 0 | K66: 229.5918367 | L66: 11479.59184 | M66: 3446 | N66: 8033.591837 | O66: 1732 | P66: 1732 | Q66: 1732 | R66: 0 | S66: 0 | T66: 0 | U66: 0
A67: 66 | B67: =L67 -> 11479.59184 | C67: 811 | D67: 34 | E67: 2 | F67: 3 | G67: 4047.619048 | H67: 6964.285714 | I67: 238.0952381 | J67: 0 | K67: 229.5918367 | L67: 11479.59184 | M67: 3446 | N67: 8033.591837 | O67: 1732 | P67: 1732 | Q67: 1732 | R67: 0 | S67: 0 | T67: 0 | U67: 0
A68: 67 | B68: 11479.59184 | C68: 812 | D68: 34 | E68: 2 | F68: 3 | G68: 4047.619048 | H68: 6964.285714 | I68: 238.0952381 | J68: 0 | K68: 229.5918367 | L68: 11479.59184 | M68: 3446 | N68: 8033.591837 | O68: 1732 | P68: 1732 | Q68: 1732 | R68: 0 | S68: 0 | T68: 0 | U68: 0
A69: 68 | B69: 11479.59184 | C69: 813 | D69: 34 | E69: 2 | F69: 3 | G69: 4047.619048 | H69: 6964.285714 | I69: 238.0952381 | J69: 0 | K69: 229.5918367 | L69: 11479.59184 | M69: 3446 | N69: 8033.591837 | O69: 1732 | P69: 1732 | Q69: 1732 | R69: 0 | S69: 0 | T69: 0 | U69: 0
A70: 69 | B70: 11479.59184 | C70: 822 | D70: 35 | E70: 2 | F70: 4 | G70: 4047.619048 | H70: 6964.285714 | I70: 238.0952381 | J70: 0 | K70: 229.5918367 | L70: 11479.59184 | M70: 3446 | N70: 8033.591837 | O70: 1732 | P70: 1732 | Q70: 1732 | R70: 0 | S70: 0 | T70: 0 | U70: 0
A71: 70 | B71: 11479.59184 | C71: 835 | D71: 35 | E71: 2 | F71: 4 | G71: 4047.619048 | H71: 6964.285714 | I71: 238.0952381 | J71: 0 | K71: 229.5918367 | L71: 11479.59184 | M71: 3446 | N71: 8033.591837 | O71: 1732 | P71: 1732 | Q71: 1732 | R71: 0 | S71: 0 | T71: 0 | U71: 0
A72: 71 | B72: 11479.59184 | C72: 836 | D72: 35 | E72: 2 | F72: 4 | G72: 4047.619048 | H72: 6964.285714 | I72: 238.0952381 | J72: 0 | K72: 229.5918367 | L72: 11479.59184 | M72: 3446 | N72: 8033.591837 | O72: 1732 | P72: 1732 | Q72: 1732 | R72: 0 | S72: 0 | T72: 0 | U72: 0
A73: 72 | B73: 11479.59184 | C73: 837 | D73: 35 | E73: 2 | F73: 4 | G73: 4047.619048 | H73: 6964.285714 | I73: 238.0952381 | J73: 0 | K73: 229.5918367 | L73: 11479.59184 | M73: 3446 | N73: 8033.591837 | O73: 1732 | P73: 1732 | Q73: 1732 | R73: 0 | S73: 0 | T73: 0 | U73: 0
A74: 73 | B74: 11479.59184 | C74: 846 | D74: 36 | E74: 2 | F74: 5 | G74: 4047.619048 | H74: 6964.285714 | I74: 238.0952381 | J74: 0 | K74: 229.5918367 | L74: 11479.59184 | M74: 3446 | N74: 8033.591837 | O74: 1732 | P74: 1732 | Q74: 1732 | R74: 0 | S74: 0 | T74: 0 | U74: 0
A75: 74 | B75: 11479.59184 | C75: 859 | D75: 36 | E75: 2 | F75: 5 | G75: 4047.619048 | H75: 6964.285714 | I75: 238.0952381 | J75: 0 | K75: 229.5918367 | L75: 11479.59184 | M75: 3446 | N75: 8033.591837 | O75: 1732 | P75: 1732 | Q75: 1732 | R75: 0 | S75: 0 | T75: 0 | U75: 0
A76: 75 | B76: 11479.59184 | C76: 860 | D76: 36 | E76: 2 | F76: 5 | G76: 4047.619048 | H76: 6964.285714 | I76: 238.0952381 | J76: 0 | K76: 229.5918367 | L76: 11479.59184 | M76: 3446 | N76: 8033.591837 | O76: 1732 | P76: 1732 | Q76: 1732 | R76: 0 | S76: 0 | T76: 0 | U76: 0
A77: 76 | B77: 11479.59184 | C77: 861 | D77: 36 | E77: 2 | F77: 5 | G77: 4047.619048 | H77: 6964.285714 | I77: 238.0952381 | J77: 0 | K77: 229.5918367 | L77: 11479.59184 | M77: 3446 | N77: 8033.591837 | O77: 1732 | P77: 1732 | Q77: 1732 | R77: 0 | S77: 0 | T77: 0 | U77: 0
A78: 77 | B78: 11479.59184 | C78: 870 | D78: 37 | E78: 2 | F78: 6 | G78: 4047.619048 | H78: 6964.285714 | I78: 238.0952381 | J78: 0 | K78: 229.5918367 | L78: 11479.59184 | M78: 3446 | N78: 8033.591837 | O78: 1732 | P78: 1732 | Q78: 1732 | R78: 0 | S78: 0 | T78: 0 | U78: 0
A79: 78 | B79: 11479.59184 | C79: 883 | D79: 37 | E79: 2 | F79: 6 | G79: 4047.619048 | H79: 6964.285714 | I79: 238.0952381 | J79: 0 | K79: 229.5918367 | L79: 11479.59184 | M79: 3446 | N79: 8033.591837 | O79: 1732 | P79: 1732 | Q79: 1732 | R79: 0 | S79: 0 | T79: 0 | U79: 0
A80: 79 | B80: 11479.59184 | C80: 884 | D80: 37 | E80: 2 | F80: 6 | G80: 4047.619048 | H80: 6964.285714 | I80: 238.0952381 | J80: 0 | K80: 229.5918367 | L80: 11479.59184 | M80: 3446 | N80: 8033.591837 | O80: 1732 | P80: 1732 | Q80: 1732 | R80: 0 | S80: 0 | T80: 0 | U80: 0
A81: 80 | B81: 11479.59184 | C81: 885 | D81: 37 | E81: 2 | F81: 6 | G81: 4047.619048 | H81: 6964.285714 | I81: 238.0952381 | J81: 0 | K81: 229.5918367 | L81: 11479.59184 | M81: 3446 | N81: 8033.591837 | O81: 1732 | P81: 1732 | Q81: 1732 | R81: 0 | S81: 0 | T81: 0 | U81: 0
A82: 81 | B82: 11479.59184 | C82: 894 | D82: 38 | E82: 2 | F82: 7 | G82: 4047.619048 | H82: 6964.285714 | I82: 238.0952381 | J82: 0 | K82: 229.5918367 | L82: 11479.59184 | M82: 3446 | N82: 8033.591837 | O82: 1732 | P82: 1732 | Q82: 1732 | R82: 0 | S82: 0 | T82: 0 | U82: 0
A83: 82 | B83: 11479.59184 | C83: 907 | D83: 38 | E83: 2 | F83: 7 | G83: 4047.619048 | H83: 6964.285714 | I83: 238.0952381 | J83: 0 | K83: 229.5918367 | L83: 11479.59184 | M83: 3446 | N83: 8033.591837 | O83: 1732 | P83: 1732 | Q83: 1732 | R83: 0 | S83: 0 | T83: 0 | U83: 0
A84: 83 | B84: 11479.59184 | C84: 908 | D84: 38 | E84: 2 | F84: 7 | G84: 4047.619048 | H84: 6964.285714 | I84: 238.0952381 | J84: 0 | K84: 229.5918367 | L84: 11479.59184 | M84: 3446 | N84: 8033.591837 | O84: 1732 | P84: 1732 | Q84: 1732 | R84: 0 | S84: 0 | T84: 0 | U84: 0
A85: 84 | B85: 11479.59184 | C85: 909 | D85: 38 | E85: 2 | F85: 7 | G85: 4047.619048 | H85: 6964.285714 | I85: 238.0952381 | J85: 0 | K85: 229.5918367 | L85: 11479.59184 | M85: 3446 | N85: 8033.591837 | O85: 1732 | P85: 1732 | Q85: 1732 | R85: 0 | S85: 0 | T85: 0 | U85: 0
A86: 85 | B86: 11479.59184 | C86: 918 | D86: 39 | E86: 2 | F86: 8 | G86: 4047.619048 | H86: 6964.285714 | I86: 238.0952381 | J86: 0 | K86: 229.5918367 | L86: 11479.59184 | M86: 3446 | N86: 8033.591837 | O86: 1732 | P86: 1732 | Q86: 1732 | R86: 0 | S86: 0 | T86: 0 | U86: 0
A87: 86 | B87: 11479.59184 | C87: 931 | D87: 39 | E87: 2 | F87: 8 | G87: 4047.619048 | H87: 6964.285714 | I87: 238.0952381 | J87: 0 | K87: 229.5918367 | L87: 11479.59184 | M87: 3446 | N87: 8033.591837 | O87: 1732 | P87: 1732 | Q87: 1732 | R87: 0 | S87: 0 | T87: 0 | U87: 0
A88: 87 | B88: 11479.59184 | C88: 932 | D88: 39 | E88: 2 | F88: 8 | G88: 4047.619048 | H88: 6964.285714 | I88: 238.0952381 | J88: 0 | K88: 229.5918367 | L88: 11479.59184 | M88: 3446 | N88: 8033.591837 | O88: 1732 | P88: 1732 | Q88: 1732 | R88: 0 | S88: 0 | T88: 0 | U88: 0
A89: 88 | B89: 11479.59184 | C89: 933 | D89: 39 | E89: 2 | F89: 8 | G89: 4047.619048 | H89: 6964.285714 | I89: 238.0952381 | J89: 0 | K89: 229.5918367 | L89: 11479.59184 | M89: 3446 | N89: 8033.591837 | O89: 1732 | P89: 1732 | Q89: 1732 | R89: 0 | S89: 0 | T89: 0 | U89: 0
A90: 89 | B90: 11479.59184 | C90: 942 | D90: 40 | E90: 2 | F90: 9 | G90: 4047.619048 | H90: 6964.285714 | I90: 238.0952381 | J90: 0 | K90: 229.5918367 | L90: 11479.59184 | M90: 3446 | N90: 8033.591837 | O90: 1732 | P90: 1732 | Q90: 1732 | R90: 0 | S90: 0 | T90: 0 | U90: 0
A91: 90 | B91: 11479.59184 | C91: 955 | D91: 40 | E91: 2 | F91: 9 | G91: 4047.619048 | H91: 6964.285714 | I91: 238.0952381 | J91: 0 | K91: 229.5918367 | L91: 11479.59184 | M91: 3446 | N91: 8033.591837 | O91: 1732 | P91: 1732 | Q91: 1732 | R91: 0 | S91: 0 | T91: 0 | U91: 0
A92: 91 | B92: 11479.59184 | C92: 956 | D92: 40 | E92: 2 | F92: 9 | G92: 4047.619048 | H92: 6964.285714 | I92: 238.0952381 | J92: 0 | K92: 229.5918367 | L92: 11479.59184 | M92: 3446 | N92: 8033.591837 | O92: 1732 | P92: 1732 | Q92: 1732 | R92: 0 | S92: 0 | T92: 0 | U92: 0
A93: 92 | B93: 11479.59184 | C93: 957 | D93: 40 | E93: 2 | F93: 9 | G93: 4047.619048 | H93: 6964.285714 | I93: 238.0952381 | J93: 0 | K93: 229.5918367 | L93: 11479.59184 | M93: 3446 | N93: 8033.591837 | O93: 1732 | P93: 1732 | Q93: 1732 | R93: 0 | S93: 0 | T93: 0 | U93: 0
A94: 93 | B94: 11479.59184 | C94: 966 | D94: 41 | E94: 2 | F94: 10 | G94: 4047.619048 | H94: 6964.285714 | I94: 238.0952381 | J94: 0 | K94: 229.5918367 | L94: 11479.59184 | M94: 3446 | N94: 8033.591837 | O94: 1732 | P94: 1732 | Q94: 1732 | R94: 0 | S94: 0 | T94: 0 | U94: 0
A95: 94 | B95: 11479.59184 | C95: 979 | D95: 41 | E95: 2 | F95: 10 | G95: 4047.619048 | H95: 6964.285714 | I95: 238.0952381 | J95: 0 | K95: 229.5918367 | L95: 11479.59184 | M95: 3446 | N95: 8033.591837 | O95: 1732 | P95: 1732 | Q95: 1732 | R95: 0 | S95: 0 | T95: 0 | U95: 0
A96: 95 | B96: 11479.59184 | C96: 980 | D96: 41 | E96: 2 | F96: 10 | G96: 4047.619048 | H96: 6964.285714 | I96: 238.0952381 | J96: 0 | K96: 229.5918367 | L96: 11479.59184 | M96: 3446 | N96: 8033.591837 | O96: 1732 | P96: 1732 | Q96: 1732 | R96: 0 | S96: 0 | T96: 0 | U96: 0
A97: 96 | B97: 11479.59184 | C97: 981 | D97: 41 | E97: 2 | F97: 10 | G97: 4047.619048 | H97: 6964.285714 | I97: 238.0952381 | J97: 0 | K97: 229.5918367 | L97: 11479.59184 | M97: 3446 | N97: 8033.591837 | O97: 1732 | P97: 1732 | Q97: 1732 | R97: 0 | S97: 0 | T97: 0 | U97: 0
A98: 97 | B98: 11479.59184 | C98: 990 | D98: 42 | E98: 2 | F98: 11 | G98: 4047.619048 | H98: 6964.285714 | I98: 238.0952381 | J98: 0 | K98: 229.5918367 | L98: 11479.59184 | M98: 3446 | N98: 8033.591837 | O98: 1732 | P98: 1732 | Q98: 1732 | R98: 0 | S98: 0 | T98: 0 | U98: 0
A99: 98 | B99: 11479.59184 | C99: 1003 | D99: 42 | E99: 2 | F99: 11 | G99: 4047.619048 | H99: 6964.285714 | I99: 238.0952381 | J99: 0 | K99: 229.5918367 | L99: 11479.59184 | M99: 3446 | N99: 8033.591837 | O99: 1732 | P99: 1732 | Q99: 1732 | R99: 0 | S99: 0 | T99: 0 | U99: 0
A100: 99 | B100: 11479.59184 | C100: 1004 | D100: 42 | E100: 2 | F100: 11 | G100: 4047.619048 | H100: 6964.285714 | I100: 238.0952381 | J100: 0 | K100: 229.5918367 | L100: 11479.59184 | M100: 3446 | N100: 8033.591837 | O100: 1732 | P100: 1732 | Q100: 1732 | R100: 0 | S100: 0 | T100: 0 | U100: 0
A101: 100 | B101: 11479.59184 | C101: 1005 | D101: 42 | E101: 2 | F101: 11 | G101: 4047.619048 | H101: 6964.285714 | I101: 238.0952381 | J101: 0 | K101: 229.5918367 | L101: 11479.59184 | M101: 3446 | N101: 8033.591837 | O101: 1732 | P101: 1732 | Q101: 1732 | R101: 0 | S101: 0 | T101: 0 | U101: 0
A102: 101 | B102: 11479.59184 | C102: 1014 | D102: 43 | E102: 2 | F102: 12 | G102: 4047.619048 | H102: 6964.285714 | I102: 238.0952381 | J102: 0 | K102: 229.5918367 | L102: 11479.59184 | M102: 3446 | N102: 8033.591837 | O102: 1732 | P102: 1732 | Q102: 1732 | R102: 0 | S102: 0 | T102: 0 | U102: 0
A103: 102 | B103: 11479.59184 | C103: 1027 | D103: 43 | E103: 2 | F103: 12 | G103: 4047.619048 | H103: 6964.285714 | I103: 238.0952381 | J103: 0 | K103: 229.5918367 | L103: 11479.59184 | M103: 3446 | N103: 8033.591837 | O103: 1732 | P103: 1732 | Q103: 1732 | R103: 0 | S103: 0 | T103: 0 | U103: 0
A104: 103 | B104: 11479.59184 | C104: 1028 | D104: 43 | E104: 2 | F104: 12 | G104: 4047.619048 | H104: 6964.285714 | I104: 238.0952381 | J104: 0 | K104: 229.5918367 | L104: 11479.59184 | M104: 3446 | N104: 8033.591837 | O104: 1732 | P104: 1732 | Q104: 1732 | R104: 0 | S104: 0 | T104: 0 | U104: 0
A105: 104 | B105: 11479.59184 | C105: 1029 | D105: 43 | E105: 2 | F105: 12 | G105: 4047.619048 | H105: 6964.285714 | I105: 238.0952381 | J105: 0 | K105: 229.5918367 | L105: 11479.59184 | M105: 3446 | N105: 8033.591837 | O105: 1732 | P105: 1732 | Q105: 1732 | R105: 0 | S105: 0 | T105: 0 | U105: 0
A106: 105 | B106: 11479.59184 | C106: 1038 | D106: 44 | E106: 2 | F106: 13 | G106: 4047.619048 | H106: 6964.285714 | I106: 238.0952381 | J106: 0 | K106: 229.5918367 | L106: 11479.59184 | M106: 3446 | N106: 8033.591837 | O106: 1732 | P106: 1732 | Q106: 1732 | R106: 0 | S106: 0 | T106: 0 | U106: 0
A107: 106 | B107: 11479.59184 | C107: 1051 | D107: 44 | E107: 2 | F107: 13 | G107: 4047.619048 | H107: 6964.285714 | I107: 238.0952381 | J107: 0 | K107: 229.5918367 | L107: 11479.59184 | M107: 3446 | N107: 8033.591837 | O107: 1732 | P107: 1732 | Q107: 1732 | R107: 0 | S107: 0 | T107: 0 | U107: 0
A108: 107 | B108: 11479.59184 | C108: 1052 | D108: 44 | E108: 2 | F108: 13 | G108: 4047.619048 | H108: 6964.285714 | I108: 238.0952381 | J108: 0 | K108: 229.5918367 | L108: 11479.59184 | M108: 3446 | N108: 8033.591837 | O108: 1732 | P108: 1732 | Q108: 1732 | R108: 0 | S108: 0 | T108: 0 | U108: 0
A109: 108 | B109: 11479.59184 | C109: 1053 | D109: 44 | E109: 2 | F109: 13 | G109: 4047.619048 | H109: 6964.285714 | I109: 238.0952381 | J109: 0 | K109: 229.5918367 | L109: 11479.59184 | M109: 3446 | N109: 8033.591837 | O109: 1732 | P109: 1732 | Q109: 1732 | R109: 0 | S109: 0 | T109: 0 | U109: 0
A110: 109 | B110: 11479.59184 | C110: 1062 | D110: 45 | E110: 2 | F110: 14 | G110: 4047.619048 | H110: 6964.285714 | I110: 238.0952381 | J110: 0 | K110: 229.5918367 | L110: 11479.59184 | M110: 3446 | N110: 8033.591837 | O110: 1732 | P110: 1732 | Q110: 1732 | R110: 0 | S110: 0 | T110: 0 | U110: 0
A111: 110 | B111: 11479.59184 | C111: 1075 | D111: 45 | E111: 2 | F111: 14 | G111: 4047.619048 | H111: 6964.285714 | I111: 238.0952381 | J111: 0 | K111: 229.5918367 | L111: 11479.59184 | M111: 3446 | N111: 8033.591837 | O111: 1732 | P111: 1732 | Q111: 1732 | R111: 0 | S111: 0 | T111: 0 | U111: 0
A112: 111 | B112: 11479.59184 | C112: 1076 | D112: 45 | E112: 2 | F112: 14 | G112: 4047.619048 | H112: 6964.285714 | I112: 238.0952381 | J112: 0 | K112: 229.5918367 | L112: 11479.59184 | M112: 3446 | N112: 8033.591837 | O112: 1732 | P112: 1732 | Q112: 1732 | R112: 0 | S112: 0 | T112: 0 | U112: 0
A113: 112 | B113: 11479.59184 | C113: 1077 | D113: 45 | E113: 2 | F113: 14 | G113: 4047.619048 | H113: 6964.285714 | I113: 238.0952381 | J113: 0 | K113: 229.5918367 | L113: 11479.59184 | M113: 3446 | N113: 8033.591837 | O113: 1732 | P113: 1732 | Q113: 1732 | R113: 0 | S113: 0 | T113: 0 | U113: 0
A114: 113 | B114: 11479.59184 | C114: 1086 | D114: 46 | E114: 2 | F114: 15 | G114: 4047.619048 | H114: 6964.285714 | I114: 238.0952381 | J114: 0 | K114: 229.5918367 | L114: 11479.59184 | M114: 3446 | N114: 8033.591837 | O114: 1732 | P114: 1732 | Q114: 1732 | R114: 0 | S114: 0 | T114: 0 | U114: 0
A115: 114 | B115: 11479.59184 | C115: 1099 | D115: 46 | E115: 2 | F115: 15 | G115: 4047.619048 | H115: 6964.285714 | I115: 238.0952381 | J115: 0 | K115: 229.5918367 | L115: 11479.59184 | M115: 3446 | N115: 8033.591837 | O115: 1732 | P115: 1732 | Q115: 1732 | R115: 0 | S115: 0 | T115: 0 | U115: 0
A116: 115 | B116: 11479.59184 | C116: 1100 | D116: 46 | E116: 2 | F116: 15 | G116: 4047.619048 | H116: 6964.285714 | I116: 238.0952381 | J116: 0 | K116: 229.5918367 | L116: 11479.59184 | M116: 3446 | N116: 8033.591837 | O116: 1732 | P116: 1732 | Q116: 1732 | R116: 0 | S116: 0 | T116: 0 | U116: 0
A117: 116 | B117: 11479.59184 | C117: 1101 | D117: 46 | E117: 2 | F117: 15 | G117: 4047.619048 | H117: 6964.285714 | I117: 238.0952381 | J117: 0 | K117: 229.5918367 | L117: 11479.59184 | M117: 3446 | N117: 8033.591837 | O117: 1732 | P117: 1732 | Q117: 1732 | R117: 0 | S117: 0 | T117: 0 | U117: 0
A118: 117 | B118: 11479.59184 | C118: 1110 | D118: 47 | E118: 2 | F118: 16 | G118: 4047.619048 | H118: 6964.285714 | I118: 238.0952381 | J118: 0 | K118: 229.5918367 | L118: 11479.59184 | M118: 3446 | N118: 8033.591837 | O118: 1732 | P118: 1732 | Q118: 1732 | R118: 0 | S118: 0 | T118: 0 | U118: 0
A119: 118 | B119: 11479.59184 | C119: 1123 | D119: 47 | E119: 2 | F119: 16 | G119: 4047.619048 | H119: 6964.285714 | I119: 238.0952381 | J119: 0 | K119: 229.5918367 | L119: 11479.59184 | M119: 3446 | N119: 8033.591837 | O119: 1732 | P119: 1732 | Q119: 1732 | R119: 0 | S119: 0 | T119: 0 | U119: 0
A120: 119 | B120: 11479.59184 | C120: 1124 | D120: 47 | E120: 2 | F120: 16 | G120: 4047.619048 | H120: 6964.285714 | I120: 238.0952381 | J120: 0 | K120: 229.5918367 | L120: 11479.59184 | M120: 3446 | N120: 8033.591837 | O120: 1732 | P120: 1732 | Q120: 1732 | R120: 0 | S120: 0 | T120: 0 | U120: 0
A121: 120 | B121: 11479.59184 | C121: 1125 | D121: 47 | E121: 2 | F121: 16 | G121: 4047.619048 | H121: 6964.285714 | I121: 238.0952381 | J121: 0 | K121: 229.5918367 | L121: 11479.59184 | M121: 3446 | N121: 8033.591837 | O121: 1732 | P121: 1732 | Q121: 1732 | R121: 0 | S121: 0 | T121: 0 | U121: 0
A122: 121 | B122: 11479.59184 | C122: 1134 | D122: 48 | E122: 2 | F122: 17 | G122: 4047.619048 | H122: 6964.285714 | I122: 238.0952381 | J122: 0 | K122: 229.5918367 | L122: 11479.59184 | M122: 3446 | N122: 8033.591837 | O122: 1732 | P122: 1732 | Q122: 1732 | R122: 0 | S122: 0 | T122: 0 | U122: 0
A123: 122 | B123: 11479.59184 | C123: 1147 | D123: 48 | E123: 2 | F123: 17 | G123: 4047.619048 | H123: 6964.285714 | I123: 238.0952381 | J123: 0 | K123: 229.5918367 | L123: 11479.59184 | M123: 3446 | N123: 8033.591837 | O123: 1732 | P123: 1732 | Q123: 1732 | R123: 0 | S123: 0 | T123: 0 | U123: 0
A124: 123 | B124: 11479.59184 | C124: 1148 | D124: 48 | E124: 2 | F124: 17 | G124: 4047.619048 | H124: 6964.285714 | I124: 238.0952381 | J124: 0 | K124: 229.5918367 | L124: 11479.59184 | M124: 3446 | N124: 8033.591837 | O124: 1732 | P124: 1732 | Q124: 1732 | R124: 0 | S124: 0 | T124: 0 | U124: 0
A125: 124 | B125: 11479.59184 | C125: 1149 | D125: 48 | E125: 2 | F125: 17 | G125: 4047.619048 | H125: 6964.285714 | I125: 238.0952381 | J125: 0 | K125: 229.5918367 | L125: 11479.59184 | M125: 3446 | N125: 8033.591837 | O125: 1732 | P125: 1732 | Q125: 1732 | R125: 0 | S125: 0 | T125: 0 | U125: 0
A126: 125 | B126: 11479.59184 | C126: 1158 | D126: 49 | E126: 2 | F126: 18 | G126: 4047.619048 | H126: 6964.285714 | I126: 238.0952381 | J126: 0 | K126: 229.5918367 | L126: 11479.59184 | M126: 3446 | N126: 8033.591837 | O126: 1732 | P126: 1732 | Q126: 1732 | R126: 0 | S126: 0 | T126: 0 | U126: 0
A127: 126 | B127: 11479.59184 | C127: 1171 | D127: 49 | E127: 2 | F127: 18 | G127: 4047.619048 | H127: 6964.285714 | I127: 238.0952381 | J127: 0 | K127: 229.5918367 | L127: 11479.59184 | M127: 3446 | N127: 8033.591837 | O127: 1732 | P127: 1732 | Q127: 1732 | R127: 0 | S127: 0 | T127: 0 | U127: 0
A128: 127 | B128: 11479.59184 | C128: 1172 | D128: 49 | E128: 2 | F128: 18 | G128: 4047.619048 | H128: 6964.285714 | I128: 238.0952381 | J128: 0 | K128: 229.5918367 | L128: 11479.59184 | M128: 3446 | N128: 8033.591837 | O128: 1732 | P128: 1732 | Q128: 1732 | R128: 0 | S128: 0 | T128: 0 | U128: 0
A129: 128 | B129: 11479.59184 | C129: 1173 | D129: 49 | E129: 2 | F129: 18 | G129: 4047.619048 | H129: 6964.285714 | I129: 238.0952381 | J129: 0 | K129: 229.5918367 | L129: 11479.59184 | M129: 3446 | N129: 8033.591837 | O129: 1732 | P129: 1732 | Q129: 1732 | R129: 0 | S129: 0 | T129: 0 | U129: 0
A130: 129 | B130: 11479.59184 | C130: 1182 | D130: 50 | E130: 2 | F130: 19 | G130: 4047.619048 | H130: 6964.285714 | I130: 238.0952381 | J130: 0 | K130: 229.5918367 | L130: 11479.59184 | M130: 3446 | N130: 8033.591837 | O130: 1732 | P130: 1732 | Q130: 1732 | R130: 0 | S130: 0 | T130: 0 | U130: 0
A131: 130 | B131: =L131 -> 11479.59184 | C131: 1195 | D131: 50 | E131: 2 | F131: 19 | G131: 4047.619048 | H131: 6964.285714 | I131: 238.0952381 | J131: 0 | K131: 229.5918367 | L131: 11479.59184 | M131: 3446 | N131: 8033.591837 | O131: 1732 | P131: 1732 | Q131: 1732 | R131: 0 | S131: 0 | T131: 0 | U131: 0
A132: 131 | B132: 11479.59184 | C132: 1196 | D132: 50 | E132: 2 | F132: 19 | G132: 4047.619048 | H132: 6964.285714 | I132: 238.0952381 | J132: 0 | K132: 229.5918367 | L132: 11479.59184 | M132: 3446 | N132: 8033.591837 | O132: 1732 | P132: 1732 | Q132: 1732 | R132: 0 | S132: 0 | T132: 0 | U132: 0
A133: 132 | B133: 11479.59184 | C133: 1197 | D133: 50 | E133: 2 | F133: 19 | G133: 4047.619048 | H133: 6964.285714 | I133: 238.0952381 | J133: 0 | K133: 229.5918367 | L133: 11479.59184 | M133: 3446 | N133: 8033.591837 | O133: 1732 | P133: 1732 | Q133: 1732 | R133: 0 | S133: 0 | T133: 0 | U133: 0
A134: 133 | B134: 11479.59184 | C134: 1206 | D134: 51 | E134: 2 | F134: 20 | G134: 4047.619048 | H134: 6964.285714 | I134: 238.0952381 | J134: 0 | K134: 229.5918367 | L134: 11479.59184 | M134: 3446 | N134: 8033.591837 | O134: 1732 | P134: 1732 | Q134: 1732 | R134: 0 | S134: 0 | T134: 0 | U134: 0
A135: 134 | B135: 11479.59184 | C135: 1219 | D135: 51 | E135: 2 | F135: 20 | G135: 4047.619048 | H135: 6964.285714 | I135: 238.0952381 | J135: 0 | K135: 229.5918367 | L135: 11479.59184 | M135: 3446 | N135: 8033.591837 | O135: 1732 | P135: 1732 | Q135: 1732 | R135: 0 | S135: 0 | T135: 0 | U135: 0
A136: 135 | B136: 11479.59184 | C136: 1220 | D136: 51 | E136: 2 | F136: 20 | G136: 4047.619048 | H136: 6964.285714 | I136: 238.0952381 | J136: 0 | K136: 229.5918367 | L136: 11479.59184 | M136: 3446 | N136: 8033.591837 | O136: 1732 | P136: 1732 | Q136: 1732 | R136: 0 | S136: 0 | T136: 0 | U136: 0
A137: 136 | B137: 11479.59184 | C137: 1221 | D137: 51 | E137: 2 | F137: 20 | G137: 4047.619048 | H137: 6964.285714 | I137: 238.0952381 | J137: 0 | K137: 229.5918367 | L137: 11479.59184 | M137: 3446 | N137: 8033.591837 | O137: 1732 | P137: 1732 | Q137: 1732 | R137: 0 | S137: 0 | T137: 0 | U137: 0
A138: 137 | B138: 11479.59184 | C138: 1230 | D138: 52 | E138: 2 | F138: 21 | G138: 4047.619048 | H138: 6964.285714 | I138: 238.0952381 | J138: 0 | K138: 229.5918367 | L138: 11479.59184 | M138: 3446 | N138: 8033.591837 | O138: 1732 | P138: 1732 | Q138: 1732 | R138: 0 | S138: 0 | T138: 0 | U138: 0
A139: 138 | B139: 11479.59184 | C139: 1243 | D139: 52 | E139: 2 | F139: 21 | G139: 4047.619048 | H139: 6964.285714 | I139: 238.0952381 | J139: 0 | K139: 229.5918367 | L139: 11479.59184 | M139: 3446 | N139: 8033.591837 | O139: 1732 | P139: 1732 | Q139: 1732 | R139: 0 | S139: 0 | T139: 0 | U139: 0
A140: 139 | B140: 11479.59184 | C140: 1244 | D140: 52 | E140: 2 | F140: 21 | G140: 4047.619048 | H140: 6964.285714 | I140: 238.0952381 | J140: 0 | K140: 229.5918367 | L140: 11479.59184 | M140: 3446 | N140: 8033.591837 | O140: 1732 | P140: 1732 | Q140: 1732 | R140: 0 | S140: 0 | T140: 0 | U140: 0
A141: 140 | B141: 11479.59184 | C141: 1245 | D141: 52 | E141: 2 | F141: 21 | G141: 4047.619048 | H141: 6964.285714 | I141: 238.0952381 | J141: 0 | K141: 229.5918367 | L141: 11479.59184 | M141: 3446 | N141: 8033.591837 | O141: 1732 | P141: 1732 | Q141: 1732 | R141: 0 | S141: 0 | T141: 0 | U141: 0
A142: 141 | B142: 11479.59184 | C142: 1254 | D142: 53 | E142: 2 | F142: 22 | G142: 4047.619048 | H142: 6964.285714 | I142: 238.0952381 | J142: 0 | K142: 229.5918367 | L142: 11479.59184 | M142: 3446 | N142: 8033.591837 | O142: 1732 | P142: 1732 | Q142: 1732 | R142: 0 | S142: 0 | T142: 0 | U142: 0
A143: 142 | B143: 11479.59184 | C143: 1267 | D143: 53 | E143: 2 | F143: 22 | G143: 4047.619048 | H143: 6964.285714 | I143: 238.0952381 | J143: 0 | K143: 229.5918367 | L143: 11479.59184 | M143: 3446 | N143: 8033.591837 | O143: 1732 | P143: 1732 | Q143: 1732 | R143: 0 | S143: 0 | T143: 0 | U143: 0
A144: 143 | B144: 11479.59184 | C144: 1268 | D144: 53 | E144: 2 | F144: 22 | G144: 4047.619048 | H144: 6964.285714 | I144: 238.0952381 | J144: 0 | K144: 229.5918367 | L144: 11479.59184 | M144: 3446 | N144: 8033.591837 | O144: 1732 | P144: 1732 | Q144: 1732 | R144: 0 | S144: 0 | T144: 0 | U144: 0
A145: 144 | B145: 11479.59184 | C145: 1269 | D145: 53 | E145: 2 | F145: 22 | G145: 4047.619048 | H145: 6964.285714 | I145: 238.0952381 | J145: 0 | K145: 229.5918367 | L145: 11479.59184 | M145: 3446 | N145: 8033.591837 | O145: 1732 | P145: 1732 | Q145: 1732 | R145: 0 | S145: 0 | T145: 0 | U145: 0
A146: 145 | B146: 11479.59184 | C146: 1278 | D146: 54 | E146: 2 | F146: 23 | G146: 4047.619048 | H146: 6964.285714 | I146: 238.0952381 | J146: 0 | K146: 229.5918367 | L146: 11479.59184 | M146: 3446 | N146: 8033.591837 | O146: 1732 | P146: 1732 | Q146: 1732 | R146: 0 | S146: 0 | T146: 0 | U146: 0
A147: 146 | B147: 11479.59184 | C147: 1291 | D147: 54 | E147: 2 | F147: 23 | G147: 4047.619048 | H147: 6964.285714 | I147: 238.0952381 | J147: 0 | K147: 229.5918367 | L147: 11479.59184 | M147: 3446 | N147: 8033.591837 | O147: 1732 | P147: 1732 | Q147: 1732 | R147: 0 | S147: 0 | T147: 0 | U147: 0
A148: 147 | B148: 11479.59184 | C148: 1292 | D148: 54 | E148: 2 | F148: 23 | G148: 4047.619048 | H148: 6964.285714 | I148: 238.0952381 | J148: 0 | K148: 229.5918367 | L148: 11479.59184 | M148: 3446 | N148: 8033.591837 | O148: 1732 | P148: 1732 | Q148: 1732 | R148: 0 | S148: 0 | T148: 0 | U148: 0
A149: 148 | B149: 11479.59184 | C149: 1293 | D149: 54 | E149: 2 | F149: 23 | G149: 4047.619048 | H149: 6964.285714 | I149: 238.0952381 | J149: 0 | K149: 229.5918367 | L149: 11479.59184 | M149: 3446 | N149: 8033.591837 | O149: 1732 | P149: 1732 | Q149: 1732 | R149: 0 | S149: 0 | T149: 0 | U149: 0
A150: 149 | B150: 11479.59184 | C150: 1302 | D150: 55 | E150: 2 | F150: 24 | G150: 4047.619048 | H150: 6964.285714 | I150: 238.0952381 | J150: 0 | K150: 229.5918367 | L150: 11479.59184 | M150: 3446 | N150: 8033.591837 | O150: 1732 | P150: 1732 | Q150: 1732 | R150: 0 | S150: 0 | T150: 0 | U150: 0
A151: 150 | B151: 11479.59184 | C151: 1315 | D151: 55 | E151: 2 | F151: 24 | G151: 4047.619048 | H151: 6964.285714 | I151: 238.0952381 | J151: 0 | K151: 229.5918367 | L151: 11479.59184 | M151: 3446 | N151: 8033.591837 | O151: 1732 | P151: 1732 | Q151: 1732 | R151: 0 | S151: 0 | T151: 0 | U151: 0
A152: 151 | B152: 11479.59184 | C152: 1316 | D152: 55 | E152: 2 | F152: 24 | G152: 4047.619048 | H152: 6964.285714 | I152: 238.0952381 | J152: 0 | K152: 229.5918367 | L152: 11479.59184 | M152: 3446 | N152: 8033.591837 | O152: 1732 | P152: 1732 | Q152: 1732 | R152: 0 | S152: 0 | T152: 0 | U152: 0
A153: 152 | B153: 11479.59184 | C153: 1317 | D153: 55 | E153: 2 | F153: 24 | G153: 4047.619048 | H153: 6964.285714 | I153: 238.0952381 | J153: 0 | K153: 229.5918367 | L153: 11479.59184 | M153: 3446 | N153: 8033.591837 | O153: 1732 | P153: 1732 | Q153: 1732 | R153: 0 | S153: 0 | T153: 0 | U153: 0
A154: 153 | B154: 11479.59184 | C154: 1326 | D154: 56 | E154: 2 | F154: 25 | G154: 4047.619048 | H154: 6964.285714 | I154: 238.0952381 | J154: 0 | K154: 229.5918367 | L154: 11479.59184 | M154: 3446 | N154: 8033.591837 | O154: 1732 | P154: 1732 | Q154: 1732 | R154: 0 | S154: 0 | T154: 0 | U154: 0
A155: 154 | B155: 11479.59184 | C155: 1339 | D155: 56 | E155: 2 | F155: 25 | G155: 4047.619048 | H155: 6964.285714 | I155: 238.0952381 | J155: 0 | K155: 229.5918367 | L155: 11479.59184 | M155: 3446 | N155: 8033.591837 | O155: 1732 | P155: 1732 | Q155: 1732 | R155: 0 | S155: 0 | T155: 0 | U155: 0
A156: 155 | B156: 11479.59184 | C156: 1340 | D156: 56 | E156: 2 | F156: 25 | G156: 4047.619048 | H156: 6964.285714 | I156: 238.0952381 | J156: 0 | K156: 229.5918367 | L156: 11479.59184 | M156: 3446 | N156: 8033.591837 | O156: 1732 | P156: 1732 | Q156: 1732 | R156: 0 | S156: 0 | T156: 0 | U156: 0
A157: 156 | B157: 11479.59184 | C157: 1341 | D157: 56 | E157: 2 | F157: 25 | G157: 4047.619048 | H157: 6964.285714 | I157: 238.0952381 | J157: 0 | K157: 229.5918367 | L157: 11479.59184 | M157: 3446 | N157: 8033.591837 | O157: 1732 | P157: 1732 | Q157: 1732 | R157: 0 | S157: 0 | T157: 0 | U157: 0
A158: 157 | B158: 11479.59184 | C158: 1350 | D158: 57 | E158: 2 | F158: 26 | G158: 4047.619048 | H158: 6964.285714 | I158: 238.0952381 | J158: 0 | K158: 229.5918367 | L158: 11479.59184 | M158: 3446 | N158: 8033.591837 | O158: 1732 | P158: 1732 | Q158: 1732 | R158: 0 | S158: 0 | T158: 0 | U158: 0
A159: 158 | B159: 11479.59184 | C159: 1363 | D159: 57 | E159: 2 | F159: 26 | G159: 4047.619048 | H159: 6964.285714 | I159: 238.0952381 | J159: 0 | K159: 229.5918367 | L159: 11479.59184 | M159: 3446 | N159: 8033.591837 | O159: 1732 | P159: 1732 | Q159: 1732 | R159: 0 | S159: 0 | T159: 0 | U159: 0
A160: 159 | B160: 11479.59184 | C160: 1364 | D160: 57 | E160: 2 | F160: 26 | G160: 4047.619048 | H160: 6964.285714 | I160: 238.0952381 | J160: 0 | K160: 229.5918367 | L160: 11479.59184 | M160: 3446 | N160: 8033.591837 | O160: 1732 | P160: 1732 | Q160: 1732 | R160: 0 | S160: 0 | T160: 0 | U160: 0
A161: 160 | B161: 11479.59184 | C161: 1365 | D161: 57 | E161: 2 | F161: 26 | G161: 4047.619048 | H161: 6964.285714 | I161: 238.0952381 | J161: 0 | K161: 229.5918367 | L161: 11479.59184 | M161: 3446 | N161: 8033.591837 | O161: 1732 | P161: 1732 | Q161: 1732 | R161: 0 | S161: 0 | T161: 0 | U161: 0
A162: 161 | B162: 11479.59184 | C162: 1374 | D162: 58 | E162: 2 | F162: 27 | G162: 4047.619048 | H162: 6964.285714 | I162: 238.0952381 | J162: 0 | K162: 229.5918367 | L162: 11479.59184 | M162: 3446 | N162: 8033.591837 | O162: 1732 | P162: 1732 | Q162: 1732 | R162: 0 | S162: 0 | T162: 0 | U162: 0
A163: 162 | B163: 11479.59184 | C163: 1387 | D163: 58 | E163: 2 | F163: 27 | G163: 4047.619048 | H163: 6964.285714 | I163: 238.0952381 | J163: 0 | K163: 229.5918367 | L163: 11479.59184 | M163: 3446 | N163: 8033.591837 | O163: 1732 | P163: 1732 | Q163: 1732 | R163: 0 | S163: 0 | T163: 0 | U163: 0
A164: 163 | B164: 11479.59184 | C164: 1388 | D164: 58 | E164: 2 | F164: 27 | G164: 4047.619048 | H164: 6964.285714 | I164: 238.0952381 | J164: 0 | K164: 229.5918367 | L164: 11479.59184 | M164: 3446 | N164: 8033.591837 | O164: 1732 | P164: 1732 | Q164: 1732 | R164: 0 | S164: 0 | T164: 0 | U164: 0
A165: 164 | B165: 11479.59184 | C165: 1389 | D165: 58 | E165: 2 | F165: 27 | G165: 4047.619048 | H165: 6964.285714 | I165: 238.0952381 | J165: 0 | K165: 229.5918367 | L165: 11479.59184 | M165: 3446 | N165: 8033.591837 | O165: 1732 | P165: 1732 | Q165: 1732 | R165: 0 | S165: 0 | T165: 0 | U165: 0
A166: 165 | B166: 11479.59184 | C166: 1398 | D166: 59 | E166: 2 | F166: 28 | G166: 4047.619048 | H166: 6964.285714 | I166: 238.0952381 | J166: 0 | K166: 229.5918367 | L166: 11479.59184 | M166: 3446 | N166: 8033.591837 | O166: 1732 | P166: 1732 | Q166: 1732 | R166: 0 | S166: 0 | T166: 0 | U166: 0
A167: 166 | B167: 11479.59184 | C167: 1411 | D167: 59 | E167: 2 | F167: 28 | G167: 4047.619048 | H167: 6964.285714 | I167: 238.0952381 | J167: 0 | K167: 229.5918367 | L167: 11479.59184 | M167: 3446 | N167: 8033.591837 | O167: 1732 | P167: 1732 | Q167: 1732 | R167: 0 | S167: 0 | T167: 0 | U167: 0
A168: 167 | B168: 11479.59184 | C168: 1412 | D168: 59 | E168: 2 | F168: 28 | G168: 4047.619048 | H168: 6964.285714 | I168: 238.0952381 | J168: 0 | K168: 229.5918367 | L168: 11479.59184 | M168: 3446 | N168: 8033.591837 | O168: 1732 | P168: 1732 | Q168: 1732 | R168: 0 | S168: 0 | T168: 0 | U168: 0
A169: 168 | B169: 11479.59184 | C169: 1413 | D169: 59 | E169: 2 | F169: 28 | G169: 4047.619048 | H169: 6964.285714 | I169: 238.0952381 | J169: 0 | K169: 229.5918367 | L169: 11479.59184 | M169: 3446 | N169: 8033.591837 | O169: 1732 | P169: 1732 | Q169: 1732 | R169: 0 | S169: 0 | T169: 0 | U169: 0
A170: 169 | B170: 11321.67153 | C170: 7 | D170: 1 | E170: 1 | F170: 1 | G170: 4285.714286 | H170: 5000 | I170: 238.0952381 | J170: 1571.428571 | K170: 226.4334305 | L170: 11321.67153 | M170: 3446 | N170: 7875.671526 | O170: 1732 | P170: 1732 | Q170: 1732 | R170: 0 | S170: 0 | T170: 0 | U170: 0
A171: 170 | B171: 11321.67153 | C171: 8 | D171: 1 | E171: 1 | F171: 1 | G171: 4285.714286 | H171: 5000 | I171: 238.0952381 | J171: 1571.428571 | K171: 226.4334305 | L171: 11321.67153 | M171: 3446 | N171: 7875.671526 | O171: 1732 | P171: 1732 | Q171: 1732 | R171: 0 | S171: 0 | T171: 0 | U171: 0
A172: 171 | B172: 11321.67153 | C172: 31 | D172: 2 | E172: 1 | F172: 2 | G172: 4285.714286 | H172: 5000 | I172: 238.0952381 | J172: 1571.428571 | K172: 226.4334305 | L172: 11321.67153 | M172: 3446 | N172: 7875.671526 | O172: 1732 | P172: 1732 | Q172: 1732 | R172: 0 | S172: 0 | T172: 0 | U172: 0
A173: 172 | B173: 11321.67153 | C173: 32 | D173: 2 | E173: 1 | F173: 2 | G173: 4285.714286 | H173: 5000 | I173: 238.0952381 | J173: 1571.428571 | K173: 226.4334305 | L173: 11321.67153 | M173: 3446 | N173: 7875.671526 | O173: 1732 | P173: 1732 | Q173: 1732 | R173: 0 | S173: 0 | T173: 0 | U173: 0
A174: 173 | B174: 11321.67153 | C174: 55 | D174: 3 | E174: 1 | F174: 3 | G174: 4285.714286 | H174: 5000 | I174: 238.0952381 | J174: 1571.428571 | K174: 226.4334305 | L174: 11321.67153 | M174: 3446 | N174: 7875.671526 | O174: 1732 | P174: 1732 | Q174: 1732 | R174: 0 | S174: 0 | T174: 0 | U174: 0
A175: 174 | B175: 11321.67153 | C175: 56 | D175: 3 | E175: 1 | F175: 3 | G175: 4285.714286 | H175: 5000 | I175: 238.0952381 | J175: 1571.428571 | K175: 226.4334305 | L175: 11321.67153 | M175: 3446 | N175: 7875.671526 | O175: 1732 | P175: 1732 | Q175: 1732 | R175: 0 | S175: 0 | T175: 0 | U175: 0
A176: 175 | B176: 11321.67153 | C176: 79 | D176: 4 | E176: 1 | F176: 4 | G176: 4285.714286 | H176: 5000 | I176: 238.0952381 | J176: 1571.428571 | K176: 226.4334305 | L176: 11321.67153 | M176: 3446 | N176: 7875.671526 | O176: 1732 | P176: 1732 | Q176: 1732 | R176: 0 | S176: 0 | T176: 0 | U176: 0
A177: 176 | B177: 11321.67153 | C177: 80 | D177: 4 | E177: 1 | F177: 4 | G177: 4285.714286 | H177: 5000 | I177: 238.0952381 | J177: 1571.428571 | K177: 226.4334305 | L177: 11321.67153 | M177: 3446 | N177: 7875.671526 | O177: 1732 | P177: 1732 | Q177: 1732 | R177: 0 | S177: 0 | T177: 0 | U177: 0
A178: 177 | B178: 11321.67153 | C178: 103 | D178: 5 | E178: 1 | F178: 5 | G178: 4285.714286 | H178: 5000 | I178: 238.0952381 | J178: 1571.428571 | K178: 226.4334305 | L178: 11321.67153 | M178: 3446 | N178: 7875.671526 | O178: 1732 | P178: 1732 | Q178: 1732 | R178: 0 | S178: 0 | T178: 0 | U178: 0
A179: 178 | B179: 11321.67153 | C179: 104 | D179: 5 | E179: 1 | F179: 5 | G179: 4285.714286 | H179: 5000 | I179: 238.0952381 | J179: 1571.428571 | K179: 226.4334305 | L179: 11321.67153 | M179: 3446 | N179: 7875.671526 | O179: 1732 | P179: 1732 | Q179: 1732 | R179: 0 | S179: 0 | T179: 0 | U179: 0
A180: 179 | B180: 11321.67153 | C180: 127 | D180: 6 | E180: 1 | F180: 6 | G180: 4285.714286 | H180: 5000 | I180: 238.0952381 | J180: 1571.428571 | K180: 226.4334305 | L180: 11321.67153 | M180: 3446 | N180: 7875.671526 | O180: 1732 | P180: 1732 | Q180: 1732 | R180: 0 | S180: 0 | T180: 0 | U180: 0
A181: 180 | B181: 11321.67153 | C181: 128 | D181: 6 | E181: 1 | F181: 6 | G181: 4285.714286 | H181: 5000 | I181: 238.0952381 | J181: 1571.428571 | K181: 226.4334305 | L181: 11321.67153 | M181: 3446 | N181: 7875.671526 | O181: 1732 | P181: 1732 | Q181: 1732 | R181: 0 | S181: 0 | T181: 0 | U181: 0
A182: 181 | B182: 11321.67153 | C182: 151 | D182: 7 | E182: 1 | F182: 7 | G182: 4285.714286 | H182: 5000 | I182: 238.0952381 | J182: 1571.428571 | K182: 226.4334305 | L182: 11321.67153 | M182: 3446 | N182: 7875.671526 | O182: 1732 | P182: 1732 | Q182: 1732 | R182: 0 | S182: 0 | T182: 0 | U182: 0
A183: 182 | B183: 11321.67153 | C183: 152 | D183: 7 | E183: 1 | F183: 7 | G183: 4285.714286 | H183: 5000 | I183: 238.0952381 | J183: 1571.428571 | K183: 226.4334305 | L183: 11321.67153 | M183: 3446 | N183: 7875.671526 | O183: 1732 | P183: 1732 | Q183: 1732 | R183: 0 | S183: 0 | T183: 0 | U183: 0
A184: 183 | B184: 11321.67153 | C184: 175 | D184: 8 | E184: 1 | F184: 8 | G184: 4285.714286 | H184: 5000 | I184: 238.0952381 | J184: 1571.428571 | K184: 226.4334305 | L184: 11321.67153 | M184: 3446 | N184: 7875.671526 | O184: 1732 | P184: 1732 | Q184: 1732 | R184: 0 | S184: 0 | T184: 0 | U184: 0
A185: 184 | B185: 11321.67153 | C185: 176 | D185: 8 | E185: 1 | F185: 8 | G185: 4285.714286 | H185: 5000 | I185: 238.0952381 | J185: 1571.428571 | K185: 226.4334305 | L185: 11321.67153 | M185: 3446 | N185: 7875.671526 | O185: 1732 | P185: 1732 | Q185: 1732 | R185: 0 | S185: 0 | T185: 0 | U185: 0
A186: 185 | B186: 11321.67153 | C186: 199 | D186: 9 | E186: 1 | F186: 9 | G186: 4285.714286 | H186: 5000 | I186: 238.0952381 | J186: 1571.428571 | K186: 226.4334305 | L186: 11321.67153 | M186: 3446 | N186: 7875.671526 | O186: 1732 | P186: 1732 | Q186: 1732 | R186: 0 | S186: 0 | T186: 0 | U186: 0
A187: 186 | B187: 11321.67153 | C187: 200 | D187: 9 | E187: 1 | F187: 9 | G187: 4285.714286 | H187: 5000 | I187: 238.0952381 | J187: 1571.428571 | K187: 226.4334305 | L187: 11321.67153 | M187: 3446 | N187: 7875.671526 | O187: 1732 | P187: 1732 | Q187: 1732 | R187: 0 | S187: 0 | T187: 0 | U187: 0
A188: 187 | B188: 11321.67153 | C188: 223 | D188: 10 | E188: 1 | F188: 10 | G188: 4285.714286 | H188: 5000 | I188: 238.0952381 | J188: 1571.428571 | K188: 226.4334305 | L188: 11321.67153 | M188: 3446 | N188: 7875.671526 | O188: 1732 | P188: 1732 | Q188: 1732 | R188: 0 | S188: 0 | T188: 0 | U188: 0
A189: 188 | B189: 11321.67153 | C189: 224 | D189: 10 | E189: 1 | F189: 10 | G189: 4285.714286 | H189: 5000 | I189: 238.0952381 | J189: 1571.428571 | K189: 226.4334305 | L189: 11321.67153 | M189: 3446 | N189: 7875.671526 | O189: 1732 | P189: 1732 | Q189: 1732 | R189: 0 | S189: 0 | T189: 0 | U189: 0
A190: 189 | B190: 11321.67153 | C190: 247 | D190: 11 | E190: 1 | F190: 11 | G190: 4285.714286 | H190: 5000 | I190: 238.0952381 | J190: 1571.428571 | K190: 226.4334305 | L190: 11321.67153 | M190: 3446 | N190: 7875.671526 | O190: 1732 | P190: 1732 | Q190: 1732 | R190: 0 | S190: 0 | T190: 0 | U190: 0
A191: 190 | B191: 11321.67153 | C191: 248 | D191: 11 | E191: 1 | F191: 11 | G191: 4285.714286 | H191: 5000 | I191: 238.0952381 | J191: 1571.428571 | K191: 226.4334305 | L191: 11321.67153 | M191: 3446 | N191: 7875.671526 | O191: 1732 | P191: 1732 | Q191: 1732 | R191: 0 | S191: 0 | T191: 0 | U191: 0
A192: 191 | B192: 11321.67153 | C192: 271 | D192: 12 | E192: 1 | F192: 12 | G192: 4285.714286 | H192: 5000 | I192: 238.0952381 | J192: 1571.428571 | K192: 226.4334305 | L192: 11321.67153 | M192: 3446 | N192: 7875.671526 | O192: 1732 | P192: 1732 | Q192: 1732 | R192: 0 | S192: 0 | T192: 0 | U192: 0
A193: 192 | B193: 11321.67153 | C193: 272 | D193: 12 | E193: 1 | F193: 12 | G193: 4285.714286 | H193: 5000 | I193: 238.0952381 | J193: 1571.428571 | K193: 226.4334305 | L193: 11321.67153 | M193: 3446 | N193: 7875.671526 | O193: 1732 | P193: 1732 | Q193: 1732 | R193: 0 | S193: 0 | T193: 0 | U193: 0
A194: 193 | B194: 11321.67153 | C194: 295 | D194: 13 | E194: 1 | F194: 13 | G194: 4285.714286 | H194: 5000 | I194: 238.0952381 | J194: 1571.428571 | K194: 226.4334305 | L194: 11321.67153 | M194: 3446 | N194: 7875.671526 | O194: 1732 | P194: 1732 | Q194: 1732 | R194: 0 | S194: 0 | T194: 0 | U194: 0
A195: 194 | B195: =L195 -> 11321.67153 | C195: 296 | D195: 13 | E195: 1 | F195: 13 | G195: 4285.714286 | H195: 5000 | I195: 238.0952381 | J195: 1571.428571 | K195: 226.4334305 | L195: 11321.67153 | M195: 3446 | N195: 7875.671526 | O195: 1732 | P195: 1732 | Q195: 1732 | R195: 0 | S195: 0 | T195: 0 | U195: 0
A196: 195 | B196: 11321.67153 | C196: 319 | D196: 14 | E196: 1 | F196: 14 | G196: 4285.714286 | H196: 5000 | I196: 238.0952381 | J196: 1571.428571 | K196: 226.4334305 | L196: 11321.67153 | M196: 3446 | N196: 7875.671526 | O196: 1732 | P196: 1732 | Q196: 1732 | R196: 0 | S196: 0 | T196: 0 | U196: 0
A197: 196 | B197: 11321.67153 | C197: 320 | D197: 14 | E197: 1 | F197: 14 | G197: 4285.714286 | H197: 5000 | I197: 238.0952381 | J197: 1571.428571 | K197: 226.4334305 | L197: 11321.67153 | M197: 3446 | N197: 7875.671526 | O197: 1732 | P197: 1732 | Q197: 1732 | R197: 0 | S197: 0 | T197: 0 | U197: 0
A198: 197 | B198: 11321.67153 | C198: 343 | D198: 15 | E198: 1 | F198: 15 | G198: 4285.714286 | H198: 5000 | I198: 238.0952381 | J198: 1571.428571 | K198: 226.4334305 | L198: 11321.67153 | M198: 3446 | N198: 7875.671526 | O198: 1732 | P198: 1732 | Q198: 1732 | R198: 0 | S198: 0 | T198: 0 | U198: 0
A199: 198 | B199: 11321.67153 | C199: 344 | D199: 15 | E199: 1 | F199: 15 | G199: 4285.714286 | H199: 5000 | I199: 238.0952381 | J199: 1571.428571 | K199: 226.4334305 | L199: 11321.67153 | M199: 3446 | N199: 7875.671526 | O199: 1732 | P199: 1732 | Q199: 1732 | R199: 0 | S199: 0 | T199: 0 | U199: 0
A200: 199 | B200: 11321.67153 | C200: 367 | D200: 16 | E200: 1 | F200: 16 | G200: 4285.714286 | H200: 5000 | I200: 238.0952381 | J200: 1571.428571 | K200: 226.4334305 | L200: 11321.67153 | M200: 3446 | N200: 7875.671526 | O200: 1732 | P200: 1732 | Q200: 1732 | R200: 0 | S200: 0 | T200: 0 | U200: 0
... 4300 more rows

Sheet Frec Inver Genera
A1: D (kW) | B1: G_Humos (kWh) | C1: G_AT+BT | D1: G_AP (kWh)
A2: 13520.40816 | B2: 1895.85 | C2: 2154.375 | D2: 8088.301187
A3: 13520.40816 | B3: 1895.85 | C3: 2154.375 | D3: 8088.301187
A4: 13520.40816 | B4: 1895.85 | C4: 2154.375 | D4: 8088.301187
A5: 13520.40816 | B5: 1895.85 | C5: 2154.375 | D5: 8088.301187
A6: 13520.40816 | B6: 1895.85 | C6: 2154.375 | D6: 8088.301187
A7: 13520.40816 | B7: 1895.85 | C7: 2154.375 | D7: 8088.301187
A8: 13520.40816 | B8: 1895.85 | C8: 2154.375 | D8: 8088.301187 | G8: 2000 | I8: 2000
A9: 13520.40816 | B9: 1895.85 | C9: 2154.375 | D9: 8088.301187
A10: 13520.40816 | B10: 1895.85 | C10: 2154.375 | D10: 8088.301187
A11: 13520.40816 | B11: 1895.85 | C11: 2154.375 | D11: 8088.301187
A12: 13520.40816 | B12: 1895.85 | C12: 2154.375 | D12: 8088.301187
A13: 13520.40816 | B13: 1895.85 | C13: 2154.375 | D13: 8088.301187
A14: 13520.40816 | B14: 1895.85 | C14: 2154.375 | D14: 8088.301187
A15: 13520.40816 | B15: 1895.85 | C15: 2154.375 | D15: 8088.301187
A16: 13520.40816 | B16: 1895.85 | C16: 2154.375 | D16: 8088.301187
A17: 13520.40816 | B17: 1895.85 | C17: 2154.375 | D17: 8088.301187
A18: 13520.40816 | B18: 1895.85 | C18: 2154.375 | D18: 8088.301187
A19: 13520.40816 | B19: 1895.85 | C19: 2154.375 | D19: 8088.301187
A20: 13520.40816 | B20: 1895.85 | C20: 2154.375 | D20: 8088.301187
A21: 13520.40816 | B21: 1895.85 | C21: 2154.375 | D21: 8088.301187
A22: 13520.40816 | B22: 1895.85 | C22: 2154.375 | D22: 8088.301187
A23: 13520.40816 | B23: 1895.85 | C23: 2154.375 | D23: 8088.301187
A24: 13520.40816 | B24: 1895.85 | C24: 2154.375 | D24: 8088.301187
A25: 13520.40816 | B25: 1895.85 | C25: 2154.375 | D25: 8088.301187
A26: 13520.40816 | B26: 1895.85 | C26: 2154.375 | D26: 8088.301187
A27: 13520.40816 | B27: 1895.85 | C27: 2154.375 | D27: 8088.301187
A28: 13520.40816 | B28: 1895.85 | C28: 2154.375 | D28: 8088.296549
A29: 13520.40816 | B29: 1895.85 | C29: 2154.375 | D29: 8047.363287
A30: 13520.40816 | B30: 1895.85 | C30: 2154.375 | D30: 6563.515705
A31: 13520.40816 | B31: 1895.85 | C31: 2154.375 | D31: 6563.515705
A32: 13520.40816 | B32: 1895.85 | C32: 2154.375 | D32: 6563.515705
A33: 13520.40816 | B33: 1895.85 | C33: 2154.375 | D33: 6563.515705
A34: 13520.40816 | B34: 1895.85 | C34: 2154.375 | D34: 6563.515705
A35: 13520.40816 | B35: 1895.85 | C35: 2154.375 | D35: 6563.515705
A36: 13520.40816 | B36: 1895.85 | C36: 2154.375 | D36: 6563.515705
A37: 13520.40816 | B37: 1895.85 | C37: 2154.375 | D37: 6563.515705
A38: 13520.40816 | B38: 1895.85 | C38: 2154.375 | D38: 6563.515705
A39: 13520.40816 | B39: 1895.85 | C39: 2154.375 | D39: 6563.515705
A40: 13520.40816 | B40: 1895.85 | C40: 2154.375 | D40: 6563.515705
A41: 13520.40816 | B41: 1895.85 | C41: 2154.375 | D41: 6563.515705
A42: 13520.40816 | B42: 1895.85 | C42: 2154.375 | D42: 6563.515705
A43: 13520.40816 | B43: 1895.85 | C43: 2154.375 | D43: 6563.515705
A44: 13520.40816 | B44: 1895.85 | C44: 2154.375 | D44: 6563.515705
A45: 13520.40816 | B45: 1895.85 | C45: 2154.375 | D45: 6563.515705
A46: 13520.40816 | B46: 1895.85 | C46: 2154.375 | D46: 6563.515705
A47: 13520.40816 | B47: 1895.85 | C47: 2154.375 | D47: 6563.515705
A48: 13520.40816 | B48: 1895.85 | C48: 2154.375 | D48: 6563.515705
A49: 13520.40816 | B49: 1895.85 | C49: 2154.375 | D49: 6563.515705
A50: 13520.40816 | B50: 1895.85 | C50: 2154.375 | D50: 6563.515705
A51: 13520.40816 | B51: 1895.85 | C51: 2154.375 | D51: 6563.515705
A52: 13520.40816 | B52: 1895.85 | C52: 2154.375 | D52: 6563.515705
A53: 13520.40816 | B53: 1895.85 | C53: 2154.375 | D53: 6563.515705
A54: 13520.40816 | B54: 1895.85 | C54: 2154.375 | D54: 6563.515705
A55: 13520.40816 | B55: 1895.85 | C55: 2154.375 | D55: 6563.515705
A56: 13520.40816 | B56: 1895.85 | C56: 2154.375 | D56: 6563.515682
A57: 13520.40816 | B57: 1895.85 | C57: 2154.375 | D57: 6563.30778
A58: 11479.59184 | B58: 1895.85 | C58: 2154.375 | D58: 6460.751304
A59: 11479.59184 | B59: 1895.85 | C59: 2154.375 | D59: 6460.751304
A60: 11479.59184 | B60: 1895.85 | C60: 2154.375 | D60: 6460.751304
A61: 11479.59184 | B61: 1895.85 | C61: 2154.375 | D61: 6460.751304
A62: 11479.59184 | B62: 1895.85 | C62: 2154.375 | D62: 6460.751304
A63: 11479.59184 | B63: 1895.85 | C63: 2154.375 | D63: 6460.751304
A64: 11479.59184 | B64: 1895.85 | C64: 2154.375 | D64: 6460.751304
A65: 11479.59184 | B65: 1895.85 | C65: 2154.375 | D65: 6460.751304
A66: 11479.59184 | B66: 1895.85 | C66: 2154.375 | D66: 6460.751304
A67: 11479.59184 | B67: 1895.85 | C67: 2154.375 | D67: 6460.751304
A68: 11479.59184 | B68: 1895.85 | C68: 2154.375 | D68: 6460.751304
A69: 11479.59184 | B69: 1895.85 | C69: 2154.375 | D69: 6460.751304
A70: 11479.59184 | B70: 1895.85 | C70: 2154.375 | D70: 6460.751304
A71: 11479.59184 | B71: 1895.85 | C71: 2154.375 | D71: 6460.751304
A72: 11479.59184 | B72: 1895.85 | C72: 2154.375 | D72: 6460.751304
A73: 11479.59184 | B73: 1895.85 | C73: 2154.375 | D73: 6460.751304
A74: 11479.59184 | B74: 1895.85 | C74: 2154.375 | D74: 6460.751304
A75: 11479.59184 | B75: 1895.85 | C75: 2154.375 | D75: 6460.751304
A76: 11479.59184 | B76: 1895.85 | C76: 2154.375 | D76: 6460.751304
A77: 11479.59184 | B77: 1895.85 | C77: 2154.375 | D77: 6460.751304
A78: 11479.59184 | B78: 1895.85 | C78: 2154.375 | D78: 6460.751304
A79: 11479.59184 | B79: 1895.85 | C79: 2154.375 | D79: 6460.751304
A80: 11479.59184 | B80: 1895.85 | C80: 2154.375 | D80: 6460.751304
A81: 11479.59184 | B81: 1895.85 | C81: 2154.375 | D81: 6460.751304
A82: 11479.59184 | B82: 1895.85 | C82: 2154.375 | D82: 6460.751304
A83: 11479.59184 | B83: 1895.85 | C83: 2154.375 | D83: 6460.751303
A84: 11479.59184 | B84: 1895.85 | C84: 2154.375 | D84: 6460.741204
A85: 11479.59184 | B85: 1895.85 | C85: 2154.375 | D85: 6371.597655
A86: 11479.59184 | B86: 1895.85 | C86: 2154.375 | D86: 6202.374933
A87: 11479.59184 | B87: 1895.85 | C87: 2154.375 | D87: 6049.202055
A88: 11479.59184 | B88: 1895.85 | C88: 2154.375 | D88: 6049.202055
A89: 11479.59184 | B89: 1895.85 | C89: 2154.375 | D89: 6049.202055
A90: 11479.59184 | B90: 1895.85 | C90: 2154.375 | D90: 6049.202055
A91: 11479.59184 | B91: 1895.85 | C91: 2154.375 | D91: 6049.202055
A92: 11479.59184 | B92: 1895.85 | C92: 2154.375 | D92: 6049.202055
A93: 11479.59184 | B93: 1895.85 | C93: 2154.375 | D93: 6049.202055
A94: 11479.59184 | B94: 1895.85 | C94: 2154.375 | D94: 6049.202055
A95: 11479.59184 | B95: 1895.85 | C95: 2154.375 | D95: 6049.202055
A96: 11479.59184 | B96: 1895.85 | C96: 2154.375 | D96: 6049.202055
A97: 11479.59184 | B97: 1895.85 | C97: 2154.375 | D97: 6049.202055
A98: 11479.59184 | B98: 1895.85 | C98: 2154.375 | D98: 6049.202055
A99: 11479.59184 | B99: 1895.85 | C99: 2154.375 | D99: 6049.202055
A100: 11479.59184 | B100: 1895.85 | C100: 2154.375 | D100: 6049.202055
A101: 11479.59184 | B101: 1895.85 | C101: 2154.375 | D101: 6049.202055
A102: 11479.59184 | B102: 1895.85 | C102: 2154.375 | D102: 6049.202055
A103: 11479.59184 | B103: 1895.85 | C103: 2154.375 | D103: 6049.202055
A104: 11479.59184 | B104: 1895.85 | C104: 2154.375 | D104: 6049.202055
A105: 11479.59184 | B105: 1895.85 | C105: 2154.375 | D105: 6049.202055
A106: 11479.59184 | B106: 1895.85 | C106: 2154.375 | D106: 6049.202055
A107: 11479.59184 | B107: 1895.85 | C107: 2154.375 | D107: 6049.202055
A108: 11479.59184 | B108: 1895.85 | C108: 2154.375 | D108: 6049.202055
A109: 11479.59184 | B109: 1895.85 | C109: 2154.375 | D109: 6049.202055
A110: 11479.59184 | B110: 1895.85 | C110: 2154.375 | D110: 6049.202055
A111: 11479.59184 | B111: 1895.85 | C111: 2154.375 | D111: 6049.202055
A112: 11479.59184 | B112: 1895.85 | C112: 2154.375 | D112: 6049.202055
A113: 11479.59184 | B113: 1895.85 | C113: 2154.375 | D113: 6049.200597
A114: 11479.59184 | B114: 1895.85 | C114: 2154.375 | D114: 6036.332255
A115: 11479.59184 | B115: 1895.85 | C115: 2154.375 | D115: 5862.65059
A116: 11479.59184 | B116: 1895.85 | C116: 2154.375 | D116: 5862.65059
A117: 11479.59184 | B117: 1895.85 | C117: 2154.375 | D117: 5862.65059
A118: 11479.59184 | B118: 1895.85 | C118: 2154.375 | D118: 5862.65059
A119: 11479.59184 | B119: 1895.85 | C119: 2154.375 | D119: 5862.65059
A120: 11479.59184 | B120: 1895.85 | C120: 2154.375 | D120: 5862.65059
A121: 11479.59184 | B121: 1895.85 | C121: 2154.375 | D121: 5862.65059
A122: 11479.59184 | B122: 1895.85 | C122: 2154.375 | D122: 5862.65059
A123: 11479.59184 | B123: 1895.85 | C123: 2154.375 | D123: 5862.65059
A124: 11479.59184 | B124: 1895.85 | C124: 2154.375 | D124: 5862.65059
A125: 11479.59184 | B125: 1895.85 | C125: 2154.375 | D125: 5862.65059
A126: 11479.59184 | B126: 1895.85 | C126: 2154.375 | D126: 5862.65059
A127: 11479.59184 | B127: 1895.85 | C127: 2154.375 | D127: 5862.65059
A128: 11479.59184 | B128: 1895.85 | C128: 2154.375 | D128: 5862.65059
A129: 11479.59184 | B129: 1895.85 | C129: 2154.375 | D129: 5862.65059
A130: 11479.59184 | B130: 1895.85 | C130: 2154.375 | D130: 5862.65059
A131: 11479.59184 | B131: 1895.85 | C131: 2154.375 | D131: 5862.65059
A132: 11479.59184 | B132: 1895.85 | C132: 2154.375 | D132: 5862.65059
A133: 11479.59184 | B133: 1895.85 | C133: 2154.375 | D133: 5862.65059
A134: 11479.59184 | B134: 1895.85 | C134: 2154.375 | D134: 5862.65059
A135: 11479.59184 | B135: 1895.85 | C135: 2154.375 | D135: 5862.65059
A136: 11479.59184 | B136: 1895.85 | C136: 2154.375 | D136: 5862.65059
A137: 11479.59184 | B137: 1895.85 | C137: 2154.375 | D137: 5862.65059
A138: 11479.59184 | B138: 1895.85 | C138: 2154.375 | D138: 5862.65059
A139: 11479.59184 | B139: 1895.85 | C139: 2154.375 | D139: 5862.65059
A140: 11479.59184 | B140: 1895.85 | C140: 2154.375 | D140: 5862.65059
A141: 11479.59184 | B141: 1895.85 | C141: 2154.375 | D141: 5862.65059
A142: 11479.59184 | B142: 1895.85 | C142: 2154.375 | D142: 5862.65059
A143: 11479.59184 | B143: 1895.85 | C143: 2154.375 | D143: 5862.650585
A144: 11479.59184 | B144: 1895.85 | C144: 2154.375 | D144: 5862.635349
A145: 11479.59184 | B145: 1895.85 | C145: 2154.375 | D145: 5828.359084
A146: 11479.59184 | B146: 1895.85 | C146: 2154.375 | D146: 5828.359084
A147: 11479.59184 | B147: 1895.85 | C147: 2154.375 | D147: 5828.359084
A148: 11479.59184 | B148: 1895.85 | C148: 2154.375 | D148: 5828.359084
A149: 11479.59184 | B149: 1895.85 | C149: 2154.375 | D149: 5828.359084
A150: 11479.59184 | B150: 1895.85 | C150: 2154.375 | D150: 5828.359084
A151: 11479.59184 | B151: 1895.85 | C151: 2154.375 | D151: 5828.359084
A152: 11479.59184 | B152: 1895.85 | C152: 2154.375 | D152: 5828.359084
A153: 11479.59184 | B153: 1895.85 | C153: 2154.375 | D153: 5828.359084
A154: 11479.59184 | B154: 1895.85 | C154: 2154.375 | D154: 5828.359084
A155: 11479.59184 | B155: 1895.85 | C155: 2154.375 | D155: 5828.359084
A156: 11479.59184 | B156: 1895.85 | C156: 2154.375 | D156: 5828.359084
A157: 11479.59184 | B157: 1895.85 | C157: 2154.375 | D157: 5828.359084
A158: 11479.59184 | B158: 1895.85 | C158: 2154.375 | D158: 5828.359084
A159: 11479.59184 | B159: 1895.85 | C159: 2154.375 | D159: 5828.359084
A160: 11479.59184 | B160: 1895.85 | C160: 2154.375 | D160: 5828.359084
A161: 11479.59184 | B161: 1895.85 | C161: 2154.375 | D161: 5828.359084
A162: 11479.59184 | B162: 1895.85 | C162: 2154.375 | D162: 5828.359084
A163: 11479.59184 | B163: 1895.85 | C163: 2154.375 | D163: 5828.359084
A164: 11479.59184 | B164: 1895.85 | C164: 2154.375 | D164: 5828.359084
A165: 11479.59184 | B165: 1895.85 | C165: 2154.375 | D165: 5828.359084
A166: 11479.59184 | B166: 1895.85 | C166: 2154.375 | D166: 5828.359084
A167: 11479.59184 | B167: 1895.85 | C167: 2154.375 | D167: 5828.359084
A168: 11479.59184 | B168: 1895.85 | C168: 2154.375 | D168: 5828.359084
A169: 11479.59184 | B169: 1895.85 | C169: 2154.375 | D169: 5828.359084
A170: 11321.67153 | B170: 1895.85 | C170: 2154.375 | D170: 5828.359084
A171: 11321.67153 | B171: 1895.85 | C171: 2154.375 | D171: 5828.359041
A172: 11321.67153 | B172: 1895.85 | C172: 2154.375 | D172: 5827.974618
A173: 11321.67153 | B173: 1895.85 | C173: 2154.375 | D173: 5814.890408
A174: 11321.67153 | B174: 1895.85 | C174: 2154.375 | D174: 4856.287677
A175: 11321.67153 | B175: 1895.85 | C175: 2154.375 | D175: 4856.287677
A176: 11321.67153 | B176: 1895.85 | C176: 2154.375 | D176: 4856.287677
A177: 11321.67153 | B177: 1895.85 | C177: 2154.375 | D177: 4856.287677
A178: 11321.67153 | B178: 1895.85 | C178: 2154.375 | D178: 4856.287677
A179: 11321.67153 | B179: 1895.85 | C179: 2154.375 | D179: 4856.287677
A180: 11321.67153 | B180: 1895.85 | C180: 2154.375 | D180: 4856.287677
A181: 11321.67153 | B181: 1895.85 | C181: 2154.375 | D181: 4856.287677
A182: 11321.67153 | B182: 1895.85 | C182: 2154.375 | D182: 4856.287677
A183: 11321.67153 | B183: 1895.85 | C183: 2154.375 | D183: 4856.287677
A184: 11321.67153 | B184: 1895.85 | C184: 2154.375 | D184: 4856.287677
A185: 11321.67153 | B185: 1895.85 | C185: 2154.375 | D185: 4856.287677
A186: 11321.67153 | B186: 1895.85 | C186: 2154.375 | D186: 4856.287677
A187: 11321.67153 | B187: 1895.85 | C187: 2154.375 | D187: 4856.287677
A188: 11321.67153 | B188: 1895.85 | C188: 2154.375 | D188: 4856.287677
A189: 11321.67153 | B189: 1895.85 | C189: 2154.375 | D189: 4856.287677
A190: 11321.67153 | B190: 1895.85 | C190: 2154.375 | D190: 4856.287677
A191: 11321.67153 | B191: 1895.85 | C191: 2154.375 | D191: 4856.287677
A192: 11321.67153 | B192: 1895.85 | C192: 2154.375 | D192: 4856.287677
A193: 11321.67153 | B193: 1895.85 | C193: 2154.375 | D193: 4856.287677
A194: 11321.67153 | B194: 1895.85 | C194: 2154.375 | D194: 4856.287677
A195: 11321.67153 | B195: 1895.85 | C195: 2154.375 | D195: 4856.287677
A196: 11321.67153 | B196: 1895.85 | C196: 2154.375 | D196: 4856.287677
A197: 11321.67153 | B197: 1895.85 | C197: 2154.375 | D197: 4856.287677
A198: 11321.67153 | B198: 1895.85 | C198: 2154.375 | D198: 4856.287677
A199: 11321.67153 | B199: 1895.85 | C199: 2154.375 | D199: 4856.287677
A200: 11321.67153 | B200: 1895.85 | C200: 2154.375 | D200: 4856.287677
... 8562 more rows

Sheet FRECUENCIA

Sheet Cuadro resumen
A6: CUADRO RESUMEN DEL PROYECTO: HIPÓTESIS Y RESULTADOS
A7: Nombre: | B7: =RESUME!F28 -> ANÁLISIS ECONÓMICO DE PLANTA DE COGENERACIÓN SOLDEU
A9: ASPECTOS OPERATIVOS
F10: Inflaciones previstas para esas estimaciones iniciales:
A11: Volúmenes iniciales: | F11: Año 1 | G11: Año 2 | H11: Año 3 | I11: Año 4 | J11: Año 5 | K11: Año 6 | L11: Año 7 | M11: Año 8 | N11: Año 9 | O11: Año 10 | P11: Año 11 | Q11: Año 12 | R11: Año 13 | S11: Año 14 | T11: Año 15 | U11: Año 16 | V11: Año 17 | W11: Año 18 | X11: Año 19 | Y11: Año 20
A12: Venta de electricidad a la red (kWh) | D12: =RESUME!E40 -> 116762.04 | F12: =RESUME!F41 -> 0 | G12: =RESUME!G41 -> 0 | H12: =RESUME!H41 -> 0 | I12: =RESUME!I41 -> 0 | J12: =RESUME!J41 -> 0 | K12: =RESUME!K41 -> 0 | L12: =RESUME!L41 -> 0 | M12: =RESUME!M41 -> 0 | N12: =RESUME!N41 -> 0 | O12: =RESUME!O41 -> 0 | P12: =RESUME!P41 -> 0 | Q12: =RESUME!Q41 -> 0 | R12: =RESUME!R41 -> 0 | S12: =RESUME!S41 -> 0 | T12: =RESUME!T41 -> 0 | U12: =RESUME!U41 -> 0 | V12: =RESUME!V41 -> 0 | W12: =RESUME!W41 -> 0 | X12: =RESUME!X41 -> 0 | Y12: =RESUME!Y41 -> 0
A13: =RESUME!A43 -> Ingresos por energía térmica | D13: =RESUME!E43 -> 946080 | F13: =RESUME!F44 -> 0.02 | G13: =RESUME!G44 -> 0.02 | H13: =RESUME!H44 -> 0.02 | I13: =RESUME!I44 -> 0.02 | J13: =RESUME!J44 -> 0.02 | K13: =RESUME!K44 -> 0.02 | L13: =RESUME!L44 -> 0.02 | M13: =RESUME!M44 -> 0.02 | N13: =RESUME!N44 -> 0.02 | O13: =RESUME!O44 -> 0.02 | P13: =RESUME!P44 -> 0.02 | Q13: =RESUME!Q44 -> 0.02 | R13: =RESUME!R44 -> 0.02 | S13: =RESUME!S44 -> 0.02 | T13: =RESUME!T44 -> 0.02 | U13: =RESUME!U44 -> 0.02 | V13: =RESUME!V44 -> 0.02 | W13: =RESUME!W44 -> 0.02 | X13: =RESUME!X44 -> 0.02 | Y13: =RESUME!Y44 -> 0.02
A14: Precios iniciales:
A15: Tarifa eléctrica de venta a la red | D15: =RESUME!E38 -> 75 | F15: =RESUME!F39 -> 0.02 | G15: =RESUME!G39 -> 0.02 | H15: =RESUME!H39 -> 0.02 | I15: =RESUME!I39 -> 0.02 | J15: =RESUME!J39 -> 0.02 | K15: =RESUME!K39 -> 0.02 | L15: =RESUME!L39 -> 0.02 | M15: =RESUME!M39 -> 0.02 | N15: =RESUME!N39 -> 0.02 | O15: =RESUME!O39 -> 0.02 | P15: =RESUME!P39 -> 0.02 | Q15: =RESUME!Q39 -> 0.02 | R15: =RESUME!R39 -> 0.02 | S15: =RESUME!S39 -> 0.02 | T15: =RESUME!T39 -> 0.02 | U15: =RESUME!U39 -> 0.02 | V15: =RESUME!V39 -> 0.02 | W15: =RESUME!W39 -> 0.02 | X15: =RESUME!X39 -> 0.02 | Y15: =RESUME!Y39 -> 0.02
A16: =RESUME!A50 -> Mantenimiento de la instalación | D16: =RESUME!E50 -> 1718644.894 | F16: =RESUME!F54 -> 0.02 | G16: =RESUME!G54 -> 0.02 | H16: =RESUME!H54 -> 0.02 | I16: =RESUME!I54 -> 0.02 | J16: =RESUME!J54 -> 0.02 | K16: =RESUME!K54 -> 0.02 | L16: =RESUME!L54 -> 0.02 | M16: =RESUME!M54 -> 0.02 | N16: =RESUME!N54 -> 0.02 | O16: =RESUME!O54 -> 0.02 | P16: =RESUME!P54 -> 0.02 | Q16: =RESUME!Q54 -> 0.02 | R16: =RESUME!R54 -> 0.02 | S16: =RESUME!S54 -> 0.02 | T16: =RESUME!T54 -> 0.02 | U16: =RESUME!U54 -> 0.02 | V16: =RESUME!V54 -> 0.02 | W16: =RESUME!W54 -> 0.02 | X16: =RESUME!X54 -> 0.02 | Y16: =RESUME!Y54 -> 0.02
A17: =RESUME!A51 -> Servicios, alquileres, derechos y otros | D17: =RESUME!E51 -> 0 | F17: =RESUME!F54 -> 0.02 | G17: =RESUME!G54 -> 0.02 | H17: =RESUME!H54 -> 0.02 | I17: =RESUME!I54 -> 0.02 | J17: =RESUME!J54 -> 0.02 | K17: =RESUME!K54 -> 0.02 | L17: =RESUME!L54 -> 0.02 | M17: =RESUME!M54 -> 0.02 | N17: =RESUME!N54 -> 0.02 | O17: =RESUME!O54 -> 0.02 | P17: =RESUME!P54 -> 0.02 | Q17: =RESUME!Q54 -> 0.02 | R17: =RESUME!R54 -> 0.02 | S17: =RESUME!S54 -> 0.02 | T17: =RESUME!T54 -> 0.02 | U17: =RESUME!U54 -> 0.02 | V17: =RESUME!V54 -> 0.02 | W17: =RESUME!W54 -> 0.02 | X17: =RESUME!X54 -> 0.02 | Y17: =RESUME!Y54 -> 0.02
A19: ASPECTOS ECONÓMICO-FINANCIEROS
A20: Total de la inversión | E20: ='Capital, subvención y deuda'!E10 -> 10837468.5
A21: A financiar con recursos propios | E21: ='Balance,dividendos,VAN,IRR y PR'!E24 -> 10837468.5
A22: A financiar con subvención a fondo perdido | E22: ='Balance,dividendos,VAN,IRR y PR'!E23 -> 0
A23: A financiar con deuda | E23: ='Capital, subvención y deuda'!E17 -> 0
A24: Plazo de devolución | E24: ='Capital, subvención y deuda'!E18 -> 20
A25: Tipo de interés | E25: ='Capital, subvención y deuda'!E24 -> 0.07
A26: Necesidades operativas de fondos (NOF) como % de las ventas | E26: ='P&L y Cash Flow'!F36 -> 0.2
A27: Tasa de descuento aplicada para calcular el VAN de la inversión | E27: ='Balance,dividendos,VAN,IRR y PR'!E65 -> 0.12
A29: RESULTADOS
E30: Año 0 | F30: Año 1 | G30: Año 2 | H30: Año 3 | I30: Año 4 | J30: Año 5 | K30: Año 6 | L30: Año 7 | M30: Año 8 | N30: Año 9 | O30: Año 10 | P30: Año 11 | Q30: Año 12 | R30: Año 13 | S30: Año 14 | T30: Año 15 | U30: Año 16 | V30: Año 17 | W30: Año 18 | X30: Año 19 | Y30: Año 20
A31: Total de ingresos operativos | E31: =RESUME!E47 -> 0 | F31: =RESUME!F47 -> 9897297.66 | G31: =RESUME!G47 -> 10095243.61 | H31: =RESUME!H47 -> 10297148.49 | I31: =RESUME!I47 -> 10503091.46 | J31: =RESUME!J47 -> 10713153.28 | K31: =RESUME!K47 -> 10927416.35 | L31: =RESUME!L47 -> 11145964.68 | M31: =RESUME!M47 -> 11368883.97 | N31: =RESUME!N47 -> 11596261.65 | O31: =RESUME!O47 -> 11828186.88 | P31: =RESUME!P47 -> 12064750.62 | Q31: =RESUME!Q47 -> 12306045.63 | R31: =RESUME!R47 -> 12552166.55 | S31: =RESUME!S47 -> 12803209.88 | T31: =RESUME!T47 -> 13059274.07 | U31: =RESUME!U47 -> 13320459.56 | V31: =RESUME!V47 -> 13586868.75 | W31: =RESUME!W47 -> 13858606.12 | X31: =RESUME!X47 -> 14135778.24 | Y31: =RESUME!Y47 -> 14418493.81
A32: Margen operativo bruto | E32: =RESUME!E59 -> 0 | F32: =RESUME!F59 -> 1710935.868 | G32: =RESUME!G59 -> 1745154.585 | H32: =RESUME!H59 -> 1780057.677 | I32: =RESUME!I59 -> 1815658.83 | J32: =RESUME!J59 -> 1851972.007 | K32: =RESUME!K59 -> 1889011.447 | L32: =RESUME!L59 -> 1926791.676 | M32: =RESUME!M59 -> 1965327.51 | N32: =RESUME!N59 -> 2004634.06 | O32: =RESUME!O59 -> 2044726.741 | P32: =RESUME!P59 -> 2085621.276 | Q32: =RESUME!Q59 -> 2127333.701 | R32: =RESUME!R59 -> 2169880.375 | S32: =RESUME!S59 -> 2213277.983 | T32: =RESUME!T59 -> 2257543.542 | U32: =RESUME!U59 -> 2302694.413 | V32: =RESUME!V59 -> 2348748.302 | W32: =RESUME!W59 -> 2395723.268 | X32: =RESUME!X59 -> 2443637.733 | Y32: =RESUME!Y59 -> 2492510.488
A33: Beneficio neto | E33: ='P&L y Cash Flow'!E19 -> 0 | F33: ='P&L y Cash Flow'!F19 -> 859260.8953 | G33: ='P&L y Cash Flow'!G19 -> 884411.6525 | H33: ='P&L y Cash Flow'!H19 -> 910065.4249 | I33: ='P&L y Cash Flow'!I19 -> 936232.2728 | J33: ='P&L y Cash Flow'!J19 -> 962922.4576 | K33: ='P&L y Cash Flow'!K19 -> 990146.4461 | L33: ='P&L y Cash Flow'!L19 -> 1017914.914 | M33: ='P&L y Cash Flow'!M19 -> 1046238.752 | N33: ='P&L y Cash Flow'!N19 -> 1075129.066 | O33: ='P&L y Cash Flow'!O19 -> 1104597.187 | P33: ='P&L y Cash Flow'!P19 -> 1134654.67 | Q33: ='P&L y Cash Flow'!Q19 -> 1165313.303 | R33: ='P&L y Cash Flow'!R19 -> 1196585.108 | S33: ='P&L y Cash Flow'!S19 -> 1228482.35 | T33: ='P&L y Cash Flow'!T19 -> 1261017.536 | U33: ='P&L y Cash Flow'!U19 -> 1294203.426 | V33: ='P&L y Cash Flow'!V19 -> 1328053.034 | W33: ='P&L y Cash Flow'!W19 -> 1362579.634 | X33: ='P&L y Cash Flow'!X19 -> 1397796.766 | Y33: ='P&L y Cash Flow'!Y19 -> 1433718.241
A34: Flujo de caja disponible para el servicio de la deuda (FCD) | E34: ='P&L y Cash Flow'!E39 -> 0 | F34: ='P&L y Cash Flow'!F39 -> -578325.2116 | G34: ='P&L y Cash Flow'!G39 -> 1386695.887 | H34: ='P&L y Cash Flow'!H39 -> 1411557.876 | I34: ='P&L y Cash Flow'!I39 -> 1436917.104 | J34: ='P&L y Cash Flow'!J39 -> 1462783.517 | K34: ='P&L y Cash Flow'!K39 -> 1489167.258 | L34: ='P&L y Cash Flow'!L39 -> 1516078.674 | M34: ='P&L y Cash Flow'!M39 -> 1543528.318 | N34: ='P&L y Cash Flow'!N39 -> 1571526.956 | O34: ='P&L y Cash Flow'!O39 -> 1600085.566 | P34: ='P&L y Cash Flow'!P39 -> 1629215.348 | Q34: ='P&L y Cash Flow'!Q39 -> 1658927.726 | R34: ='P&L y Cash Flow'!R39 -> 1689234.351 | S34: ='P&L y Cash Flow'!S39 -> 1720147.109 | T34: ='P&L y Cash Flow'!T39 -> 1751678.122 | U34: ='P&L y Cash Flow'!U39 -> 1783839.755 | V34: ='P&L y Cash Flow'!V39 -> 1816644.621 | W34: ='P&L y Cash Flow'!W39 -> 1850105.584 | X34: ='P&L y Cash Flow'!X39 -> 1884235.767 | Y34: ='P&L y Cash Flow'!Y39 -> 1919048.553
A35: Servicio a la deuda anual | E35: ='Capital, subvención y deuda'!E29 -> 0 | F35: ='Capital, subvención y deuda'!F29 -> 0 | G35: ='Capital, subvención y deuda'!G29 -> 0 | H35: ='Capital, subvención y deuda'!H29 -> 0 | I35: ='Capital, subvención y deuda'!I29 -> 0 | J35: ='Capital, subvención y deuda'!J29 -> 0 | K35: ='Capital, subvención y deuda'!K29 -> 0 | L35: ='Capital, subvención y deuda'!L29 -> 0 | M35: ='Capital, subvención y deuda'!M29 -> 0 | N35: ='Capital, subvención y deuda'!N29 -> 0 | O35: ='Capital, subvención y deuda'!O29 -> 0 | P35: ='Capital, subvención y deuda'!P29 -> 0 | Q35: ='Capital, subvención y deuda'!Q29 -> 0 | R35: ='Capital, subvención y deuda'!R29 -> 0 | S35: ='Capital, subvención y deuda'!S29 -> 0 | T35: ='Capital, subvención y deuda'!T29 -> 0 | U35: ='Capital, subvención y deuda'!U29 -> 0 | V35: ='Capital, subvención y deuda'!V29 -> 0 | W35: ='Capital, subvención y deuda'!W29 -> 0 | X35: ='Capital, subvención y deuda'!X29 -> 0 | Y35: ='Capital, subvención y deuda'!Y29 -> 0
A36: Ratio de cobertura del servicio anual de la deuda (RCSD) | E36: ='P&L y Cash Flow'!E48 -> 0 | F36: ='P&L y Cash Flow'!F48 ->  | G36: ='P&L y Cash Flow'!G48 ->  | H36: ='P&L y Cash Flow'!H48 ->  | I36: ='P&L y Cash Flow'!I48 ->  | J36: ='P&L y Cash Flow'!J48 ->  | K36: ='P&L y Cash Flow'!K48 ->  | L36: ='P&L y Cash Flow'!L48 ->  | M36: ='P&L y Cash Flow'!M48 ->  | N36: ='P&L y Cash Flow'!N48 ->  | O36: ='P&L y Cash Flow'!O48 ->  | P36: ='P&L y Cash Flow'!P48 ->  | Q36: ='P&L y Cash Flow'!Q48 ->  | R36: ='P&L y Cash Flow'!R48 ->  | S36: ='P&L y Cash Flow'!S48 ->  | T36: ='P&L y Cash Flow'!T48 ->  | U36: ='P&L y Cash Flow'!U48 ->  | V36: ='P&L y Cash Flow'!V48 ->  | W36: ='P&L y Cash Flow'!W48 ->  | X36: ='P&L y Cash Flow'!X48 ->  | Y36: ='P&L y Cash Flow'!Y48 -> 
A37: Dividendos distribuibles anualmente | E37: ='Balance,dividendos,VAN,IRR y PR'!E38 -> 0 | F37: ='Balance,dividendos,VAN,IRR y PR'!F38 -> 0 | G37: ='Balance,dividendos,VAN,IRR y PR'!G38 -> 1386695.887 | H37: ='Balance,dividendos,VAN,IRR y PR'!H38 -> 1267042.086 | I37: ='Balance,dividendos,VAN,IRR y PR'!I38 -> 936232.2728 | J37: ='Balance,dividendos,VAN,IRR y PR'!J38 -> 962922.4576 | K37: ='Balance,dividendos,VAN,IRR y PR'!K38 -> 990146.4461 | L37: ='Balance,dividendos,VAN,IRR y PR'!L38 -> 1017914.914 | M37: ='Balance,dividendos,VAN,IRR y PR'!M38 -> 1046238.752 | N37: ='Balance,dividendos,VAN,IRR y PR'!N38 -> 1075129.066 | O37: ='Balance,dividendos,VAN,IRR y PR'!O38 -> 1104597.187 | P37: ='Balance,dividendos,VAN,IRR y PR'!P38 -> 1134654.67 | Q37: ='Balance,dividendos,VAN,IRR y PR'!Q38 -> 1165313.303 | R37: ='Balance,dividendos,VAN,IRR y PR'!R38 -> 1196585.108 | S37: ='Balance,dividendos,VAN,IRR y PR'!S38 -> 1228482.35 | T37: ='Balance,dividendos,VAN,IRR y PR'!T38 -> 1261017.536 | U37: ='Balance,dividendos,VAN,IRR y PR'!U38 -> 1294203.426 | V37: ='Balance,dividendos,VAN,IRR y PR'!V38 -> 1328053.034 | W37: ='Balance,dividendos,VAN,IRR y PR'!W38 -> 1362579.634 | X37: ='Balance,dividendos,VAN,IRR y PR'!X38 -> 1397796.766 | Y37: ='Balance,dividendos,VAN,IRR y PR'!Y38 -> 1433718.241
A38: VAN de la inversión para el accionista | E38: ='Balance,dividendos,VAN,IRR y PR'!E69 -> -3286841.179
A39: TIR de la inversión para el accionista | E39: ='Balance,dividendos,VAN,IRR y PR'!E73 -> 0.07381837748
A40: Período de retorno (pay-back) de la inversión para el accionista | E40: ='Balance,dividendos,VAN,IRR y PR'!D84 -> 0 | F40: =J40 ->  | G40: ='Balance,dividendos,VAN,IRR y PR'!F84 ->  | H40: ='Balance,dividendos,VAN,IRR y PR'!G84 ->  | I40: ='Balance,dividendos,VAN,IRR y PR'!H84 ->  | J40: ='Balance,dividendos,VAN,IRR y PR'!I84 ->  | K40: ='Balance,dividendos,VAN,IRR y PR'!J84 ->  | L40: ='Balance,dividendos,VAN,IRR y PR'!K84 ->  | M40: ='Balance,dividendos,VAN,IRR y PR'!L84 ->  | N40: ='Balance,dividendos,VAN,IRR y PR'!M84 ->  | O40: ='Balance,dividendos,VAN,IRR y PR'!N84 ->  | P40: ='Balance,dividendos,VAN,IRR y PR'!O84 -> 10 | Q40: ='Balance,dividendos,VAN,IRR y PR'!P84 -> 0 | R40: ='Balance,dividendos,VAN,IRR y PR'!Q84 -> 0 | S40: ='Balance,dividendos,VAN,IRR y PR'!R84 -> 0 | T40: ='Balance,dividendos,VAN,IRR y PR'!S84 -> 0 | U40: ='Balance,dividendos,VAN,IRR y PR'!T84 -> 0 | V40: ='Balance,dividendos,VAN,IRR y PR'!U84 -> 0 | W40: ='Balance,dividendos,VAN,IRR y PR'!V84 -> 0 | X40: ='Balance,dividendos,VAN,IRR y PR'!W84 -> 0 | Y40: ='Balance,dividendos,VAN,IRR y PR'!X84 -> 0
D41: y | E41: ='Balance,dividendos,VAN,IRR y PR'!D85 -> 0 | F41: =J41 ->  | G41: ='Balance,dividendos,VAN,IRR y PR'!F85 ->  | H41: ='Balance,dividendos,VAN,IRR y PR'!G85 ->  | I41: ='Balance,dividendos,VAN,IRR y PR'!H85 ->  | J41: ='Balance,dividendos,VAN,IRR y PR'!I85 ->  | K41: ='Balance,dividendos,VAN,IRR y PR'!J85 ->  | L41: ='Balance,dividendos,VAN,IRR y PR'!K85 ->  | M41: ='Balance,dividendos,VAN,IRR y PR'!L85 ->  | N41: ='Balance,dividendos,VAN,IRR y PR'!M85 ->  | O41: ='Balance,dividendos,VAN,IRR y PR'!N85 ->  | P41: ='Balance,dividendos,VAN,IRR y PR'!O85 -> 11.11051101 | Q41: ='Balance,dividendos,VAN,IRR y PR'!P85 -> 0 | R41: ='Balance,dividendos,VAN,IRR y PR'!Q85 -> 0 | S41: ='Balance,dividendos,VAN,IRR y PR'!R85 -> 0 | T41: ='Balance,dividendos,VAN,IRR y PR'!S85 -> 0 | U41: ='Balance,dividendos,VAN,IRR y PR'!T85 -> 0 | V41: ='Balance,dividendos,VAN,IRR y PR'!U85 -> 0 | W41: ='Balance,dividendos,VAN,IRR y PR'!V85 -> 0 | X41: ='Balance,dividendos,VAN,IRR y PR'!W85 -> 0 | Y41: ='Balance,dividendos,VAN,IRR y PR'!X85 -> 0

Sheet Amortización
A6: CÁLCULO DE LA AMORTIZACIÓN
E9: Año 0 | F9: Año 1 | G9: Año 2 | H9: Año 3 | I9: Año 4 | J9: Año 5 | K9: Año 6 | L9: Año 7 | M9: Año 8 | N9: Año 9 | O9: Año 10 | P9: Año 11 | Q9: Año 12 | R9: Año 13 | S9: Año 14 | T9: Año 15 | U9: Año 16 | V9: Año 17 | W9: Año 18 | X9: Año 19 | Y9: Año 20
A10: Inversión inicial en inmovilizado | E10: =RESUME!N6*RESUME!N9 -> 10837468.5
A11: Período de amortización (años) | E11: =RESUME!N19 -> 20
A12: Inversión inicial en gastos amortizables | E12: 0
A13: Período de amortización (años) | E13: 5
A14: Amortización del inmovilizado | F14: =$E$10/$E$11 -> 541873.4252 | G14: =$E$10/$E$11 -> 541873.4252 | H14: 541873.4252 | I14: 541873.4252 | J14: 541873.4252 | K14: 541873.4252 | L14: 541873.4252 | M14: 541873.4252 | N14: 541873.4252 | O14: 541873.4252 | P14: 541873.4252 | Q14: 541873.4252 | R14: 541873.4252 | S14: 541873.4252 | T14: 541873.4252 | U14: 541873.4252 | V14: 541873.4252 | W14: 541873.4252 | X14: 541873.4252 | Y14: 541873.4252
A15: Amortización de los gastos amortizables | F15: =$E$12/$E$13 -> 0 | G15: =$E$12/$E$13 -> 0 | H15: =$E$12/$E$13 -> 0 | I15: =$E$12/$E$13 -> 0 | J15: =$E$12/$E$13 -> 0
A17: TOTAL AMORTIZACIÓN | F17: =SUM(F14:F15) -> 541873.4252 | G17: =SUM(G14:G15) -> 541873.4252 | H17: 541873.4252 | I17: 541873.4252 | J17: 541873.4252 | K17: 541873.4252 | L17: 541873.4252 | M17: 541873.4252 | N17: 541873.4252 | O17: 541873.4252 | P17: 541873.4252 | Q17: 541873.4252 | R17: 541873.4252 | S17: 541873.4252 | T17: 541873.4252 | U17: 541873.4252 | V17: 541873.4252 | W17: 541873.4252 | X17: 541873.4252 | Y17: 541873.4252
A19: Evolución del inmovilizado y de los gastos amortizables | E19: Año 0 | F19: Año 1 | G19: Año 2 | H19: Año 3 | I19: Año 4 | J19: Año 5 | K19: Año 6 | L19: Año 7 | M19: Año 8 | N19: Año 9 | O19: Año 10 | P19: Año 11 | Q19: Año 12 | R19: Año 13 | S19: Año 14 | T19: Año 15 | U19: Año 16 | V19: Año 17 | W19: Año 18 | X19: Año 19 | Y19: Año 20
A21: Inmovilizado bruto a final de año | E21: =E10 -> 10837468.5 | F21: =E21 -> 10837468.5 | G21: =F21 -> 10837468.5 | H21: 10837468.5 | I21: 10837468.5 | J21: 10837468.5 | K21: 10837468.5 | L21: 10837468.5 | M21: 10837468.5 | N21: 10837468.5 | O21: 10837468.5 | P21: 10837468.5 | Q21: 10837468.5 | R21: 10837468.5 | S21: 10837468.5 | T21: 10837468.5 | U21: 10837468.5 | V21: 10837468.5 | W21: 10837468.5 | X21: 10837468.5 | Y21: 10837468.5
A22: Amortización acumulada | E22: 0 | F22: =F14+E22 -> 541873.4252 | G22: =G14+F22 -> 1083746.85 | H22: 1625620.275 | I22: 2167493.701 | J22: 2709367.126 | K22: 3251240.551 | L22: 3793113.976 | M22: 4334987.401 | N22: 4876860.826 | O22: 5418734.252 | P22: 5960607.677 | Q22: 6502481.102 | R22: 7044354.527 | S22: 7586227.952 | T22: 8128101.377 | U22: 8669974.802 | V22: 9211848.228 | W22: 9753721.653 | X22: 10295595.08 | Y22: 10837468.5
A23: Inmovilizado neto | E23: =E21-E22 -> 10837468.5 | F23: =F21-F22 -> 10295595.08 | G23: 9753721.653 | H23: 9211848.228 | I23: 8669974.802 | J23: 8128101.377 | K23: 7586227.952 | L23: 7044354.527 | M23: 6502481.102 | N23: 5960607.677 | O23: 5418734.252 | P23: 4876860.826 | Q23: 4334987.401 | R23: 3793113.976 | S23: 3251240.551 | T23: 2709367.126 | U23: 2167493.701 | V23: 1625620.275 | W23: 1083746.85 | X23: 541873.4252 | Y23: 0
A25: Gastos amortizables brutos | E25: =E12 -> 0 | F25: =E25 -> 0 | G25: =F25 -> 0 | H25: 0 | I25: 0 | J25: 0 | K25: 0 | L25: 0 | M25: 0 | N25: 0 | O25: 0 | P25: 0 | Q25: 0 | R25: 0 | S25: 0 | T25: 0 | U25: 0 | V25: 0 | W25: 0 | X25: 0 | Y25: 0
A26: Amortización acumulada | E26: 0 | F26: =F15+E26 -> 0 | G26: =G15+F26 -> 0 | H26: 0 | I26: 0 | J26: 0 | K26: 0 | L26: 0 | M26: 0 | N26: 0 | O26: 0 | P26: 0 | Q26: 0 | R26: 0 | S26: 0 | T26: 0 | U26: 0 | V26: 0 | W26: 0 | X26: 0 | Y26: 0
A27: Gastos amortizables netos | E27: =E25-E26 -> 0 | F27: =F25-F26 -> 0 | G27: 0 | H27: 0 | I27: 0 | J27: 0 | K27: 0 | L27: 0 | M27: 0 | N27: 0 | O27: 0 | P27: 0 | Q27: 0 | R27: 0 | S27: 0 | T27: 0 | U27: 0 | V27: 0 | W27: 0 | X27: 0 | Y27: 0

Sheet Calculos
A1: HORA | B1: dia | C1: MES | D1: DIA DEL MES | E1: Calefacción | F1: ACS | G1: Agua fría | H1: Proceso | I1: Pérdidas red | J1: Calor total | K1: Calor Cog | L1: Alm | M1: Apoyo | N1: E.Eléctrica M1 | O1: E. Eléc. M2 | P1: E. Eléctrica M3 | Q1: Consumo gas caldera | R1: Consumo gas motores | S1: Consumo gas total | W1: D (kW) | Y1: m_secun (Kg/s) | Z1: T Secun Intercamb ºC | AA1: m_primario (Kg/s) | AB1: Ener Sale ALM (kWh) | AC1: SALDO ini (kWh) | AD1: SALDO fin (kWh) | AE1: Energia AP (kWh) | AF1: Temp ini Alm ºC | AG1: Temp Fin Alm ºC | AI1: T_ini (ºC) | AJ1: T_fin primario | AL1: M1 marcha | AM1: M2 marcha | AN1: M3 marcha | AO1: G_Humos (kWh) | AP1: AP (marcha_paro) | AQ1: G_tot_motores (kWh) | AR1: G_AP (kWh) | AS1: G_elec (kWhe) | AU1: G_AT_M1 | AV1: G_AT_M2 | AW1: G_AT_M3 | AX1: G_BT_M1 | AY1: G_BT_M2 | AZ1: G_BT_M3 | BA1: G_AT+BT | BC1: Arr M1 | BD1: Arr M2 | BE1: Arr M3 | BG1: Arr Baja Calidad M1 | BH1: Arr Baja Calidad M2 | BI1: Arr Baja Calidad M3
A2: 0 | B2: 1 | C2: 1 | D2: 1 | E2: ='HEAT DEMAND'!E29 -> 4285.714286 | F2: ='HEAT DEMAND'!F29 -> 0 | G2: ='HEAT DEMAND'!G29 -> 238.0952381 | H2: ='HEAT DEMAND'!H29 -> 0 | I2: ='HEAT DEMAND'!I29 -> 92.32264334 | J2: ='HEAT DEMAND'!J29 -> 4616.132167 | K2: ='HEAT DEMAND'!K29 ->  | L2: =#REF! ->  | M2: ='HEAT DEMAND'!L29 ->  | N2: ='HEAT DEMAND'!M29 -> 18 | O2: ='HEAT DEMAND'!N29 -> 0 | P2: ='HEAT DEMAND'!O29 -> 0 | Q2: ='HEAT DEMAND'!P29 -> 0 | R2: ='HEAT DEMAND'!Q29 -> 0 | S2: ='HEAT DEMAND'!R29 -> 0 | T2: ='HEAT DEMAND'!S29 -> 0 | W2: =J2 -> 4616.132167 | Y2: =W2/(4.18*('Plant configuration'!$E$27-'Plant configuration'!$C$27)) -> 27.60844598 | Z2: =IF(AF2-'Plant configuration'!$A$27<=70,AF2-'Plant configuration'!$A$27,70) -> 54.668224 | AA2: =IF((Y2*(Z2-'Plant configuration'!$C$27)/(Calculos!AF2-('Plant configuration'!$C$27+'Plant configuration'!$A$27)))<='Plant configuration'!$H$18,(Y2*(Z2-'Plant configuration'!$C$27)/(Calculos!AF2-('Plant configuration'!$C$27+'Plant configuration'!$A$27))),'Plant configuration'!$H$18) -> 27.60844598 | AB2: =Y2*4.18*(Z2-'Plant configuration'!$C$27) -> 2846.794558 | AC2: ='Plant configuration'!C18 -> 37292.64 | AD2: =AC2-AB2+AQ2 -> 34453.04544 | AE2: =W2-AB2 -> 1769.337609 | AF2: =(AC2/'Plant configuration'!D18)*'Plant configuration'!F18 -> 59.668224 | AG2: =AD2*120/'Plant configuration'!$D$18 -> 55.12487271 | AI2: =AF2 -> 59.668224 | AJ2: ='Plant configuration'!$C$27+'Plant configuration'!$A$27 -> 35 | AL2: =IF(AF2<'Plant configuration'!$A$23,1,0) -> 1 | AM2: =IF(AF2<'Plant configuration'!$C$23,1,0) -> 1 | AN2: =IF('Plant configuration'!$C$14>0,IF(AF2<'Plant configuration'!$E$23,1,0),0) -> 0 | AO2: =AL2*'Plant configuration'!$D$12+Calculos!AM2*'Plant configuration'!$D$13+Calculos!AN2*'Plant configuration'!$D$14 -> 7.2 | AP2: =IF(Z2<'Plant configuration'!$G$23,1,0) -> 1 | AQ2: =AO2+BA2 -> 7.2 | AR2: =AE2*AP2 -> 1769.337609 | AS2: =(AL2*'Plant configuration'!$B$12+Calculos!AM2*'Plant configuration'!$B$13+Calculos!AN2*'Plant configuration'!$B$14) -> 18 | AU2: =IF(AL2=1,IF(AF2<90,'Plant configuration'!$E$12,0),0) -> 0 | AV2: =IF(AM2=1,IF(AF2<90,'Plant configuration'!$E$13,0),0) -> 0 | AW2: =IF(AN2=1,IF(AF2<90,'Plant configuration'!$E$14,0),0) -> 0 | AX2: =IF(AL2=1,IF(Y2<='Plant configuration'!$A$31,0,'Plant configuration'!$F$12),0) -> 0 | AY2: =IF(AM2=1,IF(Y2<='Plant configuration'!$A$31,0,'Plant configuration'!$F$13),0) -> 0 | AZ2: =IF(AN2=1,IF(Y2<='Plant configuration'!$A$31,0,'Plant configuration'!$F$14),0) -> 0 | BA2: =AU2+AV2+AW2+AX2+AY2+AZ2 -> 0 | BC2: =AL2 -> 1 | BD2: =AM2 -> 1 | BE2: =AN2 -> 0
A3: 1 | B3: 1 | C3: 1 | D3: 1 | E3: ='HEAT DEMAND'!E30 -> 4285.714286 | F3: ='HEAT DEMAND'!F30 -> 0 | G3: ='HEAT DEMAND'!G30 -> 238.0952381 | H3: ='HEAT DEMAND'!H30 -> 0 | I3: ='HEAT DEMAND'!I30 -> 92.32264334 | J3: ='HEAT DEMAND'!J30 -> 4616.132167 | K3: ='HEAT DEMAND'!K30 ->  | L3: =IF(#REF!>=0,IF(#REF!>=#REF!,IF(#REF!>=Calculos!$G$8,'HEAT DEMAND'!$G$8,Calculos!#REF!),Calculos!#REF!),IF(Calculos!#REF!>=Calculos!$I$8,Calculos!#REF!,Calculos!#REF!)) ->  | M3: ='HEAT DEMAND'!L30 ->  | N3: ='HEAT DEMAND'!M30 -> 18 | O3: ='HEAT DEMAND'!N30 -> 0 | P3: ='HEAT DEMAND'!O30 -> 0 | Q3: ='HEAT DEMAND'!P30 -> 0 | R3: ='HEAT DEMAND'!Q30 -> 0 | S3: ='HEAT DEMAND'!R30 -> 0 | T3: ='HEAT DEMAND'!S30 -> 0 | W3: =J3 -> 4616.132167 | Y3: =W3/(4.18*('Plant configuration'!$E$27-'Plant configuration'!$C$27)) -> 27.60844598 | Z3: =IF(AF3-'Plant configuration'!$A$27<=70,AF3-'Plant configuration'!$A$27,70) -> 50.12487271 | AA3: =IF((Y3*(Z3-'Plant configuration'!$C$27)/(Calculos!AF3-('Plant configuration'!$C$27+'Plant configuration'!$A$27)))<='Plant configuration'!$H$18,(Y3*(Z3-'Plant configuration'!$C$27)/(Calculos!AF3-('Plant configuration'!$C$27+'Plant configuration'!$A$27))),'Plant configuration'!$H$18) -> 27.60844598 | AB3: =Y3*4.18*(Z3-'Plant configuration'!$C$27) -> 2322.476807 | AC3: =AD2 -> 34453.04544 | AD3: 32137.76864 | AE3: =W3-AB3 -> 2293.655361 | AF3: =AG2 -> 55.12487271 | AG3: =AD3*120/'Plant configuration'!$D$18 -> 51.42042982 | AI3: 55.12487271 | AJ3: ='Plant configuration'!$C$27+'Plant configuration'!$A$27 -> 35 | AL3: =IF(AF3<'Plant configuration'!$A$23,1,0) -> 1 | AM3: =IF(AF3<'Plant configuration'!$C$23,1,0) -> 1 | AN3: =IF('Plant configuration'!$C$14>0,IF(AF3<'Plant configuration'!$E$23,1,0),0) -> 0 | AO3: =AL3*'Plant configuration'!$D$12+Calculos!AM3*'Plant configuration'!$D$13+Calculos!AN3*'Plant configuration'!$D$14 -> 7.2 | AP3: =IF(Z3<'Plant configuration'!$G$23,1,0) -> 1 | AQ3: =AO3+BA3 -> 7.2 | AR3: 2293.655361 | AS3: =(AL3*'Plant configuration'!$B$12+Calculos!AM3*'Plant configuration'!$B$13+Calculos!AN3*'Plant configuration'!$B$14) -> 18 | AU3: =IF(AL3=1,IF(AF3<90,'Plant configuration'!$E$12,0),0) -> 0 | AV3: =IF(AM3=1,IF(AF3<90,'Plant configuration'!$E$13,0),0) -> 0 | AW3: =IF(AN3=1,IF(AF3<90,'Plant configuration'!$E$14,0),0) -> 0 | AX3: =IF(AL3=1,IF(Y3<='Plant configuration'!$A$31,0,'Plant configuration'!$F$12),0) -> 0 | AY3: =IF(AM3=1,IF(Y3<='Plant configuration'!$A$31,0,'Plant configuration'!$F$13),0) -> 0 | AZ3: =IF(AN3=1,IF(Y3<='Plant configuration'!$A$31,0,'Plant configuration'!$F$14),0) -> 0 | BA3: =AU3+AV3+AW3+AX3+AY3+AZ3 -> 0 | BC3: =IF(AL2=0,IF(AL3=1,1,0),0) -> 0 | BD3: =IF(AM2=0,IF(AM3=1,1,0),0) -> 0 | BE3: =IF(AN2=0,IF(AN3=1,1,0),0) -> 0
A4: 2 | B4: 1 | C4: 1 | D4: 1 | E4: ='HEAT DEMAND'!E31 -> 4285.714286 | F4: ='HEAT DEMAND'!F31 -> 0 | G4: ='HEAT DEMAND'!G31 -> 238.0952381 | H4: ='HEAT DEMAND'!H31 -> 0 | I4: ='HEAT DEMAND'!I31 -> 92.32264334 | J4: ='HEAT DEMAND'!J31 -> 4616.132167 | K4: ='HEAT DEMAND'!K31 ->  | L4: =IF(#REF!>=0,IF(#REF!>=#REF!,IF(#REF!>=Calculos!$G$8,'HEAT DEMAND'!$G$8,Calculos!#REF!),Calculos!#REF!),IF(Calculos!#REF!>=Calculos!$I$8,Calculos!#REF!,Calculos!#REF!)) ->  | M4: ='HEAT DEMAND'!L31 ->  | N4: ='HEAT DEMAND'!M31 -> 18 | O4: ='HEAT DEMAND'!N31 -> 0 | P4: ='HEAT DEMAND'!O31 -> 0 | Q4: ='HEAT DEMAND'!P31 -> 0 | R4: ='HEAT DEMAND'!Q31 -> 0 | S4: ='HEAT DEMAND'!R31 -> 0 | T4: ='HEAT DEMAND'!S31 -> 0 | W4: 4616.132167 | Y4: =W4/(4.18*('Plant configuration'!$E$27-'Plant configuration'!$C$27)) -> 27.60844598 | Z4: =IF(AF4-'Plant configuration'!$A$27<=70,AF4-'Plant configuration'!$A$27,70) -> 46.42042982 | AA4: =IF((Y4*(Z4-'Plant configuration'!$C$27)/(Calculos!AF4-('Plant configuration'!$C$27+'Plant configuration'!$A$27)))<='Plant configuration'!$H$18,(Y4*(Z4-'Plant configuration'!$C$27)/(Calculos!AF4-('Plant configuration'!$C$27+'Plant configuration'!$A$27))),'Plant configuration'!$H$18) -> 27.60844598 | AB4: =Y4*4.18*(Z4-'Plant configuration'!$C$27) -> 1894.971857 | AC4: =AD3 -> 32137.76864 | AD4: 30249.99678 | AE4: 2721.16031 | AF4: =AG3 -> 51.42042982 | AG4: =AD4*120/'Plant configuration'!$D$18 -> 48.39999485 | AI4: 51.42042982 | AJ4: ='Plant configuration'!$C$27+'Plant configuration'!$A$27 -> 35 | AL4: =IF(AF4<'Plant configuration'!$A$23,1,0) -> 1 | AM4: =IF(AF4<'Plant configuration'!$C$23,1,0) -> 1 | AN4: =IF('Plant configuration'!$C$14>0,IF(AF4<'Plant configuration'!$E$23,1,0),0) -> 0 | AO4: =AL4*'Plant configuration'!$D$12+Calculos!AM4*'Plant configuration'!$D$13+Calculos!AN4*'Plant configuration'!$D$14 -> 7.2 | AP4: =IF(Z4<'Plant configuration'!$G$23,1,0) -> 1 | AQ4: 7.2 | AR4: 2721.16031 | AS4: =(AL4*'Plant configuration'!$B$12+Calculos!AM4*'Plant configuration'!$B$13+Calculos!AN4*'Plant configuration'!$B$14) -> 18 | AU4: =IF(AL4=1,IF(AF4<90,'Plant configuration'!$E$12,0),0) -> 0 | AV4: =IF(AM4=1,IF(AF4<90,'Plant configuration'!$E$13,0),0) -> 0 | AW4: =IF(AN4=1,IF(AF4<90,'Plant configuration'!$E$14,0),0) -> 0 | AX4: =IF(AL4=1,IF(Y4<='Plant configuration'!$A$31,0,'Plant configuration'!$F$12),0) -> 0 | AY4: =IF(AM4=1,IF(Y4<='Plant configuration'!$A$31,0,'Plant configuration'!$F$13),0) -> 0 | AZ4: =IF(AN4=1,IF(Y4<='Plant configuration'!$A$31,0,'Plant configuration'!$F$14),0) -> 0 | BA4: 0 | BC4: 0 | BD4: 0 | BE4: 0
A5: 3 | B5: 1 | C5: 1 | D5: 1 | E5: ='HEAT DEMAND'!E32 -> 4285.714286 | F5: ='HEAT DEMAND'!F32 -> 0 | G5: ='HEAT DEMAND'!G32 -> 238.0952381 | H5: ='HEAT DEMAND'!H32 -> 0 | I5: ='HEAT DEMAND'!I32 -> 92.32264334 | J5: ='HEAT DEMAND'!J32 -> 4616.132167 | K5: ='HEAT DEMAND'!K32 ->  | L5: =IF(#REF!>=0,IF(#REF!>=#REF!,IF(#REF!>=Calculos!$G$8,'HEAT DEMAND'!$G$8,Calculos!#REF!),Calculos!#REF!),IF(Calculos!#REF!>=Calculos!$I$8,Calculos!#REF!,Calculos!#REF!)) ->  | M5: ='HEAT DEMAND'!L32 ->  | N5: ='HEAT DEMAND'!M32 -> 18 | O5: ='HEAT DEMAND'!N32 -> 0 | P5: ='HEAT DEMAND'!O32 -> 0 | Q5: ='HEAT DEMAND'!P32 -> 0 | R5: ='HEAT DEMAND'!Q32 -> 0 | S5: ='HEAT DEMAND'!R32 -> 0 | T5: ='HEAT DEMAND'!S32 -> 0 | W5: 4616.132167 | Y5: =W5/(4.18*('Plant configuration'!$E$27-'Plant configuration'!$C$27)) -> 27.60844598 | Z5: =IF(AF5-'Plant configuration'!$A$27<=70,AF5-'Plant configuration'!$A$27,70) -> 43.39999485 | AA5: =IF((Y5*(Z5-'Plant configuration'!$C$27)/(Calculos!AF5-('Plant configuration'!$C$27+'Plant configuration'!$A$27)))<='Plant configuration'!$H$18,(Y5*(Z5-'Plant configuration'!$C$27)/(Calculos!AF5-('Plant configuration'!$C$27+'Plant configuration'!$A$27))),'Plant configuration'!$H$18) -> 27.60844598 | AB5: =Y5*4.18*(Z5-'Plant configuration'!$C$27) -> 1546.403681 | AC5: 30249.99678 | AD5: 28710.7931 | AE5: 3069.728486 | AF5: 48.39999485 | AG5: =AD5*120/'Plant configuration'!$D$18 -> 45.93726896 | AI5: 48.39999485 | AJ5: ='Plant configuration'!$C$27+'Plant configuration'!$A$27 -> 35 | AL5: =IF(AF5<'Plant configuration'!$A$23,1,0) -> 1 | AM5: =IF(AF5<'Plant configuration'!$C$23,1,0) -> 1 | AN5: =IF('Plant configuration'!$C$14>0,IF(AF5<'Plant configuration'!$E$23,1,0),0) -> 0 | AO5: =AL5*'Plant configuration'!$D$12+Calculos!AM5*'Plant configuration'!$D$13+Calculos!AN5*'Plant configuration'!$D$14 -> 7.2 | AP5: =IF(Z5<'Plant configuration'!$G$23,1,0) -> 1 | AQ5: 7.2 | AR5: 3069.728486 | AS5: =(AL5*'Plant configuration'!$B$12+Calculos!AM5*'Plant configuration'!$B$13+Calculos!AN5*'Plant configuration'!$B$14) -> 18 | AU5: =IF(AL5=1,IF(AF5<90,'Plant configuration'!$E$12,0),0) -> 0 | AV5: =IF(AM5=1,IF(AF5<90,'Plant configuration'!$E$13,0),0) -> 0 | AW5: =IF(AN5=1,IF(AF5<90,'Plant configuration'!$E$14,0),0) -> 0 | AX5: =IF(AL5=1,IF(Y5<='Plant configuration'!$A$31,0,'Plant configuration'!$F$12),0) -> 0 | AY5: =IF(AM5=1,IF(Y5<='Plant configuration'!$A$31,0,'Plant configuration'!$F$13),0) -> 0 | AZ5: =IF(AN5=1,IF(Y5<='Plant configuration'!$A$31,0,'Plant configuration'!$F$14),0) -> 0 | BA5: 0 | BC5: 0 | BD5: 0 | BE5: 0 | BG5: =IF(BC5=1,IF(BC4+BC3+BC2>0,1,0),0) -> 0 | BH5: =IF(BD5=1,IF(BD4+BD3+BD2>0,1,0),0) -> 0 | BI5: 0
A6: 4 | B6: 1 | C6: 1 | D6: 1 | E6: ='HEAT DEMAND'!E33 -> 4285.714286 | F6: ='HEAT DEMAND'!F33 -> 0 | G6: ='HEAT DEMAND'!G33 -> 238.0952381 | H6: ='HEAT DEMAND'!H33 -> 0 | I6: ='HEAT DEMAND'!I33 -> 92.32264334 | J6: ='HEAT DEMAND'!J33 -> 4616.132167 | K6: ='HEAT DEMAND'!K33 ->  | L6: =IF(#REF!>=0,IF(#REF!>=#REF!,IF(#REF!>=Calculos!$G$8,'HEAT DEMAND'!$G$8,Calculos!#REF!),Calculos!#REF!),IF(Calculos!#REF!>=Calculos!$I$8,Calculos!#REF!,Calculos!#REF!)) ->  | M6: ='HEAT DEMAND'!L33 ->  | N6: ='HEAT DEMAND'!M33 -> 18 | O6: ='HEAT DEMAND'!N33 -> 0 | P6: ='HEAT DEMAND'!O33 -> 0 | Q6: ='HEAT DEMAND'!P33 -> 0 | R6: ='HEAT DEMAND'!Q33 -> 0 | S6: ='HEAT DEMAND'!R33 -> 0 | T6: ='HEAT DEMAND'!S33 -> 0 | W6: 4616.132167 | Y6: =W6/(4.18*('Plant configuration'!$E$27-'Plant configuration'!$C$27)) -> 27.60844598 | Z6: =IF(AF6-'Plant configuration'!$A$27<=70,AF6-'Plant configuration'!$A$27,70) -> 40.93726896 | AA6: =IF((Y6*(Z6-'Plant configuration'!$C$27)/(Calculos!AF6-('Plant configuration'!$C$27+'Plant configuration'!$A$27)))<='Plant configuration'!$H$18,(Y6*(Z6-'Plant configuration'!$C$27)/(Calculos!AF6-('Plant configuration'!$C$27+'Plant configuration'!$A$27))),'Plant configuration'!$H$18) -> 27.60844598 | AB6: =Y6*4.18*(Z6-'Plant configuration'!$C$27) -> 1262.196976 | AC6: 28710.7931 | AD6: 27455.79612 | AE6: 3353.935191 | AF6: 45.93726896 | AG6: =AD6*120/'Plant configuration'!$D$18 -> 43.92927379 | AI6: 45.93726896 | AJ6: ='Plant configuration'!$C$27+'Plant configuration'!$A$27 -> 35 | AL6: =IF(AF6<'Plant configuration'!$A$23,1,0) -> 1 | AM6: =IF(AF6<'Plant configuration'!$C$23,1,0) -> 1 | AN6: =IF('Plant configuration'!$C$14>0,IF(AF6<'Plant configuration'!$E$23,1,0),0) -> 0 | AO6: =AL6*'Plant configuration'!$D$12+Calculos!AM6*'Plant configuration'!$D$13+Calculos!AN6*'Plant configuration'!$D$14 -> 7.2 | AP6: =IF(Z6<'Plant configuration'!$G$23,1,0) -> 1 | AQ6: 7.2 | AR6: 3353.935191 | AS6: =(AL6*'Plant configuration'!$B$12+Calculos!AM6*'Plant configuration'!$B$13+Calculos!AN6*'Plant configuration'!$B$14) -> 18 | AU6: =IF(AL6=1,IF(AF6<90,'Plant configuration'!$E$12,0),0) -> 0 | AV6: =IF(AM6=1,IF(AF6<90,'Plant configuration'!$E$13,0),0) -> 0 | AW6: =IF(AN6=1,IF(AF6<90,'Plant configuration'!$E$14,0),0) -> 0 | AX6: =IF(AL6=1,IF(Y6<='Plant configuration'!$A$31,0,'Plant configuration'!$F$12),0) -> 0 | AY6: =IF(AM6=1,IF(Y6<='Plant configuration'!$A$31,0,'Plant configuration'!$F$13),0) -> 0 | AZ6: =IF(AN6=1,IF(Y6<='Plant configuration'!$A$31,0,'Plant configuration'!$F$14),0) -> 0 | BA6: 0 | BC6: 0 | BD6: 0 | BE6: 0 | BG6: =IF(BC6=1,IF(BC5+BC4+BC3>0,1,0),0) -> 0 | BH6: =IF(BD6=1,IF(BD5+BD4+BD3>0,1,0),0) -> 0 | BI6: =IF(BE6=1,IF(BE5+BE4+BE3>0,1,0),0) -> 0
A7: 5 | B7: 1 | C7: 1 | D7: 1 | E7: ='HEAT DEMAND'!E34 -> 4285.714286 | F7: ='HEAT DEMAND'!F34 -> 3000 | G7: ='HEAT DEMAND'!G34 -> 238.0952381 | H7: ='HEAT DEMAND'!H34 -> 0 | I7: ='HEAT DEMAND'!I34 -> 153.5471331 | J7: ='HEAT DEMAND'!J34 -> 7677.356657 | K7: ='HEAT DEMAND'!K34 ->  | L7: =IF(#REF!>=0,IF(#REF!>=#REF!,IF(#REF!>=Calculos!$G$8,'HEAT DEMAND'!$G$8,Calculos!#REF!),Calculos!#REF!),IF(Calculos!#REF!>=Calculos!$I$8,Calculos!#REF!,Calculos!#REF!)) ->  | M7: ='HEAT DEMAND'!L34 ->  | N7: ='HEAT DEMAND'!M34 -> 18 | O7: ='HEAT DEMAND'!N34 -> 0 | P7: ='HEAT DEMAND'!O34 -> 0 | Q7: ='HEAT DEMAND'!P34 -> 0 | R7: ='HEAT DEMAND'!Q34 -> 0 | S7: ='HEAT DEMAND'!R34 -> 0 | T7: ='HEAT DEMAND'!S34 -> 0 | W7: 7677.356657 | Y7: =W7/(4.18*('Plant configuration'!$E$27-'Plant configuration'!$C$27)) -> 45.91720489 | Z7: =IF(AF7-'Plant configuration'!$A$27<=70,AF7-'Plant configuration'!$A$27,70) -> 38.92927379 | AA7: =IF((Y7*(Z7-'Plant configuration'!$C$27)/(Calculos!AF7-('Plant configuration'!$C$27+'Plant configuration'!$A$27)))<='Plant configuration'!$H$18,(Y7*(Z7-'Plant configuration'!$C$27)/(Calculos!AF7-('Plant configuration'!$C$27+'Plant configuration'!$A$27))),'Plant configuration'!$H$18) -> 45.91720489 | AB7: =Y7*4.18*(Z7-'Plant configuration'!$C$27) -> 1713.83049 | AC7: 27455.79612 | AD7: 25749.16563 | AE7: 5963.526167 | AF7: 43.92927379 | AG7: =AD7*120/'Plant configuration'!$D$18 -> 41.19866501 | AI7: 43.92927379 | AJ7: ='Plant configuration'!$C$27+'Plant configuration'!$A$27 -> 35 | AL7: =IF(AF7<'Plant configuration'!$A$23,1,0) -> 1 | AM7: =IF(AF7<'Plant configuration'!$C$23,1,0) -> 1 | AN7: =IF('Plant configuration'!$C$14>0,IF(AF7<'Plant configuration'!$E$23,1,0),0) -> 0 | AO7: =AL7*'Plant configuration'!$D$12+Calculos!AM7*'Plant configuration'!$D$13+Calculos!AN7*'Plant configuration'!$D$14 -> 7.2 | AP7: =IF(Z7<'Plant configuration'!$G$23,1,0) -> 1 | AQ7: 7.2 | AR7: 5963.526167 | AS7: =(AL7*'Plant configuration'!$B$12+Calculos!AM7*'Plant configuration'!$B$13+Calculos!AN7*'Plant configuration'!$B$14) -> 18 | AU7: =IF(AL7=1,IF(AF7<90,'Plant configuration'!$E$12,0),0) -> 0 | AV7: =IF(AM7=1,IF(AF7<90,'Plant configuration'!$E$13,0),0) -> 0 | AW7: =IF(AN7=1,IF(AF7<90,'Plant configuration'!$E$14,0),0) -> 0 | AX7: =IF(AL7=1,IF(Y7<='Plant configuration'!$A$31,0,'Plant configuration'!$F$12),0) -> 0 | AY7: =IF(AM7=1,IF(Y7<='Plant configuration'!$A$31,0,'Plant configuration'!$F$13),0) -> 0 | AZ7: =IF(AN7=1,IF(Y7<='Plant configuration'!$A$31,0,'Plant configuration'!$F$14),0) -> 0 | BA7: 0 | BC7: 0 | BD7: 0 | BE7: 0 | BG7: 0 | BH7: 0 | BI7: 0
A8: 6 | B8: 1 | C8: 1 | D8: 1 | E8: ='HEAT DEMAND'!E35 -> 4285.714286 | F8: ='HEAT DEMAND'!F35 -> 5000 | G8: ='HEAT DEMAND'!G35 -> 238.0952381 | H8: ='HEAT DEMAND'!H35 -> 0 | I8: ='HEAT DEMAND'!I35 -> 194.3634597 | J8: ='HEAT DEMAND'!J35 -> 9718.172983 | K8: ='HEAT DEMAND'!K35 ->  | L8: =IF(#REF!>=0,IF(#REF!>=#REF!,IF(#REF!>=Calculos!$G$8,'HEAT DEMAND'!$G$8,Calculos!#REF!),Calculos!#REF!),IF(Calculos!#REF!>=Calculos!$I$8,Calculos!#REF!,Calculos!#REF!)) ->  | M8: ='HEAT DEMAND'!L35 ->  | N8: ='HEAT DEMAND'!M35 -> 18 | O8: ='HEAT DEMAND'!N35 -> 0 | P8: ='HEAT DEMAND'!O35 -> 0 | Q8: ='HEAT DEMAND'!P35 -> 0 | R8: ='HEAT DEMAND'!Q35 -> 0 | S8: ='HEAT DEMAND'!R35 -> 0 | T8: ='HEAT DEMAND'!S35 -> 0 | W8: 9718.172983 | Y8: =W8/(4.18*('Plant configuration'!$E$27-'Plant configuration'!$C$27)) -> 58.12304416 | Z8: =IF(AF8-'Plant configuration'!$A$27<=70,AF8-'Plant configuration'!$A$27,70) -> 36.19866501 | AA8: =IF((Y8*(Z8-'Plant configuration'!$C$27)/(Calculos!AF8-('Plant configuration'!$C$27+'Plant configuration'!$A$27)))<='Plant configuration'!$H$18,(Y8*(Z8-'Plant configuration'!$C$27)/(Calculos!AF8-('Plant configuration'!$C$27+'Plant configuration'!$A$27))),'Plant configuration'!$H$18) -> 58.12304416 | AB8: =Y8*4.18*(Z8-'Plant configuration'!$C$27) -> 1505.992471 | AC8: 25749.16563 | AD8: 24250.37316 | AE8: 8212.180513 | AF8: 41.19866501 | AG8: =AD8*120/'Plant configuration'!$D$18 -> 38.80059706 | AI8: 41.19866501 | AJ8: ='Plant configuration'!$C$27+'Plant configuration'!$A$27 -> 35 | AL8: =IF(AF8<'Plant configuration'!$A$23,1,0) -> 1 | AM8: =IF(AF8<'Plant configuration'!$C$23,1,0) -> 1 | AN8: =IF('Plant configuration'!$C$14>0,IF(AF8<'Plant configuration'!$E$23,1,0),0) -> 0 | AO8: =AL8*'Plant configuration'!$D$12+Calculos!AM8*'Plant configuration'!$D$13+Calculos!AN8*'Plant configuration'!$D$14 -> 7.2 | AP8: =IF(Z8<'Plant configuration'!$G$23,1,0) -> 1 | AQ8: 7.2 | AR8: 8212.180513 | AS8: =(AL8*'Plant configuration'!$B$12+Calculos!AM8*'Plant configuration'!$B$13+Calculos!AN8*'Plant configuration'!$B$14) -> 18 | AU8: =IF(AL8=1,IF(AF8<90,'Plant configuration'!$E$12,0),0) -> 0 | AV8: =IF(AM8=1,IF(AF8<90,'Plant configuration'!$E$13,0),0) -> 0 | AW8: =IF(AN8=1,IF(AF8<90,'Plant configuration'!$E$14,0),0) -> 0 | AX8: =IF(AL8=1,IF(Y8<='Plant configuration'!$A$31,0,'Plant configuration'!$F$12),0) -> 0 | AY8: =IF(AM8=1,IF(Y8<='Plant configuration'!$A$31,0,'Plant configuration'!$F$13),0) -> 0 | AZ8: =IF(AN8=1,IF(Y8<='Plant configuration'!$A$31,0,'Plant configuration'!$F$14),0) -> 0 | BA8: 0 | BC8: 0 | BD8: 0 | BE8: 0 | BG8: 0 | BH8: 0 | BI8: 0
A9: 7 | B9: 1 | C9: 1 | D9: 1 | E9: ='HEAT DEMAND'!E36 -> 4285.714286 | F9: ='HEAT DEMAND'!F36 -> 5000 | G9: ='HEAT DEMAND'!G36 -> 238.0952381 | H9: ='HEAT DEMAND'!H36 -> 1571.428571 | I9: ='HEAT DEMAND'!I36 -> 226.4334305 | J9: ='HEAT DEMAND'!J36 -> 11321.67153 | K9: ='HEAT DEMAND'!K36 ->  | L9: =IF(#REF!>=0,IF(#REF!>=#REF!,IF(#REF!>=Calculos!$G$8,'HEAT DEMAND'!$G$8,Calculos!#REF!),Calculos!#REF!),IF(Calculos!#REF!>=Calculos!$I$8,Calculos!#REF!,Calculos!#REF!)) ->  | M9: ='HEAT DEMAND'!L36 ->  | N9: ='HEAT DEMAND'!M36 -> 18 | O9: ='HEAT DEMAND'!N36 -> 0 | P9: ='HEAT DEMAND'!O36 -> 0 | Q9: ='HEAT DEMAND'!P36 -> 0 | R9: ='HEAT DEMAND'!Q36 -> 0 | S9: ='HEAT DEMAND'!R36 -> 0 | T9: ='HEAT DEMAND'!S36 -> 0 | W9: 11321.67153 | Y9: =W9/(4.18*('Plant configuration'!$E$27-'Plant configuration'!$C$27)) -> 67.71334645 | Z9: =IF(AF9-'Plant configuration'!$A$27<=70,AF9-'Plant configuration'!$A$27,70) -> 33.80059706 | AA9: =IF((Y9*(Z9-'Plant configuration'!$C$27)/(Calculos!AF9-('Plant configuration'!$C$27+'Plant configuration'!$A$27)))<='Plant configuration'!$H$18,(Y9*(Z9-'Plant configuration'!$C$27)/(Calculos!AF9-('Plant configuration'!$C$27+'Plant configuration'!$A$27))),'Plant configuration'!$H$18) -> 67.71334645 | AB9: =Y9*4.18*(Z9-'Plant configuration'!$C$27) -> 1075.727787 | AC9: 24250.37316 | AD9: 23181.84537 | AE9: 10245.94374 | AF9: 38.80059706 | AG9: =AD9*120/'Plant configuration'!$D$18 -> 37.0909526 | AI9: 38.80059706 | AJ9: ='Plant configuration'!$C$27+'Plant configuration'!$A$27 -> 35 | AL9: =IF(AF9<'Plant configuration'!$A$23,1,0) -> 1 | AM9: =IF(AF9<'Plant configuration'!$C$23,1,0) -> 1 | AN9: =IF('Plant configuration'!$C$14>0,IF(AF9<'Plant configuration'!$E$23,1,0),0) -> 0 | AO9: =AL9*'Plant configuration'!$D$12+Calculos!AM9*'Plant configuration'!$D$13+Calculos!AN9*'Plant configuration'!$D$14 -> 7.2 | AP9: =IF(Z9<'Plant configuration'!$G$23,1,0) -> 1 | AQ9: 7.2 | AR9: 10245.94374 | AS9: =(AL9*'Plant configuration'!$B$12+Calculos!AM9*'Plant configuration'!$B$13+Calculos!AN9*'Plant configuration'!$B$14) -> 18 | AU9: =IF(AL9=1,IF(AF9<90,'Plant configuration'!$E$12,0),0) -> 0 | AV9: =IF(AM9=1,IF(AF9<90,'Plant configuration'!$E$13,0),0) -> 0 | AW9: =IF(AN9=1,IF(AF9<90,'Plant configuration'!$E$14,0),0) -> 0 | AX9: =IF(AL9=1,IF(Y9<='Plant configuration'!$A$31,0,'Plant configuration'!$F$12),0) -> 0 | AY9: =IF(AM9=1,IF(Y9<='Plant configuration'!$A$31,0,'Plant configuration'!$F$13),0) -> 0 | AZ9: =IF(AN9=1,IF(Y9<='Plant configuration'!$A$31,0,'Plant configuration'!$F$14),0) -> 0 | BA9: 0 | BC9: 0 | BD9: 0 | BE9: 0 | BG9: 0 | BH9: 0 | BI9: 0
A10: 8 | B10: 1 | C10: 1 | D10: 1 | E10: ='HEAT DEMAND'!E37 -> 4285.714286 | F10: ='HEAT DEMAND'!F37 -> 5000 | G10: ='HEAT DEMAND'!G37 -> 238.0952381 | H10: ='HEAT DEMAND'!H37 -> 1571.428571 | I10: ='HEAT DEMAND'!I37 -> 226.4334305 | J10: ='HEAT DEMAND'!J37 -> 11321.67153 | K10: ='HEAT DEMAND'!K37 ->  | L10: =IF(#REF!>=0,IF(#REF!>=#REF!,IF(#REF!>=Calculos!$G$8,'HEAT DEMAND'!$G$8,Calculos!#REF!),Calculos!#REF!),IF(Calculos!#REF!>=Calculos!$I$8,Calculos!#REF!,Calculos!#REF!)) ->  | M10: ='HEAT DEMAND'!L37 ->  | N10: ='HEAT DEMAND'!M37 -> 18 | O10: ='HEAT DEMAND'!N37 -> 0 | P10: ='HEAT DEMAND'!O37 -> 0 | Q10: ='HEAT DEMAND'!P37 -> 0 | R10: ='HEAT DEMAND'!Q37 -> 0 | S10: ='HEAT DEMAND'!R37 -> 0 | T10: ='HEAT DEMAND'!S37 -> 0 | W10: 11321.67153 | Y10: =W10/(4.18*('Plant configuration'!$E$27-'Plant configuration'!$C$27)) -> 67.71334645 | Z10: =IF(AF10-'Plant configuration'!$A$27<=70,AF10-'Plant configuration'!$A$27,70) -> 32.0909526 | AA10: =IF((Y10*(Z10-'Plant configuration'!$C$27)/(Calculos!AF10-('Plant configuration'!$C$27+'Plant configuration'!$A$27)))<='Plant configuration'!$H$18,(Y10*(Z10-'Plant configuration'!$C$27)/(Calculos!AF10-('Plant configuration'!$C$27+'Plant configuration'!$A$27))),'Plant configuration'!$H$18) -> 67.71334645 | AB10: =Y10*4.18*(Z10-'Plant configuration'!$C$27) -> 591.8269621 | AC10: 23181.84537 | AD10: 22597.21841 | AE10: 10729.84456 | AF10: 37.0909526 | AG10: =AD10*120/'Plant configuration'!$D$18 -> 36.15554946 | AI10: 37.0909526 | AJ10: ='Plant configuration'!$C$27+'Plant configuration'!$A$27 -> 35 | AL10: =IF(AF10<'Plant configuration'!$A$23,1,0) -> 1 | AM10: =IF(AF10<'Plant configuration'!$C$23,1,0) -> 1 | AN10: =IF('Plant configuration'!$C$14>0,IF(AF10<'Plant configuration'!$E$23,1,0),0) -> 0 | AO10: =AL10*'Plant configuration'!$D$12+Calculos!AM10*'Plant configuration'!$D$13+Calculos!AN10*'Plant configuration'!$D$14 -> 7.2 | AP10: =IF(Z10<'Plant configuration'!$G$23,1,0) -> 1 | AQ10: 7.2 | AR10: 10729.84456 | AS10: =(AL10*'Plant configuration'!$B$12+Calculos!AM10*'Plant configuration'!$B$13+Calculos!AN10*'Plant configuration'!$B$14) -> 18 | AU10: =IF(AL10=1,IF(AF10<90,'Plant configuration'!$E$12,0),0) -> 0 | AV10: =IF(AM10=1,IF(AF10<90,'Plant configuration'!$E$13,0),0) -> 0 | AW10: =IF(AN10=1,IF(AF10<90,'Plant configuration'!$E$14,0),0) -> 0 | AX10: =IF(AL10=1,IF(Y10<='Plant configuration'!$A$31,0,'Plant configuration'!$F$12),0) -> 0 | AY10: =IF(AM10=1,IF(Y10<='Plant configuration'!$A$31,0,'Plant configuration'!$F$13),0) -> 0 | AZ10: =IF(AN10=1,IF(Y10<='Plant configuration'!$A$31,0,'Plant configuration'!$F$14),0) -> 0 | BA10: 0 | BC10: 0 | BD10: 0 | BE10: 0 | BG10: 0 | BH10: 0 | BI10: 0
A11: 9 | B11: 1 | C11: 1 | D11: 1 | E11: ='HEAT DEMAND'!E38 -> 4285.714286 | F11: ='HEAT DEMAND'!F38 -> 2000 | G11: ='HEAT DEMAND'!G38 -> 238.0952381 | H11: ='HEAT DEMAND'!H38 -> 1571.428571 | I11: ='HEAT DEMAND'!I38 -> 165.2089407 | J11: ='HEAT DEMAND'!J38 -> 8260.447036 | K11: ='HEAT DEMAND'!K38 ->  | L11: =IF(#REF!>=0,IF(#REF!>=#REF!,IF(#REF!>=Calculos!$G$8,'HEAT DEMAND'!$G$8,Calculos!#REF!),Calculos!#REF!),IF(Calculos!#REF!>=Calculos!$I$8,Calculos!#REF!,Calculos!#REF!)) ->  | M11: ='HEAT DEMAND'!L38 ->  | N11: ='HEAT DEMAND'!M38 -> 18 | O11: ='HEAT DEMAND'!N38 -> 0 | P11: ='HEAT DEMAND'!O38 -> 0 | Q11: ='HEAT DEMAND'!P38 -> 0 | R11: ='HEAT DEMAND'!Q38 -> 0 | S11: ='HEAT DEMAND'!R38 -> 0 | T11: ='HEAT DEMAND'!S38 -> 0 | W11: 8260.447036 | Y11: =W11/(4.18*('Plant configuration'!$E$27-'Plant configuration'!$C$27)) -> 49.40458754 | Z11: =IF(AF11-'Plant configuration'!$A$27<=70,AF11-'Plant configuration'!$A$27,70) -> 31.15554946 | AA11: =IF((Y11*(Z11-'Plant configuration'!$C$27)/(Calculos!AF11-('Plant configuration'!$C$27+'Plant configuration'!$A$27)))<='Plant configuration'!$H$18,(Y11*(Z11-'Plant configuration'!$C$27)/(Calculos!AF11-('Plant configuration'!$C$27+'Plant configuration'!$A$27))),'Plant configuration'!$H$18) -> 49.40458754 | AB11: =Y11*4.18*(Z11-'Plant configuration'!$C$27) -> 238.6338774 | AC11: 22597.21841 | AD11: 22365.78453 | AE11: 8021.813159 | AF11: 36.15554946 | AG11: =AD11*120/'Plant configuration'!$D$18 -> 35.78525525 | AI11: 36.15554946 | AJ11: ='Plant configuration'!$C$27+'Plant configuration'!$A$27 -> 35 | AL11: =IF(AF11<'Plant configuration'!$A$23,1,0) -> 1 | AM11: =IF(AF11<'Plant configuration'!$C$23,1,0) -> 1 | AN11: =IF('Plant configuration'!$C$14>0,IF(AF11<'Plant configuration'!$E$23,1,0),0) -> 0 | AO11: =AL11*'Plant configuration'!$D$12+Calculos!AM11*'Plant configuration'!$D$13+Calculos!AN11*'Plant configuration'!$D$14 -> 7.2 | AP11: =IF(Z11<'Plant configuration'!$G$23,1,0) -> 1 | AQ11: 7.2 | AR11: 8021.813159 | AS11: =(AL11*'Plant configuration'!$B$12+Calculos!AM11*'Plant configuration'!$B$13+Calculos!AN11*'Plant configuration'!$B$14) -> 18 | AU11: =IF(AL11=1,IF(AF11<90,'Plant configuration'!$E$12,0),0) -> 0 | AV11: =IF(AM11=1,IF(AF11<90,'Plant configuration'!$E$13,0),0) -> 0 | AW11: =IF(AN11=1,IF(AF11<90,'Plant configuration'!$E$14,0),0) -> 0 | AX11: =IF(AL11=1,IF(Y11<='Plant configuration'!$A$31,0,'Plant configuration'!$F$12),0) -> 0 | AY11: =IF(AM11=1,IF(Y11<='Plant configuration'!$A$31,0,'Plant configuration'!$F$13),0) -> 0 | AZ11: =IF(AN11=1,IF(Y11<='Plant configuration'!$A$31,0,'Plant configuration'!$F$14),0) -> 0 | BA11: 0 | BC11: 0 | BD11: 0 | BE11: 0 | BG11: 0 | BH11: 0 | BI11: 0
A12: 10 | B12: 1 | C12: 1 | D12: 1 | E12: ='HEAT DEMAND'!E39 -> 4285.714286 | F12: ='HEAT DEMAND'!F39 -> 0 | G12: ='HEAT DEMAND'!G39 -> 238.0952381 | H12: ='HEAT DEMAND'!H39 -> 1571.428571 | I12: ='HEAT DEMAND'!I39 -> 124.3926142 | J12: ='HEAT DEMAND'!J39 -> 6219.630709 | K12: ='HEAT DEMAND'!K39 ->  | L12: =IF(#REF!>=0,IF(#REF!>=#REF!,IF(#REF!>=Calculos!$G$8,'HEAT DEMAND'!$G$8,Calculos!#REF!),Calculos!#REF!),IF(Calculos!#REF!>=Calculos!$I$8,Calculos!#REF!,Calculos!#REF!)) ->  | M12: ='HEAT DEMAND'!L39 ->  | N12: ='HEAT DEMAND'!M39 -> 18 | O12: ='HEAT DEMAND'!N39 -> 0 | P12: ='HEAT DEMAND'!O39 -> 0 | Q12: ='HEAT DEMAND'!P39 -> 0 | R12: ='HEAT DEMAND'!Q39 -> 0 | S12: ='HEAT DEMAND'!R39 -> 0 | T12: ='HEAT DEMAND'!S39 -> 0 | W12: 6219.630709 | Y12: =W12/(4.18*('Plant configuration'!$E$27-'Plant configuration'!$C$27)) -> 37.19874826 | Z12: =IF(AF12-'Plant configuration'!$A$27<=70,AF12-'Plant configuration'!$A$27,70) -> 30.78525525 | AA12: =IF((Y12*(Z12-'Plant configuration'!$C$27)/(Calculos!AF12-('Plant configuration'!$C$27+'Plant configuration'!$A$27)))<='Plant configuration'!$H$18,(Y12*(Z12-'Plant configuration'!$C$27)/(Calculos!AF12-('Plant configuration'!$C$27+'Plant configuration'!$A$27))),'Plant configuration'!$H$18) -> 37.19874826 | AB12: =Y12*4.18*(Z12-'Plant configuration'!$C$27) -> 122.0999424 | AC12: 22365.78453 | AD12: 22250.88459 | AE12: 6097.530767 | AF12: 35.78525525 | AG12: =AD12*120/'Plant configuration'!$D$18 -> 35.60141535 | AI12: 35.78525525 | AJ12: ='Plant configuration'!$C$27+'Plant configuration'!$A$27 -> 35 | AL12: =IF(AF12<'Plant configuration'!$A$23,1,0) -> 1 | AM12: =IF(AF12<'Plant configuration'!$C$23,1,0) -> 1 | AN12: =IF('Plant configuration'!$C$14>0,IF(AF12<'Plant configuration'!$E$23,1,0),0) -> 0 | AO12: =AL12*'Plant configuration'!$D$12+Calculos!AM12*'Plant configuration'!$D$13+Calculos!AN12*'Plant configuration'!$D$14 -> 7.2 | AP12: =IF(Z12<'Plant configuration'!$G$23,1,0) -> 1 | AQ12: 7.2 | AR12: 6097.530767 | AS12: =(AL12*'Plant configuration'!$B$12+Calculos!AM12*'Plant configuration'!$B$13+Calculos!AN12*'Plant configuration'!$B$14) -> 18 | AU12: =IF(AL12=1,IF(AF12<90,'Plant configuration'!$E$12,0),0) -> 0 | AV12: =IF(AM12=1,IF(AF12<90,'Plant configuration'!$E$13,0),0) -> 0 | AW12: =IF(AN12=1,IF(AF12<90,'Plant configuration'!$E$14,0),0) -> 0 | AX12: =IF(AL12=1,IF(Y12<='Plant configuration'!$A$31,0,'Plant configuration'!$F$12),0) -> 0 | AY12: =IF(AM12=1,IF(Y12<='Plant configuration'!$A$31,0,'Plant configuration'!$F$13),0) -> 0 | AZ12: =IF(AN12=1,IF(Y12<='Plant configuration'!$A$31,0,'Plant configuration'!$F$14),0) -> 0 | BA12: 0 | BC12: 0 | BD12: 0 | BE12: 0 | BG12: 0 | BH12: 0 | BI12: 0
A13: 11 | B13: 1 | C13: 1 | D13: 1 | E13: ='HEAT DEMAND'!E40 -> 4285.714286 | F13: ='HEAT DEMAND'!F40 -> 0 | G13: ='HEAT DEMAND'!G40 -> 238.0952381 | H13: ='HEAT DEMAND'!H40 -> 1571.428571 | I13: ='HEAT DEMAND'!I40 -> 124.3926142 | J13: ='HEAT DEMAND'!J40 -> 6219.630709 | K13: ='HEAT DEMAND'!K40 ->  | L13: =IF(#REF!>=0,IF(#REF!>=#REF!,IF(#REF!>=Calculos!$G$8,'HEAT DEMAND'!$G$8,Calculos!#REF!),Calculos!#REF!),IF(Calculos!#REF!>=Calculos!$I$8,Calculos!#REF!,Calculos!#REF!)) ->  | M13: ='HEAT DEMAND'!L40 ->  | N13: ='HEAT DEMAND'!M40 -> 18 | O13: ='HEAT DEMAND'!N40 -> 0 | P13: ='HEAT DEMAND'!O40 -> 0 | Q13: ='HEAT DEMAND'!P40 -> 0 | R13: ='HEAT DEMAND'!Q40 -> 0 | S13: ='HEAT DEMAND'!R40 -> 0 | T13: ='HEAT DEMAND'!S40 -> 0 | W13: 6219.630709 | Y13: =W13/(4.18*('Plant configuration'!$E$27-'Plant configuration'!$C$27)) -> 37.19874826 | Z13: =IF(AF13-'Plant configuration'!$A$27<=70,AF13-'Plant configuration'!$A$27,70) -> 30.60141535 | AA13: =IF((Y13*(Z13-'Plant configuration'!$C$27)/(Calculos!AF13-('Plant configuration'!$C$27+'Plant configuration'!$A$27)))<='Plant configuration'!$H$18,(Y13*(Z13-'Plant configuration'!$C$27)/(Calculos!AF13-('Plant configuration'!$C$27+'Plant configuration'!$A$27))),'Plant configuration'!$H$18) -> 37.19874826 | AB13: =Y13*4.18*(Z13-'Plant configuration'!$C$27) -> 93.51453396 | AC13: 22250.88459 | AD13: 22164.57006 | AE13: 6126.116175 | AF13: 35.60141535 | AG13: =AD13*120/'Plant configuration'!$D$18 -> 35.46331209 | AI13: 35.60141535 | AJ13: ='Plant configuration'!$C$27+'Plant configuration'!$A$27 -> 35 | AL13: =IF(AF13<'Plant configuration'!$A$23,1,0) -> 1 | AM13: =IF(AF13<'Plant configuration'!$C$23,1,0) -> 1 | AN13: =IF('Plant configuration'!$C$14>0,IF(AF13<'Plant configuration'!$E$23,1,0),0) -> 0 | AO13: =AL13*'Plant configuration'!$D$12+Calculos!AM13*'Plant configuration'!$D$13+Calculos!AN13*'Plant configuration'!$D$14 -> 7.2 | AP13: =IF(Z13<'Plant configuration'!$G$23,1,0) -> 1 | AQ13: 7.2 | AR13: 6126.116175 | AS13: =(AL13*'Plant configuration'!$B$12+Calculos!AM13*'Plant configuration'!$B$13+Calculos!AN13*'Plant configuration'!$B$14) -> 18 | AU13: =IF(AL13=1,IF(AF13<90,'Plant configuration'!$E$12,0),0) -> 0 | AV13: =IF(AM13=1,IF(AF13<90,'Plant configuration'!$E$13,0),0) -> 0 | AW13: =IF(AN13=1,IF(AF13<90,'Plant configuration'!$E$14,0),0) -> 0 | AX13: =IF(AL13=1,IF(Y13<='Plant configuration'!$A$31,0,'Plant configuration'!$F$12),0) -> 0 | AY13: =IF(AM13=1,IF(Y13<='Plant configuration'!$A$31,0,'Plant configuration'!$F$13),0) -> 0 | AZ13: =IF(AN13=1,IF(Y13<='Plant configuration'!$A$31,0,'Plant configuration'!$F$14),0) -> 0 | BA13: 0 | BC13: 0 | BD13: 0 | BE13: 0 | BG13: 0 | BH13: 0 | BI13: 0
A14: 12 | B14: 1 | C14: 1 | D14: 1 | E14: ='HEAT DEMAND'!E41 -> 4285.714286 | F14: ='HEAT DEMAND'!F41 -> 0 | G14: ='HEAT DEMAND'!G41 -> 238.0952381 | H14: ='HEAT DEMAND'!H41 -> 1571.428571 | I14: ='HEAT DEMAND'!I41 -> 124.3926142 | J14: ='HEAT DEMAND'!J41 -> 6219.630709 | K14: ='HEAT DEMAND'!K41 ->  | L14: =IF(#REF!>=0,IF(#REF!>=#REF!,IF(#REF!>=Calculos!$G$8,'HEAT DEMAND'!$G$8,Calculos!#REF!),Calculos!#REF!),IF(Calculos!#REF!>=Calculos!$I$8,Calculos!#REF!,Calculos!#REF!)) ->  | M14: ='HEAT DEMAND'!L41 ->  | N14: ='HEAT DEMAND'!M41 -> 18 | O14: ='HEAT DEMAND'!N41 -> 0 | P14: ='HEAT DEMAND'!O41 -> 0 | Q14: ='HEAT DEMAND'!P41 -> 0 | R14: ='HEAT DEMAND'!Q41 -> 0 | S14: ='HEAT DEMAND'!R41 -> 0 | T14: ='HEAT DEMAND'!S41 -> 0 | W14: 6219.630709 | Y14: =W14/(4.18*('Plant configuration'!$E$27-'Plant configuration'!$C$27)) -> 37.19874826 | Z14: =IF(AF14-'Plant configuration'!$A$27<=70,AF14-'Plant configuration'!$A$27,70) -> 30.46331209 | AA14: =IF((Y14*(Z14-'Plant configuration'!$C$27)/(Calculos!AF14-('Plant configuration'!$C$27+'Plant configuration'!$A$27)))<='Plant configuration'!$H$18,(Y14*(Z14-'Plant configuration'!$C$27)/(Calculos!AF14-('Plant configuration'!$C$27+'Plant configuration'!$A$27))),'Plant configuration'!$H$18) -> 37.19874826 | AB14: =Y14*4.18*(Z14-'Plant configuration'!$C$27) -> 72.04075291 | AC14: 22164.57006 | AD14: 22099.7293 | AE14: 6147.589957 | AF14: 35.46331209 | AG14: =AD14*120/'Plant configuration'!$D$18 -> 35.35956689 | AI14: 35.46331209 | AJ14: ='Plant configuration'!$C$27+'Plant configuration'!$A$27 -> 35 | AL14: =IF(AF14<'Plant configuration'!$A$23,1,0) -> 1 | AM14: =IF(AF14<'Plant configuration'!$C$23,1,0) -> 1 | AN14: =IF('Plant configuration'!$C$14>0,IF(AF14<'Plant configuration'!$E$23,1,0),0) -> 0 | AO14: =AL14*'Plant configuration'!$D$12+Calculos!AM14*'Plant configuration'!$D$13+Calculos!AN14*'Plant configuration'!$D$14 -> 7.2 | AP14: =IF(Z14<'Plant configuration'!$G$23,1,0) -> 1 | AQ14: 7.2 | AR14: 6147.589957 | AS14: =(AL14*'Plant configuration'!$B$12+Calculos!AM14*'Plant configuration'!$B$13+Calculos!AN14*'Plant configuration'!$B$14) -> 18 | AU14: =IF(AL14=1,IF(AF14<90,'Plant configuration'!$E$12,0),0) -> 0 | AV14: =IF(AM14=1,IF(AF14<90,'Plant configuration'!$E$13,0),0) -> 0 | AW14: =IF(AN14=1,IF(AF14<90,'Plant configuration'!$E$14,0),0) -> 0 | AX14: =IF(AL14=1,IF(Y14<='Plant configuration'!$A$31,0,'Plant configuration'!$F$12),0) -> 0 | AY14: =IF(AM14=1,IF(Y14<='Plant configuration'!$A$31,0,'Plant configuration'!$F$13),0) -> 0 | AZ14: =IF(AN14=1,IF(Y14<='Plant configuration'!$A$31,0,'Plant configuration'!$F$14),0) -> 0 | BA14: 0 | BC14: 0 | BD14: 0 | BE14: 0 | BG14: 0 | BH14: 0 | BI14: 0
A15: 13 | B15: 1 | C15: 1 | D15: 1 | E15: ='HEAT DEMAND'!E42 -> 4285.714286 | F15: ='HEAT DEMAND'!F42 -> 0 | G15: ='HEAT DEMAND'!G42 -> 238.0952381 | H15: ='HEAT DEMAND'!H42 -> 1571.428571 | I15: ='HEAT DEMAND'!I42 -> 124.3926142 | J15: ='HEAT DEMAND'!J42 -> 6219.630709 | K15: ='HEAT DEMAND'!K42 ->  | L15: =IF(#REF!>=0,IF(#REF!>=#REF!,IF(#REF!>=Calculos!$G$8,'HEAT DEMAND'!$G$8,Calculos!#REF!),Calculos!#REF!),IF(Calculos!#REF!>=Calculos!$I$8,Calculos!#REF!,Calculos!#REF!)) ->  | M15: ='HEAT DEMAND'!L42 ->  | N15: ='HEAT DEMAND'!M42 -> 18 | O15: ='HEAT DEMAND'!N42 -> 0 | P15: ='HEAT DEMAND'!O42 -> 0 | Q15: ='HEAT DEMAND'!P42 -> 0 | R15: ='HEAT DEMAND'!Q42 -> 0 | S15: ='HEAT DEMAND'!R42 -> 0 | T15: ='HEAT DEMAND'!S42 -> 0 | W15: 6219.630709 | Y15: =W15/(4.18*('Plant configuration'!$E$27-'Plant configuration'!$C$27)) -> 37.19874826 | Z15: =IF(AF15-'Plant configuration'!$A$27<=70,AF15-'Plant configuration'!$A$27,70) -> 30.35956689 | AA15: =IF((Y15*(Z15-'Plant configuration'!$C$27)/(Calculos!AF15-('Plant configuration'!$C$27+'Plant configuration'!$A$27)))<='Plant configuration'!$H$18,(Y15*(Z15-'Plant configuration'!$C$27)/(Calculos!AF15-('Plant configuration'!$C$27+'Plant configuration'!$A$27))),'Plant configuration'!$H$18) -> 37.19874826 | AB15: =Y15*4.18*(Z15-'Plant configuration'!$C$27) -> 55.90933139 | AC15: 22099.7293 | AD15: 22051.01997 | AE15: 6163.721378 | AF15: 35.35956689 | AG15: =AD15*120/'Plant configuration'!$D$18 -> 35.28163196 | AI15: 35.35956689 | AJ15: ='Plant configuration'!$C$27+'Plant configuration'!$A$27 -> 35 | AL15: =IF(AF15<'Plant configuration'!$A$23,1,0) -> 1 | AM15: =IF(AF15<'Plant configuration'!$C$23,1,0) -> 1 | AN15: =IF('Plant configuration'!$C$14>0,IF(AF15<'Plant configuration'!$E$23,1,0),0) -> 0 | AO15: =AL15*'Plant configuration'!$D$12+Calculos!AM15*'Plant configuration'!$D$13+Calculos!AN15*'Plant configuration'!$D$14 -> 7.2 | AP15: =IF(Z15<'Plant configuration'!$G$23,1,0) -> 1 | AQ15: 7.2 | AR15: 6163.721378 | AS15: =(AL15*'Plant configuration'!$B$12+Calculos!AM15*'Plant configuration'!$B$13+Calculos!AN15*'Plant configuration'!$B$14) -> 18 | AU15: =IF(AL15=1,IF(AF15<90,'Plant configuration'!$E$12,0),0) -> 0 | AV15: =IF(AM15=1,IF(AF15<90,'Plant configuration'!$E$13,0),0) -> 0 | AW15: =IF(AN15=1,IF(AF15<90,'Plant configuration'!$E$14,0),0) -> 0 | AX15: =IF(AL15=1,IF(Y15<='Plant configuration'!$A$31,0,'Plant configuration'!$F$12),0) -> 0 | AY15: =IF(AM15=1,IF(Y15<='Plant configuration'!$A$31,0,'Plant configuration'!$F$13),0) -> 0 | AZ15: =IF(AN15=1,IF(Y15<='Plant configuration'!$A$31,0,'Plant configuration'!$F$14),0) -> 0 | BA15: 0 | BC15: 0 | BD15: 0 | BE15: 0 | BG15: 0 | BH15: 0 | BI15: 0
A16: 14 | B16: 1 | C16: 1 | D16: 1 | E16: ='HEAT DEMAND'!E43 -> 4285.714286 | F16: ='HEAT DEMAND'!F43 -> 0 | G16: ='HEAT DEMAND'!G43 -> 238.0952381 | H16: ='HEAT DEMAND'!H43 -> 1571.428571 | I16: ='HEAT DEMAND'!I43 -> 124.3926142 | J16: ='HEAT DEMAND'!J43 -> 6219.630709 | K16: ='HEAT DEMAND'!K43 ->  | L16: =IF(#REF!>=0,IF(#REF!>=#REF!,IF(#REF!>=Calculos!$G$8,'HEAT DEMAND'!$G$8,Calculos!#REF!),Calculos!#REF!),IF(Calculos!#REF!>=Calculos!$I$8,Calculos!#REF!,Calculos!#REF!)) ->  | M16: ='HEAT DEMAND'!L43 ->  | N16: ='HEAT DEMAND'!M43 -> 18 | O16: ='HEAT DEMAND'!N43 -> 0 | P16: ='HEAT DEMAND'!O43 -> 0 | Q16: ='HEAT DEMAND'!P43 -> 0 | R16: ='HEAT DEMAND'!Q43 -> 0 | S16: ='HEAT DEMAND'!R43 -> 0 | T16: ='HEAT DEMAND'!S43 -> 0 | W16: 6219.630709 | Y16: =W16/(4.18*('Plant configuration'!$E$27-'Plant configuration'!$C$27)) -> 37.19874826 | Z16: =IF(AF16-'Plant configuration'!$A$27<=70,AF16-'Plant configuration'!$A$27,70) -> 30.28163196 | AA16: =IF((Y16*(Z16-'Plant configuration'!$C$27)/(Calculos!AF16-('Plant configuration'!$C$27+'Plant configuration'!$A$27)))<='Plant configuration'!$H$18,(Y16*(Z16-'Plant configuration'!$C$27)/(Calculos!AF16-('Plant configuration'!$C$27+'Plant configuration'!$A$27))),'Plant configuration'!$H$18) -> 37.19874826 | AB16: =Y16*4.18*(Z16-'Plant configuration'!$C$27) -> 43.79116926 | AC16: 22051.01997 | AD16: 22014.4288 | AE16: 6175.83954 | AF16: 35.28163196 | AG16: =AD16*120/'Plant configuration'!$D$18 -> 35.22308609 | AI16: 35.28163196 | AJ16: ='Plant configuration'!$C$27+'Plant configuration'!$A$27 -> 35 | AL16: =IF(AF16<'Plant configuration'!$A$23,1,0) -> 1 | AM16: =IF(AF16<'Plant configuration'!$C$23,1,0) -> 1 | AN16: =IF('Plant configuration'!$C$14>0,IF(AF16<'Plant configuration'!$E$23,1,0),0) -> 0 | AO16: =AL16*'Plant configuration'!$D$12+Calculos!AM16*'Plant configuration'!$D$13+Calculos!AN16*'Plant configuration'!$D$14 -> 7.2 | AP16: =IF(Z16<'Plant configuration'!$G$23,1,0) -> 1 | AQ16: 7.2 | AR16: 6175.83954 | AS16: =(AL16*'Plant configuration'!$B$12+Calculos!AM16*'Plant configuration'!$B$13+Calculos!AN16*'Plant configuration'!$B$14) -> 18 | AU16: =IF(AL16=1,IF(AF16<90,'Plant configuration'!$E$12,0),0) -> 0 | AV16: =IF(AM16=1,IF(AF16<90,'Plant configuration'!$E$13,0),0) -> 0 | AW16: =IF(AN16=1,IF(AF16<90,'Plant configuration'!$E$14,0),0) -> 0 | AX16: =IF(AL16=1,IF(Y16<='Plant configuration'!$A$31,0,'Plant configuration'!$F$12),0) -> 0 | AY16: =IF(AM16=1,IF(Y16<='Plant configuration'!$A$31,0,'Plant configuration'!$F$13),0) -> 0 | AZ16: =IF(AN16=1,IF(Y16<='Plant configuration'!$A$31,0,'Plant configuration'!$F$14),0) -> 0 | BA16: 0 | BC16: 0 | BD16: 0 | BE16: 0 | BG16: 0 | BH16: 0 | BI16: 0
A17: 15 | B17: 1 | C17: 1 | D17: 1 | E17: ='HEAT DEMAND'!E44 -> 4285.714286 | F17: ='HEAT DEMAND'!F44 -> 0 | G17: ='HEAT DEMAND'!G44 -> 238.0952381 | H17: ='HEAT DEMAND'!H44 -> 1571.428571 | I17: ='HEAT DEMAND'!I44 -> 124.3926142 | J17: ='HEAT DEMAND'!J44 -> 6219.630709 | K17: ='HEAT DEMAND'!K44 ->  | L17: =IF(#REF!>=0,IF(#REF!>=#REF!,IF(#REF!>=Calculos!$G$8,'HEAT DEMAND'!$G$8,Calculos!#REF!),Calculos!#REF!),IF(Calculos!#REF!>=Calculos!$I$8,Calculos!#REF!,Calculos!#REF!)) ->  | M17: ='HEAT DEMAND'!L44 ->  | N17: ='HEAT DEMAND'!M44 -> 18 | O17: ='HEAT DEMAND'!N44 -> 0 | P17: ='HEAT DEMAND'!O44 -> 0 | Q17: ='HEAT DEMAND'!P44 -> 0 | R17: ='HEAT DEMAND'!Q44 -> 0 | S17: ='HEAT DEMAND'!R44 -> 0 | T17: ='HEAT DEMAND'!S44 -> 0 | W17: 6219.630709 | Y17: =W17/(4.18*('Plant configuration'!$E$27-'Plant configuration'!$C$27)) -> 37.19874826 | Z17: =IF(AF17-'Plant configuration'!$A$27<=70,AF17-'Plant configuration'!$A$27,70) -> 30.22308609 | AA17: =IF((Y17*(Z17-'Plant configuration'!$C$27)/(Calculos!AF17-('Plant configuration'!$C$27+'Plant configuration'!$A$27)))<='Plant configuration'!$H$18,(Y17*(Z17-'Plant configuration'!$C$27)/(Calculos!AF17-('Plant configuration'!$C$27+'Plant configuration'!$A$27))),'Plant configuration'!$H$18) -> 37.19874826 | AB17: =Y17*4.18*(Z17-'Plant configuration'!$C$27) -> 34.68782686 | AC17: 22014.4288 | AD17: 21986.94098 | AE17: 6184.942883 | AF17: 35.22308609 | AG17: =AD17*120/'Plant configuration'!$D$18 -> 35.17910556 | AI17: 35.22308609 | AJ17: ='Plant configuration'!$C$27+'Plant configuration'!$A$27 -> 35 | AL17: =IF(AF17<'Plant configuration'!$A$23,1,0) -> 1 | AM17: =IF(AF17<'Plant configuration'!$C$23,1,0) -> 1 | AN17: =IF('Plant configuration'!$C$14>0,IF(AF17<'Plant configuration'!$E$23,1,0),0) -> 0 | AO17: =AL17*'Plant configuration'!$D$12+Calculos!AM17*'Plant configuration'!$D$13+Calculos!AN17*'Plant configuration'!$D$14 -> 7.2 | AP17: =IF(Z17<'Plant configuration'!$G$23,1,0) -> 1 | AQ17: 7.2 | AR17: 6184.942883 | AS17: =(AL17*'Plant configuration'!$B$12+Calculos!AM17*'Plant configuration'!$B$13+Calculos!AN17*'Plant configuration'!$B$14) -> 18 | AU17: =IF(AL17=1,IF(AF17<90,'Plant configuration'!$E$12,0),0) -> 0 | AV17: =IF(AM17=1,IF(AF17<90,'Plant configuration'!$E$13,0),0) -> 0 | AW17: =IF(AN17=1,IF(AF17<90,'Plant configuration'!$E$14,0),0) -> 0 | AX17: =IF(AL17=1,IF(Y17<='Plant configuration'!$A$31,0,'Plant configuration'!$F$12),0) -> 0 | AY17: =IF(AM17=1,IF(Y17<='Plant configuration'!$A$31,0,'Plant configuration'!$F$13),0) -> 0 | AZ17: =IF(AN17=1,IF(Y17<='Plant configuration'!$A$31,0,'Plant configuration'!$F$14),0) -> 0 | BA17: 0 | BC17: 0 | BD17: 0 | BE17: 0 | BG17: 0 | BH17: 0 | BI17: 0
A18: 16 | B18: 1 | C18: 1 | D18: 1 | E18: ='HEAT DEMAND'!E45 -> 4285.714286 | F18: ='HEAT DEMAND'!F45 -> 0 | G18: ='HEAT DEMAND'!G45 -> 238.0952381 | H18: ='HEAT DEMAND'!H45 -> 1571.428571 | I18: ='HEAT DEMAND'!I45 -> 124.3926142 | J18: ='HEAT DEMAND'!J45 -> 6219.630709 | K18: ='HEAT DEMAND'!K45 ->  | L18: =IF(#REF!>=0,IF(#REF!>=#REF!,IF(#REF!>=Calculos!$G$8,'HEAT DEMAND'!$G$8,Calculos!#REF!),Calculos!#REF!),IF(Calculos!#REF!>=Calculos!$I$8,Calculos!#REF!,Calculos!#REF!)) ->  | M18: ='HEAT DEMAND'!L45 ->  | N18: ='HEAT DEMAND'!M45 -> 18 | O18: ='HEAT DEMAND'!N45 -> 0 | P18: ='HEAT DEMAND'!O45 -> 0 | Q18: ='HEAT DEMAND'!P45 -> 0 | R18: ='HEAT DEMAND'!Q45 -> 0 | S18: ='HEAT DEMAND'!R45 -> 0 | T18: ='HEAT DEMAND'!S45 -> 0 | W18: 6219.630709 | Y18: =W18/(4.18*('Plant configuration'!$E$27-'Plant configuration'!$C$27)) -> 37.19874826 | Z18: =IF(AF18-'Plant configuration'!$A$27<=70,AF18-'Plant configuration'!$A$27,70) -> 30.17910556 | AA18: =IF((Y18*(Z18-'Plant configuration'!$C$27)/(Calculos!AF18-('Plant configuration'!$C$27+'Plant configuration'!$A$27)))<='Plant configuration'!$H$18,(Y18*(Z18-'Plant configuration'!$C$27)/(Calculos!AF18-('Plant configuration'!$C$27+'Plant configuration'!$A$27))),'Plant configuration'!$H$18) -> 37.19874826 | AB18: =Y18*4.18*(Z18-'Plant configuration'!$C$27) -> 27.84926157 | AC18: 21986.94098 | AD18: 21966.29172 | AE18: 6191.781448 | AF18: 35.17910556 | AG18: =AD18*120/'Plant configuration'!$D$18 -> 35.14606674 | AI18: 35.17910556 | AJ18: ='Plant configuration'!$C$27+'Plant configuration'!$A$27 -> 35 | AL18: =IF(AF18<'Plant configuration'!$A$23,1,0) -> 1 | AM18: =IF(AF18<'Plant configuration'!$C$23,1,0) -> 1 | AN18: =IF('Plant configuration'!$C$14>0,IF(AF18<'Plant configuration'!$E$23,1,0),0) -> 0 | AO18: =AL18*'Plant configuration'!$D$12+Calculos!AM18*'Plant configuration'!$D$13+Calculos!AN18*'Plant configuration'!$D$14 -> 7.2 | AP18: =IF(Z18<'Plant configuration'!$G$23,1,0) -> 1 | AQ18: 7.2 | AR18: 6191.781448 | AS18: =(AL18*'Plant configuration'!$B$12+Calculos!AM18*'Plant configuration'!$B$13+Calculos!AN18*'Plant configuration'!$B$14) -> 18 | AU18: =IF(AL18=1,IF(AF18<90,'Plant configuration'!$E$12,0),0) -> 0 | AV18: =IF(AM18=1,IF(AF18<90,'Plant configuration'!$E$13,0),0) -> 0 | AW18: =IF(AN18=1,IF(AF18<90,'Plant configuration'!$E$14,0),0) -> 0 | AX18: =IF(AL18=1,IF(Y18<='Plant configuration'!$A$31,0,'Plant configuration'!$F$12),0) -> 0 | AY18: =IF(AM18=1,IF(Y18<='Plant configuration'!$A$31,0,'Plant configuration'!$F$13),0) -> 0 | AZ18: =IF(AN18=1,IF(Y18<='Plant configuration'!$A$31,0,'Plant configuration'!$F$14),0) -> 0 | BA18: 0 | BC18: 0 | BD18: 0 | BE18: 0 | BG18: 0 | BH18: 0 | BI18: 0
A19: 17 | B19: 1 | C19: 1 | D19: 1 | E19: ='HEAT DEMAND'!E46 -> 4285.714286 | F19: ='HEAT DEMAND'!F46 -> 0 | G19: ='HEAT DEMAND'!G46 -> 238.0952381 | H19: ='HEAT DEMAND'!H46 -> 0 | I19: ='HEAT DEMAND'!I46 -> 92.32264334 | J19: ='HEAT DEMAND'!J46 -> 4616.132167 | K19: ='HEAT DEMAND'!K46 ->  | L19: =IF(#REF!>=0,IF(#REF!>=#REF!,IF(#REF!>=Calculos!$G$8,'HEAT DEMAND'!$G$8,Calculos!#REF!),Calculos!#REF!),IF(Calculos!#REF!>=Calculos!$I$8,Calculos!#REF!,Calculos!#REF!)) ->  | M19: ='HEAT DEMAND'!L46 ->  | N19: ='HEAT DEMAND'!M46 -> 18 | O19: ='HEAT DEMAND'!N46 -> 0 | P19: ='HEAT DEMAND'!O46 -> 0 | Q19: ='HEAT DEMAND'!P46 -> 0 | R19: ='HEAT DEMAND'!Q46 -> 0 | S19: ='HEAT DEMAND'!R46 -> 0 | T19: ='HEAT DEMAND'!S46 -> 0 | W19: 4616.132167 | Y19: =W19/(4.18*('Plant configuration'!$E$27-'Plant configuration'!$C$27)) -> 27.60844598 | Z19: =IF(AF19-'Plant configuration'!$A$27<=70,AF19-'Plant configuration'!$A$27,70) -> 30.14606674 | AA19: =IF((Y19*(Z19-'Plant configuration'!$C$27)/(Calculos!AF19-('Plant configuration'!$C$27+'Plant configuration'!$A$27)))<='Plant configuration'!$H$18,(Y19*(Z19-'Plant configuration'!$C$27)/(Calculos!AF19-('Plant configuration'!$C$27+'Plant configuration'!$A$27))),'Plant configuration'!$H$18) -> 27.60844598 | AB19: =Y19*4.18*(Z19-'Plant configuration'!$C$27) -> 16.856585 | AC19: 21966.29172 | AD19: 21956.63513 | AE19: 4599.275582 | AF19: 35.14606674 | AG19: =AD19*120/'Plant configuration'!$D$18 -> 35.13061621 | AI19: 35.14606674 | AJ19: ='Plant configuration'!$C$27+'Plant configuration'!$A$27 -> 35 | AL19: =IF(AF19<'Plant configuration'!$A$23,1,0) -> 1 | AM19: =IF(AF19<'Plant configuration'!$C$23,1,0) -> 1 | AN19: =IF('Plant configuration'!$C$14>0,IF(AF19<'Plant configuration'!$E$23,1,0),0) -> 0 | AO19: =AL19*'Plant configuration'!$D$12+Calculos!AM19*'Plant configuration'!$D$13+Calculos!AN19*'Plant configuration'!$D$14 -> 7.2 | AP19: =IF(Z19<'Plant configuration'!$G$23,1,0) -> 1 | AQ19: 7.2 | AR19: 4599.275582 | AS19: =(AL19*'Plant configuration'!$B$12+Calculos!AM19*'Plant configuration'!$B$13+Calculos!AN19*'Plant configuration'!$B$14) -> 18 | AU19: =IF(AL19=1,IF(AF19<90,'Plant configuration'!$E$12,0),0) -> 0 | AV19: =IF(AM19=1,IF(AF19<90,'Plant configuration'!$E$13,0),0) -> 0 | AW19: =IF(AN19=1,IF(AF19<90,'Plant configuration'!$E$14,0),0) -> 0 | AX19: =IF(AL19=1,IF(Y19<='Plant configuration'!$A$31,0,'Plant configuration'!$F$12),0) -> 0 | AY19: =IF(AM19=1,IF(Y19<='Plant configuration'!$A$31,0,'Plant configuration'!$F$13),0) -> 0 | AZ19: =IF(AN19=1,IF(Y19<='Plant configuration'!$A$31,0,'Plant configuration'!$F$14),0) -> 0 | BA19: 0 | BC19: 0 | BD19: 0 | BE19: 0 | BG19: 0 | BH19: 0 | BI19: 0
A20: 18 | B20: 1 | C20: 1 | D20: 1 | E20: ='HEAT DEMAND'!E47 -> 4285.714286 | F20: ='HEAT DEMAND'!F47 -> 2500 | G20: ='HEAT DEMAND'!G47 -> 238.0952381 | H20: ='HEAT DEMAND'!H47 -> 0 | I20: ='HEAT DEMAND'!I47 -> 143.3430515 | J20: ='HEAT DEMAND'!J47 -> 7167.152575 | K20: ='HEAT DEMAND'!K47 ->  | L20: =IF(#REF!>=0,IF(#REF!>=#REF!,IF(#REF!>=Calculos!$G$8,'HEAT DEMAND'!$G$8,Calculos!#REF!),Calculos!#REF!),IF(Calculos!#REF!>=Calculos!$I$8,Calculos!#REF!,Calculos!#REF!)) ->  | M20: ='HEAT DEMAND'!L47 ->  | N20: ='HEAT DEMAND'!M47 -> 18 | O20: ='HEAT DEMAND'!N47 -> 0 | P20: ='HEAT DEMAND'!O47 -> 0 | Q20: ='HEAT DEMAND'!P47 -> 0 | R20: ='HEAT DEMAND'!Q47 -> 0 | S20: ='HEAT DEMAND'!R47 -> 0 | T20: ='HEAT DEMAND'!S47 -> 0 | W20: 7167.152575 | Y20: =W20/(4.18*('Plant configuration'!$E$27-'Plant configuration'!$C$27)) -> 42.86574507 | Z20: =IF(AF20-'Plant configuration'!$A$27<=70,AF20-'Plant configuration'!$A$27,70) -> 30.13061621 | AA20: =IF((Y20*(Z20-'Plant configuration'!$C$27)/(Calculos!AF20-('Plant configuration'!$C$27+'Plant configuration'!$A$27)))<='Plant configuration'!$H$18,(Y20*(Z20-'Plant configuration'!$C$27)/(Calculos!AF20-('Plant configuration'!$C$27+'Plant configuration'!$A$27))),'Plant configuration'!$H$18) -> 42.86574507 | AB20: =Y20*4.18*(Z20-'Plant configuration'!$C$27) -> 23.40365746 | AC20: 21956.63513 | AD20: 21940.43147 | AE20: 7143.748918 | AF20: 35.13061621 | AG20: =AD20*120/'Plant configuration'!$D$18 -> 35.10469036 | AI20: 35.13061621 | AJ20: ='Plant configuration'!$C$27+'Plant configuration'!$A$27 -> 35 | AL20: =IF(AF20<'Plant configuration'!$A$23,1,0) -> 1 | AM20: =IF(AF20<'Plant configuration'!$C$23,1,0) -> 1 | AN20: =IF('Plant configuration'!$C$14>0,IF(AF20<'Plant configuration'!$E$23,1,0),0) -> 0 | AO20: =AL20*'Plant configuration'!$D$12+Calculos!AM20*'Plant configuration'!$D$13+Calculos!AN20*'Plant configuration'!$D$14 -> 7.2 | AP20: =IF(Z20<'Plant configuration'!$G$23,1,0) -> 1 | AQ20: 7.2 | AR20: 7143.748918 | AS20: =(AL20*'Plant configuration'!$B$12+Calculos!AM20*'Plant configuration'!$B$13+Calculos!AN20*'Plant configuration'!$B$14) -> 18 | AU20: =IF(AL20=1,IF(AF20<90,'Plant configuration'!$E$12,0),0) -> 0 | AV20: =IF(AM20=1,IF(AF20<90,'Plant configuration'!$E$13,0),0) -> 0 | AW20: =IF(AN20=1,IF(AF20<90,'Plant configuration'!$E$14,0),0) -> 0 | AX20: =IF(AL20=1,IF(Y20<='Plant configuration'!$A$31,0,'Plant configuration'!$F$12),0) -> 0 | AY20: =IF(AM20=1,IF(Y20<='Plant configuration'!$A$31,0,'Plant configuration'!$F$13),0) -> 0 | AZ20: =IF(AN20=1,IF(Y20<='Plant configuration'!$A$31,0,'Plant configuration'!$F$14),0) -> 0 | BA20: 0 | BC20: 0 | BD20: 0 | BE20: 0 | BG20: 0 | BH20: 0 | BI20: 0
